Workbook

Sheet Instructions
A30: Release Log
A32: TDSv29 | B32: 2017-06-30 | C32: Updated for 2016.3.0 including changes to wall sheathing, R 19 compressed, NEEA HPWH, DHW DSM values, 80% AFUE Furnace. On MF, door area changed to 20ft2 per dwelling.
A33: TDSv28 | B33: 2016-08-31 | C33: Update for 2016.2.1. Added summary information. Spreadsheet now different from 2013 version due to EDR information.
A34: TDSv27 | B34: 2016-06-03 | C34: Second release of 2016 version. Updated to better handle Candidate programs that don't need to pass certain standard design runs
C35: existing+addition+alteration runs if only being certified for new construction. See inputs at top of Summary tab.
A36: TDSv25 | B36: 2015-11-11 | C36: First release of 2016 TDS based. Files were updated to use 2016 requirements. Tolerance changed to 0.04. Spreadsheet standards equals lookup revised.
C37: Some U07 files modified to look at above/below deck insulation. U12 and U13 existing attic status changed to existing.
C38: U10 files modified to match new MF central calcs.

Sheet Test Data Set Description
A29: Test # | B29: Run # | C29: Number of Runs | D29: Description | E29: Prototype
D30: Standard Design Tests
D31: Following tests all 16 climate zones
D32: Following tests standard design = proposed design
A33: U01 | B33: R01-R16 | C33: 16 | D33: Standard Design Test | E33: S2100
A34: U02 | B34: R01-R16 | C34: 16 | D34: Standard Design Test | E34: S2700
A35: U03 | B35: R01-R16 | C35: 16 | D35: Standard Design Test | E35: S6960
D37: Proposed Design Tests
D38: Following tests should have standard = standard from tests T01, T02 and T03
A39: U04 | B39: R01-R16 | C39: 16 | D39: Proposed Design Test | E39: P2100
A40: U05 | B40: R01-R16 | C40: 16 | D40: Proposed Design Test | E40: P2700
A41: U06 | B41: R01-R16 | C41: 16 | D41: Proposed Design Test | E41: P6960
A43: U07 | D43: =VLOOKUP(A43,TestArray,2) -> Common Measures
D44: Following tests for Climate Zone 12 only
D45: Following tests should have the same standard design as T01R12
A46: U07 | B46: R01 | C46: 1 | D46: =VLOOKUP(A46,TestArray,4+RIGHT(B46,2)) -> Package
A47: U07 | B47: R02 | C47: 1 | D47: Fenestration U 0.40/S 0.40 | E47: T04R12
A48: U07 | B48: R03 | C48: 1 | D48: Wall R13/Roof Deck Above R6 | E48: T04R12
A49: U07 | B49: R04 | C49: 1 | D49: Ceiling R49 /Roof Deck Below R0/Radiant Barrier | E49: T04R12
A50: U07 | B50: R05 | C50: 1 | D50: Furnace AFUE 92 | E50: T04R12
A51: U07 | B51: R06 | C51: 1 | D51: Air Conditioner SEER 16/EER 14 | E51: T04R12
A52: U07 | B52: R07 | C52: 1 | D52: No Cool Vent | E52: T04R12
A53: U07 | B53: R08 | C53: 1 | D53: Ducts 2% Leakage | E53: T04R12
A54: U07 | B54: R09 | C54: 1 | D54: Insulation Construction Quality Improved | E54: T04R12
A55: U07 | B55: R10 | C55: 1 | D55: Air Leakage ACH50 2.0 | E55: T04R12
A57: U08 | D57: =VLOOKUP(A57,TestArray,2) -> Water Heating
D58: Following tests for Climate Zone 12 only
D59: Some standard designs are different than T01R12
A60: U08 | B60: R01 | C60: 1 | D60: =VLOOKUP(A60,TestArray,4+RIGHT(B60,2)) -> Package | E60: T04R12
A61: U08 | B61: R02 | C61: 1 | D61: Parallel Piping | E61: T04R12
A62: U08 | B62: R03 | C62: 1 | D62: Small Tankless EF 0.80/Input 195000/0 gal | E62: T04R12
A63: U08 | B63: R04 | C63: 1 | D63: Large Tankless RE 0.76/Input 300000/0 gal | E63: T04R12
A64: U08 | B64: R05 | C64: 1 | D64: Large Storage RE 0.77/Input 100000/75gal/Stby 0.01 | E64: T04R12
A65: U08 | B65: R06 | C65: 1 | D65: Large Storage RE 0.77/Input 100000/75gal/Stby 0.03 | E65: T04R12
A66: U08 | B66: R07 | C66: 1 | D66: Electric Resistance EF 0.92/Input 4500 | E66: T04R12
A67: U08 | B67: R08 | C67: 1 | D67: Heat Pump EF 2.4/Input 4500 | E67: T04R12
A68: U08 | B68: R09 | C68: 1 | D68: 2 Water Heaters using Multiplier | E68: T04R12
A69: U08 | B69: R10 | C69: 1 | D69: 2 Water Heaters Using 2 entries | E69: T04R12
A71: U09 | D71: =VLOOKUP(A71,TestArray,2) -> Multiple Orientation
D72: Following tests for Climate Zone 12 only
A74: U09 | B74: R01 | C74: 1 | D74: =VLOOKUP(A74,TestArray,4+RIGHT(B74,2)) -> Single Standard Front 45 | E74: T01R12
A75: U09 | B75: R02 | C75: 1 | D75: East Standard | E75: T01R12
A76: U09 | B76: R03 | C76: 1 | D76: South Standard | E76: T01R12
A77: U09 | B77: R04 | C77: 1 | D77: West Standard | E77: T01R12
A78: U09 | B78: R05 | C78: 1 | D78: North Standard | E78: T01R12
A79: U09 | B79: R06 | C79: 1 | D79: Single Proposed front 45 | E79: T04R12
A80: U09 | B80: R07 | C80: 1 | D80: East Proposed | E80: T04R12
A81: U09 | B81: R08 | C81: 1 | D81: South Proposed | E81: T04R12
A82: U09 | B82: R09 | C82: 1 | D82: West Proposed | E82: T04R12
A83: U09 | B83: R10 | C83: 1 | D83: North Proposed | E83: T04R12
A85: U10 | D85: =VLOOKUP(A85,TestArray,2) -> Multi Family Water Heating
D86: Following tests for Climate Zone 12 only
D87: Some standard designs are different than T03R12
A88: U10 | B88: R01 | C88: 1 | D88: =VLOOKUP(A88,TestArray,4+RIGHT(B88,2)) -> 8 Storage | E88: T06R12
A89: U10 | B89: R02 | C89: 1 | D89: 8 Storage 2 Systems | E89: T06R12
A90: U10 | B90: R03 | C90: 1 | D90: 8 LgStor | E90: T06R12
A91: U10 | B91: R04 | C91: 1 | D91: 2 LgStor Central Solar | E91: T06R12
A92: U10 | B92: R05 | C92: 1 | D92: 2 LgStor Central Solar Recirc | E92: T06R12
A93: U10 | B93: R06 | C93: 1 | D93: 2 LgStor Central Recirc | E93: T06R12
A94: U10 | B94: R07 | C94: 1 | D94: 2 SmInstantant Central Solar | E94: T06R12
A95: U10 | B95: R08 | C95: 1 | D95: 2 SmInstantant Central Solar Recirc | E95: T06R12
A96: U10 | B96: R09 | C96: 1 | D96: 1 Indirect Central Solar | E96: T06R12
A97: U10 | B97: R10 | C97: 1 | D97: 1 Indirect Central Solar Recirc | E97: T06R12
A99: U11 | D99: =VLOOKUP(A99,TestArray,2) -> Source Energy
D100: Following tests for Climate Zone 12 only
D101: Some standard designs are different than T01R12
A102: U11 | B102: R01 | C102: 1 | D102: =VLOOKUP(A102,TestArray,4+RIGHT(B102,2)) -> Package | E102: T04R12
A103: U11 | B103: R02 | C103: 1 | D103: Package No Natural Gas | E103: T04R12
A104: U11 | B104: R03 | C104: 1 | D104: Electric DHW | E104: T04R12
A105: U11 | B105: R04 | C105: 1 | D105: Electric DHW no Natural Gas | E105: T04R12
A106: U11 | B106: R05 | C106: 1 | D106: Heatpump DHW | E106: T04R12
A107: U11 | B107: R06 | C107: 1 | D107: Heatpump DHW no Natural Gas | E107: T04R12
A108: U11 | B108: R07 | C108: 1 | D108: Heatpump HVAC | E108: T04R12
A109: U11 | B109: R08 | C109: 1 | D109: Heatpump HVAC no Natural Gas | E109: T04R12
A110: U11 | B110: R09 | C110: 1 | D110: Heatpump HVAC & DHW | E110: T04R12
A111: U11 | B111: R10 | C111: 1 | D111: Heatpump HVAC & DHW no Natural Gas | E111: T04R12
A113: U12 | D113: =VLOOKUP(A113,TestArray,2) -> E+A+A Base & Windows
D114: Following tests for Climate Zone 12 only
D115: Standard Design Varies with features and verification
A116: U12 | B116: R01 | C116: 1 | D116: =VLOOKUP(A116,TestArray,4+RIGHT(B116,2)) -> E 1440ft2 as New Construction | E116: P1665
A117: U12 | B117: R02 | C117: 1 | D117: E 1440ft2 as Addition/Alteration | E117: P1665
A118: U12 | B118: R03 | C118: 1 | D118: EA 1665ft2 | E118: P1665
A119: U12 | B119: R04 | C119: 1 | D119: EAA Ceiling R38 Verified | E119: P1665
A120: U12 | B120: R05 | C120: 1 | D120: EAA Ceiling R38 Verified Wind U0.41/S0.36 | E120: P1665
A121: U12 | B121: R06 | C121: 1 | D121: EAA Ceiling R38 Verified Wind U0.41/S0.36 Verified | E121: P1665
A122: U12 | B122: R07 | C122: 1 | D122: EAA Ceiling R38 Verified Wind U0.40/S0.35 | E122: P1665
A123: U12 | B123: R08 | C123: 1 | D123: EAA Ceiling R38 Verified Wind U0.40/S0.35 Verified | E123: P1665
A124: U12 | B124: R09 | C124: 1 | D124: EAA Ceiling R38 Verified Wind U0.39/S0.34 | E124: P1665
A125: U12 | B125: R10 | C125: 1 | D125: EAA Ceiling R38 Verified Wind U0.39/S0.34 Verified | E125: P1665
A127: U13 | D127: =VLOOKUP(A127,TestArray,2) -> E+A+A Walls & HVAC
D128: Following tests for Climate Zone 12 only
D129: Standard Design Varies with features and verification
A130: U13 | B130: R01 | C130: 1 | D130: =VLOOKUP(A130,TestArray,4+RIGHT(B130,2)) -> EAA Ceiling R38 Verified Wall R11 | E130: P1665
A131: U13 | B131: R02 | C131: 1 | D131: EAA Ceiling R38 Verified Wall R11 Verified | E131: P1665
A132: U13 | B132: R03 | C132: 1 | D132: EAA Ceiling R38 Verified Wall R13 | E132: P1665
A133: U13 | B133: R04 | C133: 1 | D133: EAA Ceiling R38 Verified Wall R13 Verified | E133: P1665
A134: U13 | B134: R05 | C134: 1 | D134: EAA Ceiling R38 Verified HVAC Worse | E134: P1665
A135: U13 | B135: R06 | C135: 1 | D135: EAA Ceiling R38 Verified HVAC Worse Verified | E135: P1665
A136: U13 | B136: R07 | C136: 1 | D136: EAA Ceiling R38 Verified HVAC Equal | E136: P1665
A137: U13 | B137: R08 | C137: 1 | D137: EAA Ceiling R38 Verified HVAC Equal Verified | E137: P1665
A138: U13 | B138: R09 | C138: 1 | D138: EAA Ceiling R38 Verified HVAC Better | E138: P1665
A139: U13 | B139: R10 | C139: 1 | D139: EAA Ceiling R38 Verified HVAC Better Verified | E139: P1665

Sheet Summary
A1: ="Summary of Residential ACM Tests ("&Units&")" -> Summary of Residential ACM Tests (kTDV/ft2)
B3: Comparison Date: | C3: 2017-07-21 | M3: Blue fields should be updated to match current results
B4: Comparison Author: | C4: Ken Nittler
B5: Candidate Software: | C5: CBECC-Res SVN 916 | M5: Cell C5 should be updated to the candidate software
B6: Reference Software: | C6: CBECC-Res SVN 916
B7: Type of Software: | C7: Reference | M7: Cell C7 should be changed for the type of program being approved. Candidate programs do not have to do standard design tests
B8: Type of Construction: | C8: Both | M8: Cell C8 should be changed for the type of construction being approved. New gets to skip tests T12 and T13.
B9: Units for Summary: | C9: kTDV/ft2
B10: Tolerance: | C10: =Tolerance -> 0.04
C12: Average | D12: Average
B13: Pass/ | C13: Proposed | D13: Standard
A14: Test | B14: Fail | C14: =Units -> kTDV/ft2 | D14: =Units -> kTDV/ft2 | F14: Description
A15: U01 | B15: =ResultT01 -> Pass | C15: =T01Proposed -> 40.895 | D15: =T01Standard -> 40.895 | F15: =VLOOKUP(A15,TestArray,2)&" in "&VLOOKUP(A15,TestArray,3)&" for Prototype "&VLOOKUP(A15,TestArray,4) -> Standard Design in All Zones for Prototype S2100ft2
A16: U02 | B16: =ResultT02 -> Pass | C16: =T02Proposed -> 38.79125 | D16: =T02Standard -> 38.79125 | F16: Standard Design in All Zones for Prototype S2700ft2
A17: U03 | B17: =ResultT03 -> Pass | C17: =T03Proposed -> 46.785625 | D17: =T03Standard -> 46.785625 | F17: Standard Design in All Zones for Prototype S6960ft2
A18: U04 | B18: =ResultT04 -> Pass | C18: =T04Proposed -> 37.53625 | D18: =T04Standard -> 40.895 | F18: Proposed Design in All Zones for Prototype P2100ft2
A19: U05 | B19: =ResultT05 -> Pass | C19: =T05Proposed -> 35.090625 | D19: =T05Standard -> 38.79125 | F19: Proposed Design in All Zones for Prototype P2700ft2
A20: U06 | B20: =ResultT06 -> Pass | C20: =T06Proposed -> 43.0575 | D20: =T06Standard -> 46.785625 | F20: Proposed Design in All Zones for Prototype P6960ft2
A21: U07 | B21: =ResultT07 -> Pass | C21: =T07Proposed -> 37.278 | D21: =T07Standard -> 41.01 | F21: Common Measures in Zone 12 for Prototype P2100ft2
A22: U08 | B22: =ResultT08 -> Pass | C22: =T08Proposed -> 40.927 | D22: =T08Standard -> 41.01 | F22: Water Heating in Zone 12 for Prototype P2100ft2
A23: U09 | B23: =ResultT09 -> Pass | C23: =T09Proposed -> 40.898 | D23: =T09Standard -> 41.01 | F23: Multiple Orientation in Zone 12 for Prototype S2100ft2/P2100ft2
A24: U10 | B24: =ResultT10 -> Pass | C24: =T10Proposed -> 58.784 | D24: =T10Standard -> 59.845 | F24: Multi Family Water Heating in Zone 12 for Prototype P6960ft2
A25: U11 | B25: =ResultT11 -> Pass | C25: =T11Proposed -> 47.302 | D25: =T11Standard -> 50.027 | F25: Source Energy in Zone 12 for Prototype P2100ft2
A26: U12 | B26: =ResultT12 -> Pass | C26: =T12Proposed -> 178.089 | D26: =T12Standard -> 181.45 | F26: E+A+A Base & Windows in Zone 12 for Prototype P1665ft2
A27: U13 | B27: =ResultT13 -> Pass | C27: =T13Proposed -> 132.822 | D27: =T13Standard -> 166.493 | F27: E+A+A Walls & HVAC in Zone 12 for Prototype P1665ft2
A29: Page 1 of 7
A31: Note:
A32: 1. If type of software (Cell C7) is set to "Candidate", then the tests based
A33: standard design are not necessary (Tests 1-3 and part of 9)
A34: 2. If type of construction (Cell C8) is set to "New" then the tests
A35: for additions and alterations are not necessary (Tests 12 and 13)

Sheet Details
A1: ="Comparison between Reference & Candidate Software ("&Units&")" -> Comparison between Reference & Candidate Software (kTDV/ft2) | P1: =INDIRECT(P4) -> 'Reference'!$A$1:$JB$1000 | Q1: 'Reference'!$A$1:$JB$1000 | R1: 'Reference'!$A$1:$JB$1000 | S1: 'Reference'!$A$1:$JB$1000 | T1: 'Reference'!$A$1:$JB$1000 | U1: 'Reference'!$A$1:$JB$1000 | V1: 'Reference'!$A$1:$JB$1000 | W1: 'Reference'!$A$1:$JB$1000 | X1: 'Reference'!$A$1:$JB$1000 | Y1: =INDIRECT(Y4) -> 'Candidate'!$A$1:$JB$1000 | Z1: 'Candidate'!$A$1:$JB$1000 | AA1: 'Candidate'!$A$1:$JB$1000 | AB1: 'Candidate'!$A$1:$JB$1000 | AC1: 'Candidate'!$A$1:$JB$1000 | AD1: 'Candidate'!$A$1:$JB$1000 | AE1: 'Candidate'!$A$1:$JB$1000 | AF1: 'Candidate'!$A$1:$JB$1000 | AG1: =INDIRECT(AG4) -> 'Candidate'!$A$1:$JB$1000 | AH1: =INDIRECT(AH4) -> 'Reference'!$A$1:$JB$1000 | AI1: 'Reference'!$A$1:$JB$1000 | AJ1: 'Reference'!$A$1:$JB$1000 | AK1: 'Reference'!$A$1:$JB$1000 | AL1: 'Reference'!$A$1:$JB$1000 | AM1: 'Reference'!$A$1:$JB$1000 | AN1: 'Reference'!$A$1:$JB$1000 | AO1: 'Reference'!$A$1:$JB$1000 | AP1: 'Reference'!$A$1:$JB$1000 | AQ1: =INDIRECT(AQ4) -> 'Candidate'!$A$1:$JB$1000 | AR1: 'Candidate'!$A$1:$JB$1000 | AS1: 'Candidate'!$A$1:$JB$1000 | AT1: 'Candidate'!$A$1:$JB$1000 | AU1: 'Candidate'!$A$1:$JB$1000 | AV1: 'Candidate'!$A$1:$JB$1000 | AW1: 'Candidate'!$A$1:$JB$1000 | AX1: 'Candidate'!$A$1:$JB$1000 | AY1: 'Candidate'!$A$1:$JB$1000
B2: =Summary!B3 -> Comparison Date: | C2: =Comparison_Date -> 2017-07-21 | P2: =INDIRECT(P4&"FileName") -> 'ReferenceLookups'!$N$1:$N$1000 | Y2: =INDIRECT(Y4&"FileName") -> 'CandidateLookups'!$N$1:$N$1000 | AH2: =INDIRECT(AH4&"FileName") -> 'ReferenceLookups'!$N$1:$N$1000 | AQ2: =INDIRECT(AQ4&"FileName") -> 'CandidateLookups'!$N$1:$N$1000
B3: =Summary!B4 -> Comparison Author: | C3: =Comparison_Author -> Ken Nittler | Q3: =INDIRECT(Q$4&Q$5&Q$6) -> 43 | R3: 44 | S3: 45 | T3: 46 | U3: 47 | V3: 48 | W3: 55 | X3: 10 | Z3: =INDIRECT(Z$4&Z$5&Z$6) -> 43 | AA3: 44 | AB3: 45 | AC3: 46 | AD3: 47 | AE3: 48 | AF3: 55 | AG3: 10 | AI3: =INDIRECT(AI$4&AI$5&AI$6) -> 99 | AJ3: 100 | AK3: 101 | AL3: 102 | AM3: 103 | AN3: 0 | AO3: 109 | AP3: 252 | AR3: =INDIRECT(AR$4&AR$5&AR$6) -> 99 | AS3: 100 | AT3: 101 | AU3: 102 | AV3: 103 | AW3: 0 | AX3: 109 | AY3: 252
B4: =Summary!B5 -> Candidate Software: | C4: =Candidate_Software -> CBECC-Res SVN 916 | N4: Standard | P4: Reference | Q4: Reference | R4: =Q4 -> Reference | S4: Reference | T4: Reference | U4: Reference | V4: Reference | W4: Reference | X4: Reference | Y4: Candidate | Z4: =Y4 -> Candidate | AA4: Candidate | AB4: Candidate | AC4: Candidate | AD4: Candidate | AE4: Candidate | AF4: Candidate | AG4: Candidate | AH4: Reference | AI4: =AH4 -> Reference | AJ4: Reference | AK4: Reference | AL4: Reference | AM4: Reference | AN4: Reference | AO4: Reference | AP4: Reference | AQ4: Candidate | AR4: =AQ4 -> Candidate | AS4: Candidate | AT4: Candidate | AU4: Candidate | AV4: Candidate | AW4: Candidate | AX4: Candidate | AY4: Candidate | BA4: Standard
E5: Reference | F5: Candidate | G5: Percent | H5: Within | I5: Standard | J5: Reference | K5: Candidate | L5: Percent | M5: Within | N5: Equals | P5: Proposed | Q5: =P5 -> Proposed | R5: Proposed | S5: Proposed | T5: Proposed | U5: Proposed | V5: Proposed | W5: Proposed | X5: Proposed | Y5: Proposed | Z5: Proposed | AA5: Proposed | AB5: Proposed | AC5: Proposed | AD5: Proposed | AE5: Proposed | AF5: Proposed | AG5: Proposed | AH5: Standard | AI5: Standard | AJ5: Standard | AK5: Standard | AL5: Standard | AM5: Standard | AN5: Standard | AO5: Standard | AP5: Standard | AQ5: Standard | AR5: Standard | AS5: Standard | AT5: Standard | AU5: Standard | AV5: Standard | AW5: Standard | AX5: Standard | AY5: Standard | BA5: Design
A6: Test | B6: Run | C6: Description | D6: Pass/Fail | E6: Proposed | F6: Proposed | G6: Difference | H6: Tolerance | I6: Equals | J6: Standard | K6: Standard | L6: Difference | M6: Tolerance | N6: Lookup | O6: Margin | P6: Row | Q6: SpcHeat | R6: SpcCool | S6: IAQVent | T6: OtherHVAC | U6: WtrHeat | V6: Solar | W6: Total | X6: EDR | Y6: Row | Z6: =Q6 -> SpcHeat | AA6: SpcCool | AB6: IAQVent | AC6: OtherHVAC | AD6: WtrHeat | AE6: Solar | AF6: Total | AG6: EDR | AH6: Row | AI6: SpcHeat | AJ6: SpcCool | AK6: IAQVent | AL6: OtherHVAC | AM6: WtrHeat | AN6: Solar | AO6: Total | AP6: =AG6 -> EDR | AQ6: Row | AR6: =AI6 -> SpcHeat | AS6: SpcCool | AT6: IAQVent | AU6: OtherHVAC | AV6: WtrHeat | AW6: Solar | AX6: Total | AY6: EDR | AZ6: Run | BA6: Row
AO7: AO | AP7: AP
A8: U01 | B8: =VLOOKUP(A8,TestArray,2)&" in "&VLOOKUP(A8,TestArray,3)&" for Prototype "&VLOOKUP(A8,TestArray,4) -> Standard Design in All Zones for Prototype S2100ft2 | I8: =VLOOKUP(A8,TestArray,21) -> Standard = Proposed for this test
A9: =A8 -> U01 | B9: R01 | C9: =VLOOKUP(A9,TestArray,4+RIGHT(B9,2)) -> Zone 01 | D9: =IF(SoftwareType="Candidate","n/a",IF(AND(H9=Yes,M9=Yes,ABS(E9-I9)<=Tolerance/2),Pass,Fail)) -> Pass | E9: =IF(Units="EDR",X9,W9) -> 44.68 | F9: =IF(Units="EDR",AG9,AF9) -> 44.68 | G9: =IF(E9=0,0,(F9-E9)/E9) -> 0 | H9: =IF(AND((E9-Tolerance<=F9),(E9+Tolerance>=F9)),Yes,No) -> Yes | I9: =IF(Units="EDR",J9,INDIRECT(RefCol&INDEX(StandardArray,MATCH($N9,StandardList,0),2))) -> 44.68 | J9: =IF(Units="EDR",AP9,AO9) -> 44.68 | K9: =IF(Units="EDR",AY9,AX9) -> 44.68 | L9: =IF(I9=0,0,(K9-I9)/I9) -> 0 | M9: =IF(AND((I9-Tolerance<=K9),(I9+Tolerance>=K9),(J9-Tolerance<=K9),(J9+Tolerance>=K9)),Yes,No) -> Yes | N9: =A9&B9 -> U01R01 | O9: =K9-F9 -> 0 | P9: =MATCH($A9&$B9,INDIRECT(P$2),0) -> 4 | Q9: =IF(Q$3=0,"",INDEX(INDIRECT(Q$1),$P9,Q$3)) -> 33.37 | R9: 0 | S9: 1.17 | T9: 0 | U9: 10.14 | V9: 0 | W9: =IF(TotalSum="No",INDEX(INDIRECT(W$1),$P9,W$3),SUM(Q9:V9)) -> 44.68 | X9: 61.4 | Y9: =MATCH($A9&$B9,INDIRECT(Y$2),0) -> 4 | Z9: =IF(Z$3=0,"",INDEX(INDIRECT(Z$1),$Y9,Z$3)) -> 33.37 | AA9: 0 | AB9: 1.17 | AC9: 0 | AD9: 10.14 | AE9: 0 | AF9: =IF(TotalSum="No",INDEX(INDIRECT(AF$1),$Y9,AF$3),SUM(Z9:AE9)) -> 44.68 | AG9: =IF(AG$3=0,"",INDEX(INDIRECT(AG$1),$P9,AG$3)) -> 61.4 | AH9: =MATCH($A9&$B9,INDIRECT(AH$2),0) -> 4 | AI9: =IF(AI$3=0,"",INDEX(INDIRECT(AI$1),$AH9,AI$3)) -> 33.37 | AJ9: 0 | AK9: 1.17 | AL9: 0 | AM9: 10.14 | AO9: =IF(TotalSum="No",INDEX(INDIRECT(AO$1),$AH9,AO$3),SUM(AI9:AN9)) -> 44.68 | AP9: =IF(AP$3=0,"",INDEX(INDIRECT(AP$1),$P9,AP$3)) -> 61.4 | AQ9: =MATCH($A9&$B9,INDIRECT(AQ$2),0) -> 4 | AR9: =IF(AR$3=0,"",INDEX(INDIRECT(AR$1),$AQ9,AR$3)) -> 33.37 | AS9: 0 | AT9: 1.17 | AU9: 0 | AV9: 10.14 | AX9: =IF(TotalSum="No",INDEX(INDIRECT(AX$1),$AQ9,AX$3),SUM(AR9:AW9)) -> 44.68 | AY9: =IF(AY$3=0,"",INDEX(INDIRECT(AY$1),$P9,AY$3)) -> 61.4 | AZ9: =A9&B9 -> U01R01 | BA9: =ROW(AZ9) -> 9
A10: =A9 -> U01 | B10: R02 | C10: Zone 02 | D10: Pass | E10: 33.99 | F10: 33.99 | G10: =IF(E10=0,0,(F10-E10)/E10) -> 0 | H10: Yes | I10: 33.99 | J10: 33.99 | K10: 33.99 | L10: =IF(I10=0,0,(K10-I10)/I10) -> 0 | M10: Yes | N10: U01R02 | O10: =K10-F10 -> 0 | P10: 5 | Q10: 23.31 | R10: 0.36 | S10: 1.17 | T10: 0 | U10: 9.15 | V10: 0 | W10: 33.99 | X10: 52.8 | Y10: 5 | Z10: 23.31 | AA10: 0.36 | AB10: 1.17 | AC10: 0 | AD10: 9.15 | AE10: 0 | AF10: 33.99 | AG10: 52.8 | AH10: 5 | AI10: 23.31 | AJ10: 0.36 | AK10: 1.17 | AL10: 0 | AM10: 9.15 | AO10: 33.99 | AP10: 52.8 | AQ10: 5 | AR10: 23.31 | AS10: 0.36 | AT10: 1.17 | AU10: 0 | AV10: 9.15 | AX10: 33.99 | AY10: 52.8 | AZ10: U01R02 | BA10: =ROW(AZ10) -> 10
A11: U01 | B11: R03 | C11: Zone 03 | D11: Pass | E11: 24.78 | F11: 24.78 | G11: 0 | H11: Yes | I11: 24.78 | J11: 24.78 | K11: 24.78 | L11: 0 | M11: Yes | N11: U01R03 | O11: 0 | P11: 6 | Q11: 14.44 | R11: 0 | S11: 1.17 | T11: 0 | U11: 9.17 | V11: 0 | W11: 24.78 | X11: 50.8 | Y11: 6 | Z11: 14.44 | AA11: 0 | AB11: 1.17 | AC11: 0 | AD11: 9.17 | AE11: 0 | AF11: 24.78 | AG11: 50.8 | AH11: 6 | AI11: 14.44 | AJ11: 0 | AK11: 1.17 | AL11: 0 | AM11: 9.17 | AO11: 24.78 | AP11: 50.8 | AQ11: 6 | AR11: 14.44 | AS11: 0 | AT11: 1.17 | AU11: 0 | AV11: 9.17 | AX11: 24.78 | AY11: 50.8 | AZ11: U01R03 | BA11: 11
A12: U01 | B12: R04 | C12: Zone 04 | D12: Pass | E12: 28.07 | F12: 28.07 | G12: 0 | H12: Yes | I12: 28.07 | J12: 28.07 | K12: 28.07 | L12: 0 | M12: Yes | N12: U01R04 | O12: 0 | P12: 7 | Q12: 16.53 | R12: 1.6 | S12: 1.17 | T12: 0 | U12: 8.77 | V12: 0 | W12: 28.07 | X12: 50.6 | Y12: 7 | Z12: 16.53 | AA12: 1.6 | AB12: 1.17 | AC12: 0 | AD12: 8.77 | AE12: 0 | AF12: 28.07 | AG12: 50.6 | AH12: 7 | AI12: 16.53 | AJ12: 1.6 | AK12: 1.17 | AL12: 0 | AM12: 8.77 | AO12: 28.07 | AP12: 50.6 | AQ12: 7 | AR12: 16.53 | AS12: 1.6 | AT12: 1.17 | AU12: 0 | AV12: 8.77 | AX12: 28.07 | AY12: 50.6 | AZ12: U01R04 | BA12: 12
A13: U01 | B13: R05 | C13: Zone 05 | D13: Pass | E13: 22.4 | F13: 22.4 | G13: 0 | H13: Yes | I13: 22.4 | J13: 22.4 | K13: 22.4 | L13: 0 | M13: Yes | N13: U01R05 | O13: 0 | P13: 8 | Q13: 11.86 | R13: 0 | S13: 1.17 | T13: 0 | U13: 9.37 | V13: 0 | W13: 22.4 | X13: 47.4 | Y13: 8 | Z13: 11.86 | AA13: 0 | AB13: 1.17 | AC13: 0 | AD13: 9.37 | AE13: 0 | AF13: 22.4 | AG13: 47.4 | AH13: 8 | AI13: 11.86 | AJ13: 0 | AK13: 1.17 | AL13: 0 | AM13: 9.37 | AO13: 22.4 | AP13: 47.4 | AQ13: 8 | AR13: 11.86 | AS13: 0 | AT13: 1.17 | AU13: 0 | AV13: 9.37 | AX13: 22.4 | AY13: 47.4 | AZ13: U01R05 | BA13: 13
A14: U01 | B14: R06 | C14: Zone 06 | D14: Pass | E14: 19.18 | F14: 19.18 | G14: 0 | H14: Yes | I14: 19.18 | J14: 19.18 | K14: 19.18 | L14: 0 | M14: Yes | N14: U01R06 | O14: 0 | P14: 9 | Q14: 7.51 | R14: 2.14 | S14: 1.13 | T14: 0 | U14: 8.4 | V14: 0 | W14: 19.18 | X14: 53 | Y14: 9 | Z14: 7.51 | AA14: 2.14 | AB14: 1.13 | AC14: 0 | AD14: 8.4 | AE14: 0 | AF14: 19.18 | AG14: 53 | AH14: 9 | AI14: 7.51 | AJ14: 2.14 | AK14: 1.13 | AL14: 0 | AM14: 8.4 | AO14: 19.18 | AP14: 53 | AQ14: 9 | AR14: 7.51 | AS14: 2.14 | AT14: 1.13 | AU14: 0 | AV14: 8.4 | AX14: 19.18 | AY14: 53 | AZ14: U01R06 | BA14: 14
A15: U01 | B15: R07 | C15: Zone 07 | D15: Pass | E15: 12.24 | F15: 12.24 | G15: 0 | H15: Yes | I15: 12.24 | J15: 12.24 | K15: 12.24 | L15: 0 | M15: Yes | N15: U01R07 | O15: 0 | P15: 10 | Q15: 2.68 | R15: 0.29 | S15: 1.17 | T15: 0 | U15: 8.1 | V15: 0 | W15: 12.24 | X15: 50.9 | Y15: 10 | Z15: 2.68 | AA15: 0.29 | AB15: 1.17 | AC15: 0 | AD15: 8.1 | AE15: 0 | AF15: 12.24 | AG15: 50.9 | AH15: 10 | AI15: 2.68 | AJ15: 0.29 | AK15: 1.17 | AL15: 0 | AM15: 8.1 | AO15: 12.24 | AP15: 50.9 | AQ15: 10 | AR15: 2.68 | AS15: 0.29 | AT15: 1.17 | AU15: 0 | AV15: 8.1 | AX15: 12.24 | AY15: 50.9 | AZ15: U01R07 | BA15: 15
A16: U01 | B16: R08 | C16: Zone 08 | D16: Pass | E16: 19.4 | F16: 19.4 | G16: 0 | H16: Yes | I16: 19.4 | J16: 19.4 | K16: 19.4 | L16: 0 | M16: Yes | N16: U01R08 | O16: 0 | P16: 11 | Q16: 3.98 | R16: 6.24 | S16: 1.13 | T16: 0 | U16: 8.05 | V16: 0 | W16: 19.4 | X16: 47.7 | Y16: 11 | Z16: 3.98 | AA16: 6.24 | AB16: 1.13 | AC16: 0 | AD16: 8.05 | AE16: 0 | AF16: 19.4 | AG16: 47.7 | AH16: 11 | AI16: 3.98 | AJ16: 6.24 | AK16: 1.13 | AL16: 0 | AM16: 8.05 | AO16: 19.4 | AP16: 47.7 | AQ16: 11 | AR16: 3.98 | AS16: 6.24 | AT16: 1.13 | AU16: 0 | AV16: 8.05 | AX16: 19.4 | AY16: 47.7 | AZ16: U01R08 | BA16: 16
A17: U01 | B17: R09 | C17: Zone 09 | D17: Pass | E17: 32.18 | F17: 32.18 | G17: 0 | H17: Yes | I17: 32.18 | J17: 32.18 | K17: 32.18 | L17: 0 | M17: Yes | N17: U01R09 | O17: 0 | P17: 12 | Q17: 6.05 | R17: 16.95 | S17: 1.12 | T17: 0 | U17: 8.06 | V17: 0 | W17: 32.18 | X17: 48.5 | Y17: 12 | Z17: 6.05 | AA17: 16.95 | AB17: 1.12 | AC17: 0 | AD17: 8.06 | AE17: 0 | AF17: 32.18 | AG17: 48.5 | AH17: 12 | AI17: 6.05 | AJ17: 16.95 | AK17: 1.12 | AL17: 0 | AM17: 8.06 | AO17: 32.18 | AP17: 48.5 | AQ17: 12 | AR17: 6.05 | AS17: 16.95 | AT17: 1.12 | AU17: 0 | AV17: 8.06 | AX17: 32.18 | AY17: 48.5 | AZ17: U01R09 | BA17: 17
A18: U01 | B18: R10 | C18: Zone 10 | D18: Pass | E18: 32.55 | F18: 32.55 | G18: 0 | H18: Yes | I18: 32.55 | J18: 32.55 | K18: 32.55 | L18: 0 | M18: Yes | N18: U01R10 | O18: 0 | P18: 13 | Q18: 7.11 | R18: 16.31 | S18: 1.12 | T18: 0 | U18: 8.01 | V18: 0 | W18: 32.55 | X18: 46.7 | Y18: 13 | Z18: 7.11 | AA18: 16.31 | AB18: 1.12 | AC18: 0 | AD18: 8.01 | AE18: 0 | AF18: 32.55 | AG18: 46.7 | AH18: 13 | AI18: 7.11 | AJ18: 16.31 | AK18: 1.12 | AL18: 0 | AM18: 8.01 | AO18: 32.55 | AP18: 46.7 | AQ18: 13 | AR18: 7.11 | AS18: 16.31 | AT18: 1.12 | AU18: 0 | AV18: 8.01 | AX18: 32.55 | AY18: 46.7 | AZ18: U01R10 | BA18: 18
A19: U01 | B19: R11 | C19: Zone 11 | D19: Pass | E19: 63.84 | F19: 63.84 | G19: 0 | H19: Yes | I19: 63.84 | J19: 63.84 | K19: 63.84 | L19: 0 | M19: Yes | N19: U01R11 | O19: 0 | P19: 14 | Q19: =IF(Q$3=0,"",INDEX(INDIRECT(Q$1),$P19,Q$3)) -> 19.93 | R19: 34.55 | S19: 1.17 | T19: 0 | U19: 8.19 | V19: 0 | W19: 63.84 | X19: 50.7 | Y19: 14 | Z19: =IF(Z$3=0,"",INDEX(INDIRECT(Z$1),$Y19,Z$3)) -> 19.93 | AA19: 34.55 | AB19: 1.17 | AC19: 0 | AD19: 8.19 | AE19: 0 | AF19: 63.84 | AG19: 50.7 | AH19: 14 | AI19: =IF(AI$3=0,"",INDEX(INDIRECT(AI$1),$AH19,AI$3)) -> 19.93 | AJ19: 34.55 | AK19: 1.17 | AL19: 0 | AM19: 8.19 | AO19: 63.84 | AP19: 50.7 | AQ19: 14 | AR19: =IF(AR$3=0,"",INDEX(INDIRECT(AR$1),$AQ19,AR$3)) -> 19.93 | AS19: 34.55 | AT19: 1.17 | AU19: 0 | AV19: 8.19 | AX19: 63.84 | AY19: 50.7 | AZ19: U01R11 | BA19: 19
A20: U01 | B20: R12 | C20: Zone 12 | D20: Pass | E20: 41.01 | F20: 41.01 | G20: 0 | H20: Yes | I20: 41.01 | J20: 41.01 | K20: 41.01 | L20: 0 | M20: Yes | N20: U01R12 | O20: 0 | P20: 15 | Q20: 20.99 | R20: 10.29 | S20: 1.17 | T20: 0 | U20: 8.56 | V20: 0 | W20: 41.01 | X20: 47.2 | Y20: 15 | Z20: 20.99 | AA20: 10.29 | AB20: 1.17 | AC20: 0 | AD20: 8.56 | AE20: 0 | AF20: 41.01 | AG20: 47.2 | AH20: 15 | AI20: 20.99 | AJ20: 10.29 | AK20: 1.17 | AL20: 0 | AM20: 8.56 | AO20: 41.01 | AP20: 47.2 | AQ20: 15 | AR20: 20.99 | AS20: 10.29 | AT20: 1.17 | AU20: 0 | AV20: 8.56 | AX20: 41.01 | AY20: 47.2 | AZ20: U01R12 | BA20: 20
A21: U01 | B21: R13 | C21: Zone 13 | D21: Pass | E21: 65.16 | F21: 65.16 | G21: 0 | H21: Yes | I21: 65.16 | J21: 65.16 | K21: 65.16 | L21: 0 | M21: Yes | N21: U01R13 | O21: 0 | P21: 16 | Q21: 17.45 | R21: 38.5 | S21: 1.17 | T21: 0 | U21: 8.04 | V21: 0 | W21: 65.16 | X21: 52.5 | Y21: 16 | Z21: 17.45 | AA21: 38.5 | AB21: 1.17 | AC21: 0 | AD21: 8.04 | AE21: 0 | AF21: 65.16 | AG21: 52.5 | AH21: 16 | AI21: 17.45 | AJ21: 38.5 | AK21: 1.17 | AL21: 0 | AM21: 8.04 | AO21: 65.16 | AP21: 52.5 | AQ21: 16 | AR21: 17.45 | AS21: 38.5 | AT21: 1.17 | AU21: 0 | AV21: 8.04 | AX21: 65.16 | AY21: 52.5 | AZ21: U01R13 | BA21: 21
A22: U01 | B22: R14 | C22: Zone 14 | D22: Pass | E22: 61.08 | F22: 61.08 | G22: 0 | H22: Yes | I22: 61.08 | J22: 61.08 | K22: 61.08 | L22: 0 | M22: Yes | N22: U01R14 | O22: 0 | P22: 17 | Q22: 19.41 | R22: 32.2 | S22: 1.12 | T22: 0 | U22: 8.35 | V22: 0 | W22: 61.08 | X22: 51.5 | Y22: 17 | Z22: 19.41 | AA22: 32.2 | AB22: 1.12 | AC22: 0 | AD22: 8.35 | AE22: 0 | AF22: 61.08 | AG22: 51.5 | AH22: 17 | AI22: 19.41 | AJ22: 32.2 | AK22: 1.12 | AL22: 0 | AM22: 8.35 | AO22: 61.08 | AP22: 51.5 | AQ22: 17 | AR22: 19.41 | AS22: 32.2 | AT22: 1.12 | AU22: 0 | AV22: 8.35 | AX22: 61.08 | AY22: 51.5 | AZ22: U01R14 | BA22: 22
A23: U01 | B23: R15 | C23: Zone 15 | D23: Pass | E23: 96.23 | F23: 96.23 | G23: 0 | H23: Yes | I23: 96.23 | J23: 96.23 | K23: 96.23 | L23: 0 | M23: Yes | N23: U01R15 | O23: 0 | P23: 18 | Q23: 0.66 | R23: 88.36 | S23: 1.12 | T23: 0 | U23: 6.09 | V23: 0 | W23: 96.23 | X23: 57 | Y23: 18 | Z23: 0.66 | AA23: 88.36 | AB23: 1.12 | AC23: 0 | AD23: 6.09 | AE23: 0 | AF23: 96.23 | AG23: 57 | AH23: 18 | AI23: 0.66 | AJ23: 88.36 | AK23: 1.12 | AL23: 0 | AM23: 6.09 | AO23: 96.23 | AP23: 57 | AQ23: 18 | AR23: 0.66 | AS23: 88.36 | AT23: 1.12 | AU23: 0 | AV23: 6.09 | AX23: 96.23 | AY23: 57 | AZ23: U01R15 | BA23: 23
A24: U01 | B24: R16 | C24: Zone 16 | D24: Pass | E24: 57.53 | F24: 57.53 | G24: 0 | H24: Yes | I24: 57.53 | J24: 57.53 | K24: 57.53 | L24: 0 | M24: Yes | N24: U01R16 | O24: 0 | P24: 19 | Q24: 44.83 | R24: 1.36 | S24: 1.11 | T24: 0 | U24: 10.23 | V24: 0 | W24: 57.53 | X24: 62 | Y24: 19 | Z24: 44.83 | AA24: 1.36 | AB24: 1.11 | AC24: 0 | AD24: 10.23 | AE24: 0 | AF24: 57.53 | AG24: 62 | AH24: 19 | AI24: 44.83 | AJ24: 1.36 | AK24: 1.11 | AL24: 0 | AM24: 10.23 | AO24: 57.53 | AP24: 62 | AQ24: 19 | AR24: 44.83 | AS24: 1.36 | AT24: 1.11 | AU24: 0 | AV24: 10.23 | AX24: 57.53 | AY24: 62 | AZ24: U01R16 | BA24: 24
A25: ="Result "&A8 -> Result U01 | D25: =IF(SoftwareType="Candidate","n/a",IF(COUNTIF(D9:D24,Pass)=16,Pass,Fail)) -> Pass | E25: =AVERAGE(E9:E24) -> 40.895 | F25: =AVERAGE(F9:F24) -> 40.895 | G25: =IF(E25=0,0,(F25-E25)/E25) -> 0 | I25: =AVERAGE(I9:I24) -> 40.895 | J25: =AVERAGE(J9:J24) -> 40.895 | K25: =AVERAGE(K9:K24) -> 40.895 | L25: 0 | M25: Min | N25: =MIN(L9:L24) -> 0 | O25: =AVERAGE(O9:O24) -> 0 | P25: Ave | Q25: =AVERAGE(Q9:Q24) -> 15.631875 | R25: =AVERAGE(R9:R24) -> 15.571875 | S25: =AVERAGE(S9:S24) -> 1.14875 | U25: =AVERAGE(U9:U24) -> 8.5425 | V25: =AVERAGE(V9:V24) -> 0 | W25: =AVERAGE(W9:W24) -> 40.895 | X25: =AVERAGE(X9:X24) -> 51.91875 | Y25: Ave | Z25: =AVERAGE(Z9:Z24) -> 15.631875 | AA25: =AVERAGE(AA9:AA24) -> 15.571875 | AB25: =AVERAGE(AB9:AB24) -> 1.14875 | AC25: =AVERAGE(AC9:AC24) -> 0 | AD25: =AVERAGE(AD9:AD24) -> 8.5425 | AF25: =AVERAGE(AF9:AF24) -> 40.895 | AG25: =AVERAGE(AG9:AG24) -> 51.91875 | AI25: =AVERAGE(AI9:AI24) -> 15.631875 | AJ25: =AVERAGE(AJ9:AJ24) -> 15.571875 | AK25: =AVERAGE(AK9:AK24) -> 1.14875 | AL25: =AVERAGE(AL9:AL24) -> 0 | AM25: =AVERAGE(AM9:AM24) -> 8.5425 | AO25: =AVERAGE(AO9:AO24) -> 40.895 | AP25: =AVERAGE(AP9:AP24) -> 51.91875 | AQ25: Ave | AR25: =AVERAGE(AR9:AR24) -> 15.631875 | AS25: =AVERAGE(AS9:AS24) -> 15.571875 | AT25: =AVERAGE(AT9:AT24) -> 1.14875 | AU25: =AVERAGE(AU9:AU24) -> 0 | AV25: =AVERAGE(AV9:AV24) -> 8.5425 | AX25: =AVERAGE(AX9:AX24) -> 40.895 | AY25: =AVERAGE(AY9:AY24) -> 51.91875
L26: Ave | M26: Max | N26: =MAX(L9:L24) -> 0 | Y26: % Diff | Z26: =(Z25-Q25)/Q25 -> 0 | AA26: =(AA25-R25)/R25 -> 0 | AB26: =(AB25-S25)/S25 -> 0 | AD26: =(AD25-U25)/U25 -> 0 | AF26: =(AF25-W25)/W25 -> 0
A27: U02 | B27: =VLOOKUP(A27,TestArray,2)&" in "&VLOOKUP(A27,TestArray,3)&" for Prototype "&VLOOKUP(A27,TestArray,4) -> Standard Design in All Zones for Prototype S2700ft2 | I27: =VLOOKUP(A27,TestArray,21) -> Standard = Proposed for this test
A28: =A27 -> U02 | B28: R01 | C28: =VLOOKUP(A28,TestArray,4+RIGHT(B28,2)) -> Zone 01 | D28: =IF(SoftwareType="Candidate","n/a",IF(AND(H28=Yes,M28=Yes,ABS(E28-I28)<=Tolerance/2),Pass,Fail)) -> Pass | E28: =IF(Units="EDR",X28,W28) -> 35.21 | F28: =IF(Units="EDR",AG28,AF28) -> 35.21 | G28: =IF(E28=0,0,(F28-E28)/E28) -> 0 | H28: =IF(AND((E28-Tolerance<=F28),(E28+Tolerance>=F28)),Yes,No) -> Yes | I28: =IF(Units="EDR",J28,INDIRECT(RefCol&INDEX(StandardArray,MATCH($N28,StandardList,0),2))) -> 35.21 | J28: =IF(Units="EDR",AP28,AO28) -> 35.21 | K28: =IF(Units="EDR",AY28,AX28) -> 35.21 | L28: =IF(I28=0,0,(K28-I28)/I28) -> 0 | M28: =IF(AND((I28-Tolerance<=K28),(I28+Tolerance>=K28),(J28-Tolerance<=K28),(J28+Tolerance>=K28)),Yes,No) -> Yes | N28: =A28&B28 -> U02R01 | O28: =K28-F28 -> 0 | P28: =MATCH($A28&$B28,INDIRECT(P$2),0) -> 20 | Q28: =IF(Q$3=0,"",INDEX(INDIRECT(Q$1),$P28,Q$3)) -> 25.22 | R28: 0 | S28: 1.15 | T28: 0 | U28: 8.84 | V28: 0 | W28: =IF(TotalSum="No",INDEX(INDIRECT(W$1),$P28,W$3),SUM(Q28:V28)) -> 35.21 | X28: =IF(X$3=0,"",INDEX(INDIRECT(X$1),$P28,X$3)) -> 56.6 | Y28: =MATCH($A28&$B28,INDIRECT(Y$2),0) -> 20 | Z28: =IF(Z$3=0,"",INDEX(INDIRECT(Z$1),$Y28,Z$3)) -> 25.22 | AA28: 0 | AB28: 1.15 | AC28: 0 | AD28: 8.84 | AE28: 0 | AF28: =IF(TotalSum="No",INDEX(INDIRECT(AF$1),$Y28,AF$3),SUM(Z28:AE28)) -> 35.21 | AG28: =IF(AG$3=0,"",INDEX(INDIRECT(AG$1),$P28,AG$3)) -> 56.6 | AH28: =MATCH($A28&$B28,INDIRECT(AH$2),0) -> 20 | AI28: =IF(AI$3=0,"",INDEX(INDIRECT(AI$1),$AH28,AI$3)) -> 25.22 | AJ28: 0 | AK28: 1.15 | AL28: 0 | AM28: 8.84 | AO28: =IF(TotalSum="No",INDEX(INDIRECT(AO$1),$AH28,AO$3),SUM(AI28:AN28)) -> 35.21 | AP28: =IF(AP$3=0,"",INDEX(INDIRECT(AP$1),$P28,AP$3)) -> 56.6 | AQ28: =MATCH($A28&$B28,INDIRECT(AQ$2),0) -> 20 | AR28: =IF(AR$3=0,"",INDEX(INDIRECT(AR$1),$AQ28,AR$3)) -> 25.22 | AS28: 0 | AT28: 1.15 | AU28: 0 | AV28: 8.84 | AX28: =IF(TotalSum="No",INDEX(INDIRECT(AX$1),$AQ28,AX$3),SUM(AR28:AW28)) -> 35.21 | AY28: =IF(AY$3=0,"",INDEX(INDIRECT(AY$1),$P28,AY$3)) -> 56.6 | AZ28: =A28&B28 -> U02R01 | BA28: =ROW(AZ28) -> 28
A29: =A28 -> U02 | B29: R02 | C29: Zone 02 | D29: Pass | E29: 30.64 | F29: 30.64 | G29: =IF(E29=0,0,(F29-E29)/E29) -> 0 | H29: Yes | I29: 30.64 | J29: 30.64 | K29: 30.64 | L29: =IF(I29=0,0,(K29-I29)/I29) -> 0 | M29: Yes | N29: U02R02 | O29: =K29-F29 -> 0 | P29: 21 | Q29: 19.96 | R29: 1.57 | S29: 1.15 | T29: 0 | U29: 7.96 | V29: 0 | W29: 30.64 | X29: 49.1 | Y29: 21 | Z29: 19.96 | AA29: 1.57 | AB29: 1.15 | AC29: 0 | AD29: 7.96 | AE29: 0 | AF29: 30.64 | AG29: 49.1 | AH29: 21 | AI29: 19.96 | AJ29: 1.57 | AK29: 1.15 | AL29: 0 | AM29: 7.96 | AO29: 30.64 | AP29: 49.1 | AQ29: 21 | AR29: 19.96 | AS29: 1.57 | AT29: 1.15 | AU29: 0 | AV29: 7.96 | AX29: 30.64 | AY29: 49.1 | AZ29: U02R02 | BA29: 29
A30: U02 | B30: R03 | C30: Zone 03 | D30: Pass | E30: 20.21 | F30: 20.21 | G30: 0 | H30: Yes | I30: 20.21 | J30: 20.21 | K30: 20.21 | L30: 0 | M30: Yes | N30: U02R03 | O30: 0 | P30: 22 | Q30: 10.98 | R30: 0.1 | S30: 1.15 | T30: 0 | U30: 7.98 | V30: 0 | W30: 20.21 | X30: 47.5 | Y30: 22 | Z30: 10.98 | AA30: 0.1 | AB30: 1.15 | AC30: 0 | AD30: 7.98 | AE30: 0 | AF30: 20.21 | AG30: 47.5 | AH30: 22 | AI30: 10.98 | AJ30: 0.1 | AK30: 1.15 | AL30: 0 | AM30: 7.98 | AO30: 20.21 | AP30: 47.5 | AQ30: 22 | AR30: 10.98 | AS30: 0.1 | AT30: 1.15 | AU30: 0 | AV30: 7.98 | AX30: 20.21 | AY30: 47.5 | AZ30: U02R03 | BA30: 30
A31: U02 | B31: R04 | C31: Zone 04 | D31: Pass | E31: 26.16 | F31: 26.16 | G31: 0 | H31: Yes | I31: 26.16 | J31: 26.16 | K31: 26.16 | L31: 0 | M31: Yes | N31: U02R04 | O31: 0 | P31: 23 | Q31: 14.5 | R31: 2.89 | S31: 1.15 | T31: 0 | U31: 7.62 | V31: 0 | W31: 26.16 | X31: 47.6 | Y31: 23 | Z31: 14.5 | AA31: 2.89 | AB31: 1.15 | AC31: 0 | AD31: 7.62 | AE31: 0 | AF31: 26.16 | AG31: 47.6 | AH31: 23 | AI31: 14.5 | AJ31: 2.89 | AK31: 1.15 | AL31: 0 | AM31: 7.62 | AO31: 26.16 | AP31: 47.6 | AQ31: 23 | AR31: 14.5 | AS31: 2.89 | AT31: 1.15 | AU31: 0 | AV31: 7.62 | AX31: 26.16 | AY31: 47.6 | AZ31: U02R04 | BA31: 31
A32: U02 | B32: R05 | C32: Zone 05 | D32: Pass | E32: 17.79 | F32: 17.79 | G32: 0 | H32: Yes | I32: 17.79 | J32: 17.79 | K32: 17.79 | L32: 0 | M32: Yes | N32: U02R05 | O32: 0 | P32: 24 | Q32: 8.48 | R32: 0 | S32: 1.15 | T32: 0 | U32: 8.16 | V32: 0 | W32: 17.79 | X32: 44.2 | Y32: 24 | Z32: 8.48 | AA32: 0 | AB32: 1.15 | AC32: 0 | AD32: 8.16 | AE32: 0 | AF32: 17.79 | AG32: 44.2 | AH32: 24 | AI32: 8.48 | AJ32: 0 | AK32: 1.15 | AL32: 0 | AM32: 8.16 | AO32: 17.79 | AP32: 44.2 | AQ32: 24 | AR32: 8.48 | AS32: 0 | AT32: 1.15 | AU32: 0 | AV32: 8.16 | AX32: 17.79 | AY32: 44.2 | AZ32: U02R05 | BA32: 32
A33: U02 | B33: R06 | C33: Zone 06 | D33: Pass | E33: 18.06 | F33: 18.06 | G33: 0 | H33: Yes | I33: 18.06 | J33: 18.06 | K33: 18.06 | L33: 0 | M33: Yes | N33: U02R06 | O33: 0 | P33: 25 | Q33: 6.63 | R33: 3.02 | S33: 1.11 | T33: 0 | U33: 7.3 | V33: 0 | W33: 18.06 | X33: 51 | Y33: 25 | Z33: 6.63 | AA33: 3.02 | AB33: 1.11 | AC33: 0 | AD33: 7.3 | AE33: 0 | AF33: 18.06 | AG33: 51 | AH33: 25 | AI33: 6.63 | AJ33: 3.02 | AK33: 1.11 | AL33: 0 | AM33: 7.3 | AO33: 18.06 | AP33: 51 | AQ33: 25 | AR33: 6.63 | AS33: 3.02 | AT33: 1.11 | AU33: 0 | AV33: 7.3 | AX33: 18.06 | AY33: 51 | AZ33: U02R06 | BA33: 33
A34: U02 | B34: R07 | C34: Zone 07 | D34: Pass | E34: 11.07 | F34: 11.07 | G34: 0 | H34: Yes | I34: 11.07 | J34: 11.07 | K34: 11.07 | L34: 0 | M34: Yes | N34: U02R07 | O34: 0 | P34: 26 | Q34: 2.26 | R34: 0.61 | S34: 1.15 | T34: 0 | U34: 7.05 | V34: 0 | W34: 11.07 | X34: 48.8 | Y34: 26 | Z34: 2.26 | AA34: 0.61 | AB34: 1.15 | AC34: 0 | AD34: 7.05 | AE34: 0 | AF34: 11.07 | AG34: 48.8 | AH34: 26 | AI34: 2.26 | AJ34: 0.61 | AK34: 1.15 | AL34: 0 | AM34: 7.05 | AO34: 11.07 | AP34: 48.8 | AQ34: 26 | AR34: 2.26 | AS34: 0.61 | AT34: 1.15 | AU34: 0 | AV34: 7.05 | AX34: 11.07 | AY34: 48.8 | AZ34: U02R07 | BA34: 34
A35: U02 | B35: R08 | C35: Zone 08 | D35: Pass | E35: 20.01 | F35: 20.01 | G35: 0 | H35: Yes | I35: 20.01 | J35: 20.01 | K35: 20.01 | L35: 0 | M35: Yes | N35: U02R08 | O35: 0 | P35: 27 | Q35: 3.83 | R35: 8.07 | S35: 1.11 | T35: 0 | U35: 7 | V35: 0 | W35: 20.01 | X35: 46.4 | Y35: 27 | Z35: 3.83 | AA35: 8.07 | AB35: 1.11 | AC35: 0 | AD35: 7 | AE35: 0 | AF35: 20.01 | AG35: 46.4 | AH35: 27 | AI35: 3.83 | AJ35: 8.07 | AK35: 1.11 | AL35: 0 | AM35: 7 | AO35: 20.01 | AP35: 46.4 | AQ35: 27 | AR35: 3.83 | AS35: 8.07 | AT35: 1.11 | AU35: 0 | AV35: 7 | AX35: 20.01 | AY35: 46.4 | AZ35: U02R08 | BA35: 35
A36: U02 | B36: R09 | C36: Zone 09 | D36: Pass | E36: 32.59 | F36: 32.59 | G36: 0 | H36: Yes | I36: 32.59 | J36: 32.59 | K36: 32.59 | L36: 0 | M36: Yes | N36: U02R09 | O36: 0 | P36: 28 | Q36: 5.88 | R36: 18.61 | S36: 1.1 | T36: 0 | U36: 7 | V36: 0 | W36: 32.59 | X36: 46.6 | Y36: 28 | Z36: 5.88 | AA36: 18.61 | AB36: 1.1 | AC36: 0 | AD36: 7 | AE36: 0 | AF36: 32.59 | AG36: 46.6 | AH36: 28 | AI36: 5.88 | AJ36: 18.61 | AK36: 1.1 | AL36: 0 | AM36: 7 | AO36: 32.59 | AP36: 46.6 | AQ36: 28 | AR36: 5.88 | AS36: 18.61 | AT36: 1.1 | AU36: 0 | AV36: 7 | AX36: 32.59 | AY36: 46.6 | AZ36: U02R09 | BA36: 36
A37: U02 | B37: R10 | C37: Zone 10 | D37: Pass | E37: 33.47 | F37: 33.47 | G37: 0 | H37: Yes | I37: 33.47 | J37: 33.47 | K37: 33.47 | L37: 0 | M37: Yes | N37: U02R10 | O37: 0 | P37: 29 | Q37: 6.85 | R37: 18.56 | S37: 1.1 | T37: 0 | U37: 6.96 | V37: 0 | W37: 33.47 | X37: 44.8 | Y37: 29 | Z37: 6.85 | AA37: 18.56 | AB37: 1.1 | AC37: 0 | AD37: 6.96 | AE37: 0 | AF37: 33.47 | AG37: 44.8 | AH37: 29 | AI37: 6.85 | AJ37: 18.56 | AK37: 1.1 | AL37: 0 | AM37: 6.96 | AO37: 33.47 | AP37: 44.8 | AQ37: 29 | AR37: 6.85 | AS37: 18.56 | AT37: 1.1 | AU37: 0 | AV37: 6.96 | AX37: 33.47 | AY37: 44.8 | AZ37: U02R10 | BA37: 37
A38: U02 | B38: R11 | C38: Zone 11 | D38: Pass | E38: 63.2 | F38: 63.2 | G38: 0 | H38: Yes | I38: 63.2 | J38: 63.2 | K38: 63.2 | L38: 0 | M38: Yes | N38: U02R11 | O38: 0 | P38: 30 | Q38: =IF(Q$3=0,"",INDEX(INDIRECT(Q$1),$P38,Q$3)) -> 18.66 | R38: 36.28 | S38: 1.15 | T38: 0 | U38: 7.11 | V38: 0 | W38: 63.2 | X38: 48.2 | Y38: 30 | Z38: =IF(Z$3=0,"",INDEX(INDIRECT(Z$1),$Y38,Z$3)) -> 18.66 | AA38: 36.28 | AB38: 1.15 | AC38: 0 | AD38: 7.11 | AE38: 0 | AF38: 63.2 | AG38: 48.2 | AH38: 30 | AI38: =IF(AI$3=0,"",INDEX(INDIRECT(AI$1),$AH38,AI$3)) -> 18.66 | AJ38: 36.28 | AK38: 1.15 | AL38: 0 | AM38: 7.11 | AO38: 63.2 | AP38: 48.2 | AQ38: 30 | AR38: =IF(AR$3=0,"",INDEX(INDIRECT(AR$1),$AQ38,AR$3)) -> 18.66 | AS38: 36.28 | AT38: 1.15 | AU38: 0 | AV38: 7.11 | AX38: 63.2 | AY38: 48.2 | AZ38: U02R11 | BA38: 38
A39: U02 | B39: R12 | C39: Zone 12 | D39: Pass | E39: 42.19 | F39: 42.19 | G39: 0 | H39: Yes | I39: 42.19 | J39: 42.19 | K39: 42.19 | L39: 0 | M39: Yes | N39: U02R12 | O39: 0 | P39: 31 | Q39: 19.06 | R39: 14.54 | S39: 1.15 | T39: 0 | U39: 7.44 | V39: 0 | W39: 42.19 | X39: 45.5 | Y39: 31 | Z39: 19.06 | AA39: 14.54 | AB39: 1.15 | AC39: 0 | AD39: 7.44 | AE39: 0 | AF39: 42.19 | AG39: 45.5 | AH39: 31 | AI39: 19.06 | AJ39: 14.54 | AK39: 1.15 | AL39: 0 | AM39: 7.44 | AO39: 42.19 | AP39: 45.5 | AQ39: 31 | AR39: 19.06 | AS39: 14.54 | AT39: 1.15 | AU39: 0 | AV39: 7.44 | AX39: 42.19 | AY39: 45.5 | AZ39: U02R12 | BA39: 39
A40: U02 | B40: R13 | C40: Zone 13 | D40: Pass | E40: 64.46 | F40: 64.46 | G40: 0 | H40: Yes | I40: 64.46 | J40: 64.46 | K40: 64.46 | L40: 0 | M40: Yes | N40: U02R13 | O40: 0 | P40: 32 | Q40: 16.84 | R40: 39.49 | S40: 1.15 | T40: 0 | U40: 6.98 | V40: 0 | W40: 64.46 | X40: 50 | Y40: 32 | Z40: 16.84 | AA40: 39.49 | AB40: 1.15 | AC40: 0 | AD40: 6.98 | AE40: 0 | AF40: 64.46 | AG40: 50 | AH40: 32 | AI40: 16.84 | AJ40: 39.49 | AK40: 1.15 | AL40: 0 | AM40: 6.98 | AO40: 64.46 | AP40: 50 | AQ40: 32 | AR40: 16.84 | AS40: 39.49 | AT40: 1.15 | AU40: 0 | AV40: 6.98 | AX40: 64.46 | AY40: 50 | AZ40: U02R13 | BA40: 40
A41: U02 | B41: R14 | C41: Zone 14 | D41: Pass | E41: 60.55 | F41: 60.55 | G41: 0 | H41: Yes | I41: 60.55 | J41: 60.55 | K41: 60.55 | L41: 0 | M41: Yes | N41: U02R14 | O41: 0 | P41: 33 | Q41: 18.07 | R41: 34.13 | S41: 1.1 | T41: 0 | U41: 7.25 | V41: 0 | W41: 60.55 | X41: 49.2 | Y41: 33 | Z41: 18.07 | AA41: 34.13 | AB41: 1.1 | AC41: 0 | AD41: 7.25 | AE41: 0 | AF41: 60.55 | AG41: 49.2 | AH41: 33 | AI41: 18.07 | AJ41: 34.13 | AK41: 1.1 | AL41: 0 | AM41: 7.25 | AO41: 60.55 | AP41: 49.2 | AQ41: 33 | AR41: 18.07 | AS41: 34.13 | AT41: 1.1 | AU41: 0 | AV41: 7.25 | AX41: 60.55 | AY41: 49.2 | AZ41: U02R14 | BA41: 41
A42: U02 | B42: R15 | C42: Zone 15 | D42: Pass | E42: 90.57 | F42: 90.57 | G42: 0 | H42: Yes | I42: 90.57 | J42: 90.57 | K42: 90.57 | L42: 0 | M42: Yes | N42: U02R15 | O42: 0 | P42: 34 | Q42: 1.52 | R42: 82.68 | S42: 1.1 | T42: 0 | U42: 5.27 | V42: 0 | W42: 90.57 | X42: 53.4 | Y42: 34 | Z42: 1.52 | AA42: 82.68 | AB42: 1.1 | AC42: 0 | AD42: 5.27 | AE42: 0 | AF42: 90.57 | AG42: 53.4 | AH42: 34 | AI42: 1.52 | AJ42: 82.68 | AK42: 1.1 | AL42: 0 | AM42: 5.27 | AO42: 90.57 | AP42: 53.4 | AQ42: 34 | AR42: 1.52 | AS42: 82.68 | AT42: 1.1 | AU42: 0 | AV42: 5.27 | AX42: 90.57 | AY42: 53.4 | AZ42: U02R15 | BA42: 42
A43: U02 | B43: R16 | C43: Zone 16 | D43: Pass | E43: 54.48 | F43: 54.48 | G43: 0 | H43: Yes | I43: 54.48 | J43: 54.48 | K43: 54.48 | L43: 0 | M43: Yes | N43: U02R16 | O43: 0 | P43: 35 | Q43: 40.51 | R43: 3.98 | S43: 1.09 | T43: 0 | U43: 8.9 | V43: 0 | W43: 54.48 | X43: 58.5 | Y43: 35 | Z43: 40.51 | AA43: 3.98 | AB43: 1.09 | AC43: 0 | AD43: 8.9 | AE43: 0 | AF43: 54.48 | AG43: 58.5 | AH43: 35 | AI43: 40.51 | AJ43: 3.98 | AK43: 1.09 | AL43: 0 | AM43: 8.9 | AO43: 54.48 | AP43: 58.5 | AQ43: 35 | AR43: 40.51 | AS43: 3.98 | AT43: 1.09 | AU43: 0 | AV43: 8.9 | AX43: 54.48 | AY43: 58.5 | AZ43: U02R16 | BA43: 43
A44: ="Result "&A27 -> Result U02 | D44: =IF(SoftwareType="Candidate","n/a",IF(COUNTIF(D28:D43,Pass)=16,Pass,Fail)) -> Pass | E44: =AVERAGE(E28:E43) -> 38.79125 | F44: =AVERAGE(F28:F43) -> 38.79125 | G44: =IF(E44=0,0,(F44-E44)/E44) -> 0 | I44: =AVERAGE(I28:I43) -> 38.79125 | J44: =AVERAGE(J28:J43) -> 38.79125 | K44: =AVERAGE(K28:K43) -> 38.79125 | L44: 0 | M44: Min | N44: =MIN(L28:L43) -> 0 | O44: =AVERAGE(O28:O43) -> 0 | P44: Ave | Q44: =AVERAGE(Q28:Q43) -> 13.703125 | R44: =AVERAGE(R28:R43) -> 16.533125 | S44: =AVERAGE(S28:S43) -> 1.12875 | U44: =AVERAGE(U28:U43) -> 7.42625 | V44: =AVERAGE(V28:V43) -> 0 | W44: =AVERAGE(W28:W43) -> 38.79125 | X44: =AVERAGE(X28:X43) -> 49.2125 | Y44: Ave | Z44: =AVERAGE(Z28:Z43) -> 13.703125 | AA44: =AVERAGE(AA28:AA43) -> 16.533125 | AB44: =AVERAGE(AB28:AB43) -> 1.12875 | AC44: =AVERAGE(AC28:AC43) -> 0 | AD44: =AVERAGE(AD28:AD43) -> 7.42625 | AF44: =AVERAGE(AF28:AF43) -> 38.79125 | AG44: =AVERAGE(AG28:AG43) -> 49.2125 | AI44: =AVERAGE(AI28:AI43) -> 13.703125 | AJ44: =AVERAGE(AJ28:AJ43) -> 16.533125 | AK44: =AVERAGE(AK28:AK43) -> 1.12875 | AL44: =AVERAGE(AL28:AL43) -> 0 | AM44: =AVERAGE(AM28:AM43) -> 7.42625 | AO44: =AVERAGE(AO28:AO43) -> 38.79125 | AP44: =AVERAGE(AP28:AP43) -> 49.2125 | AQ44: Ave | AR44: =AVERAGE(AR28:AR43) -> 13.703125 | AS44: =AVERAGE(AS28:AS43) -> 16.533125 | AT44: =AVERAGE(AT28:AT43) -> 1.12875 | AU44: =AVERAGE(AU28:AU43) -> 0 | AV44: =AVERAGE(AV28:AV43) -> 7.42625 | AX44: =AVERAGE(AX28:AX43) -> 38.79125 | AY44: =AVERAGE(AY28:AY43) -> 49.2125
C45: Page 2 of 7 | L45: Ave | M45: Max | N45: =MAX(L28:L43) -> 0 | Y45: % Diff | Z45: =(Z44-Q44)/Q44 -> 0 | AA45: =(AA44-R44)/R44 -> 0 | AB45: =(AB44-S44)/S44 -> 0 | AD45: =(AD44-U44)/U44 -> 0 | AF45: =(AF44-W44)/W44 -> 0
A46: U03 | B46: =VLOOKUP(A46,TestArray,2)&" in "&VLOOKUP(A46,TestArray,3)&" for Prototype "&VLOOKUP(A46,TestArray,4) -> Standard Design in All Zones for Prototype S6960ft2 | I46: =VLOOKUP(A46,TestArray,21) -> Standard = Proposed for this test
A47: =A46 -> U03 | B47: R01 | C47: =VLOOKUP(A47,TestArray,4+RIGHT(B47,2)) -> Zone 01 | D47: =IF(SoftwareType="Candidate","n/a",IF(AND(H47=Yes,M47=Yes,ABS(E47-I47)<=Tolerance/2),Pass,Fail)) -> Pass | E47: =IF(Units="EDR",X47,W47) -> 34.73 | F47: =IF(Units="EDR",AG47,AF47) -> 34.73 | G47: =IF(E47=0,0,(F47-E47)/E47) -> 0 | H47: =IF(AND((E47-Tolerance<=F47),(E47+Tolerance>=F47)),Yes,No) -> Yes | I47: =IF(Units="EDR",J47,INDIRECT(RefCol&INDEX(StandardArray,MATCH($N47,StandardList,0),2))) -> 34.73 | J47: =IF(Units="EDR",AP47,AO47) -> 34.73 | K47: =IF(Units="EDR",AY47,AX47) -> 34.73 | L47: =IF(I47=0,0,(K47-I47)/I47) -> 0 | M47: =IF(AND((I47-Tolerance<=K47),(I47+Tolerance>=K47),(J47-Tolerance<=K47),(J47+Tolerance>=K47)),Yes,No) -> Yes | N47: =A47&B47 -> U03R01 | O47: =K47-F47 -> 0 | P47: =MATCH($A47&$B47,INDIRECT(P$2),0) -> 36 | Q47: =IF(Q$3=0,"",INDEX(INDIRECT(Q$1),$P47,Q$3)) -> 13.83 | R47: 0.1 | S47: 2.47 | T47: 0 | U47: 18.33 | V47: 0 | W47: =IF(TotalSum="No",INDEX(INDIRECT(W$1),$P47,W$3),SUM(Q47:V47)) -> 34.73 | X47: =IF(X$3=0,"",INDEX(INDIRECT(X$1),$P47,X$3)) -> 62.1 | Y47: =MATCH($A47&$B47,INDIRECT(Y$2),0) -> 36 | Z47: =IF(Z$3=0,"",INDEX(INDIRECT(Z$1),$Y47,Z$3)) -> 13.83 | AA47: 0.1 | AB47: 2.47 | AC47: 0 | AD47: 18.33 | AE47: 0 | AF47: =IF(TotalSum="No",INDEX(INDIRECT(AF$1),$Y47,AF$3),SUM(Z47:AE47)) -> 34.73 | AG47: =IF(AG$3=0,"",INDEX(INDIRECT(AG$1),$P47,AG$3)) -> 62.1 | AH47: =MATCH($A47&$B47,INDIRECT(AH$2),0) -> 36 | AI47: =IF(AI$3=0,"",INDEX(INDIRECT(AI$1),$AH47,AI$3)) -> 13.83 | AJ47: 0.1 | AK47: 2.47 | AL47: 0 | AM47: 18.33 | AO47: =IF(TotalSum="No",INDEX(INDIRECT(AO$1),$AH47,AO$3),SUM(AI47:AN47)) -> 34.73 | AP47: =IF(AP$3=0,"",INDEX(INDIRECT(AP$1),$P47,AP$3)) -> 62.1 | AQ47: =MATCH($A47&$B47,INDIRECT(AQ$2),0) -> 36 | AR47: =IF(AR$3=0,"",INDEX(INDIRECT(AR$1),$AQ47,AR$3)) -> 13.83 | AS47: 0.1 | AT47: 2.47 | AU47: 0 | AV47: 18.33 | AX47: =IF(TotalSum="No",INDEX(INDIRECT(AX$1),$AQ47,AX$3),SUM(AR47:AW47)) -> 34.73 | AY47: =IF(AY$3=0,"",INDEX(INDIRECT(AY$1),$P47,AY$3)) -> 62.1 | AZ47: =A47&B47 -> U03R01 | BA47: =ROW(AZ47) -> 47
A48: =A47 -> U03 | B48: R02 | C48: Zone 02 | D48: Pass | E48: 36.27 | F48: 36.27 | G48: =IF(E48=0,0,(F48-E48)/E48) -> 0 | H48: Yes | I48: 36.27 | J48: 36.27 | K48: 36.27 | L48: =IF(I48=0,0,(K48-I48)/I48) -> 0 | M48: Yes | N48: U03R02 | O48: =K48-F48 -> 0 | P48: 37 | Q48: 10.19 | R48: 7.07 | S48: 2.47 | T48: 0 | U48: 16.54 | V48: 0 | W48: 36.27 | X48: 58.4 | Y48: 37 | Z48: 10.19 | AA48: 7.07 | AB48: 2.47 | AC48: 0 | AD48: 16.54 | AE48: 0 | AF48: 36.27 | AG48: 58.4 | AH48: 37 | AI48: 10.19 | AJ48: 7.07 | AK48: 2.47 | AL48: 0 | AM48: 16.54 | AO48: 36.27 | AP48: 58.4 | AQ48: 37 | AR48: 10.19 | AS48: 7.07 | AT48: 2.47 | AU48: 0 | AV48: 16.54 | AX48: 36.27 | AY48: 58.4 | AZ48: U03R02 | BA48: 48
A49: U03 | B49: R03 | C49: Zone 03 | D49: Pass | E49: 25.14 | F49: 25.14 | G49: 0 | H49: Yes | I49: 25.14 | J49: 25.14 | K49: 25.14 | L49: 0 | M49: Yes | N49: U03R03 | O49: 0 | P49: 38 | Q49: 4.36 | R49: 1.74 | S49: 2.47 | T49: 0 | U49: 16.57 | V49: 0 | W49: 25.14 | X49: 58.7 | Y49: 38 | Z49: 4.36 | AA49: 1.74 | AB49: 2.47 | AC49: 0 | AD49: 16.57 | AE49: 0 | AF49: 25.14 | AG49: 58.7 | AH49: 38 | AI49: 4.36 | AJ49: 1.74 | AK49: 2.47 | AL49: 0 | AM49: 16.57 | AO49: 25.14 | AP49: 58.7 | AQ49: 38 | AR49: 4.36 | AS49: 1.74 | AT49: 2.47 | AU49: 0 | AV49: 16.57 | AX49: 25.14 | AY49: 58.7 | AZ49: U03R03 | BA49: 49
A50: U03 | B50: R04 | C50: Zone 04 | D50: Pass | E50: 33.52 | F50: 33.52 | G50: 0 | H50: Yes | I50: 33.52 | J50: 33.52 | K50: 33.52 | L50: 0 | M50: Yes | N50: U03R04 | O50: 0 | P50: 39 | Q50: 6.46 | R50: 8.75 | S50: 2.47 | T50: 0 | U50: 15.84 | V50: 0 | W50: 33.52 | X50: 57.7 | Y50: 39 | Z50: 6.46 | AA50: 8.75 | AB50: 2.47 | AC50: 0 | AD50: 15.84 | AE50: 0 | AF50: 33.52 | AG50: 57.7 | AH50: 39 | AI50: 6.46 | AJ50: 8.75 | AK50: 2.47 | AL50: 0 | AM50: 15.84 | AO50: 33.52 | AP50: 57.7 | AQ50: 39 | AR50: 6.46 | AS50: 8.75 | AT50: 2.47 | AU50: 0 | AV50: 15.84 | AX50: 33.52 | AY50: 57.7 | AZ50: U03R04 | BA50: 50
A51: U03 | B51: R05 | C51: Zone 05 | D51: Pass | E51: 24.13 | F51: 24.13 | G51: 0 | H51: Yes | I51: 24.13 | J51: 24.13 | K51: 24.13 | L51: 0 | M51: Yes | N51: U03R05 | O51: 0 | P51: 40 | Q51: 3.04 | R51: 1.68 | S51: 2.47 | T51: 0 | U51: 16.94 | V51: 0 | W51: 24.13 | X51: 58.3 | Y51: 40 | Z51: 3.04 | AA51: 1.68 | AB51: 2.47 | AC51: 0 | AD51: 16.94 | AE51: 0 | AF51: 24.13 | AG51: 58.3 | AH51: 40 | AI51: 3.04 | AJ51: 1.68 | AK51: 2.47 | AL51: 0 | AM51: 16.94 | AO51: 24.13 | AP51: 58.3 | AQ51: 40 | AR51: 3.04 | AS51: 1.68 | AT51: 2.47 | AU51: 0 | AV51: 16.94 | AX51: 24.13 | AY51: 58.3 | AZ51: U03R05 | BA51: 51
A52: U03 | B52: R06 | C52: Zone 06 | D52: Pass | E52: 26.15 | F52: 26.15 | G52: 0 | H52: Yes | I52: 26.15 | J52: 26.15 | K52: 26.15 | L52: 0 | M52: Yes | N52: U03R06 | O52: 0 | P52: 41 | Q52: 1.44 | R52: 7.13 | S52: 2.39 | T52: 0 | U52: 15.19 | V52: 0 | W52: 26.15 | X52: 62 | Y52: 41 | Z52: 1.44 | AA52: 7.13 | AB52: 2.39 | AC52: 0 | AD52: 15.19 | AE52: 0 | AF52: 26.15 | AG52: 62 | AH52: 41 | AI52: 1.44 | AJ52: 7.13 | AK52: 2.39 | AL52: 0 | AM52: 15.19 | AO52: 26.15 | AP52: 62 | AQ52: 41 | AR52: 1.44 | AS52: 7.13 | AT52: 2.39 | AU52: 0 | AV52: 15.19 | AX52: 26.15 | AY52: 62 | AZ52: U03R06 | BA52: 52
A53: U03 | B53: R07 | C53: Zone 07 | D53: Pass | E53: 23.37 | F53: 23.37 | G53: 0 | H53: Yes | I53: 23.37 | J53: 23.37 | K53: 23.37 | L53: 0 | M53: Yes | N53: U03R07 | O53: 0 | P53: 42 | Q53: 0.08 | R53: 6.14 | S53: 2.48 | T53: 0 | U53: 14.67 | V53: 0 | W53: 23.37 | X53: 62.2 | Y53: 42 | Z53: 0.08 | AA53: 6.14 | AB53: 2.48 | AC53: 0 | AD53: 14.67 | AE53: 0 | AF53: 23.37 | AG53: 62.2 | AH53: 42 | AI53: 0.08 | AJ53: 6.14 | AK53: 2.48 | AL53: 0 | AM53: 14.67 | AO53: 23.37 | AP53: 62.2 | AQ53: 42 | AR53: 0.08 | AS53: 6.14 | AT53: 2.48 | AU53: 0 | AV53: 14.67 | AX53: 23.37 | AY53: 62.2 | AZ53: U03R07 | BA53: 53
A54: U03 | B54: R08 | C54: Zone 08 | D54: Pass | E54: 34.31 | F54: 34.31 | G54: 0 | H54: Yes | I54: 34.31 | J54: 34.31 | K54: 34.31 | L54: 0 | M54: Yes | N54: U03R08 | O54: 0 | P54: 43 | Q54: 0.64 | R54: 16.7 | S54: 2.4 | T54: 0 | U54: 14.57 | V54: 0 | W54: 34.31 | X54: 60.8 | Y54: 43 | Z54: 0.64 | AA54: 16.7 | AB54: 2.4 | AC54: 0 | AD54: 14.57 | AE54: 0 | AF54: 34.31 | AG54: 60.8 | AH54: 43 | AI54: 0.64 | AJ54: 16.7 | AK54: 2.4 | AL54: 0 | AM54: 14.57 | AO54: 34.31 | AP54: 60.8 | AQ54: 43 | AR54: 0.64 | AS54: 16.7 | AT54: 2.4 | AU54: 0 | AV54: 14.57 | AX54: 34.31 | AY54: 60.8 | AZ54: U03R08 | BA54: 54
A55: U03 | B55: R09 | C55: Zone 09 | D55: Pass | E55: 44.63 | F55: 44.63 | G55: 0 | H55: Yes | I55: 44.63 | J55: 44.63 | K55: 44.63 | L55: 0 | M55: Yes | N55: U03R09 | O55: 0 | P55: 44 | Q55: 1.39 | R55: 26.3 | S55: 2.37 | T55: 0 | U55: 14.57 | V55: 0 | W55: 44.63 | X55: 59.3 | Y55: 44 | Z55: 1.39 | AA55: 26.3 | AB55: 2.37 | AC55: 0 | AD55: 14.57 | AE55: 0 | AF55: 44.63 | AG55: 59.3 | AH55: 44 | AI55: 1.39 | AJ55: 26.3 | AK55: 2.37 | AL55: 0 | AM55: 14.57 | AO55: 44.63 | AP55: 59.3 | AQ55: 44 | AR55: 1.39 | AS55: 26.3 | AT55: 2.37 | AU55: 0 | AV55: 14.57 | AX55: 44.63 | AY55: 59.3 | AZ55: U03R09 | BA55: 55
A56: U03 | B56: R10 | C56: Zone 10 | D56: Pass | E56: 45.22 | F56: 45.22 | G56: 0 | H56: Yes | I56: 45.22 | J56: 45.22 | K56: 45.22 | L56: 0 | M56: Yes | N56: U03R10 | O56: 0 | P56: 45 | Q56: 1.79 | R56: 26.58 | S56: 2.37 | T56: 0 | U56: 14.48 | V56: 0 | W56: 45.22 | X56: 57.6 | Y56: 45 | Z56: 1.79 | AA56: 26.58 | AB56: 2.37 | AC56: 0 | AD56: 14.48 | AE56: 0 | AF56: 45.22 | AG56: 57.6 | AH56: 45 | AI56: 1.79 | AJ56: 26.58 | AK56: 2.37 | AL56: 0 | AM56: 14.48 | AO56: 45.22 | AP56: 57.6 | AQ56: 45 | AR56: 1.79 | AS56: 26.58 | AT56: 2.37 | AU56: 0 | AV56: 14.48 | AX56: 45.22 | AY56: 57.6 | AZ56: U03R10 | BA56: 56
A57: U03 | B57: R11 | C57: Zone 11 | D57: Pass | E57: 70.21 | F57: 70.21 | G57: 0 | H57: Yes | I57: 70.21 | J57: 70.21 | K57: 70.21 | L57: 0 | M57: Yes | N57: U03R11 | O57: 0 | P57: 46 | Q57: =IF(Q$3=0,"",INDEX(INDIRECT(Q$1),$P57,Q$3)) -> 9.91 | R57: 43.05 | S57: 2.47 | T57: 0 | U57: 14.78 | V57: 0 | W57: 70.21 | X57: 57.8 | Y57: 46 | Z57: =IF(Z$3=0,"",INDEX(INDIRECT(Z$1),$Y57,Z$3)) -> 9.91 | AA57: 43.05 | AB57: 2.47 | AC57: 0 | AD57: 14.78 | AE57: 0 | AF57: 70.21 | AG57: 57.8 | AH57: 46 | AI57: =IF(AI$3=0,"",INDEX(INDIRECT(AI$1),$AH57,AI$3)) -> 9.91 | AJ57: 43.05 | AK57: 2.47 | AL57: 0 | AM57: 14.78 | AO57: 70.21 | AP57: 57.8 | AQ57: 46 | AR57: =IF(AR$3=0,"",INDEX(INDIRECT(AR$1),$AQ57,AR$3)) -> 9.91 | AS57: 43.05 | AT57: 2.47 | AU57: 0 | AV57: 14.78 | AX57: 70.21 | AY57: 57.8 | AZ57: U03R11 | BA57: 57
A58: U03 | B58: R12 | C58: Zone 12 | D58: Pass | E58: 54.37 | F58: 54.37 | G58: 0 | H58: Yes | I58: 54.37 | J58: 54.37 | K58: 54.37 | L58: 0 | M58: Yes | N58: U03R12 | O58: 0 | P58: 47 | Q58: 9.78 | R58: 26.66 | S58: 2.47 | T58: 0 | U58: 15.46 | V58: 0 | W58: 54.37 | X58: 57.9 | Y58: 47 | Z58: 9.78 | AA58: 26.66 | AB58: 2.47 | AC58: 0 | AD58: 15.46 | AE58: 0 | AF58: 54.37 | AG58: 57.9 | AH58: 47 | AI58: 9.78 | AJ58: 26.66 | AK58: 2.47 | AL58: 0 | AM58: 15.46 | AO58: 54.37 | AP58: 57.9 | AQ58: 47 | AR58: 9.78 | AS58: 26.66 | AT58: 2.47 | AU58: 0 | AV58: 15.46 | AX58: 54.37 | AY58: 57.9 | AZ58: U03R12 | BA58: 58
A59: U03 | B59: R13 | C59: Zone 13 | D59: Pass | E59: 71.77 | F59: 71.77 | G59: 0 | H59: Yes | I59: 71.77 | J59: 71.77 | K59: 71.77 | L59: 0 | M59: Yes | N59: U03R13 | O59: 0 | P59: 48 | Q59: 8.57 | R59: 46.23 | S59: 2.47 | T59: 0 | U59: 14.5 | V59: 0 | W59: 71.77 | X59: 59.2 | Y59: 48 | Z59: 8.57 | AA59: 46.23 | AB59: 2.47 | AC59: 0 | AD59: 14.5 | AE59: 0 | AF59: 71.77 | AG59: 59.2 | AH59: 48 | AI59: 8.57 | AJ59: 46.23 | AK59: 2.47 | AL59: 0 | AM59: 14.5 | AO59: 71.77 | AP59: 59.2 | AQ59: 48 | AR59: 8.57 | AS59: 46.23 | AT59: 2.47 | AU59: 0 | AV59: 14.5 | AX59: 71.77 | AY59: 59.2 | AZ59: U03R13 | BA59: 59
A60: U03 | B60: R14 | C60: Zone 14 | D60: Pass | E60: 66.5 | F60: 66.5 | G60: 0 | H60: Yes | I60: 66.5 | J60: 66.5 | K60: 66.5 | L60: 0 | M60: Yes | N60: U03R14 | O60: 0 | P60: 49 | Q60: 9.61 | R60: 39.46 | S60: 2.37 | T60: 0 | U60: 15.06 | V60: 0 | W60: 66.5 | X60: 58.6 | Y60: 49 | Z60: 9.61 | AA60: 39.46 | AB60: 2.37 | AC60: 0 | AD60: 15.06 | AE60: 0 | AF60: 66.5 | AG60: 58.6 | AH60: 49 | AI60: 9.61 | AJ60: 39.46 | AK60: 2.37 | AL60: 0 | AM60: 15.06 | AO60: 66.5 | AP60: 58.6 | AQ60: 49 | AR60: 9.61 | AS60: 39.46 | AT60: 2.37 | AU60: 0 | AV60: 15.06 | AX60: 66.5 | AY60: 58.6 | AZ60: U03R14 | BA60: 60
A61: U03 | B61: R15 | C61: Zone 15 | D61: Pass | E61: 102.02 | F61: 102.02 | G61: 0 | H61: Yes | I61: 102.02 | J61: 102.02 | K61: 102.02 | L61: 0 | M61: Yes | N61: U03R15 | O61: 0 | P61: 50 | Q61: 0.09 | R61: 88.55 | S61: 2.37 | T61: 0 | U61: 11.01 | V61: 0 | W61: 102.02 | X61: 62.9 | Y61: 50 | Z61: 0.09 | AA61: 88.55 | AB61: 2.37 | AC61: 0 | AD61: 11.01 | AE61: 0 | AF61: 102.02 | AG61: 62.9 | AH61: 50 | AI61: 0.09 | AJ61: 88.55 | AK61: 2.37 | AL61: 0 | AM61: 11.01 | AO61: 102.02 | AP61: 62.9 | AQ61: 50 | AR61: 0.09 | AS61: 88.55 | AT61: 2.37 | AU61: 0 | AV61: 11.01 | AX61: 102.02 | AY61: 62.9 | AZ61: U03R15 | BA61: 61
A62: U03 | B62: R16 | C62: Zone 16 | D62: Pass | E62: 56.23 | F62: 56.23 | G62: 0 | H62: Yes | I62: 56.23 | J62: 56.23 | K62: 56.23 | L62: 0 | M62: Yes | N62: U03R16 | O62: 0 | P62: 51 | Q62: 26.63 | R62: 8.79 | S62: 2.36 | T62: 0 | U62: 18.45 | V62: 0 | W62: 56.23 | X62: 62.9 | Y62: 51 | Z62: 26.63 | AA62: 8.79 | AB62: 2.36 | AC62: 0 | AD62: 18.45 | AE62: 0 | AF62: 56.23 | AG62: 62.9 | AH62: 51 | AI62: 26.63 | AJ62: 8.79 | AK62: 2.36 | AL62: 0 | AM62: 18.45 | AO62: 56.23 | AP62: 62.9 | AQ62: 51 | AR62: 26.63 | AS62: 8.79 | AT62: 2.36 | AU62: 0 | AV62: 18.45 | AX62: 56.23 | AY62: 62.9 | AZ62: U03R16 | BA62: 62
A63: ="Result "&A46 -> Result U03 | D63: =IF(SoftwareType="Candidate","n/a",IF(COUNTIF(D47:D62,Pass)=16,Pass,Fail)) -> Pass | E63: =AVERAGE(E47:E62) -> 46.785625 | F63: =AVERAGE(F47:F62) -> 46.785625 | G63: =IF(E63=0,0,(F63-E63)/E63) -> 0 | I63: =AVERAGE(I47:I62) -> 46.785625 | J63: =AVERAGE(J47:J62) -> 46.785625 | K63: =AVERAGE(K47:K62) -> 46.785625 | L63: 0 | M63: Min | N63: =MIN(L47:L62) -> 0 | O63: =AVERAGE(O47:O62) -> 0 | P63: Ave | Q63: =AVERAGE(Q47:Q62) -> 6.738125 | R63: =AVERAGE(R47:R62) -> 22.183125 | S63: =AVERAGE(S47:S62) -> 2.429375 | U63: =AVERAGE(U47:U62) -> 15.435 | V63: =AVERAGE(V47:V62) -> 0 | W63: =AVERAGE(W47:W62) -> 46.785625 | X63: =AVERAGE(X47:X62) -> 59.775 | Y63: Ave | Z63: =AVERAGE(Z47:Z62) -> 6.738125 | AA63: =AVERAGE(AA47:AA62) -> 22.183125 | AB63: =AVERAGE(AB47:AB62) -> 2.429375 | AC63: =AVERAGE(AC47:AC62) -> 0 | AD63: =AVERAGE(AD47:AD62) -> 15.435 | AF63: =AVERAGE(AF47:AF62) -> 46.785625 | AG63: =AVERAGE(AG47:AG62) -> 59.775 | AI63: =AVERAGE(AI47:AI62) -> 6.738125 | AJ63: =AVERAGE(AJ47:AJ62) -> 22.183125 | AK63: =AVERAGE(AK47:AK62) -> 2.429375 | AL63: =AVERAGE(AL47:AL62) -> 0 | AM63: =AVERAGE(AM47:AM62) -> 15.435 | AO63: =AVERAGE(AO47:AO62) -> 46.785625 | AP63: =AVERAGE(AP47:AP62) -> 59.775 | AQ63: Ave | AR63: =AVERAGE(AR47:AR62) -> 6.738125 | AS63: =AVERAGE(AS47:AS62) -> 22.183125 | AT63: =AVERAGE(AT47:AT62) -> 2.429375 | AU63: =AVERAGE(AU47:AU62) -> 0 | AV63: =AVERAGE(AV47:AV62) -> 15.435 | AX63: =AVERAGE(AX47:AX62) -> 46.785625 | AY63: =AVERAGE(AY47:AY62) -> 59.775
L64: Ave | M64: Max | N64: =MAX(L47:L62) -> 0 | Y64: % Diff | Z64: =(Z63-Q63)/Q63 -> 0 | AA64: =(AA63-R63)/R63 -> 0 | AB64: =(AB63-S63)/S63 -> 0 | AD64: =(AD63-U63)/U63 -> 0 | AF64: =(AF63-W63)/W63 -> 0
A65: U04 | B65: =VLOOKUP(A65,TestArray,2)&" in "&VLOOKUP(A65,TestArray,3)&" for Prototype "&VLOOKUP(A65,TestArray,4) -> Proposed Design in All Zones for Prototype P2100ft2 | I65: =VLOOKUP(A65,TestArray,21) -> Standard = T01 Standard for this test
A66: =A65 -> U04 | B66: R01 | C66: =VLOOKUP(A66,TestArray,4+RIGHT(B66,2)) -> Zone 01 | D66: =IF(AND(H66=Yes,M66=Yes),Pass,Fail) -> Pass | E66: =IF(Units="EDR",X66,W66) -> 43.35 | F66: =IF(Units="EDR",AG66,AF66) -> 43.35 | G66: =IF(E66=0,0,(F66-E66)/E66) -> 0 | H66: =IF(AND((E66-Tolerance<=F66),(E66+Tolerance>=F66)),Yes,No) -> Yes | I66: =IF(Units="EDR",J66,INDIRECT(RefCol&INDEX(StandardArray,MATCH($N66,StandardList,0),2))) -> 44.68 | J66: =IF(Units="EDR",AP66,AO66) -> 44.68 | K66: =IF(Units="EDR",AY66,AX66) -> 44.68 | L66: =IF(I66=0,0,(K66-I66)/I66) -> 0 | M66: =IF(AND((I66-Tolerance<=K66),(I66+Tolerance>=K66),(J66-Tolerance<=K66),(J66+Tolerance>=K66)),Yes,No) -> Yes | N66: =N9 -> U01R01 | O66: =K66-F66 -> 1.33 | P66: =MATCH($A66&$B66,INDIRECT(P$2),0) -> 52 | Q66: =IF(Q$3=0,"",INDEX(INDIRECT(Q$1),$P66,Q$3)) -> 32.04 | R66: 0 | S66: 1.17 | T66: 0 | U66: 10.14 | V66: 0 | W66: =IF(TotalSum="No",INDEX(INDIRECT(W$1),$P66,W$3),SUM(Q66:V66)) -> 43.35 | X66: =IF(X$3=0,"",INDEX(INDIRECT(X$1),$P66,X$3)) -> 60.4 | Y66: =MATCH($A66&$B66,INDIRECT(Y$2),0) -> 52 | Z66: =IF(Z$3=0,"",INDEX(INDIRECT(Z$1),$Y66,Z$3)) -> 32.04 | AA66: 0 | AB66: 1.17 | AC66: 0 | AD66: 10.14 | AE66: 0 | AF66: =IF(TotalSum="No",INDEX(INDIRECT(AF$1),$Y66,AF$3),SUM(Z66:AE66)) -> 43.35 | AG66: =IF(AG$3=0,"",INDEX(INDIRECT(AG$1),$P66,AG$3)) -> 60.4 | AH66: =MATCH($A66&$B66,INDIRECT(AH$2),0) -> 52 | AI66: =IF(AI$3=0,"",INDEX(INDIRECT(AI$1),$AH66,AI$3)) -> 33.37 | AJ66: 0 | AK66: 1.17 | AL66: 0 | AM66: 10.14 | AO66: =IF(TotalSum="No",INDEX(INDIRECT(AO$1),$AH66,AO$3),SUM(AI66:AN66)) -> 44.68 | AP66: =IF(AP$3=0,"",INDEX(INDIRECT(AP$1),$P66,AP$3)) -> 61.4 | AQ66: =MATCH($A66&$B66,INDIRECT(AQ$2),0) -> 52 | AR66: =IF(AR$3=0,"",INDEX(INDIRECT(AR$1),$AQ66,AR$3)) -> 33.37 | AS66: 0 | AT66: 1.17 | AU66: 0 | AV66: 10.14 | AX66: =IF(TotalSum="No",INDEX(INDIRECT(AX$1),$AQ66,AX$3),SUM(AR66:AW66)) -> 44.68 | AY66: =IF(AY$3=0,"",INDEX(INDIRECT(AY$1),$P66,AY$3)) -> 61.4 | AZ66: =A66&B66 -> U04R01 | BA66: =ROW(AZ66) -> 66
A67: =A66 -> U04 | B67: R02 | C67: Zone 02 | D67: Pass | E67: 32.5 | F67: 32.5 | G67: =IF(E67=0,0,(F67-E67)/E67) -> 0 | H67: Yes | I67: 33.99 | J67: 33.99 | K67: 33.99 | L67: =IF(I67=0,0,(K67-I67)/I67) -> 0 | M67: Yes | N67: =N10 -> U01R02 | O67: =K67-F67 -> 1.49 | P67: 53 | Q67: 22.16 | R67: 0.02 | S67: 1.17 | T67: 0 | U67: 9.15 | V67: 0 | W67: 32.5 | X67: 51.7 | Y67: 53 | Z67: 22.16 | AA67: 0.02 | AB67: 1.17 | AC67: 0 | AD67: 9.15 | AE67: 0 | AF67: 32.5 | AG67: 51.7 | AH67: 53 | AI67: 23.31 | AJ67: 0.36 | AK67: 1.17 | AL67: 0 | AM67: 9.15 | AO67: 33.99 | AP67: 52.8 | AQ67: 53 | AR67: 23.31 | AS67: 0.36 | AT67: 1.17 | AU67: 0 | AV67: 9.15 | AX67: 33.99 | AY67: 52.8 | AZ67: U04R02 | BA67: 67
A68: U04 | B68: R03 | C68: Zone 03 | D68: Pass | E68: 22.82 | F68: 22.82 | G68: 0 | H68: Yes | I68: 24.78 | J68: 24.78 | K68: 24.78 | L68: 0 | M68: Yes | N68: U01R03 | O68: 1.96 | P68: 54 | Q68: 12.48 | R68: 0 | S68: 1.17 | T68: 0 | U68: 9.17 | V68: 0 | W68: 22.82 | X68: 49.2 | Y68: 54 | Z68: 12.48 | AA68: 0 | AB68: 1.17 | AC68: 0 | AD68: 9.17 | AE68: 0 | AF68: 22.82 | AG68: 49.2 | AH68: 54 | AI68: 14.44 | AJ68: 0 | AK68: 1.17 | AL68: 0 | AM68: 9.17 | AO68: 24.78 | AP68: 50.8 | AQ68: 54 | AR68: 14.44 | AS68: 0 | AT68: 1.17 | AU68: 0 | AV68: 9.17 | AX68: 24.78 | AY68: 50.8 | AZ68: U04R03 | BA68: 68
A69: U04 | B69: R04 | C69: Zone 04 | D69: Pass | E69: 25.42 | F69: 25.42 | G69: 0 | H69: Yes | I69: 28.07 | J69: 28.07 | K69: 28.07 | L69: 0 | M69: Yes | N69: U01R04 | O69: 2.65 | P69: 55 | Q69: 15.22 | R69: 0.26 | S69: 1.17 | T69: 0 | U69: 8.77 | V69: 0 | W69: 25.42 | X69: 48.7 | Y69: 55 | Z69: 15.22 | AA69: 0.26 | AB69: 1.17 | AC69: 0 | AD69: 8.77 | AE69: 0 | AF69: 25.42 | AG69: 48.7 | AH69: 55 | AI69: 16.53 | AJ69: 1.6 | AK69: 1.17 | AL69: 0 | AM69: 8.77 | AO69: 28.07 | AP69: 50.6 | AQ69: 55 | AR69: 16.53 | AS69: 1.6 | AT69: 1.17 | AU69: 0 | AV69: 8.77 | AX69: 28.07 | AY69: 50.6 | AZ69: U04R04 | BA69: 69
A70: U04 | B70: R05 | C70: Zone 05 | D70: Pass | E70: 20.33 | F70: 20.33 | G70: 0 | H70: Yes | I70: 22.4 | J70: 22.4 | K70: 22.4 | L70: 0 | M70: Yes | N70: U01R05 | O70: 2.07 | P70: 56 | Q70: 9.79 | R70: 0 | S70: 1.17 | T70: 0 | U70: 9.37 | V70: 0 | W70: 20.33 | X70: 45.9 | Y70: 56 | Z70: 9.79 | AA70: 0 | AB70: 1.17 | AC70: 0 | AD70: 9.37 | AE70: 0 | AF70: 20.33 | AG70: 45.9 | AH70: 56 | AI70: 11.86 | AJ70: 0 | AK70: 1.17 | AL70: 0 | AM70: 9.37 | AO70: 22.4 | AP70: 47.4 | AQ70: 56 | AR70: 11.86 | AS70: 0 | AT70: 1.17 | AU70: 0 | AV70: 9.37 | AX70: 22.4 | AY70: 47.4 | AZ70: U04R05 | BA70: 70
A71: U04 | B71: R06 | C71: Zone 06 | D71: Pass | E71: 17.54 | F71: 17.54 | G71: 0 | H71: Yes | I71: 19.18 | J71: 19.18 | K71: 19.18 | L71: 0 | M71: Yes | N71: U01R06 | O71: 1.64 | P71: 57 | Q71: 6.51 | R71: 1.5 | S71: 1.13 | T71: 0 | U71: 8.4 | V71: 0 | W71: 17.54 | X71: 51.5 | Y71: 57 | Z71: 6.51 | AA71: 1.5 | AB71: 1.13 | AC71: 0 | AD71: 8.4 | AE71: 0 | AF71: 17.54 | AG71: 51.5 | AH71: 57 | AI71: 7.51 | AJ71: 2.14 | AK71: 1.13 | AL71: 0 | AM71: 8.4 | AO71: 19.18 | AP71: 53 | AQ71: 57 | AR71: 7.51 | AS71: 2.14 | AT71: 1.13 | AU71: 0 | AV71: 8.4 | AX71: 19.18 | AY71: 53 | AZ71: U04R06 | BA71: 71
A72: U04 | B72: R07 | C72: Zone 07 | D72: Pass | E72: 11.43 | F72: 11.43 | G72: 0 | H72: Yes | I72: 12.24 | J72: 12.24 | K72: 12.24 | L72: 0 | M72: Yes | N72: U01R07 | O72: 0.81 | P72: 58 | Q72: 2.09 | R72: 0.07 | S72: 1.17 | T72: 0 | U72: 8.1 | V72: 0 | W72: 11.43 | X72: 50.1 | Y72: 58 | Z72: 2.09 | AA72: 0.07 | AB72: 1.17 | AC72: 0 | AD72: 8.1 | AE72: 0 | AF72: 11.43 | AG72: 50.1 | AH72: 58 | AI72: 2.68 | AJ72: 0.29 | AK72: 1.17 | AL72: 0 | AM72: 8.1 | AO72: 12.24 | AP72: 50.9 | AQ72: 58 | AR72: 2.68 | AS72: 0.29 | AT72: 1.17 | AU72: 0 | AV72: 8.1 | AX72: 12.24 | AY72: 50.9 | AZ72: U04R07 | BA72: 72
A73: U04 | B73: R08 | C73: Zone 08 | D73: Pass | E73: 17.35 | F73: 17.35 | G73: 0 | H73: Yes | I73: 19.4 | J73: 19.4 | K73: 19.4 | L73: 0 | M73: Yes | N73: U01R08 | O73: 2.05 | P73: 59 | Q73: 3.26 | R73: 4.91 | S73: 1.13 | T73: 0 | U73: 8.05 | V73: 0 | W73: 17.35 | X73: 46.1 | Y73: 59 | Z73: 3.26 | AA73: 4.91 | AB73: 1.13 | AC73: 0 | AD73: 8.05 | AE73: 0 | AF73: 17.35 | AG73: 46.1 | AH73: 59 | AI73: 3.98 | AJ73: 6.24 | AK73: 1.13 | AL73: 0 | AM73: 8.05 | AO73: 19.4 | AP73: 47.7 | AQ73: 59 | AR73: 3.98 | AS73: 6.24 | AT73: 1.13 | AU73: 0 | AV73: 8.05 | AX73: 19.4 | AY73: 47.7 | AZ73: U04R08 | BA73: 73
A74: U04 | B74: R09 | C74: Zone 09 | D74: Pass | E74: 28.15 | F74: 28.15 | G74: 0 | H74: Yes | I74: 32.18 | J74: 32.18 | K74: 32.18 | L74: 0 | M74: Yes | N74: U01R09 | O74: 4.03 | P74: 60 | Q74: 5.2 | R74: 13.77 | S74: 1.12 | T74: 0 | U74: 8.06 | V74: 0 | W74: 28.15 | X74: 45.8 | Y74: 60 | Z74: 5.2 | AA74: 13.77 | AB74: 1.12 | AC74: 0 | AD74: 8.06 | AE74: 0 | AF74: 28.15 | AG74: 45.8 | AH74: 60 | AI74: 6.05 | AJ74: 16.95 | AK74: 1.12 | AL74: 0 | AM74: 8.06 | AO74: 32.18 | AP74: 48.5 | AQ74: 60 | AR74: 6.05 | AS74: 16.95 | AT74: 1.12 | AU74: 0 | AV74: 8.06 | AX74: 32.18 | AY74: 48.5 | AZ74: U04R09 | BA74: 74
A75: U04 | B75: R10 | C75: Zone 10 | D75: Pass | E75: 28.81 | F75: 28.81 | G75: 0 | H75: Yes | I75: 32.55 | J75: 32.55 | K75: 32.55 | L75: 0 | M75: Yes | N75: U01R10 | O75: 3.74 | P75: 61 | Q75: 6.12 | R75: 13.56 | S75: 1.12 | T75: 0 | U75: 8.01 | V75: 0 | W75: 28.81 | X75: 44.2 | Y75: 61 | Z75: 6.12 | AA75: 13.56 | AB75: 1.12 | AC75: 0 | AD75: 8.01 | AE75: 0 | AF75: 28.81 | AG75: 44.2 | AH75: 61 | AI75: 7.11 | AJ75: 16.31 | AK75: 1.12 | AL75: 0 | AM75: 8.01 | AO75: 32.55 | AP75: 46.7 | AQ75: 61 | AR75: 7.11 | AS75: 16.31 | AT75: 1.12 | AU75: 0 | AV75: 8.01 | AX75: 32.55 | AY75: 46.7 | AZ75: U04R10 | BA75: 75
A76: U04 | B76: R11 | C76: Zone 11 | D76: Pass | E76: 58.31 | F76: 58.31 | G76: 0 | H76: Yes | I76: 63.84 | J76: 63.84 | K76: 63.84 | L76: 0 | M76: Yes | N76: U01R11 | O76: 5.53 | P76: 62 | Q76: =IF(Q$3=0,"",INDEX(INDIRECT(Q$1),$P76,Q$3)) -> 18.46 | R76: 30.49 | S76: 1.17 | T76: 0 | U76: 8.19 | V76: 0 | W76: 58.31 | X76: 48 | Y76: 62 | Z76: =IF(Z$3=0,"",INDEX(INDIRECT(Z$1),$Y76,Z$3)) -> 18.46 | AA76: 30.49 | AB76: 1.17 | AC76: 0 | AD76: 8.19 | AE76: 0 | AF76: 58.31 | AG76: 48 | AH76: 62 | AI76: =IF(AI$3=0,"",INDEX(INDIRECT(AI$1),$AH76,AI$3)) -> 19.93 | AJ76: 34.55 | AK76: 1.17 | AL76: 0 | AM76: 8.19 | AO76: 63.84 | AP76: 50.7 | AQ76: 62 | AR76: =IF(AR$3=0,"",INDEX(INDIRECT(AR$1),$AQ76,AR$3)) -> 19.93 | AS76: 34.55 | AT76: 1.17 | AU76: 0 | AV76: 8.19 | AX76: 63.84 | AY76: 50.7 | AZ76: U04R11 | BA76: 76
A77: U04 | B77: R12 | C77: Zone 12 | D77: Pass | E77: 36.96 | F77: 36.96 | G77: 0 | H77: Yes | I77: 41.01 | J77: 41.01 | K77: 41.01 | L77: 0 | M77: Yes | N77: U01R12 | O77: 4.05 | P77: 63 | Q77: 19.93 | R77: 7.3 | S77: 1.17 | T77: 0 | U77: 8.56 | V77: 0 | W77: 36.96 | X77: 44.8 | Y77: 63 | Z77: 19.93 | AA77: 7.3 | AB77: 1.17 | AC77: 0 | AD77: 8.56 | AE77: 0 | AF77: 36.96 | AG77: 44.8 | AH77: 63 | AI77: 20.99 | AJ77: 10.29 | AK77: 1.17 | AL77: 0 | AM77: 8.56 | AO77: 41.01 | AP77: 47.2 | AQ77: 63 | AR77: 20.99 | AS77: 10.29 | AT77: 1.17 | AU77: 0 | AV77: 8.56 | AX77: 41.01 | AY77: 47.2 | AZ77: U04R12 | BA77: 77
A78: U04 | B78: R13 | C78: Zone 13 | D78: Pass | E78: 59.46 | F78: 59.46 | G78: 0 | H78: Yes | I78: 65.16 | J78: 65.16 | K78: 65.16 | L78: 0 | M78: Yes | N78: U01R13 | O78: 5.7 | P78: 64 | Q78: 16.58 | R78: 33.67 | S78: 1.17 | T78: 0 | U78: 8.04 | V78: 0 | W78: 59.46 | X78: 49.7 | Y78: 64 | Z78: 16.58 | AA78: 33.67 | AB78: 1.17 | AC78: 0 | AD78: 8.04 | AE78: 0 | AF78: 59.46 | AG78: 49.7 | AH78: 64 | AI78: 17.45 | AJ78: 38.5 | AK78: 1.17 | AL78: 0 | AM78: 8.04 | AO78: 65.16 | AP78: 52.5 | AQ78: 64 | AR78: 17.45 | AS78: 38.5 | AT78: 1.17 | AU78: 0 | AV78: 8.04 | AX78: 65.16 | AY78: 52.5 | AZ78: U04R13 | BA78: 78
A79: U04 | B79: R14 | C79: Zone 14 | D79: Pass | E79: 54.23 | F79: 54.23 | G79: 0 | H79: Yes | I79: 61.08 | J79: 61.08 | K79: 61.08 | L79: 0 | M79: Yes | N79: U01R14 | O79: 6.85 | P79: 65 | Q79: 17.61 | R79: 27.15 | S79: 1.12 | T79: 0 | U79: 8.35 | V79: 0 | W79: 54.23 | X79: 48.1 | Y79: 65 | Z79: 17.61 | AA79: 27.15 | AB79: 1.12 | AC79: 0 | AD79: 8.35 | AE79: 0 | AF79: 54.23 | AG79: 48.1 | AH79: 65 | AI79: 19.41 | AJ79: 32.2 | AK79: 1.12 | AL79: 0 | AM79: 8.35 | AO79: 61.08 | AP79: 51.5 | AQ79: 65 | AR79: 19.41 | AS79: 32.2 | AT79: 1.12 | AU79: 0 | AV79: 8.35 | AX79: 61.08 | AY79: 51.5 | AZ79: U04R14 | BA79: 79
A80: U04 | B80: R15 | C80: Zone 15 | D80: Pass | E80: 89.53 | F80: 89.53 | G80: 0 | H80: Yes | I80: 96.23 | J80: 96.23 | K80: 96.23 | L80: 0 | M80: Yes | N80: U01R15 | O80: 6.7 | P80: 66 | Q80: 0.43 | R80: 81.89 | S80: 1.12 | T80: 0 | U80: 6.09 | V80: 0 | W80: 89.53 | X80: 54.3 | Y80: 66 | Z80: 0.43 | AA80: 81.89 | AB80: 1.12 | AC80: 0 | AD80: 6.09 | AE80: 0 | AF80: 89.53 | AG80: 54.3 | AH80: 66 | AI80: 0.66 | AJ80: 88.36 | AK80: 1.12 | AL80: 0 | AM80: 6.09 | AO80: 96.23 | AP80: 57 | AQ80: 66 | AR80: 0.66 | AS80: 88.36 | AT80: 1.12 | AU80: 0 | AV80: 6.09 | AX80: 96.23 | AY80: 57 | AZ80: U04R15 | BA80: 80
A81: U04 | B81: R16 | C81: Zone 16 | D81: Pass | E81: 54.39 | F81: 54.39 | G81: 0 | H81: Yes | I81: 57.53 | J81: 57.53 | K81: 57.53 | L81: 0 | M81: Yes | N81: U01R16 | O81: 3.14 | P81: 67 | Q81: 42.92 | R81: 0.13 | S81: 1.11 | T81: 0 | U81: 10.23 | V81: 0 | W81: 54.39 | X81: 60 | Y81: 67 | Z81: 42.92 | AA81: 0.13 | AB81: 1.11 | AC81: 0 | AD81: 10.23 | AE81: 0 | AF81: 54.39 | AG81: 60 | AH81: 67 | AI81: 44.83 | AJ81: 1.36 | AK81: 1.11 | AL81: 0 | AM81: 10.23 | AO81: 57.53 | AP81: 62 | AQ81: 67 | AR81: 44.83 | AS81: 1.36 | AT81: 1.11 | AU81: 0 | AV81: 10.23 | AX81: 57.53 | AY81: 62 | AZ81: U04R16 | BA81: 81
A82: ="Result "&A65 -> Result U04 | D82: =IF(SoftwareType="Candidate","n/a",IF(COUNTIF(D66:D81,Pass)=16,Pass,Fail)) -> Pass | E82: =AVERAGE(E66:E81) -> 37.53625 | F82: =AVERAGE(F66:F81) -> 37.53625 | G82: =IF(E82=0,0,(F82-E82)/E82) -> 0 | I82: =AVERAGE(I66:I81) -> 40.895 | J82: =AVERAGE(J66:J81) -> 40.895 | K82: =AVERAGE(K66:K81) -> 40.895 | L82: 0 | M82: Min | N82: =MIN(L66:L81) -> 0 | O82: =AVERAGE(O66:O81) -> 3.35875 | P82: Ave | Q82: =AVERAGE(Q66:Q81) -> 14.425 | R82: =AVERAGE(R66:R81) -> 13.42 | S82: =AVERAGE(S66:S81) -> 1.14875 | U82: =AVERAGE(U66:U81) -> 8.5425 | V82: =AVERAGE(V66:V81) -> 0 | W82: =AVERAGE(W66:W81) -> 37.53625 | X82: =AVERAGE(X66:X81) -> 49.90625 | Y82: Ave | Z82: =AVERAGE(Z66:Z81) -> 14.425 | AA82: =AVERAGE(AA66:AA81) -> 13.42 | AB82: =AVERAGE(AB66:AB81) -> 1.14875 | AC82: =AVERAGE(AC66:AC81) -> 0 | AD82: =AVERAGE(AD66:AD81) -> 8.5425 | AF82: =AVERAGE(AF66:AF81) -> 37.53625 | AG82: =AVERAGE(AG66:AG81) -> 49.90625 | AI82: =AVERAGE(AI66:AI81) -> 15.631875 | AJ82: =AVERAGE(AJ66:AJ81) -> 15.571875 | AK82: =AVERAGE(AK66:AK81) -> 1.14875 | AL82: =AVERAGE(AL66:AL81) -> 0 | AM82: =AVERAGE(AM66:AM81) -> 8.5425 | AO82: =AVERAGE(AO66:AO81) -> 40.895 | AP82: =AVERAGE(AP66:AP81) -> 51.91875 | AQ82: Ave | AR82: =AVERAGE(AR66:AR81) -> 15.631875 | AS82: =AVERAGE(AS66:AS81) -> 15.571875 | AT82: =AVERAGE(AT66:AT81) -> 1.14875 | AU82: =AVERAGE(AU66:AU81) -> 0 | AV82: =AVERAGE(AV66:AV81) -> 8.5425 | AX82: =AVERAGE(AX66:AX81) -> 40.895 | AY82: =AVERAGE(AY66:AY81) -> 51.91875
C83: Page 3 of 7 | L83: Ave | M83: Max | N83: =MAX(L66:L81) -> 0 | Y83: % Diff | Z83: =(Z82-Q82)/Q82 -> 0 | AA83: =(AA82-R82)/R82 -> 0 | AB83: =(AB82-S82)/S82 -> 0 | AD83: =(AD82-U82)/U82 -> 0 | AF83: =(AF82-W82)/W82 -> 0
A84: U05 | B84: =VLOOKUP(A84,TestArray,2)&" in "&VLOOKUP(A84,TestArray,3)&" for Prototype "&VLOOKUP(A84,TestArray,4) -> Proposed Design in All Zones for Prototype P2700ft2 | I84: =VLOOKUP(A84,TestArray,21) -> Standard = T02 Standard for this test
A85: =A84 -> U05 | B85: R01 | C85: =VLOOKUP(A85,TestArray,4+RIGHT(B85,2)) -> Zone 01 | D85: =IF(AND(H85=Yes,M85=Yes),Pass,Fail) -> Pass | E85: =IF(Units="EDR",X85,W85) -> 33.68 | F85: =IF(Units="EDR",AG85,AF85) -> 33.68 | G85: =IF(E85=0,0,(F85-E85)/E85) -> 0 | H85: =IF(AND((E85-Tolerance<=F85),(E85+Tolerance>=F85)),Yes,No) -> Yes | I85: =IF(Units="EDR",J85,INDIRECT(RefCol&INDEX(StandardArray,MATCH($N85,StandardList,0),2))) -> 35.21 | J85: =IF(Units="EDR",AP85,AO85) -> 35.21 | K85: =IF(Units="EDR",AY85,AX85) -> 35.21 | L85: =IF(I85=0,0,(K85-I85)/I85) -> 0 | M85: =IF(AND((I85-Tolerance<=K85),(I85+Tolerance>=K85),(J85-Tolerance<=K85),(J85+Tolerance>=K85)),Yes,No) -> Yes | N85: =N28 -> U02R01 | O85: =K85-F85 -> 1.53 | P85: =MATCH($A85&$B85,INDIRECT(P$2),0) -> 68 | Q85: =IF(Q$3=0,"",INDEX(INDIRECT(Q$1),$P85,Q$3)) -> 23.69 | R85: 0 | S85: 1.15 | T85: 0 | U85: 8.84 | V85: 0 | W85: =IF(TotalSum="No",INDEX(INDIRECT(W$1),$P85,W$3),SUM(Q85:V85)) -> 33.68 | X85: =IF(X$3=0,"",INDEX(INDIRECT(X$1),$P85,X$3)) -> 55.4 | Y85: =MATCH($A85&$B85,INDIRECT(Y$2),0) -> 68 | Z85: =IF(Z$3=0,"",INDEX(INDIRECT(Z$1),$Y85,Z$3)) -> 23.69 | AA85: 0 | AB85: 1.15 | AC85: 0 | AD85: 8.84 | AE85: 0 | AF85: =IF(TotalSum="No",INDEX(INDIRECT(AF$1),$Y85,AF$3),SUM(Z85:AE85)) -> 33.68 | AG85: =IF(AG$3=0,"",INDEX(INDIRECT(AG$1),$P85,AG$3)) -> 55.4 | AH85: =MATCH($A85&$B85,INDIRECT(AH$2),0) -> 68 | AI85: =IF(AI$3=0,"",INDEX(INDIRECT(AI$1),$AH85,AI$3)) -> 25.22 | AJ85: 0 | AK85: 1.15 | AL85: 0 | AM85: 8.84 | AO85: =IF(TotalSum="No",INDEX(INDIRECT(AO$1),$AH85,AO$3),SUM(AI85:AN85)) -> 35.21 | AP85: =IF(AP$3=0,"",INDEX(INDIRECT(AP$1),$P85,AP$3)) -> 56.6 | AQ85: =MATCH($A85&$B85,INDIRECT(AQ$2),0) -> 68 | AR85: =IF(AR$3=0,"",INDEX(INDIRECT(AR$1),$AQ85,AR$3)) -> 25.22 | AS85: 0 | AT85: 1.15 | AU85: 0 | AV85: 8.84 | AX85: =IF(TotalSum="No",INDEX(INDIRECT(AX$1),$AQ85,AX$3),SUM(AR85:AW85)) -> 35.21 | AY85: =IF(AY$3=0,"",INDEX(INDIRECT(AY$1),$P85,AY$3)) -> 56.6 | AZ85: =A85&B85 -> U05R01 | BA85: =ROW(AZ85) -> 85
A86: =A85 -> U05 | B86: R02 | C86: Zone 02 | D86: Pass | E86: 28.31 | F86: 28.31 | G86: =IF(E86=0,0,(F86-E86)/E86) -> 0 | H86: Yes | I86: 30.64 | J86: 30.64 | K86: 30.64 | L86: =IF(I86=0,0,(K86-I86)/I86) -> 0 | M86: Yes | N86: U02R02 | O86: =K86-F86 -> 2.33 | P86: 69 | Q86: 18.84 | R86: 0.36 | S86: 1.15 | T86: 0 | U86: 7.96 | V86: 0 | W86: 28.31 | X86: 47.3 | Y86: 69 | Z86: 18.84 | AA86: 0.36 | AB86: 1.15 | AC86: 0 | AD86: 7.96 | AE86: 0 | AF86: 28.31 | AG86: 47.3 | AH86: 69 | AI86: 19.96 | AJ86: 1.57 | AK86: 1.15 | AL86: 0 | AM86: 7.96 | AO86: 30.64 | AP86: 49.1 | AQ86: 69 | AR86: 19.96 | AS86: 1.57 | AT86: 1.15 | AU86: 0 | AV86: 7.96 | AX86: 30.64 | AY86: 49.1 | AZ86: U05R02 | BA86: 86
A87: U05 | B87: R03 | C87: Zone 03 | D87: Pass | E87: 18.21 | F87: 18.21 | G87: 0 | H87: Yes | I87: 20.21 | J87: 20.21 | K87: 20.21 | L87: 0 | M87: Yes | N87: U02R03 | O87: 2 | P87: 70 | Q87: 9.08 | R87: 0 | S87: 1.15 | T87: 0 | U87: 7.98 | V87: 0 | W87: 18.21 | X87: 45.8 | Y87: 70 | Z87: 9.08 | AA87: 0 | AB87: 1.15 | AC87: 0 | AD87: 7.98 | AE87: 0 | AF87: 18.21 | AG87: 45.8 | AH87: 70 | AI87: 10.98 | AJ87: 0.1 | AK87: 1.15 | AL87: 0 | AM87: 7.98 | AO87: 20.21 | AP87: 47.5 | AQ87: 70 | AR87: 10.98 | AS87: 0.1 | AT87: 1.15 | AU87: 0 | AV87: 7.98 | AX87: 20.21 | AY87: 47.5 | AZ87: U05R03 | BA87: 87
A88: U05 | B88: R04 | C88: Zone 04 | D88: Pass | E88: 23.89 | F88: 23.89 | G88: 0 | H88: Yes | I88: 26.16 | J88: 26.16 | K88: 26.16 | L88: 0 | M88: Yes | N88: U02R04 | O88: 2.27 | P88: 71 | Q88: 13.24 | R88: 1.88 | S88: 1.15 | T88: 0 | U88: 7.62 | V88: 0 | W88: 23.89 | X88: 45.9 | Y88: 71 | Z88: 13.24 | AA88: 1.88 | AB88: 1.15 | AC88: 0 | AD88: 7.62 | AE88: 0 | AF88: 23.89 | AG88: 45.9 | AH88: 71 | AI88: 14.5 | AJ88: 2.89 | AK88: 1.15 | AL88: 0 | AM88: 7.62 | AO88: 26.16 | AP88: 47.6 | AQ88: 71 | AR88: 14.5 | AS88: 2.89 | AT88: 1.15 | AU88: 0 | AV88: 7.62 | AX88: 26.16 | AY88: 47.6 | AZ88: U05R04 | BA88: 88
A89: U05 | B89: R05 | C89: Zone 05 | D89: Pass | E89: 15.8 | F89: 15.8 | G89: 0 | H89: Yes | I89: 17.79 | J89: 17.79 | K89: 17.79 | L89: 0 | M89: Yes | N89: U02R05 | O89: 1.99 | P89: 72 | Q89: 6.47 | R89: 0.02 | S89: 1.15 | T89: 0 | U89: 8.16 | V89: 0 | W89: 15.8 | X89: 42.5 | Y89: 72 | Z89: 6.47 | AA89: 0.02 | AB89: 1.15 | AC89: 0 | AD89: 8.16 | AE89: 0 | AF89: 15.8 | AG89: 42.5 | AH89: 72 | AI89: 8.48 | AJ89: 0 | AK89: 1.15 | AL89: 0 | AM89: 8.16 | AO89: 17.79 | AP89: 44.2 | AQ89: 72 | AR89: 8.48 | AS89: 0 | AT89: 1.15 | AU89: 0 | AV89: 8.16 | AX89: 17.79 | AY89: 44.2 | AZ89: U05R05 | BA89: 89
A90: U05 | B90: R06 | C90: Zone 06 | D90: Pass | E90: 16.33 | F90: 16.33 | G90: 0 | H90: Yes | I90: 18.06 | J90: 18.06 | K90: 18.06 | L90: 0 | M90: Yes | N90: U02R06 | O90: 1.73 | P90: 73 | Q90: 5.71 | R90: 2.21 | S90: 1.11 | T90: 0 | U90: 7.3 | V90: 0 | W90: 16.33 | X90: 49.3 | Y90: 73 | Z90: 5.71 | AA90: 2.21 | AB90: 1.11 | AC90: 0 | AD90: 7.3 | AE90: 0 | AF90: 16.33 | AG90: 49.3 | AH90: 73 | AI90: 6.63 | AJ90: 3.02 | AK90: 1.11 | AL90: 0 | AM90: 7.3 | AO90: 18.06 | AP90: 51 | AQ90: 73 | AR90: 6.63 | AS90: 3.02 | AT90: 1.11 | AU90: 0 | AV90: 7.3 | AX90: 18.06 | AY90: 51 | AZ90: U05R06 | BA90: 90
A91: U05 | B91: R07 | C91: Zone 07 | D91: Pass | E91: 10.3 | F91: 10.3 | G91: 0 | H91: Yes | I91: 11.07 | J91: 11.07 | K91: 11.07 | L91: 0 | M91: Yes | N91: U02R07 | O91: 0.77 | P91: 74 | Q91: 1.79 | R91: 0.31 | S91: 1.15 | T91: 0 | U91: 7.05 | V91: 0 | W91: 10.3 | X91: 48 | Y91: 74 | Z91: 1.79 | AA91: 0.31 | AB91: 1.15 | AC91: 0 | AD91: 7.05 | AE91: 0 | AF91: 10.3 | AG91: 48 | AH91: 74 | AI91: 2.26 | AJ91: 0.61 | AK91: 1.15 | AL91: 0 | AM91: 7.05 | AO91: 11.07 | AP91: 48.8 | AQ91: 74 | AR91: 2.26 | AS91: 0.61 | AT91: 1.15 | AU91: 0 | AV91: 7.05 | AX91: 11.07 | AY91: 48.8 | AZ91: U05R07 | BA91: 91
A92: U05 | B92: R08 | C92: Zone 08 | D92: Pass | E92: 17.75 | F92: 17.75 | G92: 0 | H92: Yes | I92: 20.01 | J92: 20.01 | K92: 20.01 | L92: 0 | M92: Yes | N92: U02R08 | O92: 2.26 | P92: 75 | Q92: 3.19 | R92: 6.45 | S92: 1.11 | T92: 0 | U92: 7 | V92: 0 | W92: 17.75 | X92: 44.5 | Y92: 75 | Z92: 3.19 | AA92: 6.45 | AB92: 1.11 | AC92: 0 | AD92: 7 | AE92: 0 | AF92: 17.75 | AG92: 44.5 | AH92: 75 | AI92: 3.83 | AJ92: 8.07 | AK92: 1.11 | AL92: 0 | AM92: 7 | AO92: 20.01 | AP92: 46.4 | AQ92: 75 | AR92: 3.83 | AS92: 8.07 | AT92: 1.11 | AU92: 0 | AV92: 7 | AX92: 20.01 | AY92: 46.4 | AZ92: U05R08 | BA92: 92
A93: U05 | B93: R09 | C93: Zone 09 | D93: Pass | E93: 28.67 | F93: 28.67 | G93: 0 | H93: Yes | I93: 32.59 | J93: 32.59 | K93: 32.59 | L93: 0 | M93: Yes | N93: U02R09 | O93: 3.92 | P93: 76 | Q93: 5.13 | R93: 15.44 | S93: 1.1 | T93: 0 | U93: 7 | V93: 0 | W93: 28.67 | X93: 43.9 | Y93: 76 | Z93: 5.13 | AA93: 15.44 | AB93: 1.1 | AC93: 0 | AD93: 7 | AE93: 0 | AF93: 28.67 | AG93: 43.9 | AH93: 76 | AI93: 5.88 | AJ93: 18.61 | AK93: 1.1 | AL93: 0 | AM93: 7 | AO93: 32.59 | AP93: 46.6 | AQ93: 76 | AR93: 5.88 | AS93: 18.61 | AT93: 1.1 | AU93: 0 | AV93: 7 | AX93: 32.59 | AY93: 46.6 | AZ93: U05R09 | BA93: 93
A94: U05 | B94: R10 | C94: Zone 10 | D94: Pass | E94: 29.31 | F94: 29.31 | G94: 0 | H94: Yes | I94: 33.47 | J94: 33.47 | K94: 33.47 | L94: 0 | M94: Yes | N94: U02R10 | O94: 4.16 | P94: 77 | Q94: 5.93 | R94: 15.32 | S94: 1.1 | T94: 0 | U94: 6.96 | V94: 0 | W94: 29.31 | X94: 42.1 | Y94: 77 | Z94: 5.93 | AA94: 15.32 | AB94: 1.1 | AC94: 0 | AD94: 6.96 | AE94: 0 | AF94: 29.31 | AG94: 42.1 | AH94: 77 | AI94: 6.85 | AJ94: 18.56 | AK94: 1.1 | AL94: 0 | AM94: 6.96 | AO94: 33.47 | AP94: 44.8 | AQ94: 77 | AR94: 6.85 | AS94: 18.56 | AT94: 1.1 | AU94: 0 | AV94: 6.96 | AX94: 33.47 | AY94: 44.8 | AZ94: U05R10 | BA94: 94
A95: U05 | B95: R11 | C95: Zone 11 | D95: Pass | E95: 56.88 | F95: 56.88 | G95: 0 | H95: Yes | I95: 63.2 | J95: 63.2 | K95: 63.2 | L95: 0 | M95: Yes | N95: U02R11 | O95: 6.32 | P95: 78 | Q95: =IF(Q$3=0,"",INDEX(INDIRECT(Q$1),$P95,Q$3)) -> 17.23 | R95: 31.39 | S95: 1.15 | T95: 0 | U95: 7.11 | V95: 0 | W95: 56.88 | X95: 45.2 | Y95: 78 | Z95: =IF(Z$3=0,"",INDEX(INDIRECT(Z$1),$Y95,Z$3)) -> 17.23 | AA95: 31.39 | AB95: 1.15 | AC95: 0 | AD95: 7.11 | AE95: 0 | AF95: 56.88 | AG95: 45.2 | AH95: 78 | AI95: =IF(AI$3=0,"",INDEX(INDIRECT(AI$1),$AH95,AI$3)) -> 18.66 | AJ95: 36.28 | AK95: 1.15 | AL95: 0 | AM95: 7.11 | AO95: 63.2 | AP95: 48.2 | AQ95: 78 | AR95: =IF(AR$3=0,"",INDEX(INDIRECT(AR$1),$AQ95,AR$3)) -> 18.66 | AS95: 36.28 | AT95: 1.15 | AU95: 0 | AV95: 7.11 | AX95: 63.2 | AY95: 48.2 | AZ95: U05R11 | BA95: 95
A96: U05 | B96: R12 | C96: Zone 12 | D96: Pass | E96: 37.31 | F96: 37.31 | G96: 0 | H96: Yes | I96: 42.19 | J96: 42.19 | K96: 42.19 | L96: 0 | M96: Yes | N96: U02R12 | O96: 4.88 | P96: 79 | Q96: 18.04 | R96: 10.68 | S96: 1.15 | T96: 0 | U96: 7.44 | V96: 0 | W96: 37.31 | X96: 42.7 | Y96: 79 | Z96: 18.04 | AA96: 10.68 | AB96: 1.15 | AC96: 0 | AD96: 7.44 | AE96: 0 | AF96: 37.31 | AG96: 42.7 | AH96: 79 | AI96: 19.06 | AJ96: 14.54 | AK96: 1.15 | AL96: 0 | AM96: 7.44 | AO96: 42.19 | AP96: 45.5 | AQ96: 79 | AR96: 19.06 | AS96: 14.54 | AT96: 1.15 | AU96: 0 | AV96: 7.44 | AX96: 42.19 | AY96: 45.5 | AZ96: U05R12 | BA96: 96
A97: U05 | B97: R13 | C97: Zone 13 | D97: Pass | E97: 58.07 | F97: 58.07 | G97: 0 | H97: Yes | I97: 64.46 | J97: 64.46 | K97: 64.46 | L97: 0 | M97: Yes | N97: U02R13 | O97: 6.39 | P97: 80 | Q97: 15.98 | R97: 33.96 | S97: 1.15 | T97: 0 | U97: 6.98 | V97: 0 | W97: 58.07 | X97: 46.9 | Y97: 80 | Z97: 15.98 | AA97: 33.96 | AB97: 1.15 | AC97: 0 | AD97: 6.98 | AE97: 0 | AF97: 58.07 | AG97: 46.9 | AH97: 80 | AI97: 16.84 | AJ97: 39.49 | AK97: 1.15 | AL97: 0 | AM97: 6.98 | AO97: 64.46 | AP97: 50 | AQ97: 80 | AR97: 16.84 | AS97: 39.49 | AT97: 1.15 | AU97: 0 | AV97: 6.98 | AX97: 64.46 | AY97: 50 | AZ97: U05R13 | BA97: 97
A98: U05 | B98: R14 | C98: Zone 14 | D98: Pass | E98: 53.15 | F98: 53.15 | G98: 0 | H98: Yes | I98: 60.55 | J98: 60.55 | K98: 60.55 | L98: 0 | M98: Yes | N98: U02R14 | O98: 7.4 | P98: 81 | Q98: 16.31 | R98: 28.49 | S98: 1.1 | T98: 0 | U98: 7.25 | V98: 0 | W98: 53.15 | X98: 45.4 | Y98: 81 | Z98: 16.31 | AA98: 28.49 | AB98: 1.1 | AC98: 0 | AD98: 7.25 | AE98: 0 | AF98: 53.15 | AG98: 45.4 | AH98: 81 | AI98: 18.07 | AJ98: 34.13 | AK98: 1.1 | AL98: 0 | AM98: 7.25 | AO98: 60.55 | AP98: 49.2 | AQ98: 81 | AR98: 18.07 | AS98: 34.13 | AT98: 1.1 | AU98: 0 | AV98: 7.25 | AX98: 60.55 | AY98: 49.2 | AZ98: U05R14 | BA98: 98
A99: U05 | B99: R15 | C99: Zone 15 | D99: Pass | E99: 83.46 | F99: 83.46 | G99: 0 | H99: Yes | I99: 90.57 | J99: 90.57 | K99: 90.57 | L99: 0 | M99: Yes | N99: U02R15 | O99: 7.11 | P99: 82 | Q99: 1.12 | R99: 75.97 | S99: 1.1 | T99: 0 | U99: 5.27 | V99: 0 | W99: 83.46 | X99: 50.4 | Y99: 82 | Z99: 1.12 | AA99: 75.97 | AB99: 1.1 | AC99: 0 | AD99: 5.27 | AE99: 0 | AF99: 83.46 | AG99: 50.4 | AH99: 82 | AI99: 1.52 | AJ99: 82.68 | AK99: 1.1 | AL99: 0 | AM99: 5.27 | AO99: 90.57 | AP99: 53.4 | AQ99: 82 | AR99: 1.52 | AS99: 82.68 | AT99: 1.1 | AU99: 0 | AV99: 5.27 | AX99: 90.57 | AY99: 53.4 | AZ99: U05R15 | BA99: 99
A100: U05 | B100: R16 | C100: Zone 16 | D100: Pass | E100: 50.33 | F100: 50.33 | G100: 0 | H100: Yes | I100: 54.48 | J100: 54.48 | K100: 54.48 | L100: 0 | M100: Yes | N100: U02R16 | O100: 4.15 | P100: 83 | Q100: 38.68 | R100: 1.66 | S100: 1.09 | T100: 0 | U100: 8.9 | V100: 0 | W100: 50.33 | X100: 55.7 | Y100: 83 | Z100: 38.68 | AA100: 1.66 | AB100: 1.09 | AC100: 0 | AD100: 8.9 | AE100: 0 | AF100: 50.33 | AG100: 55.7 | AH100: 83 | AI100: 40.51 | AJ100: 3.98 | AK100: 1.09 | AL100: 0 | AM100: 8.9 | AO100: 54.48 | AP100: 58.5 | AQ100: 83 | AR100: 40.51 | AS100: 3.98 | AT100: 1.09 | AU100: 0 | AV100: 8.9 | AX100: 54.48 | AY100: 58.5 | AZ100: U05R16 | BA100: 100
A101: ="Result "&A84 -> Result U05 | D101: =IF(SoftwareType="Candidate","n/a",IF(COUNTIF(D85:D100,Pass)=16,Pass,Fail)) -> Pass | E101: =AVERAGE(E85:E100) -> 35.090625 | F101: =AVERAGE(F85:F100) -> 35.090625 | G101: =IF(E101=0,0,(F101-E101)/E101) -> 0 | I101: =AVERAGE(I85:I100) -> 38.79125 | J101: =AVERAGE(J85:J100) -> 38.79125 | K101: =AVERAGE(K85:K100) -> 38.79125 | L101: 0 | M101: Min | N101: =MIN(L85:L100) -> 0 | O101: =AVERAGE(O85:O100) -> 3.700625 | P101: Ave | Q101: =AVERAGE(Q85:Q100) -> 12.526875 | R101: =AVERAGE(R85:R100) -> 14.00875 | S101: =AVERAGE(S85:S100) -> 1.12875 | U101: =AVERAGE(U85:U100) -> 7.42625 | V101: =AVERAGE(V85:V100) -> 0 | W101: =AVERAGE(W85:W100) -> 35.090625 | X101: =AVERAGE(X85:X100) -> 46.9375 | Y101: Ave | Z101: =AVERAGE(Z85:Z100) -> 12.526875 | AA101: =AVERAGE(AA85:AA100) -> 14.00875 | AB101: =AVERAGE(AB85:AB100) -> 1.12875 | AC101: =AVERAGE(AC85:AC100) -> 0 | AD101: =AVERAGE(AD85:AD100) -> 7.42625 | AF101: =AVERAGE(AF85:AF100) -> 35.090625 | AG101: =AVERAGE(AG85:AG100) -> 46.9375 | AI101: =AVERAGE(AI85:AI100) -> 13.703125 | AJ101: =AVERAGE(AJ85:AJ100) -> 16.533125 | AK101: =AVERAGE(AK85:AK100) -> 1.12875 | AL101: =AVERAGE(AL85:AL100) -> 0 | AM101: =AVERAGE(AM85:AM100) -> 7.42625 | AO101: =AVERAGE(AO85:AO100) -> 38.79125 | AP101: =AVERAGE(AP85:AP100) -> 49.2125 | AQ101: Ave | AR101: =AVERAGE(AR85:AR100) -> 13.703125 | AS101: =AVERAGE(AS85:AS100) -> 16.533125 | AT101: =AVERAGE(AT85:AT100) -> 1.12875 | AU101: =AVERAGE(AU85:AU100) -> 0 | AV101: =AVERAGE(AV85:AV100) -> 7.42625 | AX101: =AVERAGE(AX85:AX100) -> 38.79125 | AY101: =AVERAGE(AY85:AY100) -> 49.2125
L102: Ave | M102: Max | N102: =MAX(L85:L100) -> 0 | Y102: % Diff | Z102: =(Z101-Q101)/Q101 -> 0 | AA102: =(AA101-R101)/R101 -> 0 | AB102: =(AB101-S101)/S101 -> 0 | AD102: =(AD101-U101)/U101 -> 0 | AF102: =(AF101-W101)/W101 -> 0
A103: U06 | B103: =VLOOKUP(A103,TestArray,2)&" in "&VLOOKUP(A103,TestArray,3)&" for Prototype "&VLOOKUP(A103,TestArray,4) -> Proposed Design in All Zones for Prototype P6960ft2 | I103: =VLOOKUP(A103,TestArray,21) -> Standard = T03 Standard for this test
A104: =A103 -> U06 | B104: R01 | C104: =VLOOKUP(A104,TestArray,4+RIGHT(B104,2)) -> Zone 01 | D104: =IF(AND(H104=Yes,M104=Yes),Pass,Fail) -> Pass | E104: =IF(Units="EDR",X104,W104) -> 35.28 | F104: =IF(Units="EDR",AG104,AF104) -> 35.28 | G104: =IF(E104=0,0,(F104-E104)/E104) -> 0 | H104: =IF(AND((E104-Tolerance<=F104),(E104+Tolerance>=F104)),Yes,No) -> Yes | I104: =IF(Units="EDR",J104,INDIRECT(RefCol&INDEX(StandardArray,MATCH($N104,StandardList,0),2))) -> 34.73 | J104: =IF(Units="EDR",AP104,AO104) -> 34.73 | K104: =IF(Units="EDR",AY104,AX104) -> 34.73 | L104: =IF(I104=0,0,(K104-I104)/I104) -> 0 | M104: =IF(AND((I104-Tolerance<=K104),(I104+Tolerance>=K104),(J104-Tolerance<=K104),(J104+Tolerance>=K104)),Yes,No) -> Yes | N104: =N47 -> U03R01 | O104: =K104-F104 -> -0.55 | P104: =MATCH($A104&$B104,INDIRECT(P$2),0) -> 84 | Q104: =IF(Q$3=0,"",INDEX(INDIRECT(Q$1),$P104,Q$3)) -> 14.48 | R104: 0 | S104: 2.47 | T104: 0 | U104: 18.33 | V104: 0 | W104: =IF(TotalSum="No",INDEX(INDIRECT(W$1),$P104,W$3),SUM(Q104:V104)) -> 35.28 | X104: =IF(X$3=0,"",INDEX(INDIRECT(X$1),$P104,X$3)) -> 62.4 | Y104: =MATCH($A104&$B104,INDIRECT(Y$2),0) -> 84 | Z104: =IF(Z$3=0,"",INDEX(INDIRECT(Z$1),$Y104,Z$3)) -> 14.48 | AA104: 0 | AB104: 2.47 | AC104: 0 | AD104: 18.33 | AE104: 0 | AF104: =IF(TotalSum="No",INDEX(INDIRECT(AF$1),$Y104,AF$3),SUM(Z104:AE104)) -> 35.28 | AG104: =IF(AG$3=0,"",INDEX(INDIRECT(AG$1),$P104,AG$3)) -> 62.4 | AH104: =MATCH($A104&$B104,INDIRECT(AH$2),0) -> 84 | AI104: =IF(AI$3=0,"",INDEX(INDIRECT(AI$1),$AH104,AI$3)) -> 13.83 | AJ104: 0.1 | AK104: 2.47 | AL104: 0 | AM104: 18.33 | AO104: =IF(TotalSum="No",INDEX(INDIRECT(AO$1),$AH104,AO$3),SUM(AI104:AN104)) -> 34.73 | AP104: =IF(AP$3=0,"",INDEX(INDIRECT(AP$1),$P104,AP$3)) -> 62.1 | AQ104: =MATCH($A104&$B104,INDIRECT(AQ$2),0) -> 84 | AR104: =IF(AR$3=0,"",INDEX(INDIRECT(AR$1),$AQ104,AR$3)) -> 13.83 | AS104: 0.1 | AT104: 2.47 | AU104: 0 | AV104: 18.33 | AX104: =IF(TotalSum="No",INDEX(INDIRECT(AX$1),$AQ104,AX$3),SUM(AR104:AW104)) -> 34.73 | AY104: =IF(AY$3=0,"",INDEX(INDIRECT(AY$1),$P104,AY$3)) -> 62.1 | AZ104: =A104&B104 -> U06R01 | BA104: =ROW(AZ104) -> 104
A105: =A104 -> U06 | B105: R02 | C105: Zone 02 | D105: Pass | E105: 33.98 | F105: 33.98 | G105: =IF(E105=0,0,(F105-E105)/E105) -> 0 | H105: Yes | I105: 36.27 | J105: 36.27 | K105: 36.27 | L105: =IF(I105=0,0,(K105-I105)/I105) -> 0 | M105: Yes | N105: U03R02 | O105: =K105-F105 -> 2.29 | P105: 85 | Q105: 10.35 | R105: 4.62 | S105: 2.47 | T105: 0 | U105: 16.54 | V105: 0 | W105: 33.98 | X105: 57.1 | Y105: 85 | Z105: 10.35 | AA105: 4.62 | AB105: 2.47 | AC105: 0 | AD105: 16.54 | AE105: 0 | AF105: 33.98 | AG105: 57.1 | AH105: 85 | AI105: 10.19 | AJ105: 7.07 | AK105: 2.47 | AL105: 0 | AM105: 16.54 | AO105: 36.27 | AP105: 58.4 | AQ105: 85 | AR105: 10.19 | AS105: 7.07 | AT105: 2.47 | AU105: 0 | AV105: 16.54 | AX105: 36.27 | AY105: 58.4 | AZ105: U06R02 | BA105: 105
A106: U06 | B106: R03 | C106: Zone 03 | D106: Pass | E106: 24.05 | F106: 24.05 | G106: 0 | H106: Yes | I106: 25.14 | J106: 25.14 | K106: 25.14 | L106: 0 | M106: Yes | N106: U03R03 | O106: 1.09 | P106: 86 | Q106: 4.25 | R106: 0.76 | S106: 2.47 | T106: 0 | U106: 16.57 | V106: 0 | W106: 24.05 | X106: 58 | Y106: 86 | Z106: 4.25 | AA106: 0.76 | AB106: 2.47 | AC106: 0 | AD106: 16.57 | AE106: 0 | AF106: 24.05 | AG106: 58 | AH106: 86 | AI106: 4.36 | AJ106: 1.74 | AK106: 2.47 | AL106: 0 | AM106: 16.57 | AO106: 25.14 | AP106: 58.7 | AQ106: 86 | AR106: 4.36 | AS106: 1.74 | AT106: 2.47 | AU106: 0 | AV106: 16.57 | AX106: 25.14 | AY106: 58.7 | AZ106: U06R03 | BA106: 106
A107: U06 | B107: R04 | C107: Zone 04 | D107: Pass | E107: 30.26 | F107: 30.26 | G107: 0 | H107: Yes | I107: 33.52 | J107: 33.52 | K107: 33.52 | L107: 0 | M107: Yes | N107: U03R04 | O107: 3.26 | P107: 87 | Q107: 6.52 | R107: 5.43 | S107: 2.47 | T107: 0 | U107: 15.84 | V107: 0 | W107: 30.26 | X107: 55.8 | Y107: 87 | Z107: 6.52 | AA107: 5.43 | AB107: 2.47 | AC107: 0 | AD107: 15.84 | AE107: 0 | AF107: 30.26 | AG107: 55.8 | AH107: 87 | AI107: 6.46 | AJ107: 8.75 | AK107: 2.47 | AL107: 0 | AM107: 15.84 | AO107: 33.52 | AP107: 57.7 | AQ107: 87 | AR107: 6.46 | AS107: 8.75 | AT107: 2.47 | AU107: 0 | AV107: 15.84 | AX107: 33.52 | AY107: 57.7 | AZ107: U06R04 | BA107: 107
A108: U06 | B108: R05 | C108: Zone 05 | D108: Pass | E108: 22.99 | F108: 22.99 | G108: 0 | H108: Yes | I108: 24.13 | J108: 24.13 | K108: 24.13 | L108: 0 | M108: Yes | N108: U03R05 | O108: 1.14 | P108: 88 | Q108: 3.19 | R108: 0.39 | S108: 2.47 | T108: 0 | U108: 16.94 | V108: 0 | W108: 22.99 | X108: 57.5 | Y108: 88 | Z108: 3.19 | AA108: 0.39 | AB108: 2.47 | AC108: 0 | AD108: 16.94 | AE108: 0 | AF108: 22.99 | AG108: 57.5 | AH108: 88 | AI108: 3.04 | AJ108: 1.68 | AK108: 2.47 | AL108: 0 | AM108: 16.94 | AO108: 24.13 | AP108: 58.3 | AQ108: 88 | AR108: 3.04 | AS108: 1.68 | AT108: 2.47 | AU108: 0 | AV108: 16.94 | AX108: 24.13 | AY108: 58.3 | AZ108: U06R05 | BA108: 108
A109: U06 | B109: R06 | C109: Zone 06 | D109: Pass | E109: 24.18 | F109: 24.18 | G109: 0 | H109: Yes | I109: 26.15 | J109: 26.15 | K109: 26.15 | L109: 0 | M109: Yes | N109: U03R06 | O109: 1.97 | P109: 89 | Q109: 1.48 | R109: 5.12 | S109: 2.39 | T109: 0 | U109: 15.19 | V109: 0 | W109: 24.18 | X109: 60.7 | Y109: 89 | Z109: 1.48 | AA109: 5.12 | AB109: 2.39 | AC109: 0 | AD109: 15.19 | AE109: 0 | AF109: 24.18 | AG109: 60.7 | AH109: 89 | AI109: 1.44 | AJ109: 7.13 | AK109: 2.39 | AL109: 0 | AM109: 15.19 | AO109: 26.15 | AP109: 62 | AQ109: 89 | AR109: 1.44 | AS109: 7.13 | AT109: 2.39 | AU109: 0 | AV109: 15.19 | AX109: 26.15 | AY109: 62 | AZ109: U06R06 | BA109: 109
A110: U06 | B110: R07 | C110: Zone 07 | D110: Pass | E110: 21.02 | F110: 21.02 | G110: 0 | H110: Yes | I110: 23.37 | J110: 23.37 | K110: 23.37 | L110: 0 | M110: Yes | N110: U03R07 | O110: 2.35 | P110: 90 | Q110: 0.12 | R110: 3.75 | S110: 2.48 | T110: 0 | U110: 14.67 | V110: 0 | W110: 21.02 | X110: 60.7 | Y110: 90 | Z110: 0.12 | AA110: 3.75 | AB110: 2.48 | AC110: 0 | AD110: 14.67 | AE110: 0 | AF110: 21.02 | AG110: 60.7 | AH110: 90 | AI110: 0.08 | AJ110: 6.14 | AK110: 2.48 | AL110: 0 | AM110: 14.67 | AO110: 23.37 | AP110: 62.2 | AQ110: 90 | AR110: 0.08 | AS110: 6.14 | AT110: 2.48 | AU110: 0 | AV110: 14.67 | AX110: 23.37 | AY110: 62.2 | AZ110: U06R07 | BA110: 110
A111: U06 | B111: R08 | C111: Zone 08 | D111: Pass | E111: 31.21 | F111: 31.21 | G111: 0 | H111: Yes | I111: 34.31 | J111: 34.31 | K111: 34.31 | L111: 0 | M111: Yes | N111: U03R08 | O111: 3.1 | P111: 91 | Q111: 0.66 | R111: 13.58 | S111: 2.4 | T111: 0 | U111: 14.57 | V111: 0 | W111: 31.21 | X111: 58.9 | Y111: 91 | Z111: 0.66 | AA111: 13.58 | AB111: 2.4 | AC111: 0 | AD111: 14.57 | AE111: 0 | AF111: 31.21 | AG111: 58.9 | AH111: 91 | AI111: 0.64 | AJ111: 16.7 | AK111: 2.4 | AL111: 0 | AM111: 14.57 | AO111: 34.31 | AP111: 60.8 | AQ111: 91 | AR111: 0.64 | AS111: 16.7 | AT111: 2.4 | AU111: 0 | AV111: 14.57 | AX111: 34.31 | AY111: 60.8 | AZ111: U06R08 | BA111: 111
A112: U06 | B112: R09 | C112: Zone 09 | D112: Pass | E112: 39.73 | F112: 39.73 | G112: 0 | H112: Yes | I112: 44.63 | J112: 44.63 | K112: 44.63 | L112: 0 | M112: Yes | N112: U03R09 | O112: 4.9 | P112: 92 | Q112: 1.46 | R112: 21.33 | S112: 2.37 | T112: 0 | U112: 14.57 | V112: 0 | W112: 39.73 | X112: 56.7 | Y112: 92 | Z112: 1.46 | AA112: 21.33 | AB112: 2.37 | AC112: 0 | AD112: 14.57 | AE112: 0 | AF112: 39.73 | AG112: 56.7 | AH112: 92 | AI112: 1.39 | AJ112: 26.3 | AK112: 2.37 | AL112: 0 | AM112: 14.57 | AO112: 44.63 | AP112: 59.3 | AQ112: 92 | AR112: 1.39 | AS112: 26.3 | AT112: 2.37 | AU112: 0 | AV112: 14.57 | AX112: 44.63 | AY112: 59.3 | AZ112: U06R09 | BA112: 112
A113: U06 | B113: R10 | C113: Zone 10 | D113: Pass | E113: 40.49 | F113: 40.49 | G113: 0 | H113: Yes | I113: 45.22 | J113: 45.22 | K113: 45.22 | L113: 0 | M113: Yes | N113: U03R10 | O113: 4.73 | P113: 93 | Q113: 1.87 | R113: 21.77 | S113: 2.37 | T113: 0 | U113: 14.48 | V113: 0 | W113: 40.49 | X113: 55.2 | Y113: 93 | Z113: 1.87 | AA113: 21.77 | AB113: 2.37 | AC113: 0 | AD113: 14.48 | AE113: 0 | AF113: 40.49 | AG113: 55.2 | AH113: 93 | AI113: 1.79 | AJ113: 26.58 | AK113: 2.37 | AL113: 0 | AM113: 14.48 | AO113: 45.22 | AP113: 57.6 | AQ113: 93 | AR113: 1.79 | AS113: 26.58 | AT113: 2.37 | AU113: 0 | AV113: 14.48 | AX113: 45.22 | AY113: 57.6 | AZ113: U06R10 | BA113: 113
A114: U06 | B114: R11 | C114: Zone 11 | D114: Pass | E114: 64.39 | F114: 64.39 | G114: 0 | H114: Yes | I114: 70.21 | J114: 70.21 | K114: 70.21 | L114: 0 | M114: Yes | N114: U03R11 | O114: 5.82 | P114: 94 | Q114: =IF(Q$3=0,"",INDEX(INDIRECT(Q$1),$P114,Q$3)) -> 9.91 | R114: 37.23 | S114: 2.47 | T114: 0 | U114: 14.78 | V114: 0 | W114: 64.39 | X114: 55.4 | Y114: 94 | Z114: =IF(Z$3=0,"",INDEX(INDIRECT(Z$1),$Y114,Z$3)) -> 9.91 | AA114: 37.23 | AB114: 2.47 | AC114: 0 | AD114: 14.78 | AE114: 0 | AF114: 64.39 | AG114: 55.4 | AH114: 94 | AI114: =IF(AI$3=0,"",INDEX(INDIRECT(AI$1),$AH114,AI$3)) -> 9.91 | AJ114: 43.05 | AK114: 2.47 | AL114: 0 | AM114: 14.78 | AO114: 70.21 | AP114: 57.8 | AQ114: 94 | AR114: =IF(AR$3=0,"",INDEX(INDIRECT(AR$1),$AQ114,AR$3)) -> 9.91 | AS114: 43.05 | AT114: 2.47 | AU114: 0 | AV114: 14.78 | AX114: 70.21 | AY114: 57.8 | AZ114: U06R11 | BA114: 114
A115: U06 | B115: R12 | C115: Zone 12 | D115: Pass | E115: 48.94 | F115: 48.94 | G115: 0 | H115: Yes | I115: 54.37 | J115: 54.37 | K115: 54.37 | L115: 0 | M115: Yes | N115: U03R12 | O115: 5.43 | P115: 95 | Q115: 9.84 | R115: 21.17 | S115: 2.47 | T115: 0 | U115: 15.46 | V115: 0 | W115: 48.94 | X115: 55.4 | Y115: 95 | Z115: 9.84 | AA115: 21.17 | AB115: 2.47 | AC115: 0 | AD115: 15.46 | AE115: 0 | AF115: 48.94 | AG115: 55.4 | AH115: 95 | AI115: 9.78 | AJ115: 26.66 | AK115: 2.47 | AL115: 0 | AM115: 15.46 | AO115: 54.37 | AP115: 57.9 | AQ115: 95 | AR115: 9.78 | AS115: 26.66 | AT115: 2.47 | AU115: 0 | AV115: 15.46 | AX115: 54.37 | AY115: 57.9 | AZ115: U06R12 | BA115: 115
A116: U06 | B116: R13 | C116: Zone 13 | D116: Pass | E116: 65.2 | F116: 65.2 | G116: 0 | H116: Yes | I116: 71.77 | J116: 71.77 | K116: 71.77 | L116: 0 | M116: Yes | N116: U03R13 | O116: 6.57 | P116: 96 | Q116: 8.61 | R116: 39.62 | S116: 2.47 | T116: 0 | U116: 14.5 | V116: 0 | W116: 65.2 | X116: 56.5 | Y116: 96 | Z116: 8.61 | AA116: 39.62 | AB116: 2.47 | AC116: 0 | AD116: 14.5 | AE116: 0 | AF116: 65.2 | AG116: 56.5 | AH116: 96 | AI116: 8.57 | AJ116: 46.23 | AK116: 2.47 | AL116: 0 | AM116: 14.5 | AO116: 71.77 | AP116: 59.2 | AQ116: 96 | AR116: 8.57 | AS116: 46.23 | AT116: 2.47 | AU116: 0 | AV116: 14.5 | AX116: 71.77 | AY116: 59.2 | AZ116: U06R13 | BA116: 116
A117: U06 | B117: R14 | C117: Zone 14 | D117: Pass | E117: 60.26 | F117: 60.26 | G117: 0 | H117: Yes | I117: 66.5 | J117: 66.5 | K117: 66.5 | L117: 0 | M117: Yes | N117: U03R14 | O117: 6.24 | P117: 97 | Q117: 9.78 | R117: 33.05 | S117: 2.37 | T117: 0 | U117: 15.06 | V117: 0 | W117: 60.26 | X117: 55.8 | Y117: 97 | Z117: 9.78 | AA117: 33.05 | AB117: 2.37 | AC117: 0 | AD117: 15.06 | AE117: 0 | AF117: 60.26 | AG117: 55.8 | AH117: 97 | AI117: 9.61 | AJ117: 39.46 | AK117: 2.37 | AL117: 0 | AM117: 15.06 | AO117: 66.5 | AP117: 58.6 | AQ117: 97 | AR117: 9.61 | AS117: 39.46 | AT117: 2.37 | AU117: 0 | AV117: 15.06 | AX117: 66.5 | AY117: 58.6 | AZ117: U06R14 | BA117: 117
A118: U06 | B118: R15 | C118: Zone 15 | D118: Pass | E118: 93.7 | F118: 93.7 | G118: 0 | H118: Yes | I118: 102.02 | J118: 102.02 | K118: 102.02 | L118: 0 | M118: Yes | N118: U03R15 | O118: 8.32 | P118: 98 | Q118: 0.08 | R118: 80.24 | S118: 2.37 | T118: 0 | U118: 11.01 | V118: 0 | W118: 93.7 | X118: 59.9 | Y118: 98 | Z118: 0.08 | AA118: 80.24 | AB118: 2.37 | AC118: 0 | AD118: 11.01 | AE118: 0 | AF118: 93.7 | AG118: 59.9 | AH118: 98 | AI118: 0.09 | AJ118: 88.55 | AK118: 2.37 | AL118: 0 | AM118: 11.01 | AO118: 102.02 | AP118: 62.9 | AQ118: 98 | AR118: 0.09 | AS118: 88.55 | AT118: 2.37 | AU118: 0 | AV118: 11.01 | AX118: 102.02 | AY118: 62.9 | AZ118: U06R15 | BA118: 118
A119: U06 | B119: R16 | C119: Zone 16 | D119: Pass | E119: 53.24 | F119: 53.24 | G119: 0 | H119: Yes | I119: 56.23 | J119: 56.23 | K119: 56.23 | L119: 0 | M119: Yes | N119: U03R16 | O119: 2.99 | P119: 99 | Q119: 27.07 | R119: 5.36 | S119: 2.36 | T119: 0 | U119: 18.45 | V119: 0 | W119: 53.24 | X119: 61.4 | Y119: 99 | Z119: 27.07 | AA119: 5.36 | AB119: 2.36 | AC119: 0 | AD119: 18.45 | AE119: 0 | AF119: 53.24 | AG119: 61.4 | AH119: 99 | AI119: 26.63 | AJ119: 8.79 | AK119: 2.36 | AL119: 0 | AM119: 18.45 | AO119: 56.23 | AP119: 62.9 | AQ119: 99 | AR119: 26.63 | AS119: 8.79 | AT119: 2.36 | AU119: 0 | AV119: 18.45 | AX119: 56.23 | AY119: 62.9 | AZ119: U06R16 | BA119: 119
A120: ="Result "&A103 -> Result U06 | D120: =IF(SoftwareType="Candidate","n/a",IF(COUNTIF(D104:D119,Pass)=16,Pass,Fail)) -> Pass | E120: =AVERAGE(E104:E119) -> 43.0575 | F120: =AVERAGE(F104:F119) -> 43.0575 | G120: =IF(E120=0,0,(F120-E120)/E120) -> 0 | I120: =AVERAGE(I104:I119) -> 46.785625 | J120: =AVERAGE(J104:J119) -> 46.785625 | K120: =AVERAGE(K104:K119) -> 46.785625 | L120: 0 | M120: Min | N120: =MIN(L104:L119) -> 0 | O120: =AVERAGE(O104:O119) -> 3.728125 | P120: Ave | Q120: =AVERAGE(Q104:Q119) -> 6.854375 | R120: =AVERAGE(R104:R119) -> 18.33875 | S120: =AVERAGE(S104:S119) -> 2.429375 | U120: =AVERAGE(U104:U119) -> 15.435 | V120: =AVERAGE(V104:V119) -> 0 | W120: =AVERAGE(W104:W119) -> 43.0575 | X120: =AVERAGE(X104:X119) -> 57.9625 | Y120: Ave | Z120: =AVERAGE(Z104:Z119) -> 6.854375 | AA120: =AVERAGE(AA104:AA119) -> 18.33875 | AB120: =AVERAGE(AB104:AB119) -> 2.429375 | AC120: =AVERAGE(AC104:AC119) -> 0 | AD120: =AVERAGE(AD104:AD119) -> 15.435 | AF120: =AVERAGE(AF104:AF119) -> 43.0575 | AG120: =AVERAGE(AG104:AG119) -> 57.9625 | AI120: =AVERAGE(AI104:AI119) -> 6.738125 | AJ120: =AVERAGE(AJ104:AJ119) -> 22.183125 | AK120: =AVERAGE(AK104:AK119) -> 2.429375 | AL120: =AVERAGE(AL104:AL119) -> 0 | AM120: =AVERAGE(AM104:AM119) -> 15.435 | AO120: =AVERAGE(AO104:AO119) -> 46.785625 | AP120: =AVERAGE(AP104:AP119) -> 59.775 | AQ120: Ave | AR120: =AVERAGE(AR104:AR119) -> 6.738125 | AS120: =AVERAGE(AS104:AS119) -> 22.183125 | AT120: =AVERAGE(AT104:AT119) -> 2.429375 | AU120: =AVERAGE(AU104:AU119) -> 0 | AV120: =AVERAGE(AV104:AV119) -> 15.435 | AX120: =AVERAGE(AX104:AX119) -> 46.785625 | AY120: =AVERAGE(AY104:AY119) -> 59.775
C121: Page 4 of 7 | L121: Ave | M121: Max | N121: =MAX(L104:L119) -> 0 | Y121: % Diff | Z121: =(Z120-Q120)/Q120 -> 0 | AA121: =(AA120-R120)/R120 -> 0 | AB121: =(AB120-S120)/S120 -> 0 | AD121: =(AD120-U120)/U120 -> 0 | AF121: =(AF120-W120)/W120 -> 0
A122: U07 | B122: =VLOOKUP(A122,TestArray,2)&" in "&VLOOKUP(A122,TestArray,3)&" for Prototype "&VLOOKUP(A122,TestArray,4) -> Common Measures in Zone 12 for Prototype P2100ft2 | I122: =VLOOKUP(A122,TestArray,21) -> Standard = T01 Standard for this test
A123: =A122 -> U07 | B123: R01 | C123: =VLOOKUP(A123,TestArray,4+RIGHT(B123,2)) -> Package | D123: =IF(AND(H123=Yes,M123=Yes),Pass,Fail) -> Pass | E123: =IF(Units="EDR",X123,W123) -> 36.96 | F123: =IF(Units="EDR",AG123,AF123) -> 36.96 | G123: =IF(E123=0,0,(F123-E123)/E123) -> 0 | H123: =IF(AND((E123-Tolerance<=F123),(E123+Tolerance>=F123)),Yes,No) -> Yes | I123: =IF(Units="EDR",J123,INDIRECT(RefCol&INDEX(StandardArray,MATCH($N123,StandardList,0),2))) -> 41.01 | J123: =IF(Units="EDR",AP123,AO123) -> 41.01 | K123: =IF(Units="EDR",AY123,AX123) -> 41.01 | L123: =IF(I123=0,0,(K123-I123)/I123) -> 0 | M123: =IF(AND((I123-Tolerance<=K123),(I123+Tolerance>=K123),(J123-Tolerance<=K123),(J123+Tolerance>=K123)),Yes,No) -> Yes | N123: U01R12 | O123: =K123-F123 -> 4.05 | P123: =MATCH($A123&$B123,INDIRECT(P$2),0) -> 100 | Q123: =IF(Q$3=0,"",INDEX(INDIRECT(Q$1),$P123,Q$3)) -> 19.93 | R123: 7.3 | S123: 1.17 | T123: 0 | U123: 8.56 | V123: 0 | W123: =IF(TotalSum="No",INDEX(INDIRECT(W$1),$P123,W$3),SUM(Q123:V123)) -> 36.96 | X123: =IF(X$3=0,"",INDEX(INDIRECT(X$1),$P123,X$3)) -> 44.8 | Y123: =MATCH($A123&$B123,INDIRECT(Y$2),0) -> 100 | Z123: =IF(Z$3=0,"",INDEX(INDIRECT(Z$1),$Y123,Z$3)) -> 19.93 | AA123: 7.3 | AB123: 1.17 | AC123: 0 | AD123: 8.56 | AE123: 0 | AF123: =IF(TotalSum="No",INDEX(INDIRECT(AF$1),$Y123,AF$3),SUM(Z123:AE123)) -> 36.96 | AG123: =IF(AG$3=0,"",INDEX(INDIRECT(AG$1),$P123,AG$3)) -> 44.8 | AH123: =MATCH($A123&$B123,INDIRECT(AH$2),0) -> 100 | AI123: =IF(AI$3=0,"",INDEX(INDIRECT(AI$1),$AH123,AI$3)) -> 20.99 | AJ123: 10.29 | AK123: 1.17 | AL123: 0 | AM123: 8.56 | AO123: =IF(TotalSum="No",INDEX(INDIRECT(AO$1),$AH123,AO$3),SUM(AI123:AN123)) -> 41.01 | AP123: =IF(AP$3=0,"",INDEX(INDIRECT(AP$1),$P123,AP$3)) -> 47.2 | AQ123: =MATCH($A123&$B123,INDIRECT(AQ$2),0) -> 100 | AR123: =IF(AR$3=0,"",INDEX(INDIRECT(AR$1),$AQ123,AR$3)) -> 20.99 | AS123: 10.29 | AT123: 1.17 | AU123: 0 | AV123: 8.56 | AX123: =IF(TotalSum="No",INDEX(INDIRECT(AX$1),$AQ123,AX$3),SUM(AR123:AW123)) -> 41.01 | AY123: =IF(AY$3=0,"",INDEX(INDIRECT(AY$1),$P123,AY$3)) -> 47.2 | AZ123: =A123&B123 -> U07R01 | BA123: =ROW(AZ123) -> 123
A124: =A123 -> U07 | B124: R02 | C124: Fenestration U 0.40/S 0.40 | D124: Pass | E124: 42.44 | F124: 42.44 | G124: 0 | H124: Yes | I124: 41.01 | J124: 41.01 | K124: 41.01 | L124: 0 | M124: Yes | N124: =N123 -> U01R12 | O124: -1.43 | P124: 101 | Q124: 18.34 | R124: 14.37 | S124: 1.17 | T124: 0 | U124: 8.56 | V124: 0 | W124: 42.44 | X124: 48 | Y124: 101 | Z124: 18.34 | AA124: 14.37 | AB124: 1.17 | AC124: 0 | AD124: 8.56 | AE124: 0 | AF124: 42.44 | AG124: 48 | AH124: 101 | AI124: 20.99 | AJ124: 10.29 | AK124: 1.17 | AL124: 0 | AM124: 8.56 | AO124: 41.01 | AP124: 47.2 | AQ124: 101 | AR124: 20.99 | AS124: 10.29 | AT124: 1.17 | AU124: 0 | AV124: 8.56 | AX124: 41.01 | AY124: 47.2 | AZ124: U07R02 | BA124: 124
A125: U07 | B125: R03 | C125: Wall R13/Roof Deck Above R6 | D125: Pass | E125: 35.77 | F125: 35.77 | G125: 0 | H125: Yes | I125: 41.01 | J125: 41.01 | K125: 41.01 | L125: 0 | M125: Yes | N125: =N124 -> U01R12 | O125: 5.24 | P125: 102 | Q125: 20.17 | R125: 5.87 | S125: 1.17 | T125: 0 | U125: 8.56 | V125: 0 | W125: 35.77 | X125: 44.2 | Y125: 102 | Z125: 20.17 | AA125: 5.87 | AB125: 1.17 | AC125: 0 | AD125: 8.56 | AE125: 0 | AF125: 35.77 | AG125: 44.2 | AH125: 102 | AI125: 20.99 | AJ125: 10.29 | AK125: 1.17 | AL125: 0 | AM125: 8.56 | AO125: 41.01 | AP125: 47.2 | AQ125: 102 | AR125: 20.99 | AS125: 10.29 | AT125: 1.17 | AU125: 0 | AV125: 8.56 | AX125: 41.01 | AY125: 47.2 | AZ125: U07R03 | BA125: 125
A126: U07 | B126: R04 | C126: Ceiling R49 /Roof Deck Below R0/Radiant Barrier | D126: Pass | E126: 41.21 | F126: 41.21 | G126: 0 | H126: Yes | I126: 41.01 | J126: 41.01 | K126: 41.01 | L126: 0 | M126: Yes | N126: U01R12 | O126: -0.2 | P126: 103 | Q126: 21.37 | R126: 10.11 | S126: 1.17 | T126: 0 | U126: 8.56 | V126: 0 | W126: 41.21 | X126: 47.2 | Y126: 103 | Z126: 21.37 | AA126: 10.11 | AB126: 1.17 | AC126: 0 | AD126: 8.56 | AE126: 0 | AF126: 41.21 | AG126: 47.2 | AH126: 103 | AI126: 20.99 | AJ126: 10.29 | AK126: 1.17 | AL126: 0 | AM126: 8.56 | AO126: 41.01 | AP126: 47.2 | AQ126: 103 | AR126: 20.99 | AS126: 10.29 | AT126: 1.17 | AU126: 0 | AV126: 8.56 | AX126: 41.01 | AY126: 47.2 | AZ126: U07R04 | BA126: 126
A127: U07 | B127: R05 | C127: Furnace AFUE 92 | D127: Pass | E127: 34.58 | F127: 34.58 | G127: 0 | H127: Yes | I127: 41.01 | J127: 41.01 | K127: 41.01 | L127: 0 | M127: Yes | N127: U01R12 | O127: 6.43 | P127: 104 | Q127: 17.55 | R127: 7.3 | S127: 1.17 | T127: 0 | U127: 8.56 | V127: 0 | W127: 34.58 | X127: 43.5 | Y127: 104 | Z127: 17.55 | AA127: 7.3 | AB127: 1.17 | AC127: 0 | AD127: 8.56 | AE127: 0 | AF127: 34.58 | AG127: 43.5 | AH127: 104 | AI127: 20.99 | AJ127: 10.29 | AK127: 1.17 | AL127: 0 | AM127: 8.56 | AO127: 41.01 | AP127: 47.2 | AQ127: 104 | AR127: 20.99 | AS127: 10.29 | AT127: 1.17 | AU127: 0 | AV127: 8.56 | AX127: 41.01 | AY127: 47.2 | AZ127: U07R05 | BA127: 127
A128: U07 | B128: R06 | C128: Air Conditioner SEER 16/EER 14 | D128: Pass | E128: 35.97 | F128: 35.97 | G128: 0 | H128: Yes | I128: 41.01 | J128: 41.01 | K128: 41.01 | L128: 0 | M128: Yes | N128: U01R12 | O128: 5.04 | P128: 105 | Q128: 19.93 | R128: 6.31 | S128: 1.17 | T128: 0 | U128: 8.56 | V128: 0 | W128: 35.97 | X128: 44.3 | Y128: 105 | Z128: 19.93 | AA128: 6.31 | AB128: 1.17 | AC128: 0 | AD128: 8.56 | AE128: 0 | AF128: 35.97 | AG128: 44.3 | AH128: 105 | AI128: 20.99 | AJ128: 10.29 | AK128: 1.17 | AL128: 0 | AM128: 8.56 | AO128: 41.01 | AP128: 47.2 | AQ128: 105 | AR128: 20.99 | AS128: 10.29 | AT128: 1.17 | AU128: 0 | AV128: 8.56 | AX128: 41.01 | AY128: 47.2 | AZ128: U07R06 | BA128: 128
A129: U07 | B129: R07 | C129: No Cool Vent | D129: Pass | E129: 41.38 | F129: 41.38 | G129: 0 | H129: Yes | I129: 41.01 | J129: 41.01 | K129: 41.01 | L129: 0 | M129: Yes | N129: U01R12 | O129: -0.37 | P129: 106 | Q129: 19.95 | R129: 11.7 | S129: 1.17 | T129: 0 | U129: 8.56 | V129: 0 | W129: 41.38 | X129: 47.4 | Y129: 106 | Z129: 19.95 | AA129: 11.7 | AB129: 1.17 | AC129: 0 | AD129: 8.56 | AE129: 0 | AF129: 41.38 | AG129: 47.4 | AH129: 106 | AI129: 20.99 | AJ129: 10.29 | AK129: 1.17 | AL129: 0 | AM129: 8.56 | AO129: 41.01 | AP129: 47.2 | AQ129: 106 | AR129: 20.99 | AS129: 10.29 | AT129: 1.17 | AU129: 0 | AV129: 8.56 | AX129: 41.01 | AY129: 47.2 | AZ129: U07R07 | BA129: 129
A130: U07 | B130: R08 | C130: Ducts 2% Leakage | D130: Pass | E130: 36.39 | F130: 36.39 | G130: 0 | H130: Yes | I130: 41.01 | J130: 41.01 | K130: 41.01 | L130: 0 | M130: Yes | N130: U01R12 | O130: 4.62 | P130: 107 | Q130: 19.54 | R130: 7.12 | S130: 1.17 | T130: 0 | U130: 8.56 | V130: 0 | W130: 36.39 | X130: 44.5 | Y130: 107 | Z130: 19.54 | AA130: 7.12 | AB130: 1.17 | AC130: 0 | AD130: 8.56 | AE130: 0 | AF130: 36.39 | AG130: 44.5 | AH130: 107 | AI130: 20.99 | AJ130: 10.29 | AK130: 1.17 | AL130: 0 | AM130: 8.56 | AO130: 41.01 | AP130: 47.2 | AQ130: 107 | AR130: 20.99 | AS130: 10.29 | AT130: 1.17 | AU130: 0 | AV130: 8.56 | AX130: 41.01 | AY130: 47.2 | AZ130: U07R08 | BA130: 130
A131: U07 | B131: R09 | C131: Insulation Construction Quality Improved | D131: Pass | E131: 32.63 | F131: 32.63 | G131: 0 | H131: Yes | I131: 41.01 | J131: 41.01 | K131: 41.01 | L131: 0 | M131: Yes | N131: U01R12 | O131: 8.38 | P131: 108 | Q131: 17.41 | R131: 5.49 | S131: 1.17 | T131: 0 | U131: 8.56 | V131: 0 | W131: 32.63 | X131: 42.4 | Y131: 108 | Z131: 17.41 | AA131: 5.49 | AB131: 1.17 | AC131: 0 | AD131: 8.56 | AE131: 0 | AF131: 32.63 | AG131: 42.4 | AH131: 108 | AI131: 20.99 | AJ131: 10.29 | AK131: 1.17 | AL131: 0 | AM131: 8.56 | AO131: 41.01 | AP131: 47.2 | AQ131: 108 | AR131: 20.99 | AS131: 10.29 | AT131: 1.17 | AU131: 0 | AV131: 8.56 | AX131: 41.01 | AY131: 47.2 | AZ131: U07R09 | BA131: 131
A132: U07 | B132: R10 | C132: Air Leakage ACH50 2.0 | D132: Pass | E132: 35.45 | F132: 35.45 | G132: 0 | H132: Yes | I132: 41.01 | J132: 41.01 | K132: 41.01 | L132: 0 | M132: Yes | N132: U01R12 | O132: 5.56 | P132: 109 | Q132: 19.28 | R132: 6.44 | S132: 1.17 | T132: 0 | U132: 8.56 | V132: 0 | W132: 35.45 | X132: 44 | Y132: 109 | Z132: 19.28 | AA132: 6.44 | AB132: 1.17 | AC132: 0 | AD132: 8.56 | AE132: 0 | AF132: 35.45 | AG132: 44 | AH132: 109 | AI132: 20.99 | AJ132: 10.29 | AK132: 1.17 | AL132: 0 | AM132: 8.56 | AO132: 41.01 | AP132: 47.2 | AQ132: 109 | AR132: 20.99 | AS132: 10.29 | AT132: 1.17 | AU132: 0 | AV132: 8.56 | AX132: 41.01 | AY132: 47.2 | AZ132: U07R10 | BA132: 132
A133: ="Result "&A122 -> Result U07 | D133: =IF(COUNTIF(D123:D132,Pass)=10,Pass,Fail) -> Pass | E133: =AVERAGE(E123:E132) -> 37.278 | F133: =AVERAGE(F123:F132) -> 37.278 | G133: =IF(E133=0,0,(F133-E133)/E133) -> 0 | I133: =AVERAGE(I123:I132) -> 41.01 | J133: =AVERAGE(J123:J132) -> 41.01 | K133: =AVERAGE(K123:K132) -> 41.01 | L133: 0 | M133: Min | N133: =MIN(L123:L132) -> 0 | O133: =AVERAGE(O123:O132) -> 3.732 | P133: Ave | Q133: =AVERAGE(Q123:Q132) -> 19.347 | R133: =AVERAGE(R123:R132) -> 8.201 | S133: =AVERAGE(S123:S132) -> 1.17 | U133: =AVERAGE(U123:U132) -> 8.56 | V133: =AVERAGE(V123:V132) -> 0 | W133: =AVERAGE(W123:W132) -> 37.278 | X133: =AVERAGE(X117:X132) -> 48.95446429 | Y133: Ave | Z133: =AVERAGE(Z123:Z132) -> 19.347 | AA133: =AVERAGE(AA123:AA132) -> 8.201 | AB133: =AVERAGE(AB123:AB132) -> 1.17 | AC133: =AVERAGE(AC123:AC132) -> 0 | AD133: =AVERAGE(AD123:AD132) -> 8.56 | AF133: =AVERAGE(AF123:AF132) -> 37.278 | AG133: =AVERAGE(AG117:AG132) -> 48.95446429 | AI133: =AVERAGE(AI123:AI132) -> 20.99 | AJ133: =AVERAGE(AJ123:AJ132) -> 10.29 | AK133: =AVERAGE(AK123:AK132) -> 1.17 | AL133: =AVERAGE(AL123:AL132) -> 0 | AM133: =AVERAGE(AM123:AM132) -> 8.56 | AO133: =AVERAGE(AO123:AO132) -> 41.01 | AP133: =AVERAGE(AP117:AP132) -> 51.15535714 | AR133: =AVERAGE(AR123:AR132) -> 20.99 | AS133: =AVERAGE(AS123:AS132) -> 10.29 | AT133: =AVERAGE(AT123:AT132) -> 1.17 | AU133: =AVERAGE(AU123:AU132) -> 0 | AV133: =AVERAGE(AV123:AV132) -> 8.56 | AX133: =AVERAGE(AX123:AX132) -> 41.01 | AY133: =AVERAGE(AY117:AY132) -> 51.15535714
L134: Ave | M134: Max | N134: =MAX(L123:L132) -> 0 | Y134: % Diff | Z134: =(Z133-Q133)/Q133 -> 0 | AA134: =(AA133-R133)/R133 -> 0 | AB134: =(AB133-S133)/S133 -> 0 | AD134: =(AD133-U133)/U133 -> 0 | AF134: =(AF133-W133)/W133 -> 0
A135: U08 | B135: =VLOOKUP(A135,TestArray,2)&" in "&VLOOKUP(A135,TestArray,3)&" for Prototype "&VLOOKUP(A135,TestArray,4) -> Water Heating in Zone 12 for Prototype P2100ft2 | I135: =VLOOKUP(A135,TestArray,21) -> Standard = T01 Standard for this test
A136: =A135 -> U08 | B136: R01 | C136: =VLOOKUP(A136,TestArray,4+RIGHT(B136,2)) -> Package | D136: =IF(AND(H136=Yes,M136=Yes),Pass,Fail) -> Pass | E136: =IF(Units="EDR",X136,W136) -> 36.96 | F136: =IF(Units="EDR",AG136,AF136) -> 36.96 | G136: =IF(E136=0,0,(F136-E136)/E136) -> 0 | H136: =IF(AND((E136-Tolerance<=F136),(E136+Tolerance>=F136)),Yes,No) -> Yes | I136: =IF(Units="EDR",J136,INDIRECT(RefCol&INDEX(StandardArray,MATCH($N136,StandardList,0),2))) -> 41.01 | J136: =IF(Units="EDR",AP136,AO136) -> 41.01 | K136: =IF(Units="EDR",AY136,AX136) -> 41.01 | L136: =IF(I136=0,0,(K136-I136)/I136) -> 0 | M136: =IF(AND((I136-Tolerance<=K136),(I136+Tolerance>=K136),(J136-Tolerance<=K136),(J136+Tolerance>=K136)),Yes,No) -> Yes | N136: U01R12 | O136: =K136-F136 -> 4.05 | P136: =MATCH($A136&$B136,INDIRECT(P$2),0) -> 110 | Q136: =IF(Q$3=0,"",INDEX(INDIRECT(Q$1),$P136,Q$3)) -> 19.93 | R136: 7.3 | S136: 1.17 | T136: 0 | U136: 8.56 | V136: 0 | W136: =IF(TotalSum="No",INDEX(INDIRECT(W$1),$P136,W$3),SUM(Q136:V136)) -> 36.96 | X136: =IF(X$3=0,"",INDEX(INDIRECT(X$1),$P136,X$3)) -> 44.8 | Y136: =MATCH($A136&$B136,INDIRECT(Y$2),0) -> 110 | Z136: =IF(Z$3=0,"",INDEX(INDIRECT(Z$1),$Y136,Z$3)) -> 19.93 | AA136: 7.3 | AB136: 1.17 | AC136: 0 | AD136: 8.56 | AE136: 0 | AF136: =IF(TotalSum="No",INDEX(INDIRECT(AF$1),$Y136,AF$3),SUM(Z136:AE136)) -> 36.96 | AG136: =IF(AG$3=0,"",INDEX(INDIRECT(AG$1),$P136,AG$3)) -> 44.8 | AH136: =MATCH($A136&$B136,INDIRECT(AH$2),0) -> 110 | AI136: =IF(AI$3=0,"",INDEX(INDIRECT(AI$1),$AH136,AI$3)) -> 20.99 | AJ136: 10.29 | AK136: 1.17 | AL136: 0 | AM136: 8.56 | AO136: =IF(TotalSum="No",INDEX(INDIRECT(AO$1),$AH136,AO$3),SUM(AI136:AN136)) -> 41.01 | AP136: =IF(AP$3=0,"",INDEX(INDIRECT(AP$1),$P136,AP$3)) -> 47.2 | AQ136: =MATCH($A136&$B136,INDIRECT(AQ$2),0) -> 110 | AR136: =IF(AR$3=0,"",INDEX(INDIRECT(AR$1),$AQ136,AR$3)) -> 20.99 | AS136: 10.29 | AT136: 1.17 | AU136: 0 | AV136: 8.56 | AX136: =IF(TotalSum="No",INDEX(INDIRECT(AX$1),$AQ136,AX$3),SUM(AR136:AW136)) -> 41.01 | AY136: =IF(AY$3=0,"",INDEX(INDIRECT(AY$1),$P136,AY$3)) -> 47.2 | AZ136: =A136&B136 -> U08R01 | BA136: =ROW(AZ136) -> 136
A137: =A136 -> U08 | B137: R02 | C137: Parallel Piping | D137: Pass | E137: 37.07 | F137: 37.07 | G137: 0 | H137: Yes | I137: 41.01 | J137: 41.01 | K137: 41.01 | L137: 0 | M137: Yes | N137: =N136 -> U01R12 | O137: 3.94 | P137: 111 | Q137: 19.93 | R137: 7.3 | S137: 1.17 | T137: 0 | U137: 8.67 | V137: 0 | W137: 37.07 | X137: 44.9 | Y137: 111 | Z137: 19.93 | AA137: 7.3 | AB137: 1.17 | AC137: 0 | AD137: 8.67 | AE137: 0 | AF137: 37.07 | AG137: 44.9 | AH137: 111 | AI137: 20.99 | AJ137: 10.29 | AK137: 1.17 | AL137: 0 | AM137: 8.56 | AO137: 41.01 | AP137: 47.2 | AQ137: 111 | AR137: 20.99 | AS137: 10.29 | AT137: 1.17 | AU137: 0 | AV137: 8.56 | AX137: 41.01 | AY137: 47.2 | AZ137: U08R02 | BA137: 137
A138: U08 | B138: R03 | C138: Small Tankless EF 0.80/Input 195000/0 gal | D138: Pass | E138: 37.17 | F138: 37.17 | G138: 0 | H138: Yes | I138: 41.01 | J138: 41.01 | K138: 41.01 | L138: 0 | M138: Yes | N138: =N137 -> U01R12 | O138: 3.84 | P138: 112 | Q138: 19.93 | R138: 7.3 | S138: 1.17 | T138: 0 | U138: 8.77 | V138: 0 | W138: 37.17 | X138: 44.9 | Y138: 112 | Z138: 19.93 | AA138: 7.3 | AB138: 1.17 | AC138: 0 | AD138: 8.77 | AE138: 0 | AF138: 37.17 | AG138: 44.9 | AH138: 112 | AI138: 20.99 | AJ138: 10.29 | AK138: 1.17 | AL138: 0 | AM138: 8.56 | AO138: 41.01 | AP138: 47.2 | AQ138: 112 | AR138: 20.99 | AS138: 10.29 | AT138: 1.17 | AU138: 0 | AV138: 8.56 | AX138: 41.01 | AY138: 47.2 | AZ138: U08R03 | BA138: 138
A139: U08 | B139: R04 | C139: Large Tankless RE 0.76/Input 300000/0 gal | D139: Pass | E139: 37.64 | F139: 37.64 | G139: 0 | H139: Yes | I139: 41.01 | J139: 41.01 | K139: 41.01 | L139: 0 | M139: Yes | N139: U01R12 | O139: 3.37 | P139: 113 | Q139: 19.93 | R139: 7.3 | S139: 1.17 | T139: 0 | U139: 9.24 | V139: 0 | W139: 37.64 | X139: 45.2 | Y139: 113 | Z139: 19.93 | AA139: 7.3 | AB139: 1.17 | AC139: 0 | AD139: 9.24 | AE139: 0 | AF139: 37.64 | AG139: 45.2 | AH139: 113 | AI139: 20.99 | AJ139: 10.29 | AK139: 1.17 | AL139: 0 | AM139: 8.56 | AO139: 41.01 | AP139: 47.2 | AQ139: 113 | AR139: 20.99 | AS139: 10.29 | AT139: 1.17 | AU139: 0 | AV139: 8.56 | AX139: 41.01 | AY139: 47.2 | AZ139: U08R04 | BA139: 139
A140: U08 | B140: R05 | C140: Large Storage RE 0.77/Input 100000/75gal/Stby 0.01 | D140: Pass | E140: 39.77 | F140: 39.77 | G140: 0 | H140: Yes | I140: 41.01 | J140: 41.01 | K140: 41.01 | L140: 0 | M140: Yes | N140: U01R12 | O140: 1.24 | P140: 114 | Q140: 19.93 | R140: 7.3 | S140: 1.17 | T140: 0 | U140: 11.37 | V140: 0 | W140: 39.77 | X140: 46.4 | Y140: 114 | Z140: 19.93 | AA140: 7.3 | AB140: 1.17 | AC140: 0 | AD140: 11.37 | AE140: 0 | AF140: 39.77 | AG140: 46.4 | AH140: 114 | AI140: 20.99 | AJ140: 10.29 | AK140: 1.17 | AL140: 0 | AM140: 8.56 | AO140: 41.01 | AP140: 47.2 | AQ140: 114 | AR140: 20.99 | AS140: 10.29 | AT140: 1.17 | AU140: 0 | AV140: 8.56 | AX140: 41.01 | AY140: 47.2 | AZ140: U08R05 | BA140: 140
A141: U08 | B141: R06 | C141: Large Storage RE 0.77/Input 100000/75gal/Stby 0.03 | D141: Pass | E141: 45.73 | F141: 45.73 | G141: 0 | H141: Yes | I141: 41.01 | J141: 41.01 | K141: 41.01 | L141: 0 | M141: Yes | N141: U01R12 | O141: -4.72 | P141: 115 | Q141: 19.93 | R141: 7.3 | S141: 1.17 | T141: 0 | U141: 17.33 | V141: 0 | W141: 45.73 | X141: 49.8 | Y141: 115 | Z141: 19.93 | AA141: 7.3 | AB141: 1.17 | AC141: 0 | AD141: 17.33 | AE141: 0 | AF141: 45.73 | AG141: 49.8 | AH141: 115 | AI141: 20.99 | AJ141: 10.29 | AK141: 1.17 | AL141: 0 | AM141: 8.56 | AO141: 41.01 | AP141: 47.2 | AQ141: 115 | AR141: 20.99 | AS141: 10.29 | AT141: 1.17 | AU141: 0 | AV141: 8.56 | AX141: 41.01 | AY141: 47.2 | AZ141: U08R06 | BA141: 141
A142: U08 | B142: R07 | C142: Electric Resistance EF 0.92/Input 4500 | D142: Pass | E142: 57.68 | F142: 57.68 | G142: 0 | H142: Yes | I142: 41.01 | J142: 41.01 | K142: 41.01 | L142: 0 | M142: Yes | N142: U01R12 | O142: -16.67 | P142: 116 | Q142: 19.93 | R142: 7.3 | S142: 1.17 | T142: 0 | U142: 29.28 | V142: 0 | W142: 57.68 | X142: 56.7 | Y142: 116 | Z142: 19.93 | AA142: 7.3 | AB142: 1.17 | AC142: 0 | AD142: 29.28 | AE142: 0 | AF142: 57.68 | AG142: 56.7 | AH142: 116 | AI142: 20.99 | AJ142: 10.29 | AK142: 1.17 | AL142: 0 | AM142: 8.56 | AO142: 41.01 | AP142: 47.3 | AQ142: 116 | AR142: 20.99 | AS142: 10.29 | AT142: 1.17 | AU142: 0 | AV142: 8.56 | AX142: 41.01 | AY142: 47.3 | AZ142: U08R07 | BA142: 142
A143: U08 | B143: R08 | C143: Heat Pump EF 2.4/Input 4500 | D143: Pass | E143: 43.33 | F143: 43.33 | G143: 0 | H143: Yes | I143: 41.01 | J143: 41.01 | K143: 41.01 | L143: 0 | M143: Yes | N143: U01R12 | O143: -2.32 | P143: 117 | Q143: 20.06 | R143: 7.16 | S143: 1.17 | T143: 0 | U143: 14.94 | V143: 0 | W143: 43.33 | X143: 48.5 | Y143: 117 | Z143: 20.06 | AA143: 7.16 | AB143: 1.17 | AC143: 0 | AD143: 14.94 | AE143: 0 | AF143: 43.33 | AG143: 48.5 | AH143: 117 | AI143: 20.99 | AJ143: 10.29 | AK143: 1.17 | AL143: 0 | AM143: 8.56 | AO143: 41.01 | AP143: 47.3 | AQ143: 117 | AR143: 20.99 | AS143: 10.29 | AT143: 1.17 | AU143: 0 | AV143: 8.56 | AX143: 41.01 | AY143: 47.3 | AZ143: U08R08 | BA143: 143
A144: U08 | B144: R09 | C144: 2 Water Heaters using Multiplier | D144: Pass | E144: 36.96 | F144: 36.96 | G144: 0 | H144: Yes | I144: 41.01 | J144: 41.01 | K144: 41.01 | L144: 0 | M144: Yes | N144: U01R12 | O144: 4.05 | P144: 118 | Q144: 19.93 | R144: 7.3 | S144: 1.17 | T144: 0 | U144: 8.56 | V144: 0 | W144: 36.96 | X144: 44.8 | Y144: 118 | Z144: 19.93 | AA144: 7.3 | AB144: 1.17 | AC144: 0 | AD144: 8.56 | AE144: 0 | AF144: 36.96 | AG144: 44.8 | AH144: 118 | AI144: 20.99 | AJ144: 10.29 | AK144: 1.17 | AL144: 0 | AM144: 8.56 | AO144: 41.01 | AP144: 47.2 | AQ144: 118 | AR144: 20.99 | AS144: 10.29 | AT144: 1.17 | AU144: 0 | AV144: 8.56 | AX144: 41.01 | AY144: 47.2 | AZ144: U08R09 | BA144: 144
A145: U08 | B145: R10 | C145: 2 Water Heaters Using 2 entries | D145: Pass | E145: 36.96 | F145: 36.96 | G145: 0 | H145: Yes | I145: 41.01 | J145: 41.01 | K145: 41.01 | L145: 0 | M145: Yes | N145: U01R12 | O145: 4.05 | P145: 119 | Q145: 19.93 | R145: 7.3 | S145: 1.17 | T145: 0 | U145: 8.56 | V145: 0 | W145: 36.96 | X145: 44.8 | Y145: 119 | Z145: 19.93 | AA145: 7.3 | AB145: 1.17 | AC145: 0 | AD145: 8.56 | AE145: 0 | AF145: 36.96 | AG145: 44.8 | AH145: 119 | AI145: 20.99 | AJ145: 10.29 | AK145: 1.17 | AL145: 0 | AM145: 8.56 | AO145: 41.01 | AP145: 47.2 | AQ145: 119 | AR145: 20.99 | AS145: 10.29 | AT145: 1.17 | AU145: 0 | AV145: 8.56 | AX145: 41.01 | AY145: 47.2 | AZ145: U08R10 | BA145: 145
A146: ="Result "&A135 -> Result U08 | D146: =IF(COUNTIF(D136:D145,Pass)=10,Pass,Fail) -> Pass | E146: =AVERAGE(E136:E145) -> 40.927 | F146: =AVERAGE(F136:F145) -> 40.927 | G146: =IF(E146=0,0,(F146-E146)/E146) -> 0 | I146: =AVERAGE(I136:I145) -> 41.01 | J146: =AVERAGE(J136:J145) -> 41.01 | K146: =AVERAGE(K136:K145) -> 41.01 | L146: 0 | M146: Min | N146: =MIN(L136:L145) -> 0 | O146: =AVERAGE(O136:O145) -> 0.083 | P146: Ave | Q146: =AVERAGE(Q136:Q145) -> 19.943 | R146: =AVERAGE(R136:R145) -> 7.286 | S146: =AVERAGE(S136:S145) -> 1.17 | U146: =AVERAGE(U136:U145) -> 12.528 | V146: =AVERAGE(V136:V145) -> 0 | W146: =AVERAGE(W136:W145) -> 40.927 | X146: =AVERAGE(X130:X145) -> 46.47531888 | Y146: Ave | Z146: =AVERAGE(Z136:Z145) -> 19.943 | AA146: =AVERAGE(AA136:AA145) -> 7.286 | AB146: =AVERAGE(AB136:AB145) -> 1.17 | AC146: =AVERAGE(AC136:AC145) -> 0 | AD146: =AVERAGE(AD136:AD145) -> 12.528 | AF146: =AVERAGE(AF136:AF145) -> 40.927 | AG146: =AVERAGE(AG130:AG145) -> 46.47531888 | AI146: =AVERAGE(AI136:AI145) -> 20.99 | AJ146: =AVERAGE(AJ136:AJ145) -> 10.29 | AK146: =AVERAGE(AK136:AK145) -> 1.17 | AL146: =AVERAGE(AL136:AL145) -> 0 | AM146: =AVERAGE(AM136:AM145) -> 8.56 | AO146: =AVERAGE(AO136:AO145) -> 41.01 | AP146: =AVERAGE(AP130:AP145) -> 47.49681122 | AR146: =AVERAGE(AR136:AR145) -> 20.99 | AS146: =AVERAGE(AS136:AS145) -> 10.29 | AT146: =AVERAGE(AT136:AT145) -> 1.17 | AU146: =AVERAGE(AU136:AU145) -> 0 | AV146: =AVERAGE(AV136:AV145) -> 8.56 | AX146: =AVERAGE(AX136:AX145) -> 41.01 | AY146: =AVERAGE(AY130:AY145) -> 47.49681122
L147: Ave | M147: Max | N147: =MAX(L136:L145) -> 0 | Y147: % Diff | Z147: =(Z146-Q146)/Q146 -> 0 | AA147: =(AA146-R146)/R146 -> 0 | AB147: =(AB146-S146)/S146 -> 0 | AD147: =(AD146-U146)/U146 -> 0 | AF147: =(AF146-W146)/W146 -> 0
A148: U09 | B148: =VLOOKUP(A148,TestArray,2)&" in "&VLOOKUP(A148,TestArray,3)&" for Prototype "&VLOOKUP(A148,TestArray,4) -> Multiple Orientation in Zone 12 for Prototype S2100ft2/P2100ft2 | I148: =VLOOKUP(A148,TestArray,21) -> Standard = T01 Standard for this test
A149: =A148 -> U09 | B149: R01 | C149: =VLOOKUP(A149,TestArray,4+RIGHT(B149,2)) -> Single Standard Front 45 | D149: =IF(SoftwareType="Candidate","n/a",IF(AND(H149=Yes,M149=Yes),Pass,Fail)) -> Pass | E149: =IF(Units="EDR",X149,W149) -> 42.2 | F149: =IF(Units="EDR",AG149,AF149) -> 42.2 | G149: =IF(E149=0,0,(F149-E149)/E149) -> 0 | H149: =IF(AND((E149-Tolerance<=F149),(E149+Tolerance>=F149)),Yes,No) -> Yes | I149: =IF(Units="EDR",J149,INDIRECT(RefCol&INDEX(StandardArray,MATCH($N149,StandardList,0),2))) -> 41.01 | J149: =IF(Units="EDR",AP149,AO149) -> 41.01 | K149: =IF(Units="EDR",AY149,AX149) -> 41.01 | L149: =IF(I149=0,0,(K149-I149)/I149) -> 0 | M149: =IF(AND((I149-Tolerance<=K149),(I149+Tolerance>=K149),(J149-Tolerance<=K149),(J149+Tolerance>=K149)),Yes,No) -> Yes | N149: U01R12 | O149: =K149-F149 -> -1.19 | P149: =MATCH($A149&$B149,INDIRECT(P$2),0) -> 120 | Q149: =IF(Q$3=0,"",INDEX(INDIRECT(Q$1),$P149,Q$3)) -> 21.19 | R149: 11.28 | S149: 1.17 | T149: 0 | U149: 8.56 | V149: 0 | W149: =IF(TotalSum="No",INDEX(INDIRECT(W$1),$P149,W$3),SUM(Q149:V149)) -> 42.2 | X149: =IF(X$3=0,"",INDEX(INDIRECT(X$1),$P149,X$3)) -> 47.8 | Y149: =MATCH($A149&$B149,INDIRECT(Y$2),0) -> 120 | Z149: =IF(Z$3=0,"",INDEX(INDIRECT(Z$1),$Y149,Z$3)) -> 21.19 | AA149: 11.28 | AB149: 1.17 | AC149: 0 | AD149: 8.56 | AE149: 0 | AF149: =IF(TotalSum="No",INDEX(INDIRECT(AF$1),$Y149,AF$3),SUM(Z149:AE149)) -> 42.2 | AG149: =IF(AG$3=0,"",INDEX(INDIRECT(AG$1),$P149,AG$3)) -> 47.8 | AH149: =MATCH($A149&$B149,INDIRECT(AH$2),0) -> 120 | AI149: =IF(AI$3=0,"",INDEX(INDIRECT(AI$1),$AH149,AI$3)) -> 20.99 | AJ149: 10.29 | AK149: 1.17 | AL149: 0 | AM149: 8.56 | AO149: =IF(TotalSum="No",INDEX(INDIRECT(AO$1),$AH149,AO$3),SUM(AI149:AN149)) -> 41.01 | AP149: =IF(AP$3=0,"",INDEX(INDIRECT(AP$1),$P149,AP$3)) -> 47.2 | AQ149: =MATCH($A149&$B149,INDIRECT(AQ$2),0) -> 120 | AR149: =IF(AR$3=0,"",INDEX(INDIRECT(AR$1),$AQ149,AR$3)) -> 20.99 | AS149: 10.29 | AT149: 1.17 | AU149: 0 | AV149: 8.56 | AX149: =IF(TotalSum="No",INDEX(INDIRECT(AX$1),$AQ149,AX$3),SUM(AR149:AW149)) -> 41.01 | AY149: =IF(AY$3=0,"",INDEX(INDIRECT(AY$1),$P149,AY$3)) -> 47.2 | AZ149: =A149&B149 -> U09R01 | BA149: =ROW(AZ149) -> 149
A150: =A149 -> U09 | B150: R02 | C150: East Standard | D150: =IF(SoftwareType="Candidate","n/a",IF(AND(H150=Yes,M150=Yes),Pass,Fail)) -> Pass | E150: 41.01 | F150: 41.01 | G150: 0 | H150: Yes | I150: 41.01 | J150: 41.01 | K150: 41.01 | L150: 0 | M150: Yes | N150: =N149 -> U01R12 | O150: 0 | P150: 122 | Q150: 20.99 | R150: 10.29 | S150: 1.17 | T150: 0 | U150: 8.56 | V150: 0 | W150: 41.01 | X150: 47.2 | Y150: 122 | Z150: 20.99 | AA150: 10.29 | AB150: 1.17 | AC150: 0 | AD150: 8.56 | AE150: 0 | AF150: 41.01 | AG150: 47.2 | AH150: 122 | AI150: 20.99 | AJ150: 10.29 | AK150: 1.17 | AL150: 0 | AM150: 8.56 | AO150: 41.01 | AP150: 47.2 | AQ150: 122 | AR150: 20.99 | AS150: 10.29 | AT150: 1.17 | AU150: 0 | AV150: 8.56 | AX150: 41.01 | AY150: 47.2 | AZ150: U09R02 | BA150: 150
A151: U09 | B151: R03 | C151: South Standard | D151: =IF(SoftwareType="Candidate","n/a",IF(AND(H151=Yes,M151=Yes),Pass,Fail)) -> Pass | E151: 41.01 | F151: 41.01 | G151: 0 | H151: Yes | I151: 41.01 | J151: 41.01 | K151: 41.01 | L151: 0 | M151: Yes | N151: =N150 -> U01R12 | O151: 0 | P151: 123 | Q151: 20.99 | R151: 10.29 | S151: 1.17 | T151: 0 | U151: 8.56 | V151: 0 | W151: 41.01 | X151: 47.2 | Y151: 123 | Z151: 20.99 | AA151: 10.29 | AB151: 1.17 | AC151: 0 | AD151: 8.56 | AE151: 0 | AF151: 41.01 | AG151: 47.2 | AH151: 123 | AI151: 20.99 | AJ151: 10.29 | AK151: 1.17 | AL151: 0 | AM151: 8.56 | AO151: 41.01 | AP151: 47.2 | AQ151: 123 | AR151: 20.99 | AS151: 10.29 | AT151: 1.17 | AU151: 0 | AV151: 8.56 | AX151: 41.01 | AY151: 47.2 | AZ151: U09R03 | BA151: 151
A152: U09 | B152: R04 | C152: West Standard | D152: =IF(SoftwareType="Candidate","n/a",IF(AND(H152=Yes,M152=Yes),Pass,Fail)) -> Pass | E152: 41.01 | F152: 41.01 | G152: 0 | H152: Yes | I152: 41.01 | J152: 41.01 | K152: 41.01 | L152: 0 | M152: Yes | N152: U01R12 | O152: 0 | P152: 124 | Q152: 20.99 | R152: 10.29 | S152: 1.17 | T152: 0 | U152: 8.56 | V152: 0 | W152: 41.01 | X152: 47.2 | Y152: 124 | Z152: 20.99 | AA152: 10.29 | AB152: 1.17 | AC152: 0 | AD152: 8.56 | AE152: 0 | AF152: 41.01 | AG152: 47.2 | AH152: 124 | AI152: 20.99 | AJ152: 10.29 | AK152: 1.17 | AL152: 0 | AM152: 8.56 | AO152: 41.01 | AP152: 47.2 | AQ152: 124 | AR152: 20.99 | AS152: 10.29 | AT152: 1.17 | AU152: 0 | AV152: 8.56 | AX152: 41.01 | AY152: 47.2 | AZ152: U09R04 | BA152: 152
A153: U09 | B153: R05 | C153: North Standard | D153: =IF(SoftwareType="Candidate","n/a",IF(AND(H153=Yes,M153=Yes),Pass,Fail)) -> Pass | E153: 41.01 | F153: 41.01 | G153: 0 | H153: Yes | I153: 41.01 | J153: 41.01 | K153: 41.01 | L153: 0 | M153: Yes | N153: U01R12 | O153: 0 | P153: 121 | Q153: 20.99 | R153: 10.29 | S153: 1.17 | T153: 0 | U153: 8.56 | V153: 0 | W153: 41.01 | X153: 47.2 | Y153: 121 | Z153: 20.99 | AA153: 10.29 | AB153: 1.17 | AC153: 0 | AD153: 8.56 | AE153: 0 | AF153: 41.01 | AG153: 47.2 | AH153: 121 | AI153: 20.99 | AJ153: 10.29 | AK153: 1.17 | AL153: 0 | AM153: 8.56 | AO153: 41.01 | AP153: 47.2 | AQ153: 121 | AR153: 20.99 | AS153: 10.29 | AT153: 1.17 | AU153: 0 | AV153: 8.56 | AX153: 41.01 | AY153: 47.2 | AZ153: U09R05 | BA153: 153
A154: U09 | B154: R06 | C154: Single Proposed front 45 | D154: =IF(AND(H154=Yes,M154=Yes),Pass,Fail) -> Pass | E154: 42.04 | F154: 42.04 | G154: 0 | H154: Yes | I154: 41.01 | J154: 41.01 | K154: 41.01 | L154: 0 | M154: Yes | N154: U01R12 | O154: -1.03 | P154: 125 | Q154: 20.78 | R154: 11.53 | S154: 1.17 | T154: 0 | U154: 8.56 | V154: 0 | W154: 42.04 | X154: 47.7 | Y154: 125 | Z154: 20.78 | AA154: 11.53 | AB154: 1.17 | AC154: 0 | AD154: 8.56 | AE154: 0 | AF154: 42.04 | AG154: 47.7 | AH154: 125 | AI154: 20.99 | AJ154: 10.29 | AK154: 1.17 | AL154: 0 | AM154: 8.56 | AO154: 41.01 | AP154: 47.2 | AQ154: 125 | AR154: 20.99 | AS154: 10.29 | AT154: 1.17 | AU154: 0 | AV154: 8.56 | AX154: 41.01 | AY154: 47.2 | AZ154: U09R06 | BA154: 154
A155: U09 | B155: R07 | C155: East Proposed | D155: =IF(AND(H155=Yes,M155=Yes),Pass,Fail) -> Pass | E155: 43.63 | F155: 43.63 | G155: 0 | H155: Yes | I155: 41.01 | J155: 41.01 | K155: 41.01 | L155: 0 | M155: Yes | N155: U01R12 | O155: -2.62 | P155: 127 | Q155: 21.63 | R155: 12.27 | S155: 1.17 | T155: 0 | U155: 8.56 | V155: 0 | W155: 43.63 | X155: 48.6 | Y155: 127 | Z155: 21.63 | AA155: 12.27 | AB155: 1.17 | AC155: 0 | AD155: 8.56 | AE155: 0 | AF155: 43.63 | AG155: 48.6 | AH155: 127 | AI155: 20.99 | AJ155: 10.29 | AK155: 1.17 | AL155: 0 | AM155: 8.56 | AO155: 41.01 | AP155: 47.2 | AQ155: 127 | AR155: 20.99 | AS155: 10.29 | AT155: 1.17 | AU155: 0 | AV155: 8.56 | AX155: 41.01 | AY155: 47.2 | AZ155: U09R07 | BA155: 155
A156: U09 | B156: R08 | C156: South Proposed | D156: =IF(SoftwareType="Candidate","n/a",IF(AND(H156=Yes,M156=Yes),Pass,Fail)) -> Pass | E156: 37.56 | F156: 37.56 | G156: 0 | H156: Yes | I156: 41.01 | J156: 41.01 | K156: 41.01 | L156: 0 | M156: Yes | N156: U01R12 | O156: 3.45 | P156: 128 | Q156: 22.17 | R156: 5.66 | S156: 1.17 | T156: 0 | U156: 8.56 | V156: 0 | W156: 37.56 | X156: 48.6 | Y156: 128 | Z156: 22.17 | AA156: 5.66 | AB156: 1.17 | AC156: 0 | AD156: 8.56 | AE156: 0 | AF156: 37.56 | AG156: 48.6 | AH156: 128 | AI156: 20.99 | AJ156: 10.29 | AK156: 1.17 | AL156: 0 | AM156: 8.56 | AO156: 41.01 | AP156: 47.2 | AQ156: 128 | AR156: 20.99 | AS156: 10.29 | AT156: 1.17 | AU156: 0 | AV156: 8.56 | AX156: 41.01 | AY156: 47.2 | AZ156: U09R08 | BA156: 156
A157: U09 | B157: R09 | C157: West Proposed | D157: =IF(SoftwareType="Candidate","n/a",IF(AND(H157=Yes,M157=Yes),Pass,Fail)) -> Pass | E157: 42.55 | F157: 42.55 | G157: 0 | H157: Yes | I157: 41.01 | J157: 41.01 | K157: 41.01 | L157: 0 | M157: Yes | N157: U01R12 | O157: -1.54 | P157: 129 | Q157: 21.34 | R157: 11.48 | S157: 1.17 | T157: 0 | U157: 8.56 | V157: 0 | W157: 42.55 | X157: 48.6 | Y157: 129 | Z157: 21.34 | AA157: 11.48 | AB157: 1.17 | AC157: 0 | AD157: 8.56 | AE157: 0 | AF157: 42.55 | AG157: 48.6 | AH157: 129 | AI157: 20.99 | AJ157: 10.29 | AK157: 1.17 | AL157: 0 | AM157: 8.56 | AO157: 41.01 | AP157: 47.2 | AQ157: 129 | AR157: 20.99 | AS157: 10.29 | AT157: 1.17 | AU157: 0 | AV157: 8.56 | AX157: 41.01 | AY157: 47.2 | AZ157: U09R09 | BA157: 157
A158: U09 | B158: R10 | C158: North Proposed | D158: =IF(SoftwareType="Candidate","n/a",IF(AND(H158=Yes,M158=Yes),Pass,Fail)) -> Pass | E158: 36.96 | F158: 36.96 | G158: 0 | H158: Yes | I158: 41.01 | J158: 41.01 | K158: 41.01 | L158: 0 | M158: Yes | N158: U01R12 | O158: 4.05 | P158: 126 | Q158: 19.93 | R158: 7.3 | S158: 1.17 | T158: 0 | U158: 8.56 | V158: 0 | W158: 36.96 | X158: 48.6 | Y158: 126 | Z158: 19.93 | AA158: 7.3 | AB158: 1.17 | AC158: 0 | AD158: 8.56 | AE158: 0 | AF158: 36.96 | AG158: 48.6 | AH158: 126 | AI158: 20.99 | AJ158: 10.29 | AK158: 1.17 | AL158: 0 | AM158: 8.56 | AO158: 41.01 | AP158: 47.2 | AQ158: 126 | AR158: 20.99 | AS158: 10.29 | AT158: 1.17 | AU158: 0 | AV158: 8.56 | AX158: 41.01 | AY158: 47.2 | AZ158: U09R10 | BA158: 158
A159: ="Result "&A148 -> Result U09 | D159: =IF(SoftwareType="Candidate",IF(COUNTIF(D154:D155,Pass)=2,Pass,Fail),IF(COUNTIF(D149:D158,Pass)=10,Pass,Fail)) -> Pass | E159: =AVERAGE(E149:E158) -> 40.898 | F159: =AVERAGE(F149:F158) -> 40.898 | G159: =IF(E159=0,0,(F159-E159)/E159) -> 0 | I159: =AVERAGE(I149:I158) -> 41.01 | J159: =AVERAGE(J149:J158) -> 41.01 | K159: =AVERAGE(K149:K158) -> 41.01 | L159: 0 | M159: Min | N159: =MIN(L149:L158) -> 0 | O159: =AVERAGE(O149:O158) -> 0.112 | P159: Ave | Q159: =AVERAGE(Q149:Q158) -> 21.1 | R159: =AVERAGE(R149:R158) -> 10.068 | S159: =AVERAGE(S149:S158) -> 1.17 | U159: =AVERAGE(U149:U158) -> 8.56 | V159: =AVERAGE(V149:V158) -> 0 | W159: =AVERAGE(W149:W158) -> 40.898 | X159: =AVERAGE(X143:X158) -> 47.37680849 | Y159: Ave | Z159: =AVERAGE(Z149:Z158) -> 21.1 | AA159: =AVERAGE(AA149:AA158) -> 10.068 | AB159: =AVERAGE(AB149:AB158) -> 1.17 | AC159: =AVERAGE(AC149:AC158) -> 0 | AD159: =AVERAGE(AD149:AD158) -> 8.56 | AF159: =AVERAGE(AF149:AF158) -> 40.898 | AG159: =AVERAGE(AG143:AG158) -> 47.37680849 | AI159: =AVERAGE(AI149:AI158) -> 20.99 | AJ159: =AVERAGE(AJ149:AJ158) -> 10.29 | AK159: =AVERAGE(AK149:AK158) -> 1.17 | AL159: =AVERAGE(AL149:AL158) -> 0 | AM159: =AVERAGE(AM149:AM158) -> 8.56 | AO159: =AVERAGE(AO149:AO158) -> 41.01 | AP159: =AVERAGE(AP143:AP158) -> 47.22834366 | AR159: =AVERAGE(AR149:AR158) -> 20.99 | AS159: =AVERAGE(AS149:AS158) -> 10.29 | AT159: =AVERAGE(AT149:AT158) -> 1.17 | AU159: =AVERAGE(AU149:AU158) -> 0 | AV159: =AVERAGE(AV149:AV158) -> 8.56 | AX159: =AVERAGE(AX149:AX158) -> 41.01 | AY159: =AVERAGE(AY143:AY158) -> 47.22834366
C160: Page 5 of 7 | L160: Ave | M160: Max | N160: =MAX(L149:L158) -> 0 | Y160: % Diff | Z160: =(Z159-Q159)/Q159 -> 0 | AA160: =(AA159-R159)/R159 -> 0 | AB160: =(AB159-S159)/S159 -> 0 | AD160: =(AD159-U159)/U159 -> 0 | AF160: =(AF159-W159)/W159 -> 0
A161: U10 | B161: =VLOOKUP(A161,TestArray,2)&" in "&VLOOKUP(A161,TestArray,3)&" for Prototype "&VLOOKUP(A161,TestArray,4) -> Multi Family Water Heating in Zone 12 for Prototype P6960ft2 | I161: =VLOOKUP(A161,TestArray,21) -> Standard = Varies for this test
A162: =A161 -> U10 | B162: R01 | C162: =VLOOKUP(A162,TestArray,4+RIGHT(B162,2)) -> 8 Storage | D162: =IF(AND(H162=Yes,M162=Yes),Pass,Fail) -> Pass | E162: =IF(Units="EDR",X162,W162) -> 59.22 | F162: =IF(Units="EDR",AG162,AF162) -> 59.22 | G162: =IF(E162=0,0,(F162-E162)/E162) -> 0 | H162: =IF(AND((E162-Tolerance<=F162),(E162+Tolerance>=F162)),Yes,No) -> Yes | I162: =IF(Units="EDR",J162,INDIRECT(RefCol&INDEX(StandardArray,MATCH($N162,StandardList,0),2))) -> 54.37 | J162: =IF(Units="EDR",AP162,AO162) -> 54.37 | K162: =IF(Units="EDR",AY162,AX162) -> 54.37 | L162: =IF(I162=0,0,(K162-I162)/I162) -> 0 | M162: =IF(AND((I162-Tolerance<=K162),(I162+Tolerance>=K162),(J162-Tolerance<=K162),(J162+Tolerance>=K162)),Yes,No) -> Yes | N162: U06R12 | O162: =K162-F162 -> -4.85 | P162: =MATCH($A162&$B162,INDIRECT(P$2),0) -> 130 | Q162: =IF(Q$3=0,"",INDEX(INDIRECT(Q$1),$P162,Q$3)) -> 9.84 | R162: 21.17 | S162: 2.47 | T162: 0 | U162: 25.74 | V162: 0 | W162: =IF(TotalSum="No",INDEX(INDIRECT(W$1),$P162,W$3),SUM(Q162:V162)) -> 59.22 | X162: =IF(X$3=0,"",INDEX(INDIRECT(X$1),$P162,X$3)) -> 60.1 | Y162: =MATCH($A162&$B162,INDIRECT(Y$2),0) -> 130 | Z162: =IF(Z$3=0,"",INDEX(INDIRECT(Z$1),$Y162,Z$3)) -> 9.84 | AA162: 21.17 | AB162: 2.47 | AC162: 0 | AD162: 25.74 | AE162: 0 | AF162: =IF(TotalSum="No",INDEX(INDIRECT(AF$1),$Y162,AF$3),SUM(Z162:AE162)) -> 59.22 | AG162: =IF(AG$3=0,"",INDEX(INDIRECT(AG$1),$P162,AG$3)) -> 60.1 | AH162: =MATCH($A162&$B162,INDIRECT(AH$2),0) -> 130 | AI162: =IF(AI$3=0,"",INDEX(INDIRECT(AI$1),$AH162,AI$3)) -> 9.78 | AJ162: 26.66 | AK162: 2.47 | AL162: 0 | AM162: 15.46 | AO162: =IF(TotalSum="No",INDEX(INDIRECT(AO$1),$AH162,AO$3),SUM(AI162:AN162)) -> 54.37 | AP162: =IF(AP$3=0,"",INDEX(INDIRECT(AP$1),$P162,AP$3)) -> 57.9 | AQ162: =MATCH($A162&$B162,INDIRECT(AQ$2),0) -> 130 | AR162: =IF(AR$3=0,"",INDEX(INDIRECT(AR$1),$AQ162,AR$3)) -> 9.78 | AS162: 26.66 | AT162: 2.47 | AU162: 0 | AV162: 15.46 | AX162: =IF(TotalSum="No",INDEX(INDIRECT(AX$1),$AQ162,AX$3),SUM(AR162:AW162)) -> 54.37 | AY162: =IF(AY$3=0,"",INDEX(INDIRECT(AY$1),$P162,AY$3)) -> 57.9 | AZ162: =A162&B162 -> U10R01 | BA162: =ROW(AZ162) -> 162
A163: =A162 -> U10 | B163: R02 | C163: 8 Storage 2 Systems | D163: Pass | E163: 59.22 | F163: 59.22 | G163: 0 | H163: Yes | I163: 54.37 | J163: 54.37 | K163: 54.37 | L163: 0 | M163: Yes | N163: =N162 -> U06R12 | O163: -4.85 | P163: 131 | Q163: 9.84 | R163: 21.17 | S163: 2.47 | T163: 0 | U163: 25.74 | V163: 0 | W163: 59.22 | X163: 60.1 | Y163: 131 | Z163: 9.84 | AA163: 21.17 | AB163: 2.47 | AC163: 0 | AD163: 25.74 | AE163: 0 | AF163: 59.22 | AG163: 60.1 | AH163: 131 | AI163: 9.78 | AJ163: 26.66 | AK163: 2.47 | AL163: 0 | AM163: 15.46 | AO163: 54.37 | AP163: 57.9 | AQ163: 131 | AR163: 9.78 | AS163: 26.66 | AT163: 2.47 | AU163: 0 | AV163: 15.46 | AX163: 54.37 | AY163: 57.9 | AZ163: U10R02 | BA163: 163
A164: U10 | B164: R03 | C164: 8 LgStor | D164: Pass | E164: 65.97 | F164: 65.97 | G164: 0 | H164: Yes | I164: 54.37 | J164: 54.37 | K164: 54.37 | L164: 0 | M164: Yes | N164: =N163 -> U06R12 | O164: -11.6 | P164: 132 | Q164: 9.84 | R164: 21.17 | S164: 2.47 | T164: 0 | U164: 32.49 | V164: 0 | W164: 65.97 | X164: 63.2 | Y164: 132 | Z164: 9.84 | AA164: 21.17 | AB164: 2.47 | AC164: 0 | AD164: 32.49 | AE164: 0 | AF164: 65.97 | AG164: 63.2 | AH164: 132 | AI164: 9.78 | AJ164: 26.66 | AK164: 2.47 | AL164: 0 | AM164: 15.46 | AO164: 54.37 | AP164: 57.9 | AQ164: 132 | AR164: 9.78 | AS164: 26.66 | AT164: 2.47 | AU164: 0 | AV164: 15.46 | AX164: 54.37 | AY164: 57.9 | AZ164: U10R03 | BA164: 164
A165: U10 | B165: R04 | C165: 2 LgStor Central Solar | D165: =IF(AND(H165=Yes,M165=Yes),Pass,Fail) -> Pass | E165: 53.27 | F165: 53.27 | G165: 0 | H165: Yes | I165: 58.7 | J165: 58.7 | K165: 58.7 | L165: 0 | M165: Yes | N165: U10R04 | O165: 5.43 | P165: 133 | Q165: 9.84 | R165: 21.17 | S165: 2.47 | T165: 0 | U165: 19.79 | V165: 0 | W165: 53.27 | X165: 57.9 | Y165: 133 | Z165: 9.84 | AA165: 21.17 | AB165: 2.47 | AC165: 0 | AD165: 19.79 | AE165: 0 | AF165: 53.27 | AG165: 57.9 | AH165: 133 | AI165: 9.78 | AJ165: 26.66 | AK165: 2.47 | AL165: 0 | AM165: 19.79 | AO165: 58.7 | AP165: 60.4 | AQ165: 133 | AR165: 9.78 | AS165: 26.66 | AT165: 2.47 | AU165: 0 | AV165: 19.79 | AX165: 58.7 | AY165: 60.4 | AZ165: U10R04 | BA165: 165
A166: U10 | B166: R05 | C166: 2 LgStor Central Solar Recirc | D166: Pass | E166: 59.93 | F166: 59.93 | G166: 0 | H166: Yes | I166: 65.36 | J166: 65.36 | K166: 65.36 | L166: 0 | M166: Yes | N166: U10R05 | O166: 5.43 | P166: 134 | Q166: 9.84 | R166: 21.17 | S166: 2.47 | T166: 0 | U166: 26.45 | V166: 0 | W166: 59.93 | X166: 57.3 | Y166: 134 | Z166: 9.84 | AA166: 21.17 | AB166: 2.47 | AC166: 0 | AD166: 26.45 | AE166: 0 | AF166: 59.93 | AG166: 57.3 | AH166: 134 | AI166: 9.78 | AJ166: 26.66 | AK166: 2.47 | AL166: 0 | AM166: 26.45 | AO166: 65.36 | AP166: 59.7 | AQ166: 134 | AR166: 9.78 | AS166: 26.66 | AT166: 2.47 | AU166: 0 | AV166: 26.45 | AX166: 65.36 | AY166: 59.7 | AZ166: U10R05 | BA166: 166
A167: U10 | B167: R06 | C167: 2 LgStor Central Recirc | D167: Pass | E167: 64.68 | F167: 64.68 | G167: 0 | H167: Yes | I167: 65.36 | J167: 65.36 | K167: 65.36 | L167: 0 | M167: Yes | N167: U10R05 | O167: 0.68 | P167: 135 | Q167: 9.84 | R167: 21.17 | S167: 2.47 | T167: 0 | U167: 31.2 | V167: 0 | W167: 64.68 | X167: 59.3 | Y167: 135 | Z167: 9.84 | AA167: 21.17 | AB167: 2.47 | AC167: 0 | AD167: 31.2 | AE167: 0 | AF167: 64.68 | AG167: 59.3 | AH167: 135 | AI167: 9.78 | AJ167: 26.66 | AK167: 2.47 | AL167: 0 | AM167: 26.45 | AO167: 65.36 | AP167: 59.7 | AQ167: 135 | AR167: 9.78 | AS167: 26.66 | AT167: 2.47 | AU167: 0 | AV167: 26.45 | AX167: 65.36 | AY167: 59.7 | AZ167: U10R06 | BA167: 167
A168: U10 | B168: R07 | C168: 2 SmInstantant Central Solar | D168: Pass | E168: 49.72 | F168: 49.72 | G168: 0 | H168: Yes | I168: 55.15 | J168: 55.15 | K168: 55.15 | L168: 0 | M168: Yes | N168: U10R07 | O168: 5.43 | P168: 136 | Q168: 9.84 | R168: 21.17 | S168: 2.47 | T168: 0 | U168: 16.24 | V168: 0 | W168: 49.72 | X168: 57.6 | Y168: 136 | Z168: 9.84 | AA168: 21.17 | AB168: 2.47 | AC168: 0 | AD168: 16.24 | AE168: 0 | AF168: 49.72 | AG168: 57.6 | AH168: 136 | AI168: 9.78 | AJ168: 26.66 | AK168: 2.47 | AL168: 0 | AM168: 16.24 | AO168: 55.15 | AP168: 60.2 | AQ168: 136 | AR168: 9.78 | AS168: 26.66 | AT168: 2.47 | AU168: 0 | AV168: 16.24 | AX168: 55.15 | AY168: 60.2 | AZ168: U10R07 | BA168: 168
A169: U10 | B169: R08 | C169: 2 SmInstantant Central Solar Recirc | D169: Pass | E169: 56.67 | F169: 56.67 | G169: 0 | H169: Yes | I169: 62.1 | J169: 62.1 | K169: 62.1 | L169: 0 | M169: Yes | N169: U10R08 | O169: 5.43 | P169: 137 | Q169: 9.84 | R169: 21.17 | S169: 2.47 | T169: 0 | U169: 23.19 | V169: 0 | W169: 56.67 | X169: 56.8 | Y169: 137 | Z169: 9.84 | AA169: 21.17 | AB169: 2.47 | AC169: 0 | AD169: 23.19 | AE169: 0 | AF169: 56.67 | AG169: 56.8 | AH169: 137 | AI169: 9.78 | AJ169: 26.66 | AK169: 2.47 | AL169: 0 | AM169: 23.19 | AO169: 62.1 | AP169: 59.3 | AQ169: 137 | AR169: 9.78 | AS169: 26.66 | AT169: 2.47 | AU169: 0 | AV169: 23.19 | AX169: 62.1 | AY169: 59.3 | AZ169: U10R08 | BA169: 169
A170: U10 | B170: R09 | C170: 1 Indirect Central Solar | D170: Pass | E170: 56.04 | F170: 56.04 | G170: 0 | H170: Yes | I170: 60.8 | J170: 60.8 | K170: 60.8 | L170: 0 | M170: Yes | N170: U10R09 | O170: 4.76 | P170: 138 | Q170: 9.84 | R170: 21.17 | S170: 2.47 | T170: 0 | U170: 22.56 | V170: 0 | W170: 56.04 | X170: 57.7 | Y170: 138 | Z170: 9.84 | AA170: 21.17 | AB170: 2.47 | AC170: 0 | AD170: 22.56 | AE170: 0 | AF170: 56.04 | AG170: 57.7 | AH170: 138 | AI170: 9.78 | AJ170: 26.66 | AK170: 2.47 | AL170: 0 | AM170: 21.89 | AO170: 60.8 | AP170: 59.9 | AQ170: 138 | AR170: 9.78 | AS170: 26.66 | AT170: 2.47 | AU170: 0 | AV170: 21.89 | AX170: 60.8 | AY170: 59.9 | AZ170: U10R09 | BA170: 170
A171: U10 | B171: R10 | C171: 1 Indirect Central Solar Recirc | D171: Pass | E171: 63.12 | F171: 63.12 | G171: 0 | H171: Yes | I171: 67.87 | J171: 67.87 | K171: 67.87 | L171: 0 | M171: Yes | N171: U10R10 | O171: 4.75 | P171: 139 | Q171: 9.84 | R171: 21.17 | S171: 2.47 | T171: 0 | U171: 29.64 | V171: 0 | W171: 63.12 | X171: 57 | Y171: 139 | Z171: 9.84 | AA171: 21.17 | AB171: 2.47 | AC171: 0 | AD171: 29.64 | AE171: 0 | AF171: 63.12 | AG171: 57 | AH171: 139 | AI171: 9.78 | AJ171: 26.66 | AK171: 2.47 | AL171: 0 | AM171: 28.96 | AO171: 67.87 | AP171: 59 | AQ171: 139 | AR171: 9.78 | AS171: 26.66 | AT171: 2.47 | AU171: 0 | AV171: 28.96 | AX171: 67.87 | AY171: 59 | AZ171: U10R10 | BA171: 171
A172: ="Result "&A161 -> Result U10 | D172: =IF(COUNTIF(D162:D171,Pass)=10,Pass,Fail) -> Pass | E172: =AVERAGE(E162:E171) -> 58.784 | F172: =AVERAGE(F162:F171) -> 58.784 | G172: =IF(E172=0,0,(F172-E172)/E172) -> 0 | I172: =AVERAGE(I162:I171) -> 59.845 | J172: =AVERAGE(J162:J171) -> 59.845 | K172: =AVERAGE(K162:K171) -> 59.845 | L172: 0 | M172: Min | N172: =MIN(L162:L171) -> 0 | O172: =AVERAGE(O162:O171) -> 1.061 | P172: Ave | Q172: =AVERAGE(Q162:Q171) -> 9.84 | R172: =AVERAGE(R162:R171) -> 21.17 | S172: =AVERAGE(S162:S171) -> 2.47 | U172: =AVERAGE(U162:U171) -> 25.304 | V172: =AVERAGE(V162:V171) -> 0 | W172: =AVERAGE(W162:W171) -> 58.784 | X172: =AVERAGE(X156:X171) -> 55.72691489 | Y172: Ave | Z172: =AVERAGE(Z162:Z171) -> 9.84 | AA172: =AVERAGE(AA162:AA171) -> 21.17 | AB172: =AVERAGE(AB162:AB171) -> 2.47 | AC172: =AVERAGE(AC162:AC171) -> 0 | AD172: =AVERAGE(AD162:AD171) -> 25.304 | AF172: =AVERAGE(AF162:AF171) -> 58.784 | AG172: =AVERAGE(AG156:AG171) -> 55.72691489 | AI172: =AVERAGE(AI162:AI171) -> 9.78 | AJ172: =AVERAGE(AJ162:AJ171) -> 26.66 | AK172: =AVERAGE(AK162:AK171) -> 2.47 | AL172: =AVERAGE(AL162:AL171) -> 0 | AM172: =AVERAGE(AM162:AM171) -> 20.935 | AO172: =AVERAGE(AO162:AO171) -> 59.845 | AP172: =AVERAGE(AP156:AP171) -> 55.76631026 | AR172: =AVERAGE(AR162:AR171) -> 9.78 | AS172: =AVERAGE(AS162:AS171) -> 26.66 | AT172: =AVERAGE(AT162:AT171) -> 2.47 | AU172: =AVERAGE(AU162:AU171) -> 0 | AV172: =AVERAGE(AV162:AV171) -> 20.935 | AX172: =AVERAGE(AX162:AX171) -> 59.845 | AY172: =AVERAGE(AY156:AY171) -> 55.76631026
L173: Ave | M173: Max | N173: =MAX(L162:L171) -> 0 | Y173: % Diff | Z173: =(Z172-Q172)/Q172 -> 0 | AA173: =(AA172-R172)/R172 -> 0 | AB173: =(AB172-S172)/S172 -> 0 | AD173: =(AD172-U172)/U172 -> 0 | AF173: =(AF172-W172)/W172 -> 0
A174: U11 | B174: =VLOOKUP(A174,TestArray,2)&" in "&VLOOKUP(A174,TestArray,3)&" for Prototype "&VLOOKUP(A174,TestArray,4) -> Source Energy in Zone 12 for Prototype P2100ft2 | I174: =VLOOKUP(A174,TestArray,21) -> Standard = Varies for this test
A175: =A174 -> U11 | B175: R01 | C175: =VLOOKUP(A175,TestArray,4+RIGHT(B175,2)) -> Package | D175: =IF(AND(H175=Yes,M175=Yes),Pass,Fail) -> Pass | E175: =IF(Units="EDR",X175,W175) -> 36.96 | F175: =IF(Units="EDR",AG175,AF175) -> 36.96 | G175: =IF(E175=0,0,(F175-E175)/E175) -> 0 | H175: =IF(AND((E175-Tolerance<=F175),(E175+Tolerance>=F175)),Yes,No) -> Yes | I175: =IF(Units="EDR",J175,INDIRECT(RefCol&INDEX(StandardArray,MATCH($N175,StandardList,0),2))) -> 41.01 | J175: =IF(Units="EDR",AP175,AO175) -> 41.01 | K175: =IF(Units="EDR",AY175,AX175) -> 41.01 | L175: =IF(I175=0,0,(K175-I175)/I175) -> 0 | M175: =IF(AND((I175-Tolerance<=K175),(I175+Tolerance>=K175),(J175-Tolerance<=K175),(J175+Tolerance>=K175)),Yes,No) -> Yes | N175: U04R12 | O175: =K175-F175 -> 4.05 | P175: =MATCH($A175&$B175,INDIRECT(P$2),0) -> 140 | Q175: =IF(Q$3=0,"",INDEX(INDIRECT(Q$1),$P175,Q$3)) -> 19.93 | R175: 7.3 | S175: 1.17 | T175: 0 | U175: 8.56 | V175: 0 | W175: =IF(TotalSum="No",INDEX(INDIRECT(W$1),$P175,W$3),SUM(Q175:V175)) -> 36.96 | X175: =IF(X$3=0,"",INDEX(INDIRECT(X$1),$P175,X$3)) -> 44.8 | Y175: =MATCH($A175&$B175,INDIRECT(Y$2),0) -> 140 | Z175: =IF(Z$3=0,"",INDEX(INDIRECT(Z$1),$Y175,Z$3)) -> 19.93 | AA175: 7.3 | AB175: 1.17 | AC175: 0 | AD175: 8.56 | AE175: 0 | AF175: =IF(TotalSum="No",INDEX(INDIRECT(AF$1),$Y175,AF$3),SUM(Z175:AE175)) -> 36.96 | AG175: =IF(AG$3=0,"",INDEX(INDIRECT(AG$1),$P175,AG$3)) -> 44.8 | AH175: =MATCH($A175&$B175,INDIRECT(AH$2),0) -> 140 | AI175: =IF(AI$3=0,"",INDEX(INDIRECT(AI$1),$AH175,AI$3)) -> 20.99 | AJ175: 10.29 | AK175: 1.17 | AL175: 0 | AM175: 8.56 | AO175: =IF(TotalSum="No",INDEX(INDIRECT(AO$1),$AH175,AO$3),SUM(AI175:AN175)) -> 41.01 | AP175: =IF(AP$3=0,"",INDEX(INDIRECT(AP$1),$P175,AP$3)) -> 47.2 | AQ175: =MATCH($A175&$B175,INDIRECT(AQ$2),0) -> 140 | AR175: =IF(AR$3=0,"",INDEX(INDIRECT(AR$1),$AQ175,AR$3)) -> 20.99 | AS175: 10.29 | AT175: 1.17 | AU175: 0 | AV175: 8.56 | AX175: =IF(TotalSum="No",INDEX(INDIRECT(AX$1),$AQ175,AX$3),SUM(AR175:AW175)) -> 41.01 | AY175: =IF(AY$3=0,"",INDEX(INDIRECT(AY$1),$P175,AY$3)) -> 47.2 | AZ175: =A175&B175 -> U11R01 | BA175: =ROW(AZ175) -> 175
A176: =A175 -> U11 | B176: R02 | C176: Package No Natural Gas | D176: Pass | E176: 62.1 | F176: 62.1 | G176: 0 | H176: Yes | I176: 66.92 | J176: 66.92 | K176: 66.92 | L176: 0 | M176: Yes | N176: U11R02 | O176: 4.82 | P176: 141 | Q176: 37.05 | R176: 7.13 | S176: 1.17 | T176: 0 | U176: 16.75 | V176: 0 | W176: 62.1 | X176: 47.9 | Y176: 141 | Z176: 37.05 | AA176: 7.13 | AB176: 1.17 | AC176: 0 | AD176: 16.75 | AE176: 0 | AF176: 62.1 | AG176: 47.9 | AH176: 141 | AI176: 38.9 | AJ176: 10.1 | AK176: 1.17 | AL176: 0 | AM176: 16.75 | AO176: 66.92 | AP176: 50 | AQ176: 141 | AR176: 38.9 | AS176: 10.1 | AT176: 1.17 | AU176: 0 | AV176: 16.75 | AX176: 66.92 | AY176: 50 | AZ176: U11R02 | BA176: 176
A177: U11 | B177: R03 | C177: Electric DHW | D177: Pass | E177: 54.73 | F177: 54.73 | G177: 0 | H177: Yes | I177: 41.01 | J177: 41.01 | K177: 41.01 | L177: 0 | M177: Yes | N177: U04R12 | O177: -13.72 | P177: 142 | Q177: 19.91 | R177: 7.32 | S177: 1.17 | T177: 0 | U177: 26.33 | V177: 0 | W177: 54.73 | X177: 55 | Y177: 142 | Z177: 19.91 | AA177: 7.32 | AB177: 1.17 | AC177: 0 | AD177: 26.33 | AE177: 0 | AF177: 54.73 | AG177: 55 | AH177: 142 | AI177: 20.99 | AJ177: 10.29 | AK177: 1.17 | AL177: 0 | AM177: 8.56 | AO177: 41.01 | AP177: 47.3 | AQ177: 142 | AR177: 20.99 | AS177: 10.29 | AT177: 1.17 | AU177: 0 | AV177: 8.56 | AX177: 41.01 | AY177: 47.3 | AZ177: U11R03 | BA177: 177
A178: U11 | B178: R04 | C178: Electric DHW no Natural Gas | D178: Pass | E178: 71.65 | F178: 71.65 | G178: 0 | H178: Yes | I178: 66.92 | J178: 66.92 | K178: 66.92 | L178: 0 | M178: Yes | N178: U11R02 | O178: -4.73 | P178: 143 | Q178: 37 | R178: 7.15 | S178: 1.17 | T178: 0 | U178: 26.33 | V178: 0 | W178: 71.65 | X178: 58.6 | Y178: 143 | Z178: 37 | AA178: 7.15 | AB178: 1.17 | AC178: 0 | AD178: 26.33 | AE178: 0 | AF178: 71.65 | AG178: 58.6 | AH178: 143 | AI178: 38.9 | AJ178: 10.1 | AK178: 1.17 | AL178: 0 | AM178: 16.75 | AO178: 66.92 | AP178: 56.4 | AQ178: 143 | AR178: 38.9 | AS178: 10.1 | AT178: 1.17 | AU178: 0 | AV178: 16.75 | AX178: 66.92 | AY178: 56.4 | AZ178: U11R04 | BA178: 178
A179: U11 | B179: R05 | C179: Heatpump DHW | D179: Pass | E179: 38.34 | F179: 38.34 | G179: 0 | H179: Yes | I179: 41.01 | J179: 41.01 | K179: 41.01 | L179: 0 | M179: Yes | N179: U04R12 | O179: 2.67 | P179: 144 | Q179: 20.17 | R179: 7.11 | S179: 1.17 | T179: 0 | U179: 9.89 | V179: 0 | W179: 38.34 | X179: 45.7 | Y179: 144 | Z179: 20.17 | AA179: 7.11 | AB179: 1.17 | AC179: 0 | AD179: 9.89 | AE179: 0 | AF179: 38.34 | AG179: 45.7 | AH179: 144 | AI179: 20.99 | AJ179: 10.29 | AK179: 1.17 | AL179: 0 | AM179: 8.56 | AO179: 41.01 | AP179: 47.3 | AQ179: 144 | AR179: 20.99 | AS179: 10.29 | AT179: 1.17 | AU179: 0 | AV179: 8.56 | AX179: 41.01 | AY179: 47.3 | AZ179: U11R05 | BA179: 179
A180: U11 | B180: R06 | C180: Heatpump DHW no Natural Gas | D180: Pass | E180: 55.49 | F180: 55.49 | G180: 0 | H180: Yes | I180: 66.92 | J180: 66.92 | K180: 66.92 | L180: 0 | M180: Yes | N180: =N178 -> U11R02 | O180: 11.43 | P180: 145 | Q180: 37.49 | R180: 6.94 | S180: 1.17 | T180: 0 | U180: 9.89 | V180: 0 | W180: 55.49 | X180: 50.9 | Y180: 145 | Z180: 37.49 | AA180: 6.94 | AB180: 1.17 | AC180: 0 | AD180: 9.89 | AE180: 0 | AF180: 55.49 | AG180: 50.9 | AH180: 145 | AI180: 38.9 | AJ180: 10.1 | AK180: 1.17 | AL180: 0 | AM180: 16.75 | AO180: 66.92 | AP180: 56.4 | AQ180: 145 | AR180: 38.9 | AS180: 10.1 | AT180: 1.17 | AU180: 0 | AV180: 16.75 | AX180: 66.92 | AY180: 56.4 | AZ180: U11R06 | BA180: 180
A181: U11 | B181: R07 | C181: Heatpump HVAC | D181: Pass | E181: 35.76 | F181: 35.76 | G181: 0 | H181: Yes | I181: 40.08 | J181: 40.08 | K181: 40.08 | L181: 0 | M181: Yes | N181: U11R07 | O181: 4.32 | P181: 146 | Q181: 18.73 | R181: 7.3 | S181: 1.17 | T181: 0 | U181: 8.56 | V181: 0 | W181: 35.76 | X181: 44.3 | Y181: 146 | Z181: 18.73 | AA181: 7.3 | AB181: 1.17 | AC181: 0 | AD181: 8.56 | AE181: 0 | AF181: 35.76 | AG181: 44.3 | AH181: 146 | AI181: 20.06 | AJ181: 10.29 | AK181: 1.17 | AL181: 0 | AM181: 8.56 | AO181: 40.08 | AP181: 46.8 | AQ181: 146 | AR181: 20.06 | AS181: 10.29 | AT181: 1.17 | AU181: 0 | AV181: 8.56 | AX181: 40.08 | AY181: 46.8 | AZ181: U11R07 | BA181: 181
A182: U11 | B182: R08 | C182: Heatpump HVAC no Natural Gas | D182: Pass | E182: 43.86 | F182: 43.86 | G182: 0 | H182: Yes | I182: 48.16 | J182: 48.16 | K182: 48.16 | L182: 0 | M182: Yes | N182: U11R08 | O182: 4.3 | P182: 147 | Q182: 18.81 | R182: 7.13 | S182: 1.17 | T182: 0 | U182: 16.75 | V182: 0 | W182: 43.86 | X182: 45.7 | Y182: 147 | Z182: 18.81 | AA182: 7.13 | AB182: 1.17 | AC182: 0 | AD182: 16.75 | AE182: 0 | AF182: 43.86 | AG182: 45.7 | AH182: 147 | AI182: 20.14 | AJ182: 10.1 | AK182: 1.17 | AL182: 0 | AM182: 16.75 | AO182: 48.16 | AP182: 47.8 | AQ182: 147 | AR182: 20.14 | AS182: 10.1 | AT182: 1.17 | AU182: 0 | AV182: 16.75 | AX182: 48.16 | AY182: 47.8 | AZ182: U11R08 | BA182: 182
A183: U11 | B183: R09 | C183: Heatpump HVAC & DHW | D183: Pass | E183: 37.11 | F183: 37.11 | G183: 0 | H183: Yes | I183: 40.08 | J183: 40.08 | K183: 40.08 | L183: 0 | M183: Yes | N183: =N181 -> U11R07 | O183: 2.97 | P183: 148 | Q183: 18.94 | R183: 7.11 | S183: 1.17 | T183: 0 | U183: 9.89 | V183: 0 | W183: 37.11 | X183: 45.1 | Y183: 148 | Z183: 18.94 | AA183: 7.11 | AB183: 1.17 | AC183: 0 | AD183: 9.89 | AE183: 0 | AF183: 37.11 | AG183: 45.1 | AH183: 148 | AI183: 20.06 | AJ183: 10.29 | AK183: 1.17 | AL183: 0 | AM183: 8.56 | AO183: 40.08 | AP183: 46.9 | AQ183: 148 | AR183: 20.06 | AS183: 10.29 | AT183: 1.17 | AU183: 0 | AV183: 8.56 | AX183: 40.08 | AY183: 46.9 | AZ183: U11R09 | BA183: 183
A184: U11 | B184: R10 | C184: Heatpump HVAC & DHW no Natural Gas | D184: Pass | E184: 37.02 | F184: 37.02 | G184: 0 | H184: Yes | I184: 48.16 | J184: 48.16 | K184: 48.16 | L184: 0 | M184: Yes | N184: U11R08 | O184: 11.14 | P184: 149 | Q184: 19.02 | R184: 6.94 | S184: 1.17 | T184: 0 | U184: 9.89 | V184: 0 | W184: 37.02 | X184: 48.6 | Y184: 149 | Z184: 19.02 | AA184: 6.94 | AB184: 1.17 | AC184: 0 | AD184: 9.89 | AE184: 0 | AF184: 37.02 | AG184: 48.6 | AH184: 149 | AI184: 20.14 | AJ184: 10.1 | AK184: 1.17 | AL184: 0 | AM184: 16.75 | AO184: 48.16 | AP184: 54.9 | AQ184: 149 | AR184: 20.14 | AS184: 10.1 | AT184: 1.17 | AU184: 0 | AV184: 16.75 | AX184: 48.16 | AY184: 54.9 | AZ184: U11R10 | BA184: 184
A185: ="Result "&A174 -> Result U11 | D185: =IF(COUNTIF(D175:D184,Pass)=10,Pass,Fail) -> Pass | E185: =AVERAGE(E175:E184) -> 47.302 | F185: =AVERAGE(F175:F184) -> 47.302 | G185: =IF(E185=0,0,(F185-E185)/E185) -> 0 | I185: =AVERAGE(I175:I184) -> 50.027 | J185: =AVERAGE(J175:J184) -> 50.027 | K185: =AVERAGE(K175:K184) -> 50.027 | L185: 0 | M185: Min | N185: =MIN(L175:L184) -> 0 | O185: =AVERAGE(O175:O184) -> 2.725 | P185: Ave | Q185: =AVERAGE(Q175:Q184) -> 24.705 | R185: =AVERAGE(R175:R184) -> 7.143 | S185: =AVERAGE(S175:S184) -> 1.17 | U185: =AVERAGE(U175:U184) -> 14.284 | V185: =AVERAGE(V175:V184) -> 0 | W185: =AVERAGE(W175:W184) -> 47.302 | X185: =AVERAGE(X169:X184) -> 50.98763678 | Y185: Ave | Z185: =AVERAGE(Z175:Z184) -> 24.705 | AA185: =AVERAGE(AA175:AA184) -> 7.143 | AB185: =AVERAGE(AB175:AB184) -> 1.17 | AC185: =AVERAGE(AC175:AC184) -> 0 | AD185: =AVERAGE(AD175:AD184) -> 14.284 | AF185: =AVERAGE(AF175:AF184) -> 47.302 | AG185: =AVERAGE(AG169:AG184) -> 50.98763678 | AI185: =AVERAGE(AI175:AI184) -> 26.007 | AJ185: =AVERAGE(AJ175:AJ184) -> 10.195 | AK185: =AVERAGE(AK175:AK184) -> 1.17 | AL185: =AVERAGE(AL175:AL184) -> 0 | AM185: =AVERAGE(AM175:AM184) -> 12.655 | AO185: =AVERAGE(AO175:AO184) -> 50.027 | AP185: =AVERAGE(AP169:AP184) -> 52.49759359 | AR185: =AVERAGE(AR175:AR184) -> 26.007 | AS185: =AVERAGE(AS175:AS184) -> 10.195 | AT185: =AVERAGE(AT175:AT184) -> 1.17 | AU185: =AVERAGE(AU175:AU184) -> 0 | AV185: =AVERAGE(AV175:AV184) -> 12.655 | AX185: =AVERAGE(AX175:AX184) -> 50.027 | AY185: =AVERAGE(AY169:AY184) -> 52.49759359
L186: Ave | M186: Max | N186: =MAX(L175:L184) -> 0 | Y186: % Diff | Z186: =(Z185-Q185)/Q185 -> 0 | AA186: =(AA185-R185)/R185 -> 0 | AB186: =(AB185-S185)/S185 -> 0 | AD186: =(AD185-U185)/U185 -> 0 | AF186: =(AF185-W185)/W185 -> 0
A187: U12 | B187: =VLOOKUP(A187,TestArray,2)&" in "&VLOOKUP(A187,TestArray,3)&" for Prototype "&VLOOKUP(A187,TestArray,4) -> E+A+A Base & Windows in Zone 12 for Prototype P1665ft2 | I187: =VLOOKUP(A187,TestArray,21) -> Standard = Varies for this test
A188: =A187 -> U12 | B188: R01 | C188: =VLOOKUP(A188,TestArray,4+RIGHT(B188,2)) -> E 1440ft2 as New Construction | D188: =IF(ConstructionType="New","n/a",IF(AND(H188=Yes,M188=Yes),Pass,Fail)) -> Pass | E188: =IF(Units="EDR",0,W188) -> 238.18 | F188: =IF(Units="EDR",0,AF188) -> 238.18 | G188: =IF(E188=0,0,(F188-E188)/E188) -> 0 | H188: =IF(AND((E188-Tolerance<=F188),(E188+Tolerance>=F188)),Yes,No) -> Yes | I188: =IF(Units="EDR",0,INDIRECT(RefCol&INDEX(StandardArray,MATCH($N188,StandardList,0),2))) -> 42.95 | J188: =IF(Units="EDR",0,AO188) -> 42.95 | K188: =IF(Units="EDR",0,AX188) -> 42.95 | L188: =IF(I188=0,0,(K188-I188)/I188) -> 0 | M188: =IF(AND((I188-Tolerance<=K188),(I188+Tolerance>=K188),(J188-Tolerance<=K188),(J188+Tolerance>=K188)),Yes,No) -> Yes | N188: U12R01 | O188: =K188-F188 -> -195.23 | P188: =MATCH($A188&$B188,INDIRECT(P$2),0) -> 150 | Q188: =IF(Q$3=0,"",INDEX(INDIRECT(Q$1),$P188,Q$3)) -> 61.74 | R188: 156.73 | S188: 1.48 | T188: 0 | U188: 18.23 | V188: 0 | W188: =IF(TotalSum="No",INDEX(INDIRECT(W$1),$P188,W$3),SUM(Q188:V188)) -> 238.18 | X188: =IF(X$3=0,"",INDEX(INDIRECT(X$1),$P188,X$3)) -> 143.3 | Y188: =MATCH($A188&$B188,INDIRECT(Y$2),0) -> 150 | Z188: =IF(Z$3=0,"",INDEX(INDIRECT(Z$1),$Y188,Z$3)) -> 61.74 | AA188: 156.73 | AB188: 1.48 | AC188: 0 | AD188: 18.23 | AE188: 0 | AF188: =IF(TotalSum="No",INDEX(INDIRECT(AF$1),$Y188,AF$3),SUM(Z188:AE188)) -> 238.18 | AG188: =IF(AG$3=0,"",INDEX(INDIRECT(AG$1),$P188,AG$3)) -> 143.3 | AH188: =MATCH($A188&$B188,INDIRECT(AH$2),0) -> 150 | AI188: =IF(AI$3=0,"",INDEX(INDIRECT(AI$1),$AH188,AI$3)) -> 19.09 | AJ188: 10.3 | AK188: 1.48 | AL188: 0 | AM188: 12.08 | AO188: =IF(TotalSum="No",INDEX(INDIRECT(AO$1),$AH188,AO$3),SUM(AI188:AN188)) -> 42.95 | AP188: =IF(AP$3=0,"",INDEX(INDIRECT(AP$1),$P188,AP$3)) -> 48.2 | AQ188: =MATCH($A188&$B188,INDIRECT(AQ$2),0) -> 150 | AR188: =IF(AR$3=0,"",INDEX(INDIRECT(AR$1),$AQ188,AR$3)) -> 19.09 | AS188: 10.3 | AT188: 1.48 | AU188: 0 | AV188: 12.08 | AX188: =IF(TotalSum="No",INDEX(INDIRECT(AX$1),$AQ188,AX$3),SUM(AR188:AW188)) -> 42.95 | AY188: =IF(AY$3=0,"",INDEX(INDIRECT(AY$1),$P188,AY$3)) -> 48.2 | AZ188: =A188&B188 -> U12R01 | BA188: =ROW(AZ188) -> 188
A189: =A188 -> U12 | B189: R02 | C189: E 1440ft2 as Addition/Alteration | D189: Pass | E189: 240.87 | F189: 240.87 | G189: 0 | H189: Yes | I189: 240.87 | J189: 240.87 | K189: 240.87 | L189: 0 | M189: Yes | N189: U12R02 | O189: 0 | P189: 151 | Q189: 60.09 | R189: 162.55 | S189: 0 | T189: 0 | U189: 18.23 | V189: 0 | W189: 240.87 | X189: 0 | Y189: 151 | Z189: 60.09 | AA189: 162.55 | AB189: 0 | AC189: 0 | AD189: 18.23 | AE189: 0 | AF189: 240.87 | AG189: 0 | AH189: 151 | AI189: 60.09 | AJ189: 162.55 | AK189: 0 | AL189: 0 | AM189: 18.23 | AO189: 240.87 | AP189: 167.2 | AQ189: 151 | AR189: 60.09 | AS189: 162.55 | AT189: 0 | AU189: 0 | AV189: 18.23 | AX189: 240.87 | AY189: 167.2 | AZ189: U12R02 | BA189: 189
A190: U12 | B190: R03 | C190: EA 1665ft2 | D190: Pass | E190: 211.74 | F190: 211.74 | G190: 0 | H190: Yes | I190: 207.93 | J190: 207.93 | K190: 207.93 | L190: 0 | M190: Yes | N190: U12R03 | O190: -3.81 | P190: 152 | Q190: 57.32 | R190: 138.53 | S190: 0 | T190: 0 | U190: 15.89 | V190: 0 | W190: 211.74 | X190: 0 | Y190: 152 | Z190: 57.32 | AA190: 138.53 | AB190: 0 | AC190: 0 | AD190: 15.89 | AE190: 0 | AF190: 211.74 | AG190: 0 | AH190: 152 | AI190: 56.64 | AJ190: 135.4 | AK190: 0 | AL190: 0 | AM190: 15.89 | AO190: 207.93 | AP190: 139.82 | AQ190: 152 | AR190: 56.64 | AS190: 135.4 | AT190: 0 | AU190: 0 | AV190: 15.89 | AX190: 207.93 | AY190: 139.82 | AZ190: U12R03 | BA190: 190
A191: U12 | B191: R04 | C191: EAA Ceiling R38 Verified | D191: Pass | E191: 185.88 | F191: 185.88 | G191: 0 | H191: Yes | I191: 207.93 | J191: 207.93 | K191: 207.93 | L191: 0 | M191: Yes | N191: U12R03 | O191: 22.05 | P191: 153 | Q191: 52.69 | R191: 117.3 | S191: 0 | T191: 0 | U191: 15.89 | V191: 0 | W191: 185.88 | X191: 0 | Y191: 153 | Z191: 52.69 | AA191: 117.3 | AB191: 0 | AC191: 0 | AD191: 15.89 | AE191: 0 | AF191: 185.88 | AG191: 0 | AH191: 153 | AI191: 56.64 | AJ191: 135.4 | AK191: 0 | AL191: 0 | AM191: 15.89 | AO191: 207.93 | AP191: 139.82 | AQ191: 153 | AR191: 56.64 | AS191: 135.4 | AT191: 0 | AU191: 0 | AV191: 15.89 | AX191: 207.93 | AY191: 139.82 | AZ191: U12R04 | BA191: 191
A192: U12 | B192: R05 | C192: EAA Ceiling R38 Verified Wind U0.41/S0.36 | D192: Pass | E192: 151.45 | F192: 151.45 | G192: 0 | H192: Yes | I192: 174.74 | J192: 174.74 | K192: 174.74 | L192: 0 | M192: Yes | N192: U12R05 | O192: 23.29 | P192: 154 | Q192: 47.94 | R192: 87.62 | S192: 0 | T192: 0 | U192: 15.89 | V192: 0 | W192: 151.45 | X192: 0 | Y192: 154 | Z192: 47.94 | AA192: 87.62 | AB192: 0 | AC192: 0 | AD192: 15.89 | AE192: 0 | AF192: 151.45 | AG192: 0 | AH192: 154 | AI192: 51.66 | AJ192: 107.19 | AK192: 0 | AL192: 0 | AM192: 15.89 | AO192: 174.74 | AP192: 111.23 | AQ192: 154 | AR192: 51.66 | AS192: 107.19 | AT192: 0 | AU192: 0 | AV192: 15.89 | AX192: 174.74 | AY192: 111.23 | AZ192: U12R05 | BA192: 192
A193: U12 | B193: R06 | C193: EAA Ceiling R38 Verified Wind U0.41/S0.36 Verified | D193: Pass | E193: 151.45 | F193: 151.45 | G193: 0 | H193: Yes | I193: 174.74 | J193: 174.74 | K193: 174.74 | L193: 0 | M193: Yes | N193: =N192 -> U12R05 | O193: 23.29 | P193: 155 | Q193: 47.94 | R193: 87.62 | S193: 0 | T193: 0 | U193: 15.89 | V193: 0 | W193: 151.45 | X193: 0 | Y193: 155 | Z193: 47.94 | AA193: 87.62 | AB193: 0 | AC193: 0 | AD193: 15.89 | AE193: 0 | AF193: 151.45 | AG193: 0 | AH193: 155 | AI193: 51.66 | AJ193: 107.19 | AK193: 0 | AL193: 0 | AM193: 15.89 | AO193: 174.74 | AP193: 111.23 | AQ193: 155 | AR193: 51.66 | AS193: 107.19 | AT193: 0 | AU193: 0 | AV193: 15.89 | AX193: 174.74 | AY193: 111.23 | AZ193: U12R06 | BA193: 193
A194: U12 | B194: R07 | C194: EAA Ceiling R38 Verified Wind U0.40/S0.35 | D194: Pass | E194: 150.67 | F194: 150.67 | G194: 0 | H194: Yes | I194: 174.74 | J194: 174.74 | K194: 174.74 | L194: 0 | M194: Yes | N194: =N192 -> U12R05 | O194: 24.07 | P194: 156 | Q194: 47.91 | R194: 86.87 | S194: 0 | T194: 0 | U194: 15.89 | V194: 0 | W194: 150.67 | X194: 0 | Y194: 156 | Z194: 47.91 | AA194: 86.87 | AB194: 0 | AC194: 0 | AD194: 15.89 | AE194: 0 | AF194: 150.67 | AG194: 0 | AH194: 156 | AI194: 51.66 | AJ194: 107.19 | AK194: 0 | AL194: 0 | AM194: 15.89 | AO194: 174.74 | AP194: 111.23 | AQ194: 156 | AR194: 51.66 | AS194: 107.19 | AT194: 0 | AU194: 0 | AV194: 15.89 | AX194: 174.74 | AY194: 111.23 | AZ194: U12R07 | BA194: 194
A195: U12 | B195: R08 | C195: EAA Ceiling R38 Verified Wind U0.40/S0.35 Verified | D195: Pass | E195: 150.67 | F195: 150.67 | G195: 0 | H195: Yes | I195: 207.93 | J195: 207.93 | K195: 207.93 | L195: 0 | M195: Yes | N195: =N191 -> U12R03 | O195: 57.26 | P195: 157 | Q195: 47.91 | R195: 86.87 | S195: 0 | T195: 0 | U195: 15.89 | V195: 0 | W195: 150.67 | X195: 0 | Y195: 157 | Z195: 47.91 | AA195: 86.87 | AB195: 0 | AC195: 0 | AD195: 15.89 | AE195: 0 | AF195: 150.67 | AG195: 0 | AH195: 157 | AI195: 56.64 | AJ195: 135.4 | AK195: 0 | AL195: 0 | AM195: 15.89 | AO195: 207.93 | AP195: 139.82 | AQ195: 157 | AR195: 56.64 | AS195: 135.4 | AT195: 0 | AU195: 0 | AV195: 15.89 | AX195: 207.93 | AY195: 139.82 | AZ195: U12R08 | BA195: 195
A196: U12 | B196: R09 | C196: EAA Ceiling R38 Verified Wind U0.39/S0.34 | D196: Pass | E196: 149.99 | F196: 149.99 | G196: 0 | H196: Yes | I196: 174.74 | J196: 174.74 | K196: 174.74 | L196: 0 | M196: Yes | N196: =N192 -> U12R05 | O196: 24.75 | P196: 158 | Q196: 47.88 | R196: 86.22 | S196: 0 | T196: 0 | U196: 15.89 | V196: 0 | W196: 149.99 | X196: 0 | Y196: 158 | Z196: 47.88 | AA196: 86.22 | AB196: 0 | AC196: 0 | AD196: 15.89 | AE196: 0 | AF196: 149.99 | AG196: 0 | AH196: 158 | AI196: 51.66 | AJ196: 107.19 | AK196: 0 | AL196: 0 | AM196: 15.89 | AO196: 174.74 | AP196: 111.23 | AQ196: 158 | AR196: 51.66 | AS196: 107.19 | AT196: 0 | AU196: 0 | AV196: 15.89 | AX196: 174.74 | AY196: 111.23 | AZ196: U12R09 | BA196: 196
A197: U12 | B197: R10 | C197: EAA Ceiling R38 Verified Wind U0.39/S0.34 Verified | D197: Pass | E197: 149.99 | F197: 149.99 | G197: 0 | H197: Yes | I197: 207.93 | J197: 207.93 | K197: 207.93 | L197: 0 | M197: Yes | N197: =N191 -> U12R03 | O197: 57.94 | P197: 159 | Q197: 47.88 | R197: 86.22 | S197: 0 | T197: 0 | U197: 15.89 | V197: 0 | W197: 149.99 | X197: 0 | Y197: 159 | Z197: 47.88 | AA197: 86.22 | AB197: 0 | AC197: 0 | AD197: 15.89 | AE197: 0 | AF197: 149.99 | AG197: 0 | AH197: 159 | AI197: 56.64 | AJ197: 135.4 | AK197: 0 | AL197: 0 | AM197: 15.89 | AO197: 207.93 | AP197: 139.82 | AQ197: 159 | AR197: 56.64 | AS197: 135.4 | AT197: 0 | AU197: 0 | AV197: 15.89 | AX197: 207.93 | AY197: 139.82 | AZ197: U12R10 | BA197: 197
A198: ="Result "&A187 -> Result U12 | D198: =IF(ConstructionType="New","n/a",IF(COUNTIF(D188:D197,Pass)=10,Pass,Fail)) -> Pass | E198: =IF(Units="EDR","n/a",AVERAGE(E188:E197)) -> 178.089 | F198: =IF(Units="EDR","n/a",AVERAGE(F188:F197)) -> 178.089 | G198: =IF(Units="EDR","n/a",IF(E198=0,0,(F198-E198)/E198)) -> 0 | I198: =IF(Units="EDR","n/a",AVERAGE(I188:I197)) -> 181.45 | J198: =IF(Units="EDR","n/a",AVERAGE(J188:J197)) -> 181.45 | K198: =IF(Units="EDR","n/a",AVERAGE(K188:K197)) -> 181.45 | L198: =IF(Units="EDR","n/a",IF(J198=0,0,(K198-J198)/J198)) -> 0 | M198: Min | N198: =MIN(L188:L197) -> 0 | O198: =AVERAGE(O188:O197) -> 3.361 | P198: Ave | Q198: =AVERAGE(Q188:Q197) -> 51.93 | R198: =AVERAGE(R188:R197) -> 109.653 | S198: =AVERAGE(S188:S197) -> 0.148 | U198: =AVERAGE(U188:U197) -> 16.358 | V198: =AVERAGE(V188:V197) -> 0 | W198: =AVERAGE(W188:W197) -> 178.089 | X198: =AVERAGE(X182:X197) -> 23.8348312 | Y198: Ave | Z198: =AVERAGE(Z188:Z197) -> 51.93 | AA198: =AVERAGE(AA188:AA197) -> 109.653 | AB198: =AVERAGE(AB188:AB197) -> 0.148 | AC198: =AVERAGE(AC188:AC197) -> 0 | AD198: =AVERAGE(AD188:AD197) -> 16.358 | AF198: =AVERAGE(AF188:AF197) -> 178.089 | AG198: =AVERAGE(AG182:AG197) -> 23.8348312 | AI198: =AVERAGE(AI188:AI197) -> 51.238 | AJ198: =AVERAGE(AJ188:AJ197) -> 114.321 | AK198: =AVERAGE(AK188:AK197) -> 0.148 | AL198: =AVERAGE(AL188:AL197) -> 0 | AM198: =AVERAGE(AM188:AM197) -> 15.743 | AO198: =AVERAGE(AO188:AO197) -> 181.45 | AP198: =AVERAGE(AP182:AP197) -> 101.5498281 | AR198: =AVERAGE(AR188:AR197) -> 51.238 | AS198: =AVERAGE(AS188:AS197) -> 114.321 | AT198: =AVERAGE(AT188:AT197) -> 0.148 | AU198: =AVERAGE(AU188:AU197) -> 0 | AV198: =AVERAGE(AV188:AV197) -> 15.743 | AX198: =AVERAGE(AX188:AX197) -> 181.45 | AY198: =AVERAGE(AY182:AY197) -> 101.5498281
C199: Page 6 of 7 | L199: Ave | M199: Max | N199: =MAX(L188:L197) -> 0 | Y199: % Diff | Z199: =(Z198-Q198)/Q198 -> 0 | AA199: =(AA198-R198)/R198 -> 0 | AB199: =(AB198-S198)/S198 -> 0 | AD199: =(AD198-U198)/U198 -> 0 | AF199: =(AF198-W198)/W198 -> 0
A200: U13 | B200: =VLOOKUP(A200,TestArray,2)&" in "&VLOOKUP(A200,TestArray,3)&" for Prototype "&VLOOKUP(A200,TestArray,4) -> E+A+A Walls & HVAC in Zone 12 for Prototype P1665ft2 | I200: =VLOOKUP(A200,TestArray,21) -> Standard = Varies for this test
... 12 more rows

Sheet Reference
A1: 2017-07-21T08:57:30 | B1: 916 | C1: U | D1: 166 | E1: 0 | F1: Conditioned | K1: Proposed Model Site Electric Use | W1: Proposed Model Site Natural Gas Use | AG1: Proposed Model Site Other Fuel Use | AQ1: Proposed Model TDV | BD1: Proposed Model Electric Demand | BQ1: Standard Model Site Electric Use | CA1: Standard Model Site Natural Gas Use | CK1: Standard Model Site Other Fuel Use | CU1: Standard Model TDV | DF1: Standard Model Electric Demand | DQ1: Software Versions | DT1: Savings Results | DX1: CAHP / CMFNH Results | EN1: Proposed Design Rating Model Site Electric Use | EZ1: Proposed Design Rating Model Site Natural Gas Use | FJ1: Proposed Design Rating Model Site Other Fuel Use | FT1: Proposed Design Rating Model TDV | GF1: Proposed Design Rating Model Electric Demand | GR1: Reference Design Rating Model Site Electric Use | HB1: Reference Design Rating Model Site Natural Gas Use | HL1: Reference Design Rating Model Site Other Fuel Use | HV1: Reference Design Rating Model TDV | IF1: Reference Design Rating Model Electric Demand | IP1: Energy Design Ratings | IU1: Compliance Total TDV Results By Fuel (kTDV/ft2-yr)
B2: Project | D2: Climate | E2: Dwelling | F2: Area | H2: Pass / | I2: Compliance | J2: Design | K2: Spc Heat | L2: Spc Cool | M2: IAQ Vent | N2: Other HVAC | O2: Wtr Heat | P2: PV | Q2: Battery | R2: Ins Light | S2: Appl & Cook | T2: Plug Lds | U2: Exterior | V2: TOTAL | W2: Spc Heat | X2: Spc Cool | Y2: IAQ Vent | Z2: Other HVAC | AA2: Wtr Heat | AB2: Ins Light | AC2: Appl & Cook | AD2: Plug Lds | AE2: Exterior | AF2: TOTAL | AG2: Spc Heat | AH2: Spc Cool | AI2: IAQ Vent | AJ2: Other HVAC | AK2: Wtr Heat | AL2: Ins Light | AM2: Appl & Cook | AN2: Plug Lds | AO2: Exterior | AP2: TOTAL | AQ2: Spc Heat | AR2: Spc Cool | AS2: IAQ Vent | AT2: Other HVAC | AU2: Wtr Heat | AV2: PV | AW2: Battery | AX2: Ins Light | AY2: Appl & Cook | AZ2: Plug Lds | BA2: Exterior | BB2: TOTAL | BC2: Comp Total | BD2: Spc Heat | BE2: Spc Cool | BF2: IAQ Vent | BG2: Other HVAC | BH2: Wtr Heat | BI2: PV | BJ2: Battery | BK2: Ins Light | BL2: Appl & Cook | BM2: Plug Lds | BN2: Exterior | BO2: TOTAL | BP2: Comp Total | BQ2: Spc Heat | BR2: Spc Cool | BS2: IAQ Vent | BT2: Other HVAC | BU2: Wtr Heat | BV2: Ins Light | BW2: Appl & Cook | BX2: Plug Lds | BY2: Exterior | BZ2: TOTAL | CA2: Spc Heat | CB2: Spc Cool | CC2: IAQ Vent | CD2: Other HVAC | CE2: Wtr Heat | CF2: Ins Light | CG2: Appl & Cook | CH2: Plug Lds | CI2: Exterior | CJ2: TOTAL | CK2: Spc Heat | CL2: Spc Cool | CM2: IAQ Vent | CN2: Other HVAC | CO2: Wtr Heat | CP2: Ins Light | CQ2: Appl & Cook | CR2: Plug Lds | CS2: Exterior | CT2: TOTAL | CU2: Spc Heat | CV2: Spc Cool | CW2: IAQ Vent | CX2: Other HVAC | CY2: Wtr Heat | CZ2: Ins Light | DA2: Appl & Cook | DB2: Plug Lds | DC2: Exterior | DD2: TOTAL | DE2: Comp Total | DF2: Spc Heat | DG2: Spc Cool | DH2: IAQ Vent | DI2: Other HVAC | DJ2: Wtr Heat | DK2: Ins Light | DL2: Appl & Cook | DM2: Plug Lds | DN2: Exterior | DO2: TOTAL | DP2: Comp Total | DQ2: Compliance | DS2: End User | DT2: Total Demand | DU2: Compliance Demand | DV2: Total TDV | DW2: Compliance TDV | DX2: EDR Bonus Points | DY2: CAHP Delta EDR | DZ2: Cash Bonus Total | EA2: 2019 Zone Ready Kicker | EB2: 2019 Zone Kicker | EC2: High Performance Fenestration Kicker | ED2: High Performance Attic Kicker | EE2: High Performance Wall Kicker | EF2: Whole House Fans Kicker | EG2: Balanced IAQ Kicker | EH2: DOE Zero Energy Kicker | EI2: Drain Water Heat Recovery Kicker | EJ2: Design Charrette Kicker | EK2: ENERGYStar Laundry Recycling Kicker | EL2: CAHP Base Incentive | EM2: CAHP Total Incentive | EN2: Spc Heat | EO2: Spc Cool | EP2: IAQ Vent | EQ2: Other HVAC | ER2: Wtr Heat | ES2: PV | ET2: Battery | EU2: Ins Light | EV2: Appl & Cook | EW2: Plug Lds | EX2: Exterior | EY2: TOTAL | EZ2: Spc Heat | FA2: Spc Cool | FB2: IAQ Vent | FC2: Other HVAC | FD2: Wtr Heat | FE2: Ins Light | FF2: Appl & Cook | FG2: Plug Lds | FH2: Exterior | FI2: TOTAL | FJ2: Spc Heat | FK2: Spc Cool | FL2: IAQ Vent | FM2: Other HVAC | FN2: Wtr Heat | FO2: Ins Light | FP2: Appl & Cook | FQ2: Plug Lds | FR2: Exterior | FS2: TOTAL | FT2: Spc Heat | FU2: Spc Cool | FV2: IAQ Vent | FW2: Other HVAC | FX2: Wtr Heat | FY2: PV Credit | FZ2: Battery | GA2: Ins Light | GB2: Appl & Cook | GC2: Plug Lds | GD2: Exterior | GE2: TOTAL | GF2: Spc Heat | GG2: Spc Cool | GH2: IAQ Vent | GI2: Other HVAC | GJ2: Wtr Heat | GK2: PV | GL2: Battery | GM2: Ins Light | GN2: Appl & Cook | GO2: Plug Lds | GP2: Exterior | GQ2: TOTAL | GR2: Spc Heat | GS2: Spc Cool | GT2: IAQ Vent | GU2: Other HVAC | GV2: Wtr Heat | GW2: Ins Light | GX2: Appl & Cook | GY2: Plug Lds | GZ2: Exterior | HA2: TOTAL | HB2: Spc Heat | HC2: Spc Cool | HD2: IAQ Vent | HE2: Other HVAC | HF2: Wtr Heat | HG2: Ins Light | HH2: Appl & Cook | HI2: Plug Lds | HJ2: Exterior | HK2: TOTAL | HL2: Spc Heat | HM2: Spc Cool | HN2: IAQ Vent | HO2: Other HVAC | HP2: Wtr Heat | HQ2: Ins Light | HR2: Appl & Cook | HS2: Plug Lds | HT2: Exterior | HU2: TOTAL | HV2: Spc Heat | HW2: Spc Cool | HX2: IAQ Vent | HY2: Other HVAC | HZ2: Wtr Heat | IA2: Ins Light | IB2: Appl & Cook | IC2: Plug Lds | ID2: Exterior | IE2: TOTAL | IF2: Spc Heat | IG2: Spc Cool | IH2: IAQ Vent | II2: Other HVAC | IJ2: Wtr Heat | IK2: Ins Light | IL2: Appl & Cook | IM2: Plug Lds | IN2: Exterior | IO2: TOTAL | IP2: Proposed | IQ2: Proposed | IR2: Standard | IS2: Standard | IT2: Standard | IU2: Proposed Model | IW2: Standard Model | IY2: Proposed Design Rating Model | JA2: Reference Design Rating Model
A3: Run Date/Time | B3: Path/File | C3: Run Title | D3: Zone | E3: Units | F3: (ft2) | G3: Analysis Type | H3: Fail | I3: Margin | J3: Rating | K3: (kWh) | L3: (kWh) | M3: (kWh) | N3: (kWh) | O3: (kWh) | P3: (kWh) | Q3: (kWh) | R3: (kWh) | S3: (kWh) | T3: (kWh) | U3: (kWh) | V3: (kWh) | W3: (Therms) | X3: (Therms) | Y3: (Therms) | Z3: (Therms) | AA3: (Therms) | AB3: (Therms) | AC3: (Therms) | AD3: (Therms) | AE3: (Therms) | AF3: (Therms) | AG3: (MMBtu) | AH3: (MMBtu) | AI3: (MMBtu) | AJ3: (MMBtu) | AK3: (MMBtu) | AL3: (MMBtu) | AM3: (MMBtu) | AN3: (MMBtu) | AO3: (MMBtu) | AP3: (MMBtu) | AQ3: (kTDV/ft2-yr) | AR3: (kTDV/ft2-yr) | AS3: (kTDV/ft2-yr) | AT3: (kTDV/ft2-yr) | AU3: (kTDV/ft2-yr) | AV3: (kTDV/ft2-yr) | AW3: (kTDV/ft2-yr) | AX3: (kTDV/ft2-yr) | AY3: (kTDV/ft2-yr) | AZ3: (kTDV/ft2-yr) | BA3: (kTDV/ft2-yr) | BB3: (kTDV/ft2-yr) | BC3: (kTDV/ft2-yr) | BD3: (kW) | BE3: (kW) | BF3: (kW) | BG3: (kW) | BH3: (kW) | BI3: (kW) | BJ3: (kW) | BK3: (kW) | BL3: (kW) | BM3: (kW) | BN3: (kW) | BO3: (kW) | BP3: (kW) | BQ3: (kWh) | BR3: (kWh) | BS3: (kWh) | BT3: (kWh) | BU3: (kWh) | BV3: (kWh) | BW3: (kWh) | BX3: (kWh) | BY3: (kWh) | BZ3: (kWh) | CA3: (Therms) | CB3: (Therms) | CC3: (Therms) | CD3: (Therms) | CE3: (Therms) | CF3: (Therms) | CG3: (Therms) | CH3: (Therms) | CI3: (Therms) | CJ3: (Therms) | CK3: (MMBtu) | CL3: (MMBtu) | CM3: (MMBtu) | CN3: (MMBtu) | CO3: (MMBtu) | CP3: (MMBtu) | CQ3: (MMBtu) | CR3: (MMBtu) | CS3: (MMBtu) | CT3: (MMBtu) | CU3: (kTDV/ft2-yr) | CV3: (kTDV/ft2-yr) | CW3: (kTDV/ft2-yr) | CX3: (kTDV/ft2-yr) | CY3: (kTDV/ft2-yr) | CZ3: (kTDV/ft2-yr) | DA3: (kTDV/ft2-yr) | DB3: (kTDV/ft2-yr) | DC3: (kTDV/ft2-yr) | DD3: (kTDV/ft2-yr) | DE3: (kTDV/ft2-yr) | DF3: (kW) | DG3: (kW) | DH3: (kW) | DI3: (kW) | DJ3: (kW) | DK3: (kW) | DL3: (kW) | DM3: (kW) | DN3: (kW) | DO3: (kW) | DP3: (kW) | DQ3: Ruleset | DR3: CSE | DS3: Application | DT3: (kW) | DU3: (kW) | DV3: (%) | DW3: (%) | DX3: (int) | DY3: (int) | DZ3: ($) | EA3: ($) | EB3: ($) | EC3: ($) | ED3: ($) | EE3: ($) | EF3: ($) | EG3: ($) | EH3: ($) | EI3: ($) | EJ3: ($) | EK3: ($) | EL3: ($) | EM3: ($) | EN3: (kWh) | EO3: (kWh) | EP3: (kWh) | EQ3: (kWh) | ER3: (kWh) | ES3: (kWh) | ET3: (kWh) | EU3: (kWh) | EV3: (kWh) | EW3: (kWh) | EX3: (kWh) | EY3: (kWh) | EZ3: (Therms) | FA3: (Therms) | FB3: (Therms) | FC3: (Therms) | FD3: (Therms) | FE3: (Therms) | FF3: (Therms) | FG3: (Therms) | FH3: (Therms) | FI3: (Therms) | FJ3: (MMBtu) | FK3: (MMBtu) | FL3: (MMBtu) | FM3: (MMBtu) | FN3: (MMBtu) | FO3: (MMBtu) | FP3: (MMBtu) | FQ3: (MMBtu) | FR3: (MMBtu) | FS3: (MMBtu) | FT3: (kTDV/ft2-yr) | FU3: (kTDV/ft2-yr) | FV3: (kTDV/ft2-yr) | FW3: (kTDV/ft2-yr) | FX3: (kTDV/ft2-yr) | FY3: (kTDV/ft2-yr) | FZ3: (kTDV/ft2-yr) | GA3: (kTDV/ft2-yr) | GB3: (kTDV/ft2-yr) | GC3: (kTDV/ft2-yr) | GD3: (kTDV/ft2-yr) | GE3: (kTDV/ft2-yr) | GF3: (kW) | GG3: (kW) | GH3: (kW) | GI3: (kW) | GJ3: (kW) | GK3: (kW) | GL3: (kW) | GM3: (kW) | GN3: (kW) | GO3: (kW) | GP3: (kW) | GQ3: (kW) | GR3: (kWh) | GS3: (kWh) | GT3: (kWh) | GU3: (kWh) | GV3: (kWh) | GW3: (kWh) | GX3: (kWh) | GY3: (kWh) | GZ3: (kWh) | HA3: (kWh) | HB3: (Therms) | HC3: (Therms) | HD3: (Therms) | HE3: (Therms) | HF3: (Therms) | HG3: (Therms) | HH3: (Therms) | HI3: (Therms) | HJ3: (Therms) | HK3: (Therms) | HL3: (MMBtu) | HM3: (MMBtu) | HN3: (MMBtu) | HO3: (MMBtu) | HP3: (MMBtu) | HQ3: (MMBtu) | HR3: (MMBtu) | HS3: (MMBtu) | HT3: (MMBtu) | HU3: (MMBtu) | HV3: (kTDV/ft2-yr) | HW3: (kTDV/ft2-yr) | HX3: (kTDV/ft2-yr) | HY3: (kTDV/ft2-yr) | HZ3: (kTDV/ft2-yr) | IA3: (kTDV/ft2-yr) | IB3: (kTDV/ft2-yr) | IC3: (kTDV/ft2-yr) | ID3: (kTDV/ft2-yr) | IE3: (kTDV/ft2-yr) | IF3: (kW) | IG3: (kW) | IH3: (kW) | II3: (kW) | IJ3: (kW) | IK3: (kW) | IL3: (kW) | IM3: (kW) | IN3: (kW) | IO3: (kW) | IP3: Excl. PV+Batt | IQ3: PV+Batt Only | IR3: Final EDR | IS3: Excl. PV | IT3: Min Reqd PV | IU3: Electric | IV3: Gas | IW3: Electric | IX3: Gas | IY3: Electric | IZ3: Gas | JA3: Electric | JB3: Gas
A4: 2017-07-21T08:58:33 | B4: U01R01 | C4: v29 01 S21 G20 M01 | D4: 1 | E4: 1 | F4: 2100 | G4: Proposed and Standard | H4: PASS | I4: 0 | J4: 61.4 | K4: 316.506 | L4: 0 | M4: 111.69 | N4: 0 | O4: 0 | P4: 0 | Q4: 0 | R4: 505.557 | S4: 889.023 | T4: 2025.88 | U4: 119.621 | V4: 3968.28 | W4: 359.374 | X4: 0 | Y4: 0 | Z4: 0 | AA4: 128.119 | AB4: 0 | AC4: 43.6697 | AD4: 0 | AE4: 0 | AF4: 531.163 | AG4: 0 | AH4: 0 | AI4: 0 | AJ4: 0 | AK4: 0 | AL4: 0 | AM4: 0 | AN4: 0 | AO4: 0 | AP4: 0 | AQ4: 33.37 | AR4: 0 | AS4: 1.17 | AT4: 0 | AU4: 10.14 | AV4: 0 | AW4: 0 | AX4: 5.44 | AY4: 13.06 | AZ4: 21.44 | BA4: 1.2 | BB4: 85.82 | BC4: 44.68 | BD4: 1.42572e-09 | BE4: 0 | BF4: 0.0127538 | BG4: 0 | BH4: 0 | BI4: 0 | BJ4: 0 | BK4: 0.074916 | BL4: 0.132273 | BM4: 0.258468 | BN4: 0.0105306 | BO4: 0.488941 | BP4: 0.0127538 | BQ4: 316.505 | BR4: 0 | BS4: 111.69 | BT4: 0 | BU4: 0 | BV4: 505.557 | BW4: 889.023 | BX4: 2025.88 | BY4: 119.621 | BZ4: 3968.28 | CA4: 359.374 | CB4: 0 | CC4: 0 | CD4: 0 | CE4: 128.119 | CF4: 0 | CG4: 43.6697 | CH4: 0 | CI4: 0 | CJ4: 531.163 | CK4: 0 | CL4: 0 | CM4: 0 | CN4: 0 | CO4: 0 | CP4: 0 | CQ4: 0 | CR4: 0 | CS4: 0 | CT4: 0 | CU4: 33.37 | CV4: 0 | CW4: 1.17 | CX4: 0 | CY4: 10.14 | CZ4: 5.44 | DA4: 13.06 | DB4: 21.44 | DC4: 1.2 | DD4: 85.82 | DE4: 44.68 | DF4: 1.42572e-09 | DG4: 0 | DH4: 0.0127538 | DI4: 0 | DJ4: 0 | DK4: 0.074916 | DL4: 0.132273 | DM4: 0.258468 | DN4: 0.0105306 | DO4: 0.488941 | DP4: 0.0127538 | DQ4: BEMCmpMgr 2016.3.0 (901) | DR4: CSE 0.836 EXE | DS4: MPCBECC | DT4: 0 | DU4: 0 | DV4: 0 | DW4: 0 | EN4: 316.506 | EO4: 0 | EP4: 111.69 | EQ4: 0 | ER4: 0 | ES4: 0 | ET4: 0 | EU4: 505.557 | EV4: 889.023 | EW4: 2025.88 | EX4: 119.621 | EY4: 3968.28 | EZ4: 359.374 | FA4: 0 | FB4: 0 | FC4: 0 | FD4: 128.119 | FE4: 0 | FF4: 43.6697 | FG4: 0 | FH4: 0 | FI4: 531.163 | FJ4: 0 | FK4: 0 | FL4: 0 | FM4: 0 | FN4: 0 | FO4: 0 | FP4: 0 | FQ4: 0 | FR4: 0 | FS4: 0 | FT4: 33.37 | FU4: 0 | FV4: 1.17 | FW4: 0 | FX4: 10.14 | FY4: 0 | FZ4: 0 | GA4: 5.44 | GB4: 13.06 | GC4: 21.44 | GD4: 1.2 | GE4: 85.82 | GF4: 1.42572e-09 | GG4: 0 | GH4: 0.0127538 | GI4: 0 | GJ4: 0 | GK4: 0 | GL4: 0 | GM4: 0.074916 | GN4: 0.132273 | GO4: 0.258468 | GP4: 0.0105306 | GQ4: 0.488941 | GR4: 423.504 | GS4: 0 | GT4: 111.69 | GU4: 0 | GV4: 0 | GW4: 2135 | GX4: 930.001 | GY4: 2637.81 | GZ4: 297.5 | HA4: 6535.51 | HB4: 352.47 | HC4: 0 | HD4: 0 | HE4: 0 | HF4: 182.034 | HG4: 0 | HH4: 65.4 | HI4: 0 | HJ4: 0 | HK4: 599.904 | HL4: 0 | HM4: 0 | HN4: 0 | HO4: 0 | HP4: 0 | HQ4: 0 | HR4: 0 | HS4: 0 | HT4: 0 | HU4: 0 | HV4: 33.67 | HW4: 0 | HX4: 1.17 | HY4: 0 | HZ4: 14.41 | IA4: 23.21 | IB4: 14.89 | IC4: 28.04 | ID4: 2.82 | IE4: 118.21 | IF4: 1.97119e-09 | IG4: 0 | IH4: 0.0127538 | II4: 0 | IJ4: 0 | IK4: 0.3358 | IL4: 0.110741 | IM4: 0.35138 | IN4: 0.00414612 | IO4: 0.814822 | IP4: 61.4 | IQ4: 0 | IR4: 61.4 | IS4: 0 | IT4: 0 | IU4: 4.03 | IV4: 40.65 | IW4: 4.03 | IX4: 40.65 | IY4: 4.03 | IZ4: 40.65 | JA4: 4.92 | JB4: 44.33
A5: 2017-07-21T08:58:34 | B5: U01R02 | C5: v29 02 S21 G20 M01 | D5: 2 | E5: 1 | F5: 2100 | G5: Proposed and Standard | H5: PASS | I5: 0 | J5: 52.8 | K5: 213.343 | L5: 6.19665 | M5: 111.69 | N5: 0 | O5: 0 | P5: 0 | Q5: 0 | R5: 505.557 | S5: 926.024 | T5: 2025.88 | U5: 119.621 | V5: 3908.31 | W5: 242.23 | X5: 0 | Y5: 0 | Z5: 0 | AA5: 115.04 | AB5: 0 | AC5: 43.6697 | AD5: 0 | AE5: 0 | AF5: 400.94 | AG5: 0 | AH5: 0 | AI5: 0 | AJ5: 0 | AK5: 0 | AL5: 0 | AM5: 0 | AN5: 0 | AO5: 0 | AP5: 0 | AQ5: 23.31 | AR5: 0.36 | AS5: 1.17 | AT5: 0 | AU5: 9.15 | AV5: 0 | AW5: 0 | AX5: 5.44 | AY5: 13.69 | AZ5: 21.46 | BA5: 1.2 | BB5: 75.78 | BC5: 33.99 | BD5: 0 | BE5: 0.0112902 | BF5: 0.0127538 | BG5: 0 | BH5: 0 | BI5: 0 | BJ5: 0 | BK5: 0.074916 | BL5: 0.143015 | BM5: 0.258468 | BN5: 0.0105306 | BO5: 0.510974 | BP5: 0.0240439 | BQ5: 213.343 | BR5: 6.19665 | BS5: 111.69 | BT5: 0 | BU5: 0 | BV5: 505.557 | BW5: 926.024 | BX5: 2025.88 | BY5: 119.621 | BZ5: 3908.31 | CA5: 242.23 | CB5: 0 | CC5: 0 | CD5: 0 | CE5: 115.04 | CF5: 0 | CG5: 43.6697 | CH5: 0 | CI5: 0 | CJ5: 400.94 | CK5: 0 | CL5: 0 | CM5: 0 | CN5: 0 | CO5: 0 | CP5: 0 | CQ5: 0 | CR5: 0 | CS5: 0 | CT5: 0 | CU5: 23.31 | CV5: 0.36 | CW5: 1.17 | CX5: 0 | CY5: 9.15 | CZ5: 5.44 | DA5: 13.69 | DB5: 21.46 | DC5: 1.2 | DD5: 75.78 | DE5: 33.99 | DF5: 0 | DG5: 0.0112902 | DH5: 0.0127538 | DI5: 0 | DJ5: 0 | DK5: 0.074916 | DL5: 0.143015 | DM5: 0.258468 | DN5: 0.0105306 | DO5: 0.510974 | DP5: 0.0240439 | DQ5: BEMCmpMgr 2016.3.0 (901) | DR5: CSE 0.836 EXE | DS5: MPCBECC | DT5: 0 | DU5: 0 | DV5: 0 | DW5: 0 | EN5: 213.343 | EO5: 6.19665 | EP5: 111.69 | EQ5: 0 | ER5: 0 | ES5: 0 | ET5: 0 | EU5: 505.557 | EV5: 926.024 | EW5: 2025.88 | EX5: 119.621 | EY5: 3908.31 | EZ5: 242.23 | FA5: 0 | FB5: 0 | FC5: 0 | FD5: 115.04 | FE5: 0 | FF5: 43.6697 | FG5: 0 | FH5: 0 | FI5: 400.94 | FJ5: 0 | FK5: 0 | FL5: 0 | FM5: 0 | FN5: 0 | FO5: 0 | FP5: 0 | FQ5: 0 | FR5: 0 | FS5: 0 | FT5: 23.31 | FU5: 0.36 | FV5: 1.17 | FW5: 0 | FX5: 9.15 | FY5: 0 | FZ5: 0 | GA5: 5.44 | GB5: 13.69 | GC5: 21.46 | GD5: 1.2 | GE5: 75.78 | GF5: 0 | GG5: 0.0112902 | GH5: 0.0127538 | GI5: 0 | GJ5: 0 | GK5: 0 | GL5: 0 | GM5: 0.074916 | GN5: 0.143015 | GO5: 0.258468 | GP5: 0.0105306 | GQ5: 0.510974 | GR5: 455.723 | GS5: 63.2054 | GT5: 111.69 | GU5: 0 | GV5: 0 | GW5: 2135 | GX5: 930.001 | GY5: 2637.81 | GZ5: 297.5 | HA5: 6630.93 | HB5: 379.271 | HC5: 0 | HD5: 0 | HE5: 0 | HF5: 169.505 | HG5: 0 | HH5: 65.4 | HI5: 0 | HJ5: 0 | HK5: 614.176 | HL5: 0 | HM5: 0 | HN5: 0 | HO5: 0 | HP5: 0 | HQ5: 0 | HR5: 0 | HS5: 0 | HT5: 0 | HU5: 0 | HV5: 37.39 | HW5: 3.55 | HX5: 1.17 | HY5: 0 | HZ5: 13.49 | IA5: 23.29 | IB5: 14.9 | IC5: 28.13 | ID5: 2.81 | IE5: 124.73 | IF5: 0 | IG5: 0.130719 | IH5: 0.0127538 | II5: 0 | IJ5: 0 | IK5: 0.3358 | IL5: 0.110741 | IM5: 0.35138 | IN5: 0.00414612 | IO5: 0.945541 | IP5: 52.8 | IQ5: 0 | IR5: 52.8 | IS5: 0 | IT5: 0 | IU5: 3.47 | IV5: 30.52 | IW5: 3.47 | IX5: 30.52 | IY5: 3.47 | IZ5: 30.52 | JA5: 8.77 | JB5: 46.83
A6: 2017-07-21T08:58:33 | B6: U01R03 | C6: v29 03 S21 G20 M01 | D6: 3 | E6: 1 | F6: 2100 | G6: Proposed and Standard | H6: PASS | I6: 0 | J6: 50.8 | K6: 130.716 | L6: 0 | M6: 111.69 | N6: 0 | O6: 0 | P6: 0 | Q6: 0 | R6: 505.557 | S6: 919.516 | T6: 2025.88 | U6: 119.621 | V6: 3812.98 | W6: 148.407 | X6: 0 | Y6: 0 | Z6: 0 | AA6: 115.515 | AB6: 0 | AC6: 43.6697 | AD6: 0 | AE6: 0 | AF6: 307.592 | AG6: 0 | AH6: 0 | AI6: 0 | AJ6: 0 | AK6: 0 | AL6: 0 | AM6: 0 | AN6: 0 | AO6: 0 | AP6: 0 | AQ6: 14.44 | AR6: 0 | AS6: 1.17 | AT6: 0 | AU6: 9.17 | AV6: 0 | AW6: 0 | AX6: 5.41 | AY6: 13.54 | AZ6: 21.43 | BA6: 1.19 | BB6: 66.35 | BC6: 24.78 | BD6: 0 | BE6: 0 | BF6: 0.0127538 | BG6: 0 | BH6: 0 | BI6: 0 | BJ6: 0 | BK6: 0.074916 | BL6: 0.138936 | BM6: 0.258468 | BN6: 0.0105306 | BO6: 0.495605 | BP6: 0.0127538 | BQ6: 130.716 | BR6: 0 | BS6: 111.69 | BT6: 0 | BU6: 0 | BV6: 505.557 | BW6: 919.516 | BX6: 2025.88 | BY6: 119.621 | BZ6: 3812.98 | CA6: 148.407 | CB6: 0 | CC6: 0 | CD6: 0 | CE6: 115.515 | CF6: 0 | CG6: 43.6697 | CH6: 0 | CI6: 0 | CJ6: 307.592 | CK6: 0 | CL6: 0 | CM6: 0 | CN6: 0 | CO6: 0 | CP6: 0 | CQ6: 0 | CR6: 0 | CS6: 0 | CT6: 0 | CU6: 14.44 | CV6: 0 | CW6: 1.17 | CX6: 0 | CY6: 9.17 | CZ6: 5.41 | DA6: 13.54 | DB6: 21.43 | DC6: 1.19 | DD6: 66.35 | DE6: 24.78 | DF6: 0 | DG6: 0 | DH6: 0.0127538 | DI6: 0 | DJ6: 0 | DK6: 0.074916 | DL6: 0.138936 | DM6: 0.258468 | DN6: 0.0105306 | DO6: 0.495605 | DP6: 0.0127538 | DQ6: BEMCmpMgr 2016.3.0 (901) | DR6: CSE 0.836 EXE | DS6: MPCBECC | DT6: 0 | DU6: 0 | DV6: 0 | DW6: 0 | EN6: 130.716 | EO6: 0 | EP6: 111.69 | EQ6: 0 | ER6: 0 | ES6: 0 | ET6: 0 | EU6: 505.557 | EV6: 919.516 | EW6: 2025.88 | EX6: 119.621 | EY6: 3812.98 | EZ6: 148.407 | FA6: 0 | FB6: 0 | FC6: 0 | FD6: 115.515 | FE6: 0 | FF6: 43.6697 | FG6: 0 | FH6: 0 | FI6: 307.592 | FJ6: 0 | FK6: 0 | FL6: 0 | FM6: 0 | FN6: 0 | FO6: 0 | FP6: 0 | FQ6: 0 | FR6: 0 | FS6: 0 | FT6: 14.44 | FU6: 0 | FV6: 1.17 | FW6: 0 | FX6: 9.17 | FY6: 0 | FZ6: 0 | GA6: 5.41 | GB6: 13.54 | GC6: 21.43 | GD6: 1.19 | GE6: 66.35 | GF6: 0 | GG6: 0 | GH6: 0.0127538 | GI6: 0 | GJ6: 0 | GK6: 0 | GL6: 0 | GM6: 0.074916 | GN6: 0.138936 | GO6: 0.258468 | GP6: 0.0105306 | GQ6: 0.495605 | GR6: 387.177 | GS6: 0 | GT6: 111.69 | GU6: 0 | GV6: 0 | GW6: 2135 | GX6: 930.001 | GY6: 2637.81 | GZ6: 297.5 | HA6: 6499.18 | HB6: 322.207 | HC6: 0 | HD6: 0 | HE6: 0 | HF6: 170.069 | HG6: 0 | HH6: 65.4 | HI6: 0 | HJ6: 0 | HK6: 557.676 | HL6: 0 | HM6: 0 | HN6: 0 | HO6: 0 | HP6: 0 | HQ6: 0 | HR6: 0 | HS6: 0 | HT6: 0 | HU6: 0 | HV6: 31.69 | HW6: 0 | HX6: 1.17 | HY6: 0 | HZ6: 13.5 | IA6: 23.09 | IB6: 14.89 | IC6: 28.02 | ID6: 2.78 | IE6: 115.14 | IF6: 0 | IG6: 0 | IH6: 0.0127538 | II6: 0 | IJ6: 0 | IK6: 0.3358 | IL6: 0.110741 | IM6: 0.35138 | IN6: 0.00414612 | IO6: 0.814822 | IP6: 50.8 | IQ6: 0 | IR6: 50.8 | IS6: 0 | IT6: 0 | IU6: 2.36 | IV6: 22.42 | IW6: 2.36 | IX6: 22.42 | IY6: 2.36 | IZ6: 22.42 | JA6: 4.61 | JB6: 41.75
A7: 2017-07-21T08:58:54 | B7: U01R04 | C7: v29 04 S21 G20 M01 | D7: 4 | E7: 1 | F7: 2100 | G7: Proposed and Standard | H7: PASS | I7: 0 | J7: 50.6 | K7: 150.686 | L7: 24.6017 | M7: 111.69 | N7: 0 | O7: 0 | P7: 0 | Q7: 0 | R7: 505.557 | S7: 938.95 | T7: 2025.88 | U7: 119.621 | V7: 3876.99 | W7: 171.09 | X7: 0 | Y7: 0 | Z7: 0 | AA7: 110.069 | AB7: 0 | AC7: 43.6697 | AD7: 0 | AE7: 0 | AF7: 324.828 | AG7: 0 | AH7: 0 | AI7: 0 | AJ7: 0 | AK7: 0 | AL7: 0 | AM7: 0 | AN7: 0 | AO7: 0 | AP7: 0 | AQ7: 16.53 | AR7: 1.6 | AS7: 1.17 | AT7: 0 | AU7: 8.77 | AV7: 0 | AW7: 0 | AX7: 5.46 | AY7: 13.77 | AZ7: 21.48 | BA7: 1.2 | BB7: 69.98 | BC7: 28.07 | BD7: 0 | BE7: 0.153668 | BF7: 0.0127538 | BG7: 0 | BH7: 0 | BI7: 0 | BJ7: 0 | BK7: 0.074916 | BL7: 0.146596 | BM7: 0.258468 | BN7: 0.0105306 | BO7: 0.656932 | BP7: 0.166421 | BQ7: 150.686 | BR7: 24.6012 | BS7: 111.69 | BT7: 0 | BU7: 0 | BV7: 505.557 | BW7: 938.95 | BX7: 2025.88 | BY7: 119.621 | BZ7: 3876.99 | CA7: 171.09 | CB7: 0 | CC7: 0 | CD7: 0 | CE7: 110.069 | CF7: 0 | CG7: 43.6697 | CH7: 0 | CI7: 0 | CJ7: 324.828 | CK7: 0 | CL7: 0 | CM7: 0 | CN7: 0 | CO7: 0 | CP7: 0 | CQ7: 0 | CR7: 0 | CS7: 0 | CT7: 0 | CU7: 16.53 | CV7: 1.6 | CW7: 1.17 | CX7: 0 | CY7: 8.77 | CZ7: 5.46 | DA7: 13.77 | DB7: 21.48 | DC7: 1.2 | DD7: 69.98 | DE7: 28.07 | DF7: 0 | DG7: 0.153662 | DH7: 0.0127538 | DI7: 0 | DJ7: 0 | DK7: 0.074916 | DL7: 0.146596 | DM7: 0.258468 | DN7: 0.0105306 | DO7: 0.656926 | DP7: 0.166415 | DQ7: BEMCmpMgr 2016.3.0 (901) | DR7: CSE 0.836 EXE | DS7: MPCBECC | DT7: -5.93295e-06 | DU7: -5.91671e-06 | DV7: 0 | DW7: 0 | EN7: 150.686 | EO7: 24.6017 | EP7: 111.69 | EQ7: 0 | ER7: 0 | ES7: 0 | ET7: 0 | EU7: 505.557 | EV7: 938.95 | EW7: 2025.88 | EX7: 119.621 | EY7: 3876.99 | EZ7: 171.09 | FA7: 0 | FB7: 0 | FC7: 0 | FD7: 110.069 | FE7: 0 | FF7: 43.6697 | FG7: 0 | FH7: 0 | FI7: 324.828 | FJ7: 0 | FK7: 0 | FL7: 0 | FM7: 0 | FN7: 0 | FO7: 0 | FP7: 0 | FQ7: 0 | FR7: 0 | FS7: 0 | FT7: 16.53 | FU7: 1.6 | FV7: 1.17 | FW7: 0 | FX7: 8.77 | FY7: 0 | FZ7: 0 | GA7: 5.46 | GB7: 13.77 | GC7: 21.48 | GD7: 1.2 | GE7: 69.98 | GF7: 0 | GG7: 0.153668 | GH7: 0.0127538 | GI7: 0 | GJ7: 0 | GK7: 0 | GL7: 0 | GM7: 0.074916 | GN7: 0.146596 | GO7: 0.258468 | GP7: 0.0105306 | GQ7: 0.656932 | GR7: 351.056 | GS7: 151.226 | GT7: 111.69 | GU7: 0 | GV7: 0 | GW7: 2135 | GX7: 930.001 | GY7: 2637.81 | GZ7: 297.5 | HA7: 6614.28 | HB7: 292.164 | HC7: 0 | HD7: 0 | HE7: 0 | HF7: 164.714 | HG7: 0 | HH7: 65.4 | HI7: 0 | HJ7: 0 | HK7: 522.278 | HL7: 0 | HM7: 0 | HN7: 0 | HO7: 0 | HP7: 0 | HQ7: 0 | HR7: 0 | HS7: 0 | HT7: 0 | HU7: 0 | HV7: 28.98 | HW7: 8.16 | HX7: 1.17 | HY7: 0 | HZ7: 13.12 | IA7: 23.33 | IB7: 14.9 | IC7: 28.15 | ID7: 2.8 | IE7: 120.61 | IF7: 0 | IG7: 0.641942 | IH7: 0.0127538 | II7: 0 | IJ7: 0 | IK7: 0.3358 | IL7: 0.110741 | IM7: 0.35138 | IN7: 0.00414612 | IO7: 1.45676 | IP7: 50.6 | IQ7: 0 | IR7: 50.6 | IS7: 0 | IT7: 0 | IU7: 4.14 | IV7: 23.93 | IW7: 4.14 | IX7: 23.93 | IY7: 4.14 | IZ7: 23.93 | JA7: 12.44 | JB7: 38.99
A8: 2017-07-21T08:58:33 | B8: U01R05 | C8: v29 05 S21 G20 M01 | D8: 5 | E8: 1 | F8: 2100 | G8: Proposed and Standard | H8: PASS | I8: 0 | J8: 47.4 | K8: 109.144 | L8: 0 | M8: 111.69 | N8: 0 | O8: 0 | P8: 0 | Q8: 0 | R8: 505.557 | S8: 919.374 | T8: 2025.88 | U8: 119.621 | V8: 3791.27 | W8: 123.929 | X8: 0 | Y8: 0 | Z8: 0 | AA8: 118.246 | AB8: 0 | AC8: 43.6697 | AD8: 0 | AE8: 0 | AF8: 285.845 | AG8: 0 | AH8: 0 | AI8: 0 | AJ8: 0 | AK8: 0 | AL8: 0 | AM8: 0 | AN8: 0 | AO8: 0 | AP8: 0 | AQ8: 11.86 | AR8: 0 | AS8: 1.17 | AT8: 0 | AU8: 9.37 | AV8: 0 | AW8: 0 | AX8: 5.36 | AY8: 13.44 | AZ8: 21.36 | BA8: 1.19 | BB8: 63.75 | BC8: 22.4 | BD8: 0 | BE8: 0 | BF8: 0.0127538 | BG8: 0 | BH8: 0 | BI8: 0 | BJ8: 0 | BK8: 0.074916 | BL8: 0.13845 | BM8: 0.258468 | BN8: 0.0105306 | BO8: 0.495118 | BP8: 0.0127538 | BQ8: 109.144 | BR8: 0 | BS8: 111.69 | BT8: 0 | BU8: 0 | BV8: 505.557 | BW8: 919.374 | BX8: 2025.88 | BY8: 119.621 | BZ8: 3791.27 | CA8: 123.929 | CB8: 0 | CC8: 0 | CD8: 0 | CE8: 118.246 | CF8: 0 | CG8: 43.6697 | CH8: 0 | CI8: 0 | CJ8: 285.845 | CK8: 0 | CL8: 0 | CM8: 0 | CN8: 0 | CO8: 0 | CP8: 0 | CQ8: 0 | CR8: 0 | CS8: 0 | CT8: 0 | CU8: 11.86 | CV8: 0 | CW8: 1.17 | CX8: 0 | CY8: 9.37 | CZ8: 5.36 | DA8: 13.44 | DB8: 21.36 | DC8: 1.19 | DD8: 63.75 | DE8: 22.4 | DF8: 0 | DG8: 0 | DH8: 0.0127538 | DI8: 0 | DJ8: 0 | DK8: 0.074916 | DL8: 0.13845 | DM8: 0.258468 | DN8: 0.0105306 | DO8: 0.495118 | DP8: 0.0127538 | DQ8: BEMCmpMgr 2016.3.0 (901) | DR8: CSE 0.836 EXE | DS8: MPCBECC | DT8: 0 | DU8: 0 | DV8: 0 | DW8: 0 | EN8: 109.144 | EO8: 0 | EP8: 111.69 | EQ8: 0 | ER8: 0 | ES8: 0 | ET8: 0 | EU8: 505.557 | EV8: 919.374 | EW8: 2025.88 | EX8: 119.621 | EY8: 3791.27 | EZ8: 123.929 | FA8: 0 | FB8: 0 | FC8: 0 | FD8: 118.246 | FE8: 0 | FF8: 43.6697 | FG8: 0 | FH8: 0 | FI8: 285.845 | FJ8: 0 | FK8: 0 | FL8: 0 | FM8: 0 | FN8: 0 | FO8: 0 | FP8: 0 | FQ8: 0 | FR8: 0 | FS8: 0 | FT8: 11.86 | FU8: 0 | FV8: 1.17 | FW8: 0 | FX8: 9.37 | FY8: 0 | FZ8: 0 | GA8: 5.36 | GB8: 13.44 | GC8: 21.36 | GD8: 1.19 | GE8: 63.75 | GF8: 0 | GG8: 0 | GH8: 0.0127538 | GI8: 0 | GJ8: 0 | GK8: 0 | GL8: 0 | GM8: 0.074916 | GN8: 0.13845 | GO8: 0.258468 | GP8: 0.0105306 | GQ8: 0.495118 | GR8: 402.941 | GS8: 0 | GT8: 111.69 | GU8: 0 | GV8: 0 | GW8: 2135 | GX8: 930.001 | GY8: 2637.81 | GZ8: 297.5 | HA8: 6514.94 | HB8: 335.364 | HC8: 0 | HD8: 0 | HE8: 0 | HF8: 172.692 | HG8: 0 | HH8: 65.4 | HI8: 0 | HJ8: 0 | HK8: 573.456 | HL8: 0 | HM8: 0 | HN8: 0 | HO8: 0 | HP8: 0 | HQ8: 0 | HR8: 0 | HS8: 0 | HT8: 0 | HU8: 0 | HV8: 32.38 | HW8: 0 | HX8: 1.17 | HY8: 0 | HZ8: 13.69 | IA8: 22.84 | IB8: 14.87 | IC8: 27.86 | ID8: 2.78 | IE8: 115.59 | IF8: 2.65109e-15 | IG8: 0 | IH8: 0.0127538 | II8: 0 | IJ8: 0 | IK8: 0.3358 | IL8: 0.110741 | IM8: 0.35138 | IN8: 0.00414612 | IO8: 0.814822 | IP8: 47.4 | IQ8: 0 | IR8: 47.4 | IS8: 0 | IT8: 0 | IU8: 2.16 | IV8: 20.24 | IW8: 2.16 | IX8: 20.24 | IY8: 2.16 | IZ8: 20.24 | JA8: 4.72 | JB8: 42.52
A9: 2017-07-21T08:58:33 | B9: U01R06 | C9: v29 06 S21 G20 M01 | D9: 6 | E9: 1 | F9: 2100 | G9: Proposed and Standard | H9: PASS | I9: 0 | J9: 53 | K9: 67.5963 | L9: 35.6495 | M9: 111.69 | N9: 0 | O9: 0 | P9: 0 | Q9: 0 | R9: 505.557 | S9: 953.519 | T9: 2025.88 | U9: 119.621 | V9: 3819.52 | W9: 76.7477 | X9: 0 | Y9: 0 | Z9: 0 | AA9: 105.038 | AB9: 0 | AC9: 43.6697 | AD9: 0 | AE9: 0 | AF9: 225.455 | AG9: 0 | AH9: 0 | AI9: 0 | AJ9: 0 | AK9: 0 | AL9: 0 | AM9: 0 | AN9: 0 | AO9: 0 | AP9: 0 | AQ9: 7.51 | AR9: 2.14 | AS9: 1.13 | AT9: 0 | AU9: 8.4 | AV9: 0 | AW9: 0 | AX9: 5.27 | AY9: 13.63 | AZ9: 20.78 | BA9: 1.15 | BB9: 60.01 | BC9: 19.18 | BD9: 0 | BE9: 0.172066 | BF9: 0.0127538 | BG9: 0 | BH9: 0 | BI9: 0 | BJ9: 0 | BK9: 0.074916 | BL9: 0.144536 | BM9: 0.258468 | BN9: 0.0105306 | BO9: 0.67327 | BP9: 0.18482 | BQ9: 67.5963 | BR9: 35.6495 | BS9: 111.69 | BT9: 0 | BU9: 0 | BV9: 505.557 | BW9: 953.519 | BX9: 2025.88 | BY9: 119.621 | BZ9: 3819.52 | CA9: 76.7477 | CB9: 0 | CC9: 0 | CD9: 0 | CE9: 105.038 | CF9: 0 | CG9: 43.6697 | CH9: 0 | CI9: 0 | CJ9: 225.455 | CK9: 0 | CL9: 0 | CM9: 0 | CN9: 0 | CO9: 0 | CP9: 0 | CQ9: 0 | CR9: 0 | CS9: 0 | CT9: 0 | CU9: 7.51 | CV9: 2.14 | CW9: 1.13 | CX9: 0 | CY9: 8.4 | CZ9: 5.27 | DA9: 13.63 | DB9: 20.78 | DC9: 1.15 | DD9: 60.01 | DE9: 19.18 | DF9: 0 | DG9: 0.172066 | DH9: 0.0127538 | DI9: 0 | DJ9: 0 | DK9: 0.074916 | DL9: 0.144536 | DM9: 0.258468 | DN9: 0.0105306 | DO9: 0.67327 | DP9: 0.18482 | DQ9: BEMCmpMgr 2016.3.0 (901) | DR9: CSE 0.836 EXE | DS9: MPCBECC | DT9: 0 | DU9: 0 | DV9: 0 | DW9: 0 | EN9: 67.5963 | EO9: 35.6495 | EP9: 111.69 | EQ9: 0 | ER9: 0 | ES9: 0 | ET9: 0 | EU9: 505.557 | EV9: 953.519 | EW9: 2025.88 | EX9: 119.621 | EY9: 3819.52 | EZ9: 76.7477 | FA9: 0 | FB9: 0 | FC9: 0 | FD9: 105.038 | FE9: 0 | FF9: 43.6697 | FG9: 0 | FH9: 0 | FI9: 225.455 | FJ9: 0 | FK9: 0 | FL9: 0 | FM9: 0 | FN9: 0 | FO9: 0 | FP9: 0 | FQ9: 0 | FR9: 0 | FS9: 0 | FT9: 7.51 | FU9: 2.14 | FV9: 1.13 | FW9: 0 | FX9: 8.4 | FY9: 0 | FZ9: 0 | GA9: 5.27 | GB9: 13.63 | GC9: 20.78 | GD9: 1.15 | GE9: 60.01 | GF9: 0 | GG9: 0.172066 | GH9: 0.0127538 | GI9: 0 | GJ9: 0 | GK9: 0 | GL9: 0 | GM9: 0.074916 | GN9: 0.144536 | GO9: 0.258468 | GP9: 0.0105306 | GQ9: 0.67327 | GR9: 148.465 | GS9: 90.9263 | GT9: 111.69 | GU9: 0 | GV9: 0 | GW9: 2135 | GX9: 930.001 | GY9: 2637.81 | GZ9: 297.5 | HA9: 6351.39 | HB9: 123.556 | HC9: 0 | HD9: 0 | HE9: 0 | HF9: 159.963 | HG9: 0 | HH9: 65.4 | HI9: 0 | HJ9: 0 | HK9: 348.919 | HL9: 0 | HM9: 0 | HN9: 0 | HO9: 0 | HP9: 0 | HQ9: 0 | HR9: 0 | HS9: 0 | HT9: 0 | HU9: 0 | HV9: 12.35 | HW9: 5.55 | HX9: 1.13 | HY9: 0 | HZ9: 12.79 | IA9: 22.42 | IB9: 14.59 | IC9: 27.08 | ID9: 2.74 | IE9: 98.65 | IF9: 0 | IG9: 0.299788 | IH9: 0.0127538 | II9: 0 | IJ9: 0 | IK9: 0.3358 | IL9: 0.110741 | IM9: 0.35138 | IN9: 0.00414612 | IO9: 1.11461 | IP9: 53 | IQ9: 0 | IR9: 53 | IS9: 0 | IT9: 0 | IU9: 3.86 | IV9: 15.32 | IW9: 3.86 | IX9: 15.32 | IY9: 3.86 | IZ9: 15.32 | JA9: 7.92 | JB9: 23.9
A10: 2017-07-21T08:58:33 | B10: U01R07 | C10: v29 07 S21 G20 M01 | D10: 7 | E10: 1 | F10: 2100 | G10: Proposed and Standard | H10: PASS | I10: 0 | J10: 50.9 | K10: 24.9663 | L10: 3.48613 | M10: 111.69 | N10: 0 | O10: 0 | P10: 0 | Q10: 0 | R10: 505.557 | S10: 955.108 | T10: 2025.88 | U10: 119.621 | V10: 3746.31 | W10: 28.3453 | X10: 0 | Y10: 0 | Z10: 0 | AA10: 103.33 | AB10: 0 | AC10: 43.6697 | AD10: 0 | AE10: 0 | AF10: 175.346 | AG10: 0 | AH10: 0 | AI10: 0 | AJ10: 0 | AK10: 0 | AL10: 0 | AM10: 0 | AN10: 0 | AO10: 0 | AP10: 0 | AQ10: 2.68 | AR10: 0.29 | AS10: 1.17 | AT10: 0 | AU10: 8.1 | AV10: 0 | AW10: 0 | AX10: 5.54 | AY10: 13.89 | AZ10: 21.65 | BA10: 1.22 | BB10: 54.54 | BC10: 12.24 | BD10: 0 | BE10: 0.0319786 | BF10: 0.0127538 | BG10: 0 | BH10: 0 | BI10: 0 | BJ10: 0 | BK10: 0.074916 | BL10: 0.144056 | BM10: 0.258468 | BN10: 0.0105306 | BO10: 0.532703 | BP10: 0.0447324 | BQ10: 24.9663 | BR10: 3.48613 | BS10: 111.69 | BT10: 0 | BU10: 0 | BV10: 505.557 | BW10: 955.108 | BX10: 2025.88 | BY10: 119.621 | BZ10: 3746.31 | CA10: 28.3453 | CB10: 0 | CC10: 0 | CD10: 0 | CE10: 103.33 | CF10: 0 | CG10: 43.6697 | CH10: 0 | CI10: 0 | CJ10: 175.346 | CK10: 0 | CL10: 0 | CM10: 0 | CN10: 0 | CO10: 0 | CP10: 0 | CQ10: 0 | CR10: 0 | CS10: 0 | CT10: 0 | CU10: 2.68 | CV10: 0.29 | CW10: 1.17 | CX10: 0 | CY10: 8.1 | CZ10: 5.54 | DA10: 13.89 | DB10: 21.65 | DC10: 1.22 | DD10: 54.54 | DE10: 12.24 | DF10: 0 | DG10: 0.0319786 | DH10: 0.0127538 | DI10: 0 | DJ10: 0 | DK10: 0.074916 | DL10: 0.144056 | DM10: 0.258468 | DN10: 0.0105306 | DO10: 0.532703 | DP10: 0.0447324 | DQ10: BEMCmpMgr 2016.3.0 (901) | DR10: CSE 0.836 EXE | DS10: MPCBECC | DT10: 0 | DU10: 0 | DV10: 0 | DW10: 0 | EN10: 24.9663 | EO10: 3.48613 | EP10: 111.69 | EQ10: 0 | ER10: 0 | ES10: 0 | ET10: 0 | EU10: 505.557 | EV10: 955.108 | EW10: 2025.88 | EX10: 119.621 | EY10: 3746.31 | EZ10: 28.3453 | FA10: 0 | FB10: 0 | FC10: 0 | FD10: 103.33 | FE10: 0 | FF10: 43.6697 | FG10: 0 | FH10: 0 | FI10: 175.346 | FJ10: 0 | FK10: 0 | FL10: 0 | FM10: 0 | FN10: 0 | FO10: 0 | FP10: 0 | FQ10: 0 | FR10: 0 | FS10: 0 | FT10: 2.68 | FU10: 0.29 | FV10: 1.17 | FW10: 0 | FX10: 8.1 | FY10: 0 | FZ10: 0 | GA10: 5.54 | GB10: 13.89 | GC10: 21.65 | GD10: 1.22 | GE10: 54.54 | GF10: 0 | GG10: 0.0319786 | GH10: 0.0127538 | GI10: 0 | GJ10: 0 | GK10: 0 | GL10: 0 | GM10: 0.074916 | GN10: 0.144056 | GO10: 0.258468 | GP10: 0.0105306 | GQ10: 0.532703 | GR10: 60.1108 | GS10: 29.0237 | GT10: 111.69 | GU10: 0 | GV10: 0 | GW10: 2135 | GX10: 930.001 | GY10: 2637.81 | GZ10: 297.5 | HA10: 6201.14 | HB10: 50.024 | HC10: 0 | HD10: 0 | HE10: 0 | HF10: 158.424 | HG10: 0 | HH10: 65.4 | HI10: 0 | HJ10: 0 | HK10: 273.848 | HL10: 0 | HM10: 0 | HN10: 0 | HO10: 0 | HP10: 0 | HQ10: 0 | HR10: 0 | HS10: 0 | HT10: 0 | HU10: 0 | HV10: 4.85 | HW10: 2.38 | HX10: 1.17 | HY10: 0 | HZ10: 12.42 | IA10: 23.59 | IB10: 14.88 | IC10: 28.26 | ID10: 2.93 | IE10: 90.48 | IF10: 0 | IG10: 0.133802 | IH10: 0.0127538 | II10: 0 | IJ10: 0 | IK10: 0.3358 | IL10: 0.110741 | IM10: 0.35138 | IN10: 0.00414612 | IO10: 0.948623 | IP10: 50.9 | IQ10: 0 | IR10: 50.9 | IS10: 0 | IT10: 0 | IU10: 1.69 | IV10: 10.55 | IW10: 1.69 | IX10: 10.55 | IY10: 1.69 | IZ10: 10.55 | JA10: 4.07 | JB10: 16.75
A11: 2017-07-21T08:58:54 | B11: U01R08 | C11: v29 08 S21 G20 M01 | D11: 8 | E11: 1 | F11: 2100 | G11: Proposed and Standard | H11: PASS | I11: 0 | J11: 47.7 | K11: 35.7063 | L11: 226.698 | M11: 111.69 | N11: 0 | O11: 0 | P11: 0 | Q11: 0 | R11: 505.557 | S11: 969.92 | T11: 2025.88 | U11: 119.621 | V11: 3995.07 | W11: 40.5404 | X11: 0 | Y11: 0 | Z11: 0 | AA11: 100.66 | AB11: 0 | AC11: 43.6697 | AD11: 0 | AE11: 0 | AF11: 184.87 | AG11: 0 | AH11: 0 | AI11: 0 | AJ11: 0 | AK11: 0 | AL11: 0 | AM11: 0 | AN11: 0 | AO11: 0 | AP11: 0 | AQ11: 3.98 | AR11: 6.24 | AS11: 1.13 | AT11: 0 | AU11: 8.05 | AV11: 0 | AW11: 0 | AX11: 5.32 | AY11: 13.84 | AZ11: 20.87 | BA11: 1.17 | BB11: 60.6 | BC11: 19.4 | BD11: 0 | BE11: 0.453194 | BF11: 0.0127538 | BG11: 0 | BH11: 0 | BI11: 0 | BJ11: 0 | BK11: 0.074916 | BL11: 0.149192 | BM11: 0.258468 | BN11: 0.0105306 | BO11: 0.959055 | BP11: 0.465948 | BQ11: 35.7063 | BR11: 226.698 | BS11: 111.69 | BT11: 0 | BU11: 0 | BV11: 505.557 | BW11: 969.92 | BX11: 2025.88 | BY11: 119.621 | BZ11: 3995.07 | CA11: 40.5404 | CB11: 0 | CC11: 0 | CD11: 0 | CE11: 100.66 | CF11: 0 | CG11: 43.6697 | CH11: 0 | CI11: 0 | CJ11: 184.87 | CK11: 0 | CL11: 0 | CM11: 0 | CN11: 0 | CO11: 0 | CP11: 0 | CQ11: 0 | CR11: 0 | CS11: 0 | CT11: 0 | CU11: 3.98 | CV11: 6.24 | CW11: 1.13 | CX11: 0 | CY11: 8.05 | CZ11: 5.32 | DA11: 13.84 | DB11: 20.87 | DC11: 1.17 | DD11: 60.6 | DE11: 19.4 | DF11: 0 | DG11: 0.453194 | DH11: 0.0127538 | DI11: 0 | DJ11: 0 | DK11: 0.074916 | DL11: 0.149192 | DM11: 0.258468 | DN11: 0.0105306 | DO11: 0.959055 | DP11: 0.465948 | DQ11: BEMCmpMgr 2016.3.0 (901) | DR11: CSE 0.836 EXE | DS11: MPCBECC | DT11: 0 | DU11: 0 | DV11: 0 | DW11: 0 | EN11: 35.7063 | EO11: 226.698 | EP11: 111.69 | EQ11: 0 | ER11: 0 | ES11: 0 | ET11: 0 | EU11: 505.557 | EV11: 969.92 | EW11: 2025.88 | EX11: 119.621 | EY11: 3995.07 | EZ11: 40.5404 | FA11: 0 | FB11: 0 | FC11: 0 | FD11: 100.66 | FE11: 0 | FF11: 43.6697 | FG11: 0 | FH11: 0 | FI11: 184.87 | FJ11: 0 | FK11: 0 | FL11: 0 | FM11: 0 | FN11: 0 | FO11: 0 | FP11: 0 | FQ11: 0 | FR11: 0 | FS11: 0 | FT11: 3.98 | FU11: 6.24 | FV11: 1.13 | FW11: 0 | FX11: 8.05 | FY11: 0 | FZ11: 0 | GA11: 5.32 | GB11: 13.84 | GC11: 20.87 | GD11: 1.17 | GE11: 60.6 | GF11: 0 | GG11: 0.453194 | GH11: 0.0127538 | GI11: 0 | GJ11: 0 | GK11: 0 | GL11: 0 | GM11: 0.074916 | GN11: 0.149192 | GO11: 0.258468 | GP11: 0.0105306 | GQ11: 0.959055 | GR11: 108.019 | GS11: 654.303 | GT11: 111.69 | GU11: 0 | GV11: 0 | GW11: 2135 | GX11: 930.001 | GY11: 2637.81 | GZ11: 297.5 | HA11: 6874.32 | HB11: 89.8966 | HC11: 0 | HD11: 0 | HE11: 0 | HF11: 155.691 | HG11: 0 | HH11: 65.4 | HI11: 0 | HJ11: 0 | HK11: 310.987 | HL11: 0 | HM11: 0 | HN11: 0 | HO11: 0 | HP11: 0 | HQ11: 0 | HR11: 0 | HS11: 0 | HT11: 0 | HU11: 0 | HV11: 9.02 | HW11: 22.55 | HX11: 1.13 | HY11: 0 | HZ11: 12.46 | IA11: 22.64 | IB11: 14.62 | IC11: 27.23 | ID11: 2.79 | IE11: 112.44 | IF11: 0 | IG11: 1.52465 | IH11: 0.0127538 | II11: 0 | IJ11: 0 | IK11: 0.3358 | IL11: 0.110741 | IM11: 0.35138 | IN11: 0.00414612 | IO11: 2.33948 | IP11: 47.7 | IQ11: 0 | IR11: 47.7 | IS11: 0 | IT11: 0 | IU11: 7.68 | IV11: 11.72 | IW11: 7.68 | IX11: 11.72 | IY11: 7.68 | IZ11: 11.72 | JA11: 24.59 | JB11: 20.57
A12: 2017-07-21T08:58:33 | B12: U01R09 | C12: v29 09 S21 G20 M01 | D12: 9 | E12: 1 | F12: 2100 | G12: Proposed and Standard | H12: PASS | I12: 0 | J12: 48.5 | K12: 54.6974 | L12: 463.031 | M12: 111.69 | N12: 0 | O12: 0 | P12: 0 | Q12: 0 | R12: 505.557 | S12: 969.634 | T12: 2025.88 | U12: 119.621 | V12: 4250.11 | W12: 62.1214 | X12: 0 | Y12: 0 | Z12: 0 | AA12: 100.497 | AB12: 0 | AC12: 43.6697 | AD12: 0 | AE12: 0 | AF12: 206.288 | AG12: 0 | AH12: 0 | AI12: 0 | AJ12: 0 | AK12: 0 | AL12: 0 | AM12: 0 | AN12: 0 | AO12: 0 | AP12: 0 | AQ12: 6.05 | AR12: 16.95 | AS12: 1.12 | AT12: 0 | AU12: 8.06 | AV12: 0 | AW12: 0 | AX12: 5.25 | AY12: 13.72 | AZ12: 20.63 | BA12: 1.15 | BB12: 72.93 | BC12: 32.18 | BD12: 0 | BE12: 1.17537 | BF12: 0.0127538 | BG12: 0 | BH12: 0 | BI12: 0 | BJ12: 0 | BK12: 0.074916 | BL12: 0.151793 | BM12: 0.258468 | BN12: 0.0105306 | BO12: 1.68383 | BP12: 1.18812 | BQ12: 54.6974 | BR12: 463.03 | BS12: 111.69 | BT12: 0 | BU12: 0 | BV12: 505.557 | BW12: 969.634 | BX12: 2025.88 | BY12: 119.621 | BZ12: 4250.11 | CA12: 62.1214 | CB12: 0 | CC12: 0 | CD12: 0 | CE12: 100.497 | CF12: 0 | CG12: 43.6697 | CH12: 0 | CI12: 0 | CJ12: 206.288 | CK12: 0 | CL12: 0 | CM12: 0 | CN12: 0 | CO12: 0 | CP12: 0 | CQ12: 0 | CR12: 0 | CS12: 0 | CT12: 0 | CU12: 6.05 | CV12: 16.95 | CW12: 1.12 | CX12: 0 | CY12: 8.06 | CZ12: 5.25 | DA12: 13.72 | DB12: 20.63 | DC12: 1.15 | DD12: 72.93 | DE12: 32.18 | DF12: 0 | DG12: 1.17537 | DH12: 0.0127538 | DI12: 0 | DJ12: 0 | DK12: 0.074916 | DL12: 0.151793 | DM12: 0.258468 | DN12: 0.0105306 | DO12: 1.68383 | DP12: 1.18812 | DQ12: BEMCmpMgr 2016.3.0 (901) | DR12: CSE 0.836 EXE | DS12: MPCBECC | DT12: -4.14397e-07 | DU12: -4.14397e-07 | DV12: 0 | DW12: 0 | EN12: 54.6974 | EO12: 463.031 | EP12: 111.69 | EQ12: 0 | ER12: 0 | ES12: 0 | ET12: 0 | EU12: 505.557 | EV12: 969.634 | EW12: 2025.88 | EX12: 119.621 | EY12: 4250.11 | EZ12: 62.1214 | FA12: 0 | FB12: 0 | FC12: 0 | FD12: 100.497 | FE12: 0 | FF12: 43.6697 | FG12: 0 | FH12: 0 | FI12: 206.288 | FJ12: 0 | FK12: 0 | FL12: 0 | FM12: 0 | FN12: 0 | FO12: 0 | FP12: 0 | FQ12: 0 | FR12: 0 | FS12: 0 | FT12: 6.05 | FU12: 16.95 | FV12: 1.12 | FW12: 0 | FX12: 8.06 | FY12: 0 | FZ12: 0 | GA12: 5.25 | GB12: 13.72 | GC12: 20.63 | GD12: 1.15 | GE12: 72.93 | GF12: 0 | GG12: 1.17537 | GH12: 0.0127538 | GI12: 0 | GJ12: 0 | GK12: 0 | GL12: 0 | GM12: 0.074916 | GN12: 0.151793 | GO12: 0.258468 | GP12: 0.0105306 | GQ12: 1.68383 | GR12: 152.267 | GS12: 1205.06 | GT12: 111.69 | GU12: 0 | GV12: 0 | GW12: 2135 | GX12: 930.001 | GY12: 2637.81 | GZ12: 297.5 | HA12: 7469.33 | HB12: 126.76 | HC12: 0 | HD12: 0 | HE12: 0 | HF12: 155.49 | HG12: 0 | HH12: 65.4 | HI12: 0 | HJ12: 0 | HK12: 347.65 | HL12: 0 | HM12: 0 | HN12: 0 | HO12: 0 | HP12: 0 | HQ12: 0 | HR12: 0 | HS12: 0 | HT12: 0 | HU12: 0 | HV12: 12.63 | HW12: 43.11 | HX12: 1.12 | HY12: 0 | HZ12: 12.47 | IA12: 22.39 | IB12: 14.52 | IC12: 26.97 | ID12: 2.75 | IE12: 135.96 | IF12: 0 | IG12: 2.45269 | IH12: 0.0127538 | II12: 0 | IJ12: 0 | IK12: 0.3358 | IL12: 0.110741 | IM12: 0.35138 | IN12: 0.00414612 | IO12: 3.26752 | IP12: 48.5 | IQ12: 0 | IR12: 48.5 | IS12: 0 | IT12: 0 | IU12: 18.54 | IV12: 13.64 | IW12: 18.54 | IX12: 13.64 | IY12: 18.54 | IZ12: 13.64 | JA12: 45.49 | JB12: 23.84
A13: 2017-07-21T08:58:33 | B13: U01R10 | C13: v29 10 S21 G20 M01 | D13: 10 | E13: 1 | F13: 2100 | G13: Proposed and Standard | H13: PASS | I13: 0 | J13: 46.7 | K13: 64.6006 | L13: 581.715 | M13: 111.69 | N13: 0 | O13: 0 | P13: 0 | Q13: 0 | R13: 505.557 | S13: 971.466 | T13: 2025.88 | U13: 119.621 | V13: 4380.53 | W13: 73.3722 | X13: 0 | Y13: 0 | Z13: 0 | AA13: 99.7428 | AB13: 0 | AC13: 43.6697 | AD13: 0 | AE13: 0 | AF13: 216.785 | AG13: 0 | AH13: 0 | AI13: 0 | AJ13: 0 | AK13: 0 | AL13: 0 | AM13: 0 | AN13: 0 | AO13: 0 | AP13: 0 | AQ13: 7.11 | AR13: 16.31 | AS13: 1.12 | AT13: 0 | AU13: 8.01 | AV13: 0 | AW13: 0 | AX13: 5.18 | AY13: 13.68 | AZ13: 20.54 | BA13: 1.14 | BB13: 73.09 | BC13: 32.55 | BD13: 0 | BE13: 1.15827 | BF13: 0.0127538 | BG13: 0 | BH13: 0 | BI13: 0 | BJ13: 0 | BK13: 0.074916 | BL13: 0.152289 | BM13: 0.258468 | BN13: 0.0105306 | BO13: 1.66723 | BP13: 1.17102 | BQ13: 64.6006 | BR13: 581.715 | BS13: 111.69 | BT13: 0 | BU13: 0 | BV13: 505.557 | BW13: 971.466 | BX13: 2025.88 | BY13: 119.621 | BZ13: 4380.53 | CA13: 73.3722 | CB13: 0 | CC13: 0 | CD13: 0 | CE13: 99.7428 | CF13: 0 | CG13: 43.6697 | CH13: 0 | CI13: 0 | CJ13: 216.785 | CK13: 0 | CL13: 0 | CM13: 0 | CN13: 0 | CO13: 0 | CP13: 0 | CQ13: 0 | CR13: 0 | CS13: 0 | CT13: 0 | CU13: 7.11 | CV13: 16.31 | CW13: 1.12 | CX13: 0 | CY13: 8.01 | CZ13: 5.18 | DA13: 13.68 | DB13: 20.54 | DC13: 1.14 | DD13: 73.09 | DE13: 32.55 | DF13: 0 | DG13: 1.15827 | DH13: 0.0127538 | DI13: 0 | DJ13: 0 | DK13: 0.074916 | DL13: 0.152289 | DM13: 0.258468 | DN13: 0.0105306 | DO13: 1.66723 | DP13: 1.17102 | DQ13: BEMCmpMgr 2016.3.0 (901) | DR13: CSE 0.836 EXE | DS13: MPCBECC | DT13: 0 | DU13: 0 | DV13: 0 | DW13: 0 | EN13: 64.6006 | EO13: 581.715 | EP13: 111.69 | EQ13: 0 | ER13: 0 | ES13: 0 | ET13: 0 | EU13: 505.557 | EV13: 971.466 | EW13: 2025.88 | EX13: 119.621 | EY13: 4380.53 | EZ13: 73.3722 | FA13: 0 | FB13: 0 | FC13: 0 | FD13: 99.7428 | FE13: 0 | FF13: 43.6697 | FG13: 0 | FH13: 0 | FI13: 216.785 | FJ13: 0 | FK13: 0 | FL13: 0 | FM13: 0 | FN13: 0 | FO13: 0 | FP13: 0 | FQ13: 0 | FR13: 0 | FS13: 0 | FT13: 7.11 | FU13: 16.31 | FV13: 1.12 | FW13: 0 | FX13: 8.01 | FY13: 0 | FZ13: 0 | GA13: 5.18 | GB13: 13.68 | GC13: 20.54 | GD13: 1.14 | GE13: 73.09 | GF13: 0 | GG13: 1.15827 | GH13: 0.0127538 | GI13: 0 | GJ13: 0 | GK13: 0 | GL13: 0 | GM13: 0.074916 | GN13: 0.152289 | GO13: 0.258468 | GP13: 0.0105306 | GQ13: 1.66723 | GR13: 170.912 | GS13: 1686.8 | GT13: 111.69 | GU13: 0 | GV13: 0 | GW13: 2135 | GX13: 930.001 | GY13: 2637.81 | GZ13: 297.5 | HA13: 7969.71 | HB13: 142.288 | HC13: 0 | HD13: 0 | HE13: 0 | HF13: 154.67 | HG13: 0 | HH13: 65.4 | HI13: 0 | HJ13: 0 | HK13: 362.359 | HL13: 0 | HM13: 0 | HN13: 0 | HO13: 0 | HP13: 0 | HQ13: 0 | HR13: 0 | HS13: 0 | HT13: 0 | HU13: 0 | HV13: 14.15 | HW13: 48.73 | HX13: 1.12 | HY13: 0 | HZ13: 12.42 | IA13: 22.15 | IB13: 14.51 | IC13: 26.85 | ID13: 2.71 | IE13: 142.64 | IF13: 0 | IG13: 2.71544 | IH13: 0.0127538 | II13: 0 | IJ13: 0 | IK13: 0.3358 | IL13: 0.110741 | IM13: 0.35138 | IN13: 0.00414612 | IO13: 3.53027 | IP13: 46.7 | IQ13: 0 | IR13: 46.7 | IS13: 0 | IT13: 0 | IU13: 17.98 | IV13: 14.57 | IW13: 17.98 | IX13: 14.57 | IY13: 17.98 | IZ13: 14.57 | JA13: 51.27 | JB13: 25.15
A14: 2017-07-21T08:58:34 | B14: U01R11 | C14: v29 11 S21 G20 M01 | D14: 11 | E14: 1 | F14: 2100 | G14: Proposed and Standard | H14: PASS | I14: 0 | J14: 50.7 | K14: 181.172 | L14: 1321.41 | M14: 111.69 | N14: 0 | O14: 0 | P14: 0 | Q14: 0 | R14: 505.557 | S14: 966.48 | T14: 2025.88 | U14: 119.621 | V14: 5231.81 | W14: 205.724 | X14: 0 | Y14: 0 | Z14: 0 | AA14: 101.806 | AB14: 0 | AC14: 43.6697 | AD14: 0 | AE14: 0 | AF14: 351.2 | AG14: 0 | AH14: 0 | AI14: 0 | AJ14: 0 | AK14: 0 | AL14: 0 | AM14: 0 | AN14: 0 | AO14: 0 | AP14: 0 | AQ14: 19.93 | AR14: 34.55 | AS14: 1.17 | AT14: 0 | AU14: 8.19 | AV14: 0 | AW14: 0 | AX14: 5.52 | AY14: 14.3 | AZ14: 21.53 | BA14: 1.21 | BB14: 106.4 | BC14: 63.84 | BD14: 0 | BE14: 1.54815 | BF14: 0.0127538 | BG14: 0 | BH14: 0 | BI14: 0 | BJ14: 0 | BK14: 0.074916 | BL14: 0.152696 | BM14: 0.258468 | BN14: 0.0105306 | BO14: 2.05751 | BP14: 1.5609 | BQ14: 181.172 | BR14: 1321.41 | BS14: 111.69 | BT14: 0 | BU14: 0 | BV14: 505.557 | BW14: 966.48 | BX14: 2025.88 | BY14: 119.621 | BZ14: 5231.81 | CA14: 205.724 | CB14: 0 | CC14: 0 | CD14: 0 | CE14: 101.806 | CF14: 0 | CG14: 43.6697 | CH14: 0 | CI14: 0 | CJ14: 351.2 | CK14: 0 | CL14: 0 | CM14: 0 | CN14: 0 | CO14: 0 | CP14: 0 | CQ14: 0 | CR14: 0 | CS14: 0 | CT14: 0 | CU14: 19.93 | CV14: 34.55 | CW14: 1.17 | CX14: 0 | CY14: 8.19 | CZ14: 5.52 | DA14: 14.3 | DB14: 21.53 | DC14: 1.21 | DD14: 106.4 | DE14: 63.84 | DF14: 0 | DG14: 1.54815 | DH14: 0.0127538 | DI14: 0 | DJ14: 0 | DK14: 0.074916 | DL14: 0.152696 | DM14: 0.258468 | DN14: 0.0105306 | DO14: 2.05751 | DP14: 1.5609 | DQ14: BEMCmpMgr 2016.3.0 (901) | DR14: CSE 0.836 EXE | DS14: MPCBECC | DT14: 0 | DU14: 0 | DV14: 0 | DW14: 0 | EN14: 181.172 | EO14: 1321.41 | EP14: 111.69 | EQ14: 0 | ER14: 0 | ES14: 0 | ET14: 0 | EU14: 505.557 | EV14: 966.48 | EW14: 2025.88 | EX14: 119.621 | EY14: 5231.81 | EZ14: 205.724 | FA14: 0 | FB14: 0 | FC14: 0 | FD14: 101.806 | FE14: 0 | FF14: 43.6697 | FG14: 0 | FH14: 0 | FI14: 351.2 | FJ14: 0 | FK14: 0 | FL14: 0 | FM14: 0 | FN14: 0 | FO14: 0 | FP14: 0 | FQ14: 0 | FR14: 0 | FS14: 0 | FT14: 19.93 | FU14: 34.55 | FV14: 1.17 | FW14: 0 | FX14: 8.19 | FY14: 0 | FZ14: 0 | GA14: 5.52 | GB14: 14.3 | GC14: 21.53 | GD14: 1.21 | GE14: 106.4 | GF14: 0 | GG14: 1.54815 | GH14: 0.0127538 | GI14: 0 | GJ14: 0 | GK14: 0 | GL14: 0 | GM14: 0.074916 | GN14: 0.152696 | GO14: 0.258468 | GP14: 0.0105306 | GQ14: 2.05751 | GR14: 414.501 | GS14: 3106.48 | GT14: 111.69 | GU14: 0 | GV14: 0 | GW14: 2135 | GX14: 930.001 | GY14: 2637.81 | GZ14: 297.5 | HA14: 9632.98 | HB14: 345.001 | HC14: 0 | HD14: 0 | HE14: 0 | HF14: 156.48 | HG14: 0 | HH14: 65.4 | HI14: 0 | HJ14: 0 | HK14: 566.88 | HL14: 0 | HM14: 0 | HN14: 0 | HO14: 0 | HP14: 0 | HQ14: 0 | HR14: 0 | HS14: 0 | HT14: 0 | HU14: 0 | HV14: 34.33 | HW14: 74.87 | HX14: 1.17 | HY14: 0 | HZ14: 12.58 | IA14: 23.7 | IB14: 14.91 | IC14: 28.28 | ID14: 2.86 | IE14: 192.7 | IF14: 0 | IG14: 3.16703 | IH14: 0.0127538 | II14: 0 | IJ14: 0 | IK14: 0.3358 | IL14: 0.110741 | IM14: 0.35138 | IN14: 0.00414612 | IO14: 3.98186 | IP14: 50.7 | IQ14: 0 | IR14: 50.7 | IS14: 0 | IT14: 0 | IU14: 37.37 | IV14: 26.47 | IW14: 37.37 | IX14: 26.47 | IY14: 37.37 | IZ14: 26.47 | JA14: 79.73 | JB14: 43.22
A15: 2017-07-21T08:58:32 | B15: U01R12 | C15: v29 12 S21 G20 M01 | D15: 12 | E15: 1 | F15: 2100 | G15: Proposed and Standard | H15: PASS | I15: 0 | J15: 47.2 | K15: 190.25 | L15: 277.309 | M15: 111.69 | N15: 0 | O15: 0 | P15: 0 | Q15: 0 | R15: 505.557 | S15: 948.806 | T15: 2025.88 | U15: 119.621 | V15: 4179.11 | W15: 216 | X15: 0 | Y15: 0 | Z15: 0 | AA15: 107.027 | AB15: 0 | AC15: 43.6697 | AD15: 0 | AE15: 0 | AF15: 366.696 | AG15: 0 | AH15: 0 | AI15: 0 | AJ15: 0 | AK15: 0 | AL15: 0 | AM15: 0 | AN15: 0 | AO15: 0 | AP15: 0 | AQ15: 20.99 | AR15: 10.29 | AS15: 1.17 | AT15: 0 | AU15: 8.56 | AV15: 0 | AW15: 0 | AX15: 5.55 | AY15: 14.02 | AZ15: 21.58 | BA15: 1.22 | BB15: 83.38 | BC15: 41.01 | BD15: 0 | BE15: 0.536876 | BF15: 0.0127538 | BG15: 0 | BH15: 0 | BI15: 0 | BJ15: 0 | BK15: 0.074916 | BL15: 0.149842 | BM15: 0.258468 | BN15: 0.0105306 | BO15: 1.04339 | BP15: 0.549629 | BQ15: 190.25 | BR15: 277.309 | BS15: 111.69 | BT15: 0 | BU15: 0 | BV15: 505.557 | BW15: 948.806 | BX15: 2025.88 | BY15: 119.621 | BZ15: 4179.11 | CA15: 216 | CB15: 0 | CC15: 0 | CD15: 0 | CE15: 107.027 | CF15: 0 | CG15: 43.6697 | CH15: 0 | CI15: 0 | CJ15: 366.696 | CK15: 0 | CL15: 0 | CM15: 0 | CN15: 0 | CO15: 0 | CP15: 0 | CQ15: 0 | CR15: 0 | CS15: 0 | CT15: 0 | CU15: 20.99 | CV15: 10.29 | CW15: 1.17 | CX15: 0 | CY15: 8.56 | CZ15: 5.55 | DA15: 14.02 | DB15: 21.58 | DC15: 1.22 | DD15: 83.38 | DE15: 41.01 | DF15: 0 | DG15: 0.536876 | DH15: 0.0127538 | DI15: 0 | DJ15: 0 | DK15: 0.074916 | DL15: 0.149842 | DM15: 0.258468 | DN15: 0.0105306 | DO15: 1.04339 | DP15: 0.549629 | DQ15: BEMCmpMgr 2016.3.0 (901) | DR15: CSE 0.836 EXE | DS15: MPCBECC | DT15: 0 | DU15: 0 | DV15: 0 | DW15: 0 | EN15: 190.25 | EO15: 277.309 | EP15: 111.69 | EQ15: 0 | ER15: 0 | ES15: 0 | ET15: 0 | EU15: 505.557 | EV15: 948.806 | EW15: 2025.88 | EX15: 119.621 | EY15: 4179.11 | EZ15: 216 | FA15: 0 | FB15: 0 | FC15: 0 | FD15: 107.027 | FE15: 0 | FF15: 43.6697 | FG15: 0 | FH15: 0 | FI15: 366.696 | FJ15: 0 | FK15: 0 | FL15: 0 | FM15: 0 | FN15: 0 | FO15: 0 | FP15: 0 | FQ15: 0 | FR15: 0 | FS15: 0 | FT15: 20.99 | FU15: 10.29 | FV15: 1.17 | FW15: 0 | FX15: 8.56 | FY15: 0 | FZ15: 0 | GA15: 5.55 | GB15: 14.02 | GC15: 21.58 | GD15: 1.22 | GE15: 83.38 | GF15: 0 | GG15: 0.536876 | GH15: 0.0127538 | GI15: 0 | GJ15: 0 | GK15: 0 | GL15: 0 | GM15: 0.074916 | GN15: 0.149842 | GO15: 0.258468 | GP15: 0.0105306 | GQ15: 1.04339 | GR15: 420.762 | GS15: 1095.07 | GT15: 111.69 | GU15: 0 | GV15: 0 | GW15: 2135 | GX15: 930.001 | GY15: 2637.81 | GZ15: 297.5 | HA15: 7627.83 | HB15: 350.158 | HC15: 0 | HD15: 0 | HE15: 0 | HF15: 161.639 | HG15: 0 | HH15: 65.4 | HI15: 0 | HJ15: 0 | HK15: 577.196 | HL15: 0 | HM15: 0 | HN15: 0 | HO15: 0 | HP15: 0 | HQ15: 0 | HR15: 0 | HS15: 0 | HT15: 0 | HU15: 0 | HV15: 34.94 | HW15: 41.16 | HX15: 1.17 | HY15: 0 | HZ15: 12.93 | IA15: 23.83 | IB15: 14.92 | IC15: 28.35 | ID15: 2.86 | IE15: 160.16 | IF15: 0 | IG15: 2.25164 | IH15: 0.0127538 | II15: 0 | IJ15: 0 | IK15: 0.3358 | IL15: 0.110741 | IM15: 0.35138 | IN15: 0.00414612 | IO15: 3.06646 | IP15: 47.2 | IQ15: 0 | IR15: 47.2 | IS15: 0 | IT15: 0 | IU15: 13.2 | IV15: 27.81 | IW15: 13.2 | IX15: 27.81 | IY15: 13.2 | IZ15: 27.81 | JA15: 46.09 | JB15: 44.11
A16: 2017-07-21T08:58:34 | B16: U01R13 | C16: v29 13 S21 G20 M01 | D16: 13 | E16: 1 | F16: 2100 | G16: Proposed and Standard | H16: PASS | I16: 0 | J16: 52.5 | K16: 157.476 | L16: 1499.37 | M16: 111.69 | N16: 0 | O16: 0 | P16: 0 | Q16: 0 | R16: 505.557 | S16: 975.746 | T16: 2025.88 | U16: 119.621 | V16: 5395.35 | W16: 178.816 | X16: 0 | Y16: 0 | Z16: 0 | AA16: 99.8812 | AB16: 0 | AC16: 43.6697 | AD16: 0 | AE16: 0 | AF16: 322.367 | AG16: 0 | AH16: 0 | AI16: 0 | AJ16: 0 | AK16: 0 | AL16: 0 | AM16: 0 | AN16: 0 | AO16: 0 | AP16: 0 | AQ16: 17.45 | AR16: 38.5 | AS16: 1.17 | AT16: 0 | AU16: 8.04 | AV16: 0 | AW16: 0 | AX16: 5.5 | AY16: 14.21 | AZ16: 21.53 | BA16: 1.21 | BB16: 107.61 | BC16: 65.16 | BD16: 0 | BE16: 1.99029 | BF16: 0.0127538 | BG16: 0 | BH16: 0 | BI16: 0 | BJ16: 0 | BK16: 0.074916 | BL16: 0.153723 | BM16: 0.258468 | BN16: 0.0105306 | BO16: 2.50068 | BP16: 2.00305 | BQ16: 157.476 | BR16: 1499.37 | BS16: 111.69 | BT16: 0 | BU16: 0 | BV16: 505.557 | BW16: 975.746 | BX16: 2025.88 | BY16: 119.621 | BZ16: 5395.35 | CA16: 178.816 | CB16: 0 | CC16: 0 | CD16: 0 | CE16: 99.8812 | CF16: 0 | CG16: 43.6697 | CH16: 0 | CI16: 0 | CJ16: 322.367 | CK16: 0 | CL16: 0 | CM16: 0 | CN16: 0 | CO16: 0 | CP16: 0 | CQ16: 0 | CR16: 0 | CS16: 0 | CT16: 0 | CU16: 17.45 | CV16: 38.5 | CW16: 1.17 | CX16: 0 | CY16: 8.04 | CZ16: 5.5 | DA16: 14.21 | DB16: 21.53 | DC16: 1.21 | DD16: 107.61 | DE16: 65.16 | DF16: 0 | DG16: 1.99029 | DH16: 0.0127538 | DI16: 0 | DJ16: 0 | DK16: 0.074916 | DL16: 0.153723 | DM16: 0.258468 | DN16: 0.0105306 | DO16: 2.50068 | DP16: 2.00305 | DQ16: BEMCmpMgr 2016.3.0 (901) | DR16: CSE 0.836 EXE | DS16: MPCBECC | DT16: 0 | DU16: 0 | DV16: 0 | DW16: 0 | EN16: 157.476 | EO16: 1499.37 | EP16: 111.69 | EQ16: 0 | ER16: 0 | ES16: 0 | ET16: 0 | EU16: 505.557 | EV16: 975.746 | EW16: 2025.88 | EX16: 119.621 | EY16: 5395.35 | EZ16: 178.816 | FA16: 0 | FB16: 0 | FC16: 0 | FD16: 99.8812 | FE16: 0 | FF16: 43.6697 | FG16: 0 | FH16: 0 | FI16: 322.367 | FJ16: 0 | FK16: 0 | FL16: 0 | FM16: 0 | FN16: 0 | FO16: 0 | FP16: 0 | FQ16: 0 | FR16: 0 | FS16: 0 | FT16: 17.45 | FU16: 38.5 | FV16: 1.17 | FW16: 0 | FX16: 8.04 | FY16: 0 | FZ16: 0 | GA16: 5.5 | GB16: 14.21 | GC16: 21.53 | GD16: 1.21 | GE16: 107.61 | GF16: 0 | GG16: 1.99029 | GH16: 0.0127538 | GI16: 0 | GJ16: 0 | GK16: 0 | GL16: 0 | GM16: 0.074916 | GN16: 0.153723 | GO16: 0.258468 | GP16: 0.0105306 | GQ16: 2.50068 | GR16: 365.692 | GS16: 3417 | GT16: 111.69 | GU16: 0 | GV16: 0 | GW16: 2135 | GX16: 930.001 | GY16: 2637.81 | GZ16: 297.5 | HA16: 9894.7 | HB16: 304.374 | HC16: 0 | HD16: 0 | HE16: 0 | HF16: 154.519 | HG16: 0 | HH16: 65.4 | HI16: 0 | HJ16: 0 | HK16: 524.293 | HL16: 0 | HM16: 0 | HN16: 0 | HO16: 0 | HP16: 0 | HQ16: 0 | HR16: 0 | HS16: 0 | HT16: 0 | HU16: 0 | HV16: 30.5 | HW16: 75.56 | HX16: 1.17 | HY16: 0 | HZ16: 12.43 | IA16: 23.59 | IB16: 14.91 | IC16: 28.27 | ID16: 2.82 | IE16: 189.25 | IF16: 0 | IG16: 3.41087 | IH16: 0.0127538 | II16: 0 | IJ16: 0 | IK16: 0.3358 | IL16: 0.110741 | IM16: 0.35138 | IN16: 0.00414612 | IO16: 4.22569 | IP16: 52.5 | IQ16: 0 | IR16: 52.5 | IS16: 0 | IT16: 0 | IU16: 41.11 | IV16: 24.05 | IW16: 41.11 | IX16: 24.05 | IY16: 41.11 | IZ16: 24.05 | JA16: 80 | JB16: 39.66
A17: 2017-07-21T08:58:54 | B17: U01R14 | C17: v29 14 S21 G20 M01 | D17: 14 | E17: 1 | F17: 2100 | G17: Proposed and Standard | H17: PASS | I17: 0 | J17: 51.5 | K17: 175.546 | L17: 1283.32 | M17: 111.69 | N17: 0 | O17: 0 | P17: 0 | Q17: 0 | R17: 505.557 | S17: 964.494 | T17: 2025.88 | U17: 119.621 | V17: 5186.11 | W17: 199.547 | X17: 0 | Y17: 0 | Z17: 0 | AA17: 103.059 | AB17: 0 | AC17: 43.6697 | AD17: 0 | AE17: 0 | AF17: 346.275 | AG17: 0 | AH17: 0 | AI17: 0 | AJ17: 0 | AK17: 0 | AL17: 0 | AM17: 0 | AN17: 0 | AO17: 0 | AP17: 0 | AQ17: 19.41 | AR17: 32.2 | AS17: 1.12 | AT17: 0 | AU17: 8.35 | AV17: 0 | AW17: 0 | AX17: 5.26 | AY17: 13.67 | AZ17: 20.6 | BA17: 1.15 | BB17: 101.76 | BC17: 61.08 | BD17: 0 | BE17: 1.79762 | BF17: 0.0127538 | BG17: 0 | BH17: 0 | BI17: 0 | BJ17: 0 | BK17: 0.074916 | BL17: 0.153655 | BM17: 0.258468 | BN17: 0.0105306 | BO17: 2.30795 | BP17: 1.81038 | BQ17: 175.546 | BR17: 1283.32 | BS17: 111.69 | BT17: 0 | BU17: 0 | BV17: 505.557 | BW17: 964.494 | BX17: 2025.88 | BY17: 119.621 | BZ17: 5186.11 | CA17: 199.547 | CB17: 0 | CC17: 0 | CD17: 0 | CE17: 103.059 | CF17: 0 | CG17: 43.6697 | CH17: 0 | CI17: 0 | CJ17: 346.275 | CK17: 0 | CL17: 0 | CM17: 0 | CN17: 0 | CO17: 0 | CP17: 0 | CQ17: 0 | CR17: 0 | CS17: 0 | CT17: 0 | CU17: 19.41 | CV17: 32.2 | CW17: 1.12 | CX17: 0 | CY17: 8.35 | CZ17: 5.26 | DA17: 13.67 | DB17: 20.6 | DC17: 1.15 | DD17: 101.76 | DE17: 61.08 | DF17: 0 | DG17: 1.79762 | DH17: 0.0127538 | DI17: 0 | DJ17: 0 | DK17: 0.074916 | DL17: 0.153655 | DM17: 0.258468 | DN17: 0.0105306 | DO17: 2.30795 | DP17: 1.81038 | DQ17: BEMCmpMgr 2016.3.0 (901) | DR17: CSE 0.836 EXE | DS17: MPCBECC | DT17: 0 | DU17: 0 | DV17: 0 | DW17: 0 | EN17: 175.546 | EO17: 1283.32 | EP17: 111.69 | EQ17: 0 | ER17: 0 | ES17: 0 | ET17: 0 | EU17: 505.557 | EV17: 964.494 | EW17: 2025.88 | EX17: 119.621 | EY17: 5186.11 | EZ17: 199.547 | FA17: 0 | FB17: 0 | FC17: 0 | FD17: 103.059 | FE17: 0 | FF17: 43.6697 | FG17: 0 | FH17: 0 | FI17: 346.275 | FJ17: 0 | FK17: 0 | FL17: 0 | FM17: 0 | FN17: 0 | FO17: 0 | FP17: 0 | FQ17: 0 | FR17: 0 | FS17: 0 | FT17: 19.41 | FU17: 32.2 | FV17: 1.12 | FW17: 0 | FX17: 8.35 | FY17: 0 | FZ17: 0 | GA17: 5.26 | GB17: 13.67 | GC17: 20.6 | GD17: 1.15 | GE17: 101.76 | GF17: 0 | GG17: 1.79762 | GH17: 0.0127538 | GI17: 0 | GJ17: 0 | GK17: 0 | GL17: 0 | GM17: 0.074916 | GN17: 0.153655 | GO17: 0.258468 | GP17: 0.0105306 | GQ17: 2.30795 | GR17: 413.594 | GS17: 2961.78 | GT17: 111.69 | GU17: 0 | GV17: 0 | GW17: 2135 | GX17: 930.001 | GY17: 2637.81 | GZ17: 297.5 | HA17: 9487.38 | HB17: 344.616 | HC17: 0 | HD17: 0 | HE17: 0 | HF17: 157.583 | HG17: 0 | HH17: 65.4 | HI17: 0 | HJ17: 0 | HK17: 567.599 | HL17: 0 | HM17: 0 | HN17: 0 | HO17: 0 | HP17: 0 | HQ17: 0 | HR17: 0 | HS17: 0 | HT17: 0 | HU17: 0 | HV17: 34.38 | HW17: 66.82 | HX17: 1.12 | HY17: 0 | HZ17: 12.77 | IA17: 22.6 | IB17: 14.52 | IC17: 27.07 | ID17: 2.72 | IE17: 182 | IF17: 0 | IG17: 3.17167 | IH17: 0.0127538 | II17: 0 | IJ17: 0 | IK17: 0.3358 | IL17: 0.110741 | IM17: 0.35138 | IN17: 0.00414612 | IO17: 3.98649 | IP17: 51.5 | IQ17: 0 | IR17: 51.5 | IS17: 0 | IT17: 0 | IU17: 34.83 | IV17: 26.25 | IW17: 34.83 | IX17: 26.25 | IY17: 34.83 | IZ17: 26.25 | JA17: 71.39 | JB17: 43.7
A18: 2017-07-21T08:58:31 | B18: U01R15 | C18: v29 15 S21 G20 M01 | D18: 15 | E18: 1 | F18: 2100 | G18: Proposed and Standard | H18: PASS | I18: 0 | J18: 57 | K18: 5.85592 | L18: 4909.3 | M18: 111.69 | N18: 0 | O18: 0 | P18: 0 | Q18: 0 | R18: 505.557 | S18: 1043.96 | T18: 2025.88 | U18: 119.621 | V18: 8721.87 | W18: 6.64992 | X18: 0 | Y18: 0 | Z18: 0 | AA18: 74.6621 | AB18: 0 | AC18: 43.6697 | AD18: 0 | AE18: 0 | AF18: 124.982 | AG18: 0 | AH18: 0 | AI18: 0 | AJ18: 0 | AK18: 0 | AL18: 0 | AM18: 0 | AN18: 0 | AO18: 0 | AP18: 0 | AQ18: 0.66 | AR18: 88.36 | AS18: 1.12 | AT18: 0 | AU18: 6.09 | AV18: 0 | AW18: 0 | AX18: 5.29 | AY18: 14.42 | AZ18: 20.64 | BA18: 1.16 | BB18: 137.74 | BC18: 96.23 | BD18: 0 | BE18: 3.72103 | BF18: 0.0127538 | BG18: 0 | BH18: 0 | BI18: 0 | BJ18: 0 | BK18: 0.074916 | BL18: 0.158034 | BM18: 0.258468 | BN18: 0.0105306 | BO18: 4.23573 | BP18: 3.73378 | BQ18: 5.85592 | BR18: 4909.3 | BS18: 111.69 | BT18: 0 | BU18: 0 | BV18: 505.557 | BW18: 1043.96 | BX18: 2025.88 | BY18: 119.621 | BZ18: 8721.87 | CA18: 6.64992 | CB18: 0 | CC18: 0 | CD18: 0 | CE18: 74.6621 | CF18: 0 | CG18: 43.6697 | CH18: 0 | CI18: 0 | CJ18: 124.982 | CK18: 0 | CL18: 0 | CM18: 0 | CN18: 0 | CO18: 0 | CP18: 0 | CQ18: 0 | CR18: 0 | CS18: 0 | CT18: 0 | CU18: 0.66 | CV18: 88.36 | CW18: 1.12 | CX18: 0 | CY18: 6.09 | CZ18: 5.29 | DA18: 14.42 | DB18: 20.64 | DC18: 1.16 | DD18: 137.74 | DE18: 96.23 | DF18: 0 | DG18: 3.72103 | DH18: 0.0127538 | DI18: 0 | DJ18: 0 | DK18: 0.074916 | DL18: 0.158034 | DM18: 0.258468 | DN18: 0.0105306 | DO18: 4.23573 | DP18: 3.73378 | DQ18: BEMCmpMgr 2016.3.0 (901) | DR18: CSE 0.836 EXE | DS18: MPCBECC | DT18: 0 | DU18: 0 | DV18: 0 | DW18: 0 | EN18: 5.85592 | EO18: 4909.3 | EP18: 111.69 | EQ18: 0 | ER18: 0 | ES18: 0 | ET18: 0 | EU18: 505.557 | EV18: 1043.96 | EW18: 2025.88 | EX18: 119.621 | EY18: 8721.87 | EZ18: 6.64992 | FA18: 0 | FB18: 0 | FC18: 0 | FD18: 74.6621 | FE18: 0 | FF18: 43.6697 | FG18: 0 | FH18: 0 | FI18: 124.982 | FJ18: 0 | FK18: 0 | FL18: 0 | FM18: 0 | FN18: 0 | FO18: 0 | FP18: 0 | FQ18: 0 | FR18: 0 | FS18: 0 | FT18: 0.66 | FU18: 88.36 | FV18: 1.12 | FW18: 0 | FX18: 6.09 | FY18: 0 | FZ18: 0 | GA18: 5.29 | GB18: 14.42 | GC18: 20.64 | GD18: 1.16 | GE18: 137.74 | GF18: 0 | GG18: 3.72103 | GH18: 0.0127538 | GI18: 0 | GJ18: 0 | GK18: 0 | GL18: 0 | GM18: 0.074916 | GN18: 0.158034 | GO18: 0.258468 | GP18: 0.0105306 | GQ18: 4.23573 | GR18: 33.8992 | GS18: 9519.7 | GT18: 111.69 | GU18: 0 | GV18: 0 | GW18: 2135 | GX18: 930.001 | GY18: 2637.81 | GZ18: 297.5 | HA18: 15665.6 | HB18: 28.2169 | HC18: 0 | HD18: 0 | HE18: 0 | HF18: 129.276 | HG18: 0 | HH18: 65.4 | HI18: 0 | HJ18: 0 | HK18: 222.893 | HL18: 0 | HM18: 0 | HN18: 0 | HO18: 0 | HP18: 0 | HQ18: 0 | HR18: 0 | HS18: 0 | HT18: 0 | HU18: 0 | HV18: 2.85 | HW18: 149.29 | HX18: 1.12 | HY18: 0 | HZ18: 10.55 | IA18: 22.73 | IB18: 14.54 | IC18: 27.12 | ID18: 2.76 | IE18: 230.96 | IF18: 0 | IG18: 5.08765 | IH18: 0.0127538 | II18: 0 | IJ18: 0 | IK18: 0.3358 | IL18: 0.110741 | IM18: 0.35138 | IN18: 0.00414612 | IO18: 5.90247 | IP18: 57 | IQ18: 0 | IR18: 57 | IS18: 0 | IT18: 0 | IU18: 89.53 | IV18: 6.7 | IW18: 89.53 | IX18: 6.7 | IY18: 89.53 | IZ18: 6.7 | JA18: 150.69 | JB18: 13.12
A19: 2017-07-21T08:58:33 | B19: U01R16 | C19: v29 16 S21 G20 M01 | D19: 16 | E19: 1 | F19: 2100 | G19: Proposed and Standard | H19: PASS | I19: 0 | J19: 62 | K19: 417.763 | L19: 36.7254 | M19: 111.69 | N19: 0 | O19: 0 | P19: 0 | Q19: 0 | R19: 505.557 | S19: 907.184 | T19: 2025.88 | U19: 119.621 | V19: 4124.42 | W19: 475.591 | X19: 0 | Y19: 0 | Z19: 0 | AA19: 127.167 | AB19: 0 | AC19: 43.6697 | AD19: 0 | AE19: 0 | AF19: 646.428 | AG19: 0 | AH19: 0 | AI19: 0 | AJ19: 0 | AK19: 0 | AL19: 0 | AM19: 0 | AN19: 0 | AO19: 0 | AP19: 0 | AQ19: 44.83 | AR19: 1.36 | AS19: 1.11 | AT19: 0 | AU19: 10.23 | AV19: 0 | AW19: 0 | AX19: 5.22 | AY19: 13.12 | AZ19: 20.54 | BA19: 1.14 | BB19: 97.55 | BC19: 57.53 | BD19: 0 | BE19: 0.0514584 | BF19: 0.0127538 | BG19: 0 | BH19: 0 | BI19: 0 | BJ19: 0 | BK19: 0.074916 | BL19: 0.145135 | BM19: 0.258468 | BN19: 0.0105306 | BO19: 0.553262 | BP19: 0.0642122 | BQ19: 417.763 | BR19: 36.7254 | BS19: 111.69 | BT19: 0 | BU19: 0 | BV19: 505.557 | BW19: 907.184 | BX19: 2025.88 | BY19: 119.621 | BZ19: 4124.42 | CA19: 475.591 | CB19: 0 | CC19: 0 | CD19: 0 | CE19: 127.167 | CF19: 0 | CG19: 43.6697 | CH19: 0 | CI19: 0 | CJ19: 646.428 | CK19: 0 | CL19: 0 | CM19: 0 | CN19: 0 | CO19: 0 | CP19: 0 | CQ19: 0 | CR19: 0 | CS19: 0 | CT19: 0 | CU19: 44.83 | CV19: 1.36 | CW19: 1.11 | CX19: 0 | CY19: 10.23 | CZ19: 5.22 | DA19: 13.12 | DB19: 20.54 | DC19: 1.14 | DD19: 97.55 | DE19: 57.53 | DF19: 0 | DG19: 0.0514584 | DH19: 0.0127538 | DI19: 0 | DJ19: 0 | DK19: 0.074916 | DL19: 0.145135 | DM19: 0.258468 | DN19: 0.0105306 | DO19: 0.553262 | DP19: 0.0642122 | DQ19: BEMCmpMgr 2016.3.0 (901) | DR19: CSE 0.836 EXE | DS19: MPCBECC | DT19: 0 | DU19: 0 | DV19: 0 | DW19: 0 | EN19: 417.763 | EO19: 36.7254 | EP19: 111.69 | EQ19: 0 | ER19: 0 | ES19: 0 | ET19: 0 | EU19: 505.557 | EV19: 907.184 | EW19: 2025.88 | EX19: 119.621 | EY19: 4124.42 | EZ19: 475.591 | FA19: 0 | FB19: 0 | FC19: 0 | FD19: 127.167 | FE19: 0 | FF19: 43.6697 | FG19: 0 | FH19: 0 | FI19: 646.428 | FJ19: 0 | FK19: 0 | FL19: 0 | FM19: 0 | FN19: 0 | FO19: 0 | FP19: 0 | FQ19: 0 | FR19: 0 | FS19: 0 | FT19: 44.83 | FU19: 1.36 | FV19: 1.11 | FW19: 0 | FX19: 10.23 | FY19: 0 | FZ19: 0 | GA19: 5.22 | GB19: 13.12 | GC19: 20.54 | GD19: 1.14 | GE19: 97.55 | GF19: 0 | GG19: 0.0514584 | GH19: 0.0127538 | GI19: 0 | GJ19: 0 | GK19: 0 | GL19: 0 | GM19: 0.074916 | GN19: 0.145135 | GO19: 0.258468 | GP19: 0.0105306 | GQ19: 0.553262 | GR19: 537.061 | GS19: 250.48 | GT19: 111.69 | GU19: 0 | GV19: 0 | GW19: 2135 | GX19: 930.001 | GY19: 2637.81 | GZ19: 297.5 | HA19: 6899.54 | HB19: 448.17 | HC19: 0 | HD19: 0 | HE19: 0 | HF19: 180.824 | HG19: 0 | HH19: 65.4 | HI19: 0 | HJ19: 0 | HK19: 694.395 | HL19: 0 | HM19: 0 | HN19: 0 | HO19: 0 | HP19: 0 | HQ19: 0 | HR19: 0 | HS19: 0 | HT19: 0 | HU19: 0 | HV19: 43.57 | HW19: 10.21 | HX19: 1.11 | HY19: 0 | HZ19: 14.55 | IA19: 22.38 | IB19: 14.5 | IC19: 26.96 | ID19: 2.7 | IE19: 135.98 | IF19: 0 | IG19: 0.540101 | IH19: 0.0127538 | II19: 0 | IJ19: 0 | IK19: 0.3358 | IL19: 0.110741 | IM19: 0.35138 | IN19: 0.00414612 | IO19: 1.35492 | IP19: 62 | IQ19: 0 | IR19: 62 | IS19: 0 | IT19: 0 | IU19: 6.02 | IV19: 51.51 | IW19: 6.02 | IX19: 51.51 | IY19: 6.02 | IZ19: 51.51 | JA19: 15.8 | JB19: 53.64
A20: 2017-07-21T08:58:35 | B20: U02R01 | C20: v29 01 S27 G20 M01 | D20: 1 | E20: 1 | F20: 2700 | G20: Proposed and Standard | H20: PASS | I20: 0 | J20: 56.6 | K20: 305.275 | L20: 0 | M20: 141.255 | N20: 0 | O20: 0 | P20: 0 | Q20: 0 | R20: 615.745 | S20: 974.078 | T20: 2371.31 | U20: 151.515 | V20: 4559.17 | W20: 346.622 | X20: 0 | Y20: 0 | Z20: 0 | AA20: 144.282 | AB20: 0 | AC20: 45.121 | AD20: 0 | AE20: 0 | AF20: 536.025 | AG20: 0 | AH20: 0 | AI20: 0 | AJ20: 0 | AK20: 0 | AL20: 0 | AM20: 0 | AN20: 0 | AO20: 0 | AP20: 0 | AQ20: 25.22 | AR20: 0 | AS20: 1.15 | AT20: 0 | AU20: 8.84 | AV20: 0 | AW20: 0 | AX20: 5.15 | AY20: 10.83 | AZ20: 19.52 | BA20: 1.18 | BB20: 71.89 | BC20: 35.21 | BD20: 1.35553e-13 | BE20: 0 | BF20: 0.0161297 | BG20: 0 | BH20: 0 | BI20: 0 | BJ20: 0 | BK20: 0.0912442 | BL20: 0.128762 | BM20: 0.302188 | BN20: 0.0133383 | BO20: 0.551663 | BP20: 0.0161297 | BQ20: 305.275 | BR20: 0 | BS20: 141.255 | BT20: 0 | BU20: 0 | BV20: 615.745 | BW20: 974.078 | BX20: 2371.31 | BY20: 151.515 | BZ20: 4559.17 | CA20: 346.622 | CB20: 0 | CC20: 0 | CD20: 0 | CE20: 144.282 | CF20: 0 | CG20: 45.121 | CH20: 0 | CI20: 0 | CJ20: 536.025 | CK20: 0 | CL20: 0 | CM20: 0 | CN20: 0 | CO20: 0 | CP20: 0 | CQ20: 0 | CR20: 0 | CS20: 0 | CT20: 0 | CU20: 25.22 | CV20: 0 | CW20: 1.15 | CX20: 0 | CY20: 8.84 | CZ20: 5.15 | DA20: 10.83 | DB20: 19.52 | DC20: 1.18 | DD20: 71.89 | DE20: 35.21 | DF20: 1.35553e-13 | DG20: 0 | DH20: 0.0161297 | DI20: 0 | DJ20: 0 | DK20: 0.0912442 | DL20: 0.128762 | DM20: 0.302188 | DN20: 0.0133383 | DO20: 0.551663 | DP20: 0.0161297 | DQ20: BEMCmpMgr 2016.3.0 (901) | DR20: CSE 0.836 EXE | DS20: MPCBECC | DT20: 0 | DU20: 0 | DV20: 0 | DW20: 0 | EN20: 305.275 | EO20: 0 | EP20: 141.255 | EQ20: 0 | ER20: 0 | ES20: 0 | ET20: 0 | EU20: 615.745 | EV20: 974.078 | EW20: 2371.31 | EX20: 151.515 | EY20: 4559.17 | EZ20: 346.622 | FA20: 0 | FB20: 0 | FC20: 0 | FD20: 144.282 | FE20: 0 | FF20: 45.121 | FG20: 0 | FH20: 0 | FI20: 536.025 | FJ20: 0 | FK20: 0 | FL20: 0 | FM20: 0 | FN20: 0 | FO20: 0 | FP20: 0 | FQ20: 0 | FR20: 0 | FS20: 0 | FT20: 25.22 | FU20: 0 | FV20: 1.15 | FW20: 0 | FX20: 8.84 | FY20: 0 | FZ20: 0 | GA20: 5.15 | GB20: 10.83 | GC20: 19.52 | GD20: 1.18 | GE20: 71.89 | GF20: 1.35553e-13 | GG20: 0 | GH20: 0.0161297 | GI20: 0 | GJ20: 0 | GK20: 0 | GL20: 0 | GM20: 0.0912442 | GN20: 0.128762 | GO20: 0.302188 | GP20: 0.0133383 | GQ20: 0.551663 | GR20: 506.578 | GS20: 0 | GT20: 141.255 | GU20: 0 | GV20: 0 | GW20: 2615 | GX20: 989.001 | GY20: 3267.2 | GZ20: 327.5 | HA20: 7846.53 | HB20: 421.611 | HC20: 0 | HD20: 0 | HE20: 0 | HF20: 197.499 | HG20: 0 | HH20: 73.4 | HI20: 0 | HJ20: 0 | HK20: 692.51 | HL20: 0 | HM20: 0 | HN20: 0 | HO20: 0 | HP20: 0 | HQ20: 0 | HR20: 0 | HS20: 0 | HT20: 0 | HU20: 0 | HV20: 31.42 | HW20: 0 | HX20: 1.15 | HY20: 0 | HZ20: 12.09 | IA20: 22.11 | IB20: 12.56 | IC20: 27.01 | ID20: 2.41 | IE20: 108.75 | IF20: 1.93081e-09 | IG20: 0 | IH20: 0.0161297 | II20: 0 | IJ20: 0 | IK20: 0.411296 | IL20: 0.118258 | IM20: 0.43522 | IN20: 0.00456421 | IO20: 0.985468 | IP20: 56.6 | IQ20: 0 | IR20: 56.6 | IS20: 0 | IT20: 0 | IU20: 3.3 | IV20: 31.91 | IW20: 3.3 | IX20: 31.91 | IY20: 3.3 | IZ20: 31.91 | JA20: 4.64 | JB20: 40.02
A21: 2017-07-21T08:58:56 | B21: U02R02 | C21: v29 02 S27 G20 M01 | D21: 2 | E21: 1 | F21: 2700 | G21: Proposed and Standard | H21: PASS | I21: 0 | J21: 49.1 | K21: 234.668 | L21: 41.1159 | M21: 141.255 | N21: 0 | O21: 0 | P21: 0 | Q21: 0 | R21: 615.745 | S21: 1015.23 | T21: 2371.31 | U21: 151.515 | V21: 4570.84 | W21: 266.443 | X21: 0 | Y21: 0 | Z21: 0 | AA21: 129.414 | AB21: 0 | AC21: 45.121 | AD21: 0 | AE21: 0 | AF21: 440.979 | AG21: 0 | AH21: 0 | AI21: 0 | AJ21: 0 | AK21: 0 | AL21: 0 | AM21: 0 | AN21: 0 | AO21: 0 | AP21: 0 | AQ21: 19.96 | AR21: 1.57 | AS21: 1.15 | AT21: 0 | AU21: 7.96 | AV21: 0 | AW21: 0 | AX21: 5.16 | AY21: 11.24 | AZ21: 19.54 | BA21: 1.18 | BB21: 67.76 | BC21: 30.64 | BD21: 0 | BE21: 0.0516196 | BF21: 0.0161297 | BG21: 0 | BH21: 0 | BI21: 0 | BJ21: 0 | BK21: 0.0912442 | BL21: 0.140927 | BM21: 0.302188 | BN21: 0.0133383 | BO21: 0.615446 | BP21: 0.0677493 | BQ21: 234.668 | BR21: 41.1159 | BS21: 141.255 | BT21: 0 | BU21: 0 | BV21: 615.745 | BW21: 1015.23 | BX21: 2371.31 | BY21: 151.515 | BZ21: 4570.84 | CA21: 266.443 | CB21: 0 | CC21: 0 | CD21: 0 | CE21: 129.414 | CF21: 0 | CG21: 45.121 | CH21: 0 | CI21: 0 | CJ21: 440.978 | CK21: 0 | CL21: 0 | CM21: 0 | CN21: 0 | CO21: 0 | CP21: 0 | CQ21: 0 | CR21: 0 | CS21: 0 | CT21: 0 | CU21: 19.96 | CV21: 1.57 | CW21: 1.15 | CX21: 0 | CY21: 7.96 | CZ21: 5.16 | DA21: 11.24 | DB21: 19.54 | DC21: 1.18 | DD21: 67.76 | DE21: 30.64 | DF21: 0 | DG21: 0.0516196 | DH21: 0.0161297 | DI21: 0 | DJ21: 0 | DK21: 0.0912442 | DL21: 0.140927 | DM21: 0.302188 | DN21: 0.0133383 | DO21: 0.615446 | DP21: 0.0677493 | DQ21: BEMCmpMgr 2016.3.0 (901) | DR21: CSE 0.836 EXE | DS21: MPCBECC | DT21: 0 | DU21: 0 | DV21: 0 | DW21: 0 | EN21: 234.668 | EO21: 41.1159 | EP21: 141.255 | EQ21: 0 | ER21: 0 | ES21: 0 | ET21: 0 | EU21: 615.745 | EV21: 1015.23 | EW21: 2371.31 | EX21: 151.515 | EY21: 4570.84 | EZ21: 266.443 | FA21: 0 | FB21: 0 | FC21: 0 | FD21: 129.414 | FE21: 0 | FF21: 45.121 | FG21: 0 | FH21: 0 | FI21: 440.979 | FJ21: 0 | FK21: 0 | FL21: 0 | FM21: 0 | FN21: 0 | FO21: 0 | FP21: 0 | FQ21: 0 | FR21: 0 | FS21: 0 | FT21: 19.96 | FU21: 1.57 | FV21: 1.15 | FW21: 0 | FX21: 7.96 | FY21: 0 | FZ21: 0 | GA21: 5.16 | GB21: 11.24 | GC21: 19.54 | GD21: 1.18 | GE21: 67.76 | GF21: 0 | GG21: 0.0516196 | GH21: 0.0161297 | GI21: 0 | GJ21: 0 | GK21: 0 | GL21: 0 | GM21: 0.0912442 | GN21: 0.140927 | GO21: 0.302188 | GP21: 0.0133383 | GQ21: 0.615446 | GR21: 593.281 | GS21: 193.135 | GT21: 141.255 | GU21: 0 | GV21: 0 | GW21: 2615 | GX21: 989.001 | GY21: 3267.2 | GZ21: 327.5 | HA21: 8126.37 | HB21: 493.753 | HC21: 0 | HD21: 0 | HE21: 0 | HF21: 183.536 | HG21: 0 | HH21: 73.4 | HI21: 0 | HJ21: 0 | HK21: 750.688 | HL21: 0 | HM21: 0 | HN21: 0 | HO21: 0 | HP21: 0 | HQ21: 0 | HR21: 0 | HS21: 0 | HT21: 0 | HU21: 0 | HV21: 37.85 | HW21: 7.84 | HX21: 1.15 | HY21: 0 | HZ21: 11.29 | IA21: 22.19 | IB21: 12.57 | IC21: 27.1 | ID21: 2.41 | IE21: 122.4 | IF21: 0 | IG21: 0.375939 | IH21: 0.0161297 | II21: 0 | IJ21: 0 | IK21: 0.411296 | IL21: 0.118258 | IM21: 0.43522 | IN21: 0.00456421 | IO21: 1.36141 | IP21: 49.1 | IQ21: 0 | IR21: 49.1 | IS21: 0 | IT21: 0 | IU21: 4.38 | IV21: 26.26 | IW21: 4.38 | IX21: 26.26 | IY21: 4.38 | IZ21: 26.26 | JA21: 13.09 | JB21: 45.04
A22: 2017-07-21T08:58:35 | B22: U02R03 | C22: v29 03 S27 G20 M01 | D22: 3 | E22: 1 | F22: 2700 | G22: Proposed and Standard | H22: PASS | I22: 0 | J22: 47.5 | K22: 127.309 | L22: 1.92346 | M22: 141.255 | N22: 0 | O22: 0 | P22: 0 | Q22: 0 | R22: 615.745 | S22: 1009.47 | T22: 2371.31 | U22: 151.515 | V22: 4418.52 | W22: 144.539 | X22: 0 | Y22: 0 | Z22: 0 | AA22: 129.969 | AB22: 0 | AC22: 45.121 | AD22: 0 | AE22: 0 | AF22: 319.629 | AG22: 0 | AH22: 0 | AI22: 0 | AJ22: 0 | AK22: 0 | AL22: 0 | AM22: 0 | AN22: 0 | AO22: 0 | AP22: 0 | AQ22: 10.98 | AR22: 0.1 | AS22: 1.15 | AT22: 0 | AU22: 7.98 | AV22: 0 | AW22: 0 | AX22: 5.13 | AY22: 11.11 | AZ22: 19.5 | BA22: 1.17 | BB22: 57.12 | BC22: 20.21 | BD22: 0 | BE22: 0.00886448 | BF22: 0.0161297 | BG22: 0 | BH22: 0 | BI22: 0 | BJ22: 0 | BK22: 0.0912442 | BL22: 0.13576 | BM22: 0.302188 | BN22: 0.0133383 | BO22: 0.567524 | BP22: 0.0249942 | BQ22: 127.309 | BR22: 1.92346 | BS22: 141.255 | BT22: 0 | BU22: 0 | BV22: 615.745 | BW22: 1009.47 | BX22: 2371.31 | BY22: 151.515 | BZ22: 4418.52 | CA22: 144.54 | CB22: 0 | CC22: 0 | CD22: 0 | CE22: 129.969 | CF22: 0 | CG22: 45.121 | CH22: 0 | CI22: 0 | CJ22: 319.629 | CK22: 0 | CL22: 0 | CM22: 0 | CN22: 0 | CO22: 0 | CP22: 0 | CQ22: 0 | CR22: 0 | CS22: 0 | CT22: 0 | CU22: 10.98 | CV22: 0.1 | CW22: 1.15 | CX22: 0 | CY22: 7.98 | CZ22: 5.13 | DA22: 11.11 | DB22: 19.5 | DC22: 1.17 | DD22: 57.12 | DE22: 20.21 | DF22: 0 | DG22: 0.00886448 | DH22: 0.0161297 | DI22: 0 | DJ22: 0 | DK22: 0.0912442 | DL22: 0.13576 | DM22: 0.302188 | DN22: 0.0133383 | DO22: 0.567524 | DP22: 0.0249942 | DQ22: BEMCmpMgr 2016.3.0 (901) | DR22: CSE 0.836 EXE | DS22: MPCBECC | DT22: -7.56114e-10 | DU22: -7.56114e-10 | DV22: 0 | DW22: 0 | EN22: 127.309 | EO22: 1.92346 | EP22: 141.255 | EQ22: 0 | ER22: 0 | ES22: 0 | ET22: 0 | EU22: 615.745 | EV22: 1009.47 | EW22: 2371.31 | EX22: 151.515 | EY22: 4418.52 | EZ22: 144.539 | FA22: 0 | FB22: 0 | FC22: 0 | FD22: 129.969 | FE22: 0 | FF22: 45.121 | FG22: 0 | FH22: 0 | FI22: 319.629 | FJ22: 0 | FK22: 0 | FL22: 0 | FM22: 0 | FN22: 0 | FO22: 0 | FP22: 0 | FQ22: 0 | FR22: 0 | FS22: 0 | FT22: 10.98 | FU22: 0.1 | FV22: 1.15 | FW22: 0 | FX22: 7.98 | FY22: 0 | FZ22: 0 | GA22: 5.13 | GB22: 11.11 | GC22: 19.5 | GD22: 1.17 | GE22: 57.12 | GF22: 0 | GG22: 0.00886448 | GH22: 0.0161297 | GI22: 0 | GJ22: 0 | GK22: 0 | GL22: 0 | GM22: 0.0912442 | GN22: 0.13576 | GO22: 0.302188 | GP22: 0.0133383 | GQ22: 0.567524 | GR22: 491.922 | GS22: 0 | GT22: 141.255 | GU22: 0 | GV22: 0 | GW22: 2615 | GX22: 989.001 | GY22: 3267.2 | GZ22: 327.5 | HA22: 7831.88 | HB22: 409.375 | HC22: 0 | HD22: 0 | HE22: 0 | HF22: 184.163 | HG22: 0 | HH22: 73.4 | HI22: 0 | HJ22: 0 | HK22: 666.938 | HL22: 0 | HM22: 0 | HN22: 0 | HO22: 0 | HP22: 0 | HQ22: 0 | HR22: 0 | HS22: 0 | HT22: 0 | HU22: 0 | HV22: 31.31 | HW22: 0 | HX22: 1.15 | HY22: 0 | HZ22: 11.3 | IA22: 22 | IB22: 12.56 | IC22: 27 | ID22: 2.38 | IE22: 107.7 | IF22: 0 | IG22: 0 | IH22: 0.0161297 | II22: 0 | IJ22: 0 | IK22: 0.411296 | IL22: 0.118258 | IM22: 0.43522 | IN22: 0.00456421 | IO22: 0.985468 | IP22: 47.5 | IQ22: 0 | IR22: 47.5 | IS22: 0 | IT22: 0 | IU22: 2.16 | IV22: 18.05 | IW22: 2.16 | IX22: 18.05 | IY22: 2.16 | IZ22: 18.05 | JA22: 4.54 | JB22: 39.22
A23: 2017-07-21T08:58:35 | B23: U02R04 | C23: v29 04 S27 G20 M01 | D23: 4 | E23: 1 | F23: 2700 | G23: Proposed and Standard | H23: PASS | I23: 0 | J23: 47.6 | K23: 169.87 | L23: 71.3217 | M23: 141.255 | N23: 0 | O23: 0 | P23: 0 | Q23: 0 | R23: 615.745 | S23: 1030.26 | T23: 2371.31 | U23: 151.515 | V23: 4551.27 | W23: 192.872 | X23: 0 | Y23: 0 | Z23: 0 | AA23: 123.75 | AB23: 0 | AC23: 45.121 | AD23: 0 | AE23: 0 | AF23: 361.743 | AG23: 0 | AH23: 0 | AI23: 0 | AJ23: 0 | AK23: 0 | AL23: 0 | AM23: 0 | AN23: 0 | AO23: 0 | AP23: 0 | AQ23: 14.5 | AR23: 2.89 | AS23: 1.15 | AT23: 0 | AU23: 7.62 | AV23: 0 | AW23: 0 | AX23: 5.17 | AY23: 11.39 | AZ23: 19.55 | BA23: 1.18 | BB23: 63.45 | BC23: 26.16 | BD23: 0 | BE23: 0.340038 | BF23: 0.0161297 | BG23: 0 | BH23: 0 | BI23: 0 | BJ23: 0 | BK23: 0.0912442 | BL23: 0.1447 | BM23: 0.302188 | BN23: 0.0133383 | BO23: 0.907637 | BP23: 0.356167 | BQ23: 169.87 | BR23: 71.3217 | BS23: 141.255 | BT23: 0 | BU23: 0 | BV23: 615.745 | BW23: 1030.26 | BX23: 2371.31 | BY23: 151.515 | BZ23: 4551.27 | CA23: 192.872 | CB23: 0 | CC23: 0 | CD23: 0 | CE23: 123.75 | CF23: 0 | CG23: 45.121 | CH23: 0 | CI23: 0 | CJ23: 361.743 | CK23: 0 | CL23: 0 | CM23: 0 | CN23: 0 | CO23: 0 | CP23: 0 | CQ23: 0 | CR23: 0 | CS23: 0 | CT23: 0 | CU23: 14.5 | CV23: 2.89 | CW23: 1.15 | CX23: 0 | CY23: 7.62 | CZ23: 5.17 | DA23: 11.39 | DB23: 19.55 | DC23: 1.18 | DD23: 63.45 | DE23: 26.16 | DF23: 0 | DG23: 0.340038 | DH23: 0.0161297 | DI23: 0 | DJ23: 0 | DK23: 0.0912442 | DL23: 0.1447 | DM23: 0.302188 | DN23: 0.0133383 | DO23: 0.907637 | DP23: 0.356167 | DQ23: BEMCmpMgr 2016.3.0 (901) | DR23: CSE 0.836 EXE | DS23: MPCBECC | DT23: 0 | DU23: 0 | DV23: 0 | DW23: 0 | EN23: 169.87 | EO23: 71.3217 | EP23: 141.255 | EQ23: 0 | ER23: 0 | ES23: 0 | ET23: 0 | EU23: 615.745 | EV23: 1030.26 | EW23: 2371.31 | EX23: 151.515 | EY23: 4551.27 | EZ23: 192.872 | FA23: 0 | FB23: 0 | FC23: 0 | FD23: 123.75 | FE23: 0 | FF23: 45.121 | FG23: 0 | FH23: 0 | FI23: 361.743 | FJ23: 0 | FK23: 0 | FL23: 0 | FM23: 0 | FN23: 0 | FO23: 0 | FP23: 0 | FQ23: 0 | FR23: 0 | FS23: 0 | FT23: 14.5 | FU23: 2.89 | FV23: 1.15 | FW23: 0 | FX23: 7.62 | FY23: 0 | FZ23: 0 | GA23: 5.17 | GB23: 11.39 | GC23: 19.55 | GD23: 1.18 | GE23: 63.45 | GF23: 0 | GG23: 0.340038 | GH23: 0.0161297 | GI23: 0 | GJ23: 0 | GK23: 0 | GL23: 0 | GM23: 0.0912442 | GN23: 0.1447 | GO23: 0.302188 | GP23: 0.0133383 | GQ23: 0.907637 | GR23: 464.55 | GS23: 327.927 | GT23: 141.255 | GU23: 0 | GV23: 0 | GW23: 2615 | GX23: 989.001 | GY23: 3267.2 | GZ23: 327.5 | HA23: 8132.43 | HB23: 386.62 | HC23: 0 | HD23: 0 | HE23: 0 | HF23: 178.176 | HG23: 0 | HH23: 73.4 | HI23: 0 | HJ23: 0 | HK23: 638.195 | HL23: 0 | HM23: 0 | HN23: 0 | HO23: 0 | HP23: 0 | HQ23: 0 | HR23: 0 | HS23: 0 | HT23: 0 | HU23: 0 | HV23: 29.81 | HW23: 12.25 | HX23: 1.15 | HY23: 0 | HZ23: 10.97 | IA23: 22.23 | IB23: 12.57 | IC23: 27.12 | ID23: 2.4 | IE23: 118.5 | IF23: 0 | IG23: 1.18876 | IH23: 0.0161297 | II23: 0 | IJ23: 0 | IK23: 0.411296 | IL23: 0.118258 | IM23: 0.43522 | IN23: 0.00456421 | IO23: 2.17423 | IP23: 47.6 | IQ23: 0 | IR23: 47.6 | IS23: 0 | IT23: 0 | IU23: 5.24 | IV23: 20.92 | IW23: 5.24 | IX23: 20.92 | IY23: 5.24 | IZ23: 20.92 | JA23: 16.6 | JB23: 37.58
A24: 2017-07-21T08:58:25 | B24: U02R05 | C24: v29 05 S27 G20 M01 | D24: 5 | E24: 1 | F24: 2700 | G24: Proposed and Standard | H24: PASS | I24: 0 | J24: 44.2 | K24: 100.137 | L24: 0 | M24: 141.255 | N24: 0 | O24: 0 | P24: 0 | Q24: 0 | R24: 615.745 | S24: 1010.61 | T24: 2371.31 | U24: 151.515 | V24: 4390.56 | W24: 113.703 | X24: 0 | Y24: 0 | Z24: 0 | AA24: 133.092 | AB24: 0 | AC24: 45.121 | AD24: 0 | AE24: 0 | AF24: 291.915 | AG24: 0 | AH24: 0 | AI24: 0 | AJ24: 0 | AK24: 0 | AL24: 0 | AM24: 0 | AN24: 0 | AO24: 0 | AP24: 0 | AQ24: 8.48 | AR24: 0 | AS24: 1.15 | AT24: 0 | AU24: 8.16 | AV24: 0 | AW24: 0 | AX24: 5.08 | AY24: 11.13 | AZ24: 19.44 | BA24: 1.17 | BB24: 54.61 | BC24: 17.79 | BD24: 0 | BE24: 0 | BF24: 0.0161297 | BG24: 0 | BH24: 0 | BI24: 0 | BJ24: 0 | BK24: 0.0912442 | BL24: 0.135583 | BM24: 0.302188 | BN24: 0.0133383 | BO24: 0.558483 | BP24: 0.0161297 | BQ24: 100.137 | BR24: 0 | BS24: 141.255 | BT24: 0 | BU24: 0 | BV24: 615.745 | BW24: 1010.61 | BX24: 2371.31 | BY24: 151.515 | BZ24: 4390.56 | CA24: 113.703 | CB24: 0 | CC24: 0 | CD24: 0 | CE24: 133.092 | CF24: 0 | CG24: 45.121 | CH24: 0 | CI24: 0 | CJ24: 291.916 | CK24: 0 | CL24: 0 | CM24: 0 | CN24: 0 | CO24: 0 | CP24: 0 | CQ24: 0 | CR24: 0 | CS24: 0 | CT24: 0 | CU24: 8.48 | CV24: 0 | CW24: 1.15 | CX24: 0 | CY24: 8.16 | CZ24: 5.08 | DA24: 11.13 | DB24: 19.44 | DC24: 1.17 | DD24: 54.61 | DE24: 17.79 | DF24: 0 | DG24: 0 | DH24: 0.0161297 | DI24: 0 | DJ24: 0 | DK24: 0.0912442 | DL24: 0.135583 | DM24: 0.302188 | DN24: 0.0133383 | DO24: 0.558483 | DP24: 0.0161297 | DQ24: BEMCmpMgr 2016.3.0 (901) | DR24: CSE 0.836 EXE | DS24: MPCBECC | DT24: -7.18229e-09 | DU24: 0 | DV24: 0 | DW24: 0 | EN24: 100.137 | EO24: 0 | EP24: 141.255 | EQ24: 0 | ER24: 0 | ES24: 0 | ET24: 0 | EU24: 615.745 | EV24: 1010.61 | EW24: 2371.31 | EX24: 151.515 | EY24: 4390.56 | EZ24: 113.703 | FA24: 0 | FB24: 0 | FC24: 0 | FD24: 133.092 | FE24: 0 | FF24: 45.121 | FG24: 0 | FH24: 0 | FI24: 291.915 | FJ24: 0 | FK24: 0 | FL24: 0 | FM24: 0 | FN24: 0 | FO24: 0 | FP24: 0 | FQ24: 0 | FR24: 0 | FS24: 0 | FT24: 8.48 | FU24: 0 | FV24: 1.15 | FW24: 0 | FX24: 8.16 | FY24: 0 | FZ24: 0 | GA24: 5.08 | GB24: 11.13 | GC24: 19.44 | GD24: 1.17 | GE24: 54.61 | GF24: 0 | GG24: 0 | GH24: 0.0161297 | GI24: 0 | GJ24: 0 | GK24: 0 | GL24: 0 | GM24: 0.0912442 | GN24: 0.135583 | GO24: 0.302188 | GP24: 0.0133383 | GQ24: 0.558483 | GR24: 507.972 | GS24: 0 | GT24: 141.255 | GU24: 0 | GV24: 0 | GW24: 2615 | GX24: 989.001 | GY24: 3267.2 | GZ24: 327.5 | HA24: 7847.92 | HB24: 422.78 | HC24: 0 | HD24: 0 | HE24: 0 | HF24: 187.107 | HG24: 0 | HH24: 73.4 | HI24: 0 | HJ24: 0 | HK24: 683.287 | HL24: 0 | HM24: 0 | HN24: 0 | HO24: 0 | HP24: 0 | HQ24: 0 | HR24: 0 | HS24: 0 | HT24: 0 | HU24: 0 | HV24: 31.74 | HW24: 0 | HX24: 1.15 | HY24: 0 | HZ24: 11.47 | IA24: 21.76 | IB24: 12.54 | IC24: 26.83 | ID24: 2.38 | IE24: 107.87 | IF24: 3.87743e-15 | IG24: 0 | IH24: 0.0161297 | II24: 0 | IJ24: 0 | IK24: 0.411296 | IL24: 0.118258 | IM24: 0.43522 | IN24: 0.00456421 | IO24: 0.985468 | IP24: 44.2 | IQ24: 0 | IR24: 44.2 | IS24: 0 | IT24: 0 | IU24: 1.86 | IV24: 15.93 | IW24: 1.86 | IX24: 15.93 | IY24: 1.86 | IZ24: 15.93 | JA24: 4.63 | JB24: 39.73
A25: 2017-07-21T08:58:26 | B25: U02R06 | C25: v29 06 S27 G20 M01 | D25: 6 | E25: 1 | F25: 2700 | G25: Proposed and Standard | H25: PASS | I25: 0 | J25: 51 | K25: 76.8664 | L25: 70.6062 | M25: 141.255 | N25: 0 | O25: 0 | P25: 0 | Q25: 0 | R25: 615.745 | S25: 1046.51 | T25: 2371.31 | U25: 151.515 | V25: 4473.81 | W25: 87.2729 | X25: 0 | Y25: 0 | Z25: 0 | AA25: 118.145 | AB25: 0 | AC25: 45.121 | AD25: 0 | AE25: 0 | AF25: 250.538 | AG25: 0 | AH25: 0 | AI25: 0 | AJ25: 0 | AK25: 0 | AL25: 0 | AM25: 0 | AN25: 0 | AO25: 0 | AP25: 0 | AQ25: 6.63 | AR25: 3.02 | AS25: 1.11 | AT25: 0 | AU25: 7.3 | AV25: 0 | AW25: 0 | AX25: 4.99 | AY25: 11.24 | AZ25: 18.91 | BA25: 1.14 | BB25: 54.34 | BC25: 18.06 | BD25: 0 | BE25: 0.298356 | BF25: 0.0161297 | BG25: 0 | BH25: 0 | BI25: 0 | BJ25: 0 | BK25: 0.0912442 | BL25: 0.141816 | BM25: 0.302188 | BN25: 0.0133383 | BO25: 0.863072 | BP25: 0.314486 | BQ25: 76.8663 | BR25: 70.6062 | BS25: 141.255 | BT25: 0 | BU25: 0 | BV25: 615.745 | BW25: 1046.51 | BX25: 2371.31 | BY25: 151.515 | BZ25: 4473.81 | CA25: 87.2727 | CB25: 0 | CC25: 0 | CD25: 0 | CE25: 118.145 | CF25: 0 | CG25: 45.121 | CH25: 0 | CI25: 0 | CJ25: 250.538 | CK25: 0 | CL25: 0 | CM25: 0 | CN25: 0 | CO25: 0 | CP25: 0 | CQ25: 0 | CR25: 0 | CS25: 0 | CT25: 0 | CU25: 6.63 | CV25: 3.02 | CW25: 1.11 | CX25: 0 | CY25: 7.3 | CZ25: 4.99 | DA25: 11.24 | DB25: 18.91 | DC25: 1.14 | DD25: 54.34 | DE25: 18.06 | DF25: 0 | DG25: 0.298356 | DH25: 0.0161297 | DI25: 0 | DJ25: 0 | DK25: 0.0912442 | DL25: 0.141816 | DM25: 0.302188 | DN25: 0.0133383 | DO25: 0.863072 | DP25: 0.314486 | DQ25: BEMCmpMgr 2016.3.0 (901) | DR25: CSE 0.836 EXE | DS25: MPCBECC | DT25: 0 | DU25: 0 | DV25: 0 | DW25: 0 | EN25: 76.8664 | EO25: 70.6062 | EP25: 141.255 | EQ25: 0 | ER25: 0 | ES25: 0 | ET25: 0 | EU25: 615.745 | EV25: 1046.51 | EW25: 2371.31 | EX25: 151.515 | EY25: 4473.81 | EZ25: 87.2729 | FA25: 0 | FB25: 0 | FC25: 0 | FD25: 118.145 | FE25: 0 | FF25: 45.121 | FG25: 0 | FH25: 0 | FI25: 250.538 | FJ25: 0 | FK25: 0 | FL25: 0 | FM25: 0 | FN25: 0 | FO25: 0 | FP25: 0 | FQ25: 0 | FR25: 0 | FS25: 0 | FT25: 6.63 | FU25: 3.02 | FV25: 1.11 | FW25: 0 | FX25: 7.3 | FY25: 0 | FZ25: 0 | GA25: 4.99 | GB25: 11.24 | GC25: 18.91 | GD25: 1.14 | GE25: 54.34 | GF25: 0 | GG25: 0.298356 | GH25: 0.0161297 | GI25: 0 | GJ25: 0 | GK25: 0 | GL25: 0 | GM25: 0.0912442 | GN25: 0.141816 | GO25: 0.302188 | GP25: 0.0133383 | GQ25: 0.863072 | GR25: 204.104 | GS25: 174.184 | GT25: 141.255 | GU25: 0 | GV25: 0 | GW25: 2615 | GX25: 989.001 | GY25: 3267.2 | GZ25: 327.5 | HA25: 7718.24 | HB25: 169.861 | HC25: 0 | HD25: 0 | HE25: 0 | HF25: 172.967 | HG25: 0 | HH25: 73.4 | HI25: 0 | HJ25: 0 | HK25: 416.228 | HL25: 0 | HM25: 0 | HN25: 0 | HO25: 0 | HP25: 0 | HQ25: 0 | HR25: 0 | HS25: 0 | HT25: 0 | HU25: 0 | HV25: 13.19 | HW25: 7.52 | HX25: 1.11 | HY25: 0 | HZ25: 10.69 | IA25: 21.36 | IB25: 12.31 | IC25: 26.08 | ID25: 2.35 | IE25: 94.61 | IF25: 0 | IG25: 0.498418 | IH25: 0.0161297 | II25: 0 | IJ25: 0 | IK25: 0.411296 | IL25: 0.118258 | IM25: 0.43522 | IN25: 0.00456421 | IO25: 1.48389 | IP25: 51 | IQ25: 0 | IR25: 51 | IS25: 0 | IT25: 0 | IU25: 4.65 | IV25: 13.41 | IW25: 4.65 | IX25: 13.41 | IY25: 4.65 | IZ25: 13.41 | JA25: 9.96 | JB25: 22.55
A26: 2017-07-21T08:58:26 | B26: U02R07 | C26: v29 07 S27 G20 M01 | D26: 7 | E26: 1 | F26: 2700 | G26: Proposed and Standard | H26: PASS | I26: 0 | J26: 48.8 | K26: 27.2635 | L26: 11.9569 | M26: 141.255 | N26: 0 | O26: 0 | P26: 0 | Q26: 0 | R26: 615.745 | S26: 1048.39 | T26: 2371.31 | U26: 151.515 | V26: 4367.44 | W26: 30.9535 | X26: 0 | Y26: 0 | Z26: 0 | AA26: 116.228 | AB26: 0 | AC26: 45.121 | AD26: 0 | AE26: 0 | AF26: 192.303 | AG26: 0 | AH26: 0 | AI26: 0 | AJ26: 0 | AK26: 0 | AL26: 0 | AM26: 0 | AN26: 0 | AO26: 0 | AP26: 0 | AQ26: 2.26 | AR26: 0.61 | AS26: 1.15 | AT26: 0 | AU26: 7.05 | AV26: 0 | AW26: 0 | AX26: 5.25 | AY26: 11.5 | AZ26: 19.71 | BA26: 1.2 | BB26: 48.73 | BC26: 11.07 | BD26: 0 | BE26: 0.0731286 | BF26: 0.0161297 | BG26: 0 | BH26: 0 | BI26: 0 | BJ26: 0 | BK26: 0.0912442 | BL26: 0.141209 | BM26: 0.302188 | BN26: 0.0133383 | BO26: 0.637238 | BP26: 0.0892583 | BQ26: 27.2638 | BR26: 11.9569 | BS26: 141.255 | BT26: 0 | BU26: 0 | BV26: 615.745 | BW26: 1048.39 | BX26: 2371.31 | BY26: 151.515 | BZ26: 4367.44 | CA26: 30.9538 | CB26: 0 | CC26: 0 | CD26: 0 | CE26: 116.228 | CF26: 0 | CG26: 45.121 | CH26: 0 | CI26: 0 | CJ26: 192.303 | CK26: 0 | CL26: 0 | CM26: 0 | CN26: 0 | CO26: 0 | CP26: 0 | CQ26: 0 | CR26: 0 | CS26: 0 | CT26: 0 | CU26: 2.26 | CV26: 0.61 | CW26: 1.15 | CX26: 0 | CY26: 7.05 | CZ26: 5.25 | DA26: 11.5 | DB26: 19.71 | DC26: 1.2 | DD26: 48.73 | DE26: 11.07 | DF26: 0 | DG26: 0.0731286 | DH26: 0.0161297 | DI26: 0 | DJ26: 0 | DK26: 0.0912442 | DL26: 0.141209 | DM26: 0.302188 | DN26: 0.0133383 | DO26: 0.637238 | DP26: 0.0892583 | DQ26: BEMCmpMgr 2016.3.0 (901) | DR26: CSE 0.836 EXE | DS26: MPCBECC | DT26: 0 | DU26: 0 | DV26: 0 | DW26: 0 | EN26: 27.2635 | EO26: 11.9569 | EP26: 141.255 | EQ26: 0 | ER26: 0 | ES26: 0 | ET26: 0 | EU26: 615.745 | EV26: 1048.39 | EW26: 2371.31 | EX26: 151.515 | EY26: 4367.44 | EZ26: 30.9535 | FA26: 0 | FB26: 0 | FC26: 0 | FD26: 116.228 | FE26: 0 | FF26: 45.121 | FG26: 0 | FH26: 0 | FI26: 192.303 | FJ26: 0 | FK26: 0 | FL26: 0 | FM26: 0 | FN26: 0 | FO26: 0 | FP26: 0 | FQ26: 0 | FR26: 0 | FS26: 0 | FT26: 2.26 | FU26: 0.61 | FV26: 1.15 | FW26: 0 | FX26: 7.05 | FY26: 0 | FZ26: 0 | GA26: 5.25 | GB26: 11.5 | GC26: 19.71 | GD26: 1.2 | GE26: 48.73 | GF26: 0 | GG26: 0.0731286 | GH26: 0.0161297 | GI26: 0 | GJ26: 0 | GK26: 0 | GL26: 0 | GM26: 0.0912442 | GN26: 0.141209 | GO26: 0.302188 | GP26: 0.0133383 | GQ26: 0.637238 | GR26: 84.3902 | GS26: 76.9086 | GT26: 141.255 | GU26: 0 | GV26: 0 | GW26: 2615 | GX26: 989.001 | GY26: 3267.2 | GZ26: 327.5 | HA26: 7501.25 | HB26: 70.2293 | HC26: 0 | HD26: 0 | HE26: 0 | HF26: 171.255 | HG26: 0 | HH26: 73.4 | HI26: 0 | HJ26: 0 | HK26: 314.884 | HL26: 0 | HM26: 0 | HN26: 0 | HO26: 0 | HP26: 0 | HQ26: 0 | HR26: 0 | HS26: 0 | HT26: 0 | HU26: 0 | HV26: 5.28 | HW26: 4.29 | HX26: 1.15 | HY26: 0 | HZ26: 10.39 | IA26: 22.47 | IB26: 12.55 | IC26: 27.22 | ID26: 2.51 | IE26: 85.86 | IF26: 0 | IG26: 0.319953 | IH26: 0.0161297 | II26: 0 | IJ26: 0 | IK26: 0.411296 | IL26: 0.118258 | IM26: 0.43522 | IN26: 0.00456421 | IO26: 1.30542 | IP26: 48.8 | IQ26: 0 | IR26: 48.8 | IS26: 0 | IT26: 0 | IU26: 1.95 | IV26: 9.12 | IW26: 1.95 | IX26: 9.12 | IY26: 1.95 | IZ26: 9.12 | JA26: 6.01 | JB26: 15.1
A27: 2017-07-21T08:58:27 | B27: U02R08 | C27: v29 08 S27 G20 M01 | D27: 8 | E27: 1 | F27: 2700 | G27: Proposed and Standard | H27: PASS | I27: 0 | J27: 46.4 | K27: 44.3391 | L27: 359.525 | M27: 141.255 | N27: 0 | O27: 0 | P27: 0 | Q27: 0 | R27: 615.745 | S27: 1066.33 | T27: 2371.31 | U27: 151.515 | V27: 4750.02 | W27: 50.3421 | X27: 0 | Y27: 0 | Z27: 0 | AA27: 113.158 | AB27: 0 | AC27: 45.121 | AD27: 0 | AE27: 0 | AF27: 208.621 | AG27: 0 | AH27: 0 | AI27: 0 | AJ27: 0 | AK27: 0 | AL27: 0 | AM27: 0 | AN27: 0 | AO27: 0 | AP27: 0 | AQ27: 3.83 | AR27: 8.07 | AS27: 1.11 | AT27: 0 | AU27: 7 | AV27: 0 | AW27: 0 | AX27: 5.04 | AY27: 11.42 | AZ27: 18.99 | BA27: 1.15 | BB27: 56.61 | BC27: 20.01 | BD27: 0 | BE27: 0.763329 | BF27: 0.0161297 | BG27: 0 | BH27: 0 | BI27: 0 | BJ27: 0 | BK27: 0.0912442 | BL27: 0.14743 | BM27: 0.302188 | BN27: 0.0133383 | BO27: 1.33366 | BP27: 0.779459 | BQ27: 44.3391 | BR27: 359.525 | BS27: 141.255 | BT27: 0 | BU27: 0 | BV27: 615.745 | BW27: 1066.33 | BX27: 2371.31 | BY27: 151.515 | BZ27: 4750.02 | CA27: 50.3421 | CB27: 0 | CC27: 0 | CD27: 0 | CE27: 113.158 | CF27: 0 | CG27: 45.121 | CH27: 0 | CI27: 0 | CJ27: 208.621 | CK27: 0 | CL27: 0 | CM27: 0 | CN27: 0 | CO27: 0 | CP27: 0 | CQ27: 0 | CR27: 0 | CS27: 0 | CT27: 0 | CU27: 3.83 | CV27: 8.07 | CW27: 1.11 | CX27: 0 | CY27: 7 | CZ27: 5.04 | DA27: 11.42 | DB27: 18.99 | DC27: 1.15 | DD27: 56.61 | DE27: 20.01 | DF27: 0 | DG27: 0.763331 | DH27: 0.0161297 | DI27: 0 | DJ27: 0 | DK27: 0.0912442 | DL27: 0.14743 | DM27: 0.302188 | DN27: 0.0133383 | DO27: 1.33366 | DP27: 0.779461 | DQ27: BEMCmpMgr 2016.3.0 (901) | DR27: CSE 0.836 EXE | DS27: MPCBECC | DT27: 1.48683e-06 | DU27: 1.48444e-06 | DV27: 0 | DW27: 0 | EN27: 44.3391 | EO27: 359.525 | EP27: 141.255 | EQ27: 0 | ER27: 0 | ES27: 0 | ET27: 0 | EU27: 615.745 | EV27: 1066.33 | EW27: 2371.31 | EX27: 151.515 | EY27: 4750.02 | EZ27: 50.3421 | FA27: 0 | FB27: 0 | FC27: 0 | FD27: 113.158 | FE27: 0 | FF27: 45.121 | FG27: 0 | FH27: 0 | FI27: 208.621 | FJ27: 0 | FK27: 0 | FL27: 0 | FM27: 0 | FN27: 0 | FO27: 0 | FP27: 0 | FQ27: 0 | FR27: 0 | FS27: 0 | FT27: 3.83 | FU27: 8.07 | FV27: 1.11 | FW27: 0 | FX27: 7 | FY27: 0 | FZ27: 0 | GA27: 5.04 | GB27: 11.42 | GC27: 18.99 | GD27: 1.15 | GE27: 56.61 | GF27: 0 | GG27: 0.763329 | GH27: 0.0161297 | GI27: 0 | GJ27: 0 | GK27: 0 | GL27: 0 | GM27: 0.0912442 | GN27: 0.14743 | GO27: 0.302188 | GP27: 0.0133383 | GQ27: 1.33366 | GR27: 155.326 | GS27: 963.518 | GT27: 141.255 | GU27: 0 | GV27: 0 | GW27: 2615 | GX27: 989.001 | GY27: 3267.2 | GZ27: 327.5 | HA27: 8458.8 | HB27: 129.267 | HC27: 0 | HD27: 0 | HE27: 0 | HF27: 168.187 | HG27: 0 | HH27: 73.4 | HI27: 0 | HJ27: 0 | HK27: 370.853 | HL27: 0 | HM27: 0 | HN27: 0 | HO27: 0 | HP27: 0 | HQ27: 0 | HR27: 0 | HS27: 0 | HT27: 0 | HU27: 0 | HV27: 10.08 | HW27: 25.89 | HX27: 1.11 | HY27: 0 | HZ27: 10.41 | IA27: 21.57 | IB27: 12.33 | IC27: 26.23 | ID27: 2.39 | IE27: 110.01 | IF27: 0 | IG27: 2.18803 | IH27: 0.0161297 | II27: 0 | IJ27: 0 | IK27: 0.411296 | IL27: 0.118258 | IM27: 0.43522 | IN27: 0.00456421 | IO27: 3.17349 | IP27: 46.4 | IQ27: 0 | IR27: 46.4 | IS27: 0 | IT27: 0 | IU27: 9.48 | IV27: 10.53 | IW27: 9.48 | IX27: 10.53 | IY27: 9.48 | IZ27: 10.53 | JA27: 28.02 | JB27: 19.47
A28: 2017-07-21T08:58:27 | B28: U02R09 | C28: v29 09 S27 G20 M01 | D28: 9 | E28: 1 | F28: 2700 | G28: Proposed and Standard | H28: PASS | I28: 0 | J28: 46.6 | K28: 68.5515 | L28: 685.475 | M28: 141.255 | N28: 0 | O28: 0 | P28: 0 | Q28: 0 | R28: 615.745 | S28: 1066.04 | T28: 2371.31 | U28: 151.515 | V28: 5099.89 | W28: 77.8559 | X28: 0 | Y28: 0 | Z28: 0 | AA28: 112.944 | AB28: 0 | AC28: 45.121 | AD28: 0 | AE28: 0 | AF28: 235.921 | AG28: 0 | AH28: 0 | AI28: 0 | AJ28: 0 | AK28: 0 | AL28: 0 | AM28: 0 | AN28: 0 | AO28: 0 | AP28: 0 | AQ28: 5.88 | AR28: 18.61 | AS28: 1.1 | AT28: 0 | AU28: 7 | AV28: 0 | AW28: 0 | AX28: 4.97 | AY28: 11.34 | AZ28: 18.77 | BA28: 1.13 | BB28: 68.8 | BC28: 32.59 | BD28: 0 | BE28: 1.63708 | BF28: 0.0161297 | BG28: 0 | BH28: 0 | BI28: 0 | BJ28: 0 | BK28: 0.0912442 | BL28: 0.150544 | BM28: 0.302188 | BN28: 0.0133383 | BO28: 2.21052 | BP28: 1.65321 | BQ28: 68.5514 | BR28: 685.475 | BS28: 141.255 | BT28: 0 | BU28: 0 | BV28: 615.745 | BW28: 1066.04 | BX28: 2371.31 | BY28: 151.515 | BZ28: 5099.89 | CA28: 77.8559 | CB28: 0 | CC28: 0 | CD28: 0 | CE28: 112.944 | CF28: 0 | CG28: 45.121 | CH28: 0 | CI28: 0 | CJ28: 235.921 | CK28: 0 | CL28: 0 | CM28: 0 | CN28: 0 | CO28: 0 | CP28: 0 | CQ28: 0 | CR28: 0 | CS28: 0 | CT28: 0 | CU28: 5.88 | CV28: 18.61 | CW28: 1.1 | CX28: 0 | CY28: 7 | CZ28: 4.97 | DA28: 11.34 | DB28: 18.77 | DC28: 1.13 | DD28: 68.8 | DE28: 32.59 | DF28: 0 | DG28: 1.63708 | DH28: 0.0161297 | DI28: 0 | DJ28: 0 | DK28: 0.0912442 | DL28: 0.150544 | DM28: 0.302188 | DN28: 0.0133383 | DO28: 2.21052 | DP28: 1.65321 | DQ28: BEMCmpMgr 2016.3.0 (901) | DR28: CSE 0.836 EXE | DS28: MPCBECC | DT28: 0 | DU28: 0 | DV28: 0 | DW28: 0 | EN28: 68.5515 | EO28: 685.475 | EP28: 141.255 | EQ28: 0 | ER28: 0 | ES28: 0 | ET28: 0 | EU28: 615.745 | EV28: 1066.04 | EW28: 2371.31 | EX28: 151.515 | EY28: 5099.89 | EZ28: 77.8559 | FA28: 0 | FB28: 0 | FC28: 0 | FD28: 112.944 | FE28: 0 | FF28: 45.121 | FG28: 0 | FH28: 0 | FI28: 235.921 | FJ28: 0 | FK28: 0 | FL28: 0 | FM28: 0 | FN28: 0 | FO28: 0 | FP28: 0 | FQ28: 0 | FR28: 0 | FS28: 0 | FT28: 5.88 | FU28: 18.61 | FV28: 1.1 | FW28: 0 | FX28: 7 | FY28: 0 | FZ28: 0 | GA28: 4.97 | GB28: 11.34 | GC28: 18.77 | GD28: 1.13 | GE28: 68.8 | GF28: 0 | GG28: 1.63708 | GH28: 0.0161297 | GI28: 0 | GJ28: 0 | GK28: 0 | GL28: 0 | GM28: 0.0912442 | GN28: 0.150544 | GO28: 0.302188 | GP28: 0.0133383 | GQ28: 2.21052 | GR28: 218.568 | GS28: 1765.28 | GT28: 141.255 | GU28: 0 | GV28: 0 | GW28: 2615 | GX28: 989.001 | GY28: 3267.2 | GZ28: 327.5 | HA28: 9323.8 | HB28: 181.955 | HC28: 0 | HD28: 0 | HE28: 0 | HF28: 167.943 | HG28: 0 | HH28: 73.4 | HI28: 0 | HJ28: 0 | HK28: 423.297 | HL28: 0 | HM28: 0 | HN28: 0 | HO28: 0 | HP28: 0 | HQ28: 0 | HR28: 0 | HS28: 0 | HT28: 0 | HU28: 0 | HV28: 14.07 | HW28: 48.7 | HX28: 1.1 | HY28: 0 | HZ28: 10.41 | IA28: 21.33 | IB28: 12.25 | IC28: 25.98 | ID28: 2.35 | IE28: 136.19 | IF28: 0 | IG28: 3.50746 | IH28: 0.0161297 | II28: 0 | IJ28: 0 | IK28: 0.411296 | IL28: 0.118258 | IM28: 0.43522 | IN28: 0.00456421 | IO28: 4.49292 | IP28: 46.6 | IQ28: 0 | IR28: 46.6 | IS28: 0 | IT28: 0 | IU28: 20.17 | IV28: 12.42 | IW28: 20.17 | IX28: 12.42 | IY28: 20.17 | IZ28: 12.42 | JA28: 51.21 | JB28: 23.07
A29: 2017-07-21T08:58:45 | B29: U02R10 | C29: v29 10 S27 G20 M01 | D29: 10 | E29: 1 | F29: 2700 | G29: Proposed and Standard | H29: PASS | I29: 0 | J29: 44.8 | K29: 80.0498 | L29: 863.949 | M29: 141.255 | N29: 0 | O29: 0 | P29: 0 | Q29: 0 | R29: 615.745 | S29: 1068.97 | T29: 2371.31 | U29: 151.515 | V29: 5292.79 | W29: 90.9191 | X29: 0 | Y29: 0 | Z29: 0 | AA29: 112.094 | AB29: 0 | AC29: 45.121 | AD29: 0 | AE29: 0 | AF29: 248.134 | AG29: 0 | AH29: 0 | AI29: 0 | AJ29: 0 | AK29: 0 | AL29: 0 | AM29: 0 | AN29: 0 | AO29: 0 | AP29: 0 | AQ29: 6.85 | AR29: 18.56 | AS29: 1.1 | AT29: 0 | AU29: 6.96 | AV29: 0 | AW29: 0 | AX29: 4.91 | AY29: 11.34 | AZ29: 18.7 | BA29: 1.12 | BB29: 69.54 | BC29: 33.47 | BD29: 0 | BE29: 1.65855 | BF29: 0.0161297 | BG29: 0 | BH29: 0 | BI29: 0 | BJ29: 0 | BK29: 0.0912442 | BL29: 0.151267 | BM29: 0.302188 | BN29: 0.0133383 | BO29: 2.23272 | BP29: 1.67468 | BQ29: 80.0498 | BR29: 863.948 | BS29: 141.255 | BT29: 0 | BU29: 0 | BV29: 615.745 | BW29: 1068.97 | BX29: 2371.31 | BY29: 151.515 | BZ29: 5292.79 | CA29: 90.9191 | CB29: 0 | CC29: 0 | CD29: 0 | CE29: 112.094 | CF29: 0 | CG29: 45.121 | CH29: 0 | CI29: 0 | CJ29: 248.134 | CK29: 0 | CL29: 0 | CM29: 0 | CN29: 0 | CO29: 0 | CP29: 0 | CQ29: 0 | CR29: 0 | CS29: 0 | CT29: 0 | CU29: 6.85 | CV29: 18.56 | CW29: 1.1 | CX29: 0 | CY29: 6.96 | CZ29: 4.91 | DA29: 11.34 | DB29: 18.7 | DC29: 1.12 | DD29: 69.54 | DE29: 33.47 | DF29: 0 | DG29: 1.65855 | DH29: 0.0161297 | DI29: 0 | DJ29: 0 | DK29: 0.0912442 | DL29: 0.151267 | DM29: 0.302188 | DN29: 0.0133383 | DO29: 2.23272 | DP29: 1.67468 | DQ29: BEMCmpMgr 2016.3.0 (901) | DR29: CSE 0.836 EXE | DS29: MPCBECC | DT29: -2.45981e-08 | DU29: -2.45981e-08 | DV29: 0 | DW29: 0 | EN29: 80.0498 | EO29: 863.949 | EP29: 141.255 | EQ29: 0 | ER29: 0 | ES29: 0 | ET29: 0 | EU29: 615.745 | EV29: 1068.97 | EW29: 2371.31 | EX29: 151.515 | EY29: 5292.79 | EZ29: 90.9191 | FA29: 0 | FB29: 0 | FC29: 0 | FD29: 112.094 | FE29: 0 | FF29: 45.121 | FG29: 0 | FH29: 0 | FI29: 248.134 | FJ29: 0 | FK29: 0 | FL29: 0 | FM29: 0 | FN29: 0 | FO29: 0 | FP29: 0 | FQ29: 0 | FR29: 0 | FS29: 0 | FT29: 6.85 | FU29: 18.56 | FV29: 1.1 | FW29: 0 | FX29: 6.96 | FY29: 0 | FZ29: 0 | GA29: 4.91 | GB29: 11.34 | GC29: 18.7 | GD29: 1.12 | GE29: 69.54 | GF29: 0 | GG29: 1.65855 | GH29: 0.0161297 | GI29: 0 | GJ29: 0 | GK29: 0 | GL29: 0 | GM29: 0.0912442 | GN29: 0.151267 | GO29: 0.302188 | GP29: 0.0133383 | GQ29: 2.23272 | GR29: 247.178 | GS29: 2425.27 | GT29: 141.255 | GU29: 0 | GV29: 0 | GW29: 2615 | GX29: 989.001 | GY29: 3267.2 | GZ29: 327.5 | HA29: 10012.4 | HB29: 205.781 | HC29: 0 | HD29: 0 | HE29: 0 | HF29: 167.045 | HG29: 0 | HH29: 73.4 | HI29: 0 | HJ29: 0 | HK29: 446.227 | HL29: 0 | HM29: 0 | HN29: 0 | HO29: 0 | HP29: 0 | HQ29: 0 | HR29: 0 | HS29: 0 | HT29: 0 | HU29: 0 | HV29: 15.89 | HW29: 54.76 | HX29: 1.1 | HY29: 0 | HZ29: 10.37 | IA29: 21.1 | IB29: 12.24 | IC29: 25.87 | ID29: 2.32 | IE29: 143.65 | IF29: 0 | IG29: 3.87723 | IH29: 0.0161297 | II29: 0 | IJ29: 0 | IK29: 0.411296 | IL29: 0.118258 | IM29: 0.43522 | IN29: 0.00456421 | IO29: 4.8627 | IP29: 44.8 | IQ29: 0 | IR29: 44.8 | IS29: 0 | IT29: 0 | IU29: 20.19 | IV29: 13.28 | IW29: 20.19 | IX29: 13.28 | IY29: 20.19 | IZ29: 13.28 | JA29: 57.46 | JB29: 24.66
A30: 2017-07-21T08:58:27 | B30: U02R11 | C30: v29 11 S27 G20 M01 | D30: 11 | E30: 1 | F30: 2700 | G30: Proposed and Standard | H30: PASS | I30: 0 | J30: 48.2 | K30: 218.157 | L30: 1817.32 | M30: 141.255 | N30: 0 | O30: 0 | P30: 0 | Q30: 0 | R30: 615.745 | S30: 1062.03 | T30: 2371.31 | U30: 151.515 | V30: 6377.32 | W30: 247.721 | X30: 0 | Y30: 0 | Z30: 0 | AA30: 114.408 | AB30: 0 | AC30: 45.121 | AD30: 0 | AE30: 0 | AF30: 407.25 | AG30: 0 | AH30: 0 | AI30: 0 | AJ30: 0 | AK30: 0 | AL30: 0 | AM30: 0 | AN30: 0 | AO30: 0 | AP30: 0 | AQ30: 18.66 | AR30: 36.28 | AS30: 1.15 | AT30: 0 | AU30: 7.11 | AV30: 0 | AW30: 0 | AX30: 5.23 | AY30: 11.78 | AZ30: 19.6 | BA30: 1.19 | BB30: 101 | BC30: 63.2 | BD30: 0 | BE30: 2.07528 | BF30: 0.0161297 | BG30: 0 | BH30: 0 | BI30: 0 | BJ30: 0 | BK30: 0.0912442 | BL30: 0.151739 | BM30: 0.302188 | BN30: 0.0133383 | BO30: 2.64992 | BP30: 2.09141 | BQ30: 218.157 | BR30: 1817.32 | BS30: 141.255 | BT30: 0 | BU30: 0 | BV30: 615.745 | BW30: 1062.03 | BX30: 2371.31 | BY30: 151.515 | BZ30: 6377.32 | CA30: 247.721 | CB30: 0 | CC30: 0 | CD30: 0 | CE30: 114.408 | CF30: 0 | CG30: 45.121 | CH30: 0 | CI30: 0 | CJ30: 407.25 | CK30: 0 | CL30: 0 | CM30: 0 | CN30: 0 | CO30: 0 | CP30: 0 | CQ30: 0 | CR30: 0 | CS30: 0 | CT30: 0 | CU30: 18.66 | CV30: 36.28 | CW30: 1.15 | CX30: 0 | CY30: 7.11 | CZ30: 5.23 | DA30: 11.78 | DB30: 19.6 | DC30: 1.19 | DD30: 101 | DE30: 63.2 | DF30: 0 | DG30: 2.07528 | DH30: 0.0161297 | DI30: 0 | DJ30: 0 | DK30: 0.0912442 | DL30: 0.151739 | DM30: 0.302188 | DN30: 0.0133383 | DO30: 2.64992 | DP30: 2.09141 | DQ30: BEMCmpMgr 2016.3.0 (901) | DR30: CSE 0.836 EXE | DS30: MPCBECC | DT30: 0 | DU30: 0 | DV30: 0 | DW30: 0 | EN30: 218.157 | EO30: 1817.32 | EP30: 141.255 | EQ30: 0 | ER30: 0 | ES30: 0 | ET30: 0 | EU30: 615.745 | EV30: 1062.03 | EW30: 2371.31 | EX30: 151.515 | EY30: 6377.32 | EZ30: 247.721 | FA30: 0 | FB30: 0 | FC30: 0 | FD30: 114.408 | FE30: 0 | FF30: 45.121 | FG30: 0 | FH30: 0 | FI30: 407.25 | FJ30: 0 | FK30: 0 | FL30: 0 | FM30: 0 | FN30: 0 | FO30: 0 | FP30: 0 | FQ30: 0 | FR30: 0 | FS30: 0 | FT30: 18.66 | FU30: 36.28 | FV30: 1.15 | FW30: 0 | FX30: 7.11 | FY30: 0 | FZ30: 0 | GA30: 5.23 | GB30: 11.78 | GC30: 19.6 | GD30: 1.19 | GE30: 101 | GF30: 0 | GG30: 2.07528 | GH30: 0.0161297 | GI30: 0 | GJ30: 0 | GK30: 0 | GL30: 0 | GM30: 0.0912442 | GN30: 0.151739 | GO30: 0.302188 | GP30: 0.0133383 | GQ30: 2.64992 | GR30: 572.252 | GS30: 4348.97 | GT30: 141.255 | GU30: 0 | GV30: 0 | GW30: 2615 | GX30: 989.001 | GY30: 3267.2 | GZ30: 327.5 | HA30: 12261.2 | HB30: 476.301 | HC30: 0 | HD30: 0 | HE30: 0 | HF30: 169.056 | HG30: 0 | HH30: 73.4 | HI30: 0 | HJ30: 0 | HK30: 718.757 | HL30: 0 | HM30: 0 | HN30: 0 | HO30: 0 | HP30: 0 | HQ30: 0 | HR30: 0 | HS30: 0 | HT30: 0 | HU30: 0 | HV30: 36.83 | HW30: 81.52 | HX30: 1.15 | HY30: 0 | HZ30: 10.51 | IA30: 22.57 | IB30: 12.58 | IC30: 27.25 | ID30: 2.45 | IE30: 194.86 | IF30: 0 | IG30: 4.43206 | IH30: 0.0161297 | II30: 0 | IJ30: 0 | IK30: 0.411296 | IL30: 0.118258 | IM30: 0.43522 | IN30: 0.00456421 | IO30: 5.41753 | IP30: 48.2 | IQ30: 0 | IR30: 48.2 | IS30: 0 | IT30: 0 | IU30: 38.97 | IV30: 24.23 | IW30: 38.97 | IX30: 24.23 | IY30: 38.97 | IZ30: 24.23 | JA30: 86.64 | JB30: 43.37
A31: 2017-07-21T08:58:21 | B31: U02R12 | C31: v29 12 S27 G20 M01 | D31: 12 | E31: 1 | F31: 2700 | G31: Proposed and Standard | H31: PASS | I31: 0 | J31: 45.5 | K31: 222.005 | L31: 494.513 | M31: 141.255 | N31: 0 | O31: 0 | P31: 0 | Q31: 0 | R31: 615.745 | S31: 1041.91 | T31: 2371.31 | U31: 151.515 | V31: 5038.25 | W31: 252.052 | X31: 0 | Y31: 0 | Z31: 0 | AA31: 120.297 | AB31: 0 | AC31: 45.121 | AD31: 0 | AE31: 0 | AF31: 417.47 | AG31: 0 | AH31: 0 | AI31: 0 | AJ31: 0 | AK31: 0 | AL31: 0 | AM31: 0 | AN31: 0 | AO31: 0 | AP31: 0 | AQ31: 19.06 | AR31: 14.54 | AS31: 1.15 | AT31: 0 | AU31: 7.44 | AV31: 0 | AW31: 0 | AX31: 5.26 | AY31: 11.58 | AZ31: 19.64 | BA31: 1.2 | BB31: 79.87 | BC31: 42.19 | BD31: 0 | BE31: 0.987346 | BF31: 0.0161297 | BG31: 0 | BH31: 0 | BI31: 0 | BJ31: 0 | BK31: 0.0912442 | BL31: 0.148552 | BM31: 0.302188 | BN31: 0.0133383 | BO31: 1.5588 | BP31: 1.00348 | BQ31: 222.005 | BR31: 494.513 | BS31: 141.255 | BT31: 0 | BU31: 0 | BV31: 615.745 | BW31: 1041.91 | BX31: 2371.31 | BY31: 151.515 | BZ31: 5038.25 | CA31: 252.052 | CB31: 0 | CC31: 0 | CD31: 0 | CE31: 120.297 | CF31: 0 | CG31: 45.121 | CH31: 0 | CI31: 0 | CJ31: 417.47 | CK31: 0 | CL31: 0 | CM31: 0 | CN31: 0 | CO31: 0 | CP31: 0 | CQ31: 0 | CR31: 0 | CS31: 0 | CT31: 0 | CU31: 19.06 | CV31: 14.54 | CW31: 1.15 | CX31: 0 | CY31: 7.44 | CZ31: 5.26 | DA31: 11.58 | DB31: 19.64 | DC31: 1.2 | DD31: 79.87 | DE31: 42.19 | DF31: 0 | DG31: 0.987346 | DH31: 0.0161297 | DI31: 0 | DJ31: 0 | DK31: 0.0912442 | DL31: 0.148552 | DM31: 0.302188 | DN31: 0.0133383 | DO31: 1.5588 | DP31: 1.00348 | DQ31: BEMCmpMgr 2016.3.0 (901) | DR31: CSE 0.836 EXE | DS31: MPCBECC | DT31: 0 | DU31: 0 | DV31: 0 | DW31: 0 | EN31: 222.005 | EO31: 494.513 | EP31: 141.255 | EQ31: 0 | ER31: 0 | ES31: 0 | ET31: 0 | EU31: 615.745 | EV31: 1041.91 | EW31: 2371.31 | EX31: 151.515 | EY31: 5038.25 | EZ31: 252.052 | FA31: 0 | FB31: 0 | FC31: 0 | FD31: 120.297 | FE31: 0 | FF31: 45.121 | FG31: 0 | FH31: 0 | FI31: 417.47 | FJ31: 0 | FK31: 0 | FL31: 0 | FM31: 0 | FN31: 0 | FO31: 0 | FP31: 0 | FQ31: 0 | FR31: 0 | FS31: 0 | FT31: 19.06 | FU31: 14.54 | FV31: 1.15 | FW31: 0 | FX31: 7.44 | FY31: 0 | FZ31: 0 | GA31: 5.26 | GB31: 11.58 | GC31: 19.64 | GD31: 1.2 | GE31: 79.87 | GF31: 0 | GG31: 0.987346 | GH31: 0.0161297 | GI31: 0 | GJ31: 0 | GK31: 0 | GL31: 0 | GM31: 0.0912442 | GN31: 0.148552 | GO31: 0.302188 | GP31: 0.0133383 | GQ31: 1.5588 | GR31: 567.866 | GS31: 1687.25 | GT31: 141.255 | GU31: 0 | GV31: 0 | GW31: 2615 | GX31: 989.001 | GY31: 3267.2 | GZ31: 327.5 | HA31: 9595.07 | HB31: 472.578 | HC31: 0 | HD31: 0 | HE31: 0 | HF31: 174.765 | HG31: 0 | HH31: 73.4 | HI31: 0 | HJ31: 0 | HK31: 720.742 | HL31: 0 | HM31: 0 | HN31: 0 | HO31: 0 | HP31: 0 | HQ31: 0 | HR31: 0 | HS31: 0 | HT31: 0 | HU31: 0 | HV31: 36.66 | HW31: 48.28 | HX31: 1.15 | HY31: 0 | HZ31: 10.81 | IA31: 22.7 | IB31: 12.58 | IC31: 27.31 | ID31: 2.44 | IE31: 161.93 | IF31: 0 | IG31: 3.3595 | IH31: 0.0161297 | II31: 0 | IJ31: 0 | IK31: 0.411296 | IL31: 0.118258 | IM31: 0.43522 | IN31: 0.00456421 | IO31: 4.34496 | IP31: 45.5 | IQ31: 0 | IR31: 45.5 | IS31: 0 | IT31: 0 | IU31: 17.27 | IV31: 24.92 | IW31: 17.27 | IX31: 24.92 | IY31: 17.27 | IZ31: 24.92 | JA31: 53.38 | JB31: 43.52
A32: 2017-07-21T08:58:27 | B32: U02R13 | C32: v29 13 S27 G20 M01 | D32: 13 | E32: 1 | F32: 2700 | G32: Proposed and Standard | H32: PASS | I32: 0 | J32: 50 | K32: 195.371 | L32: 2020.81 | M32: 141.255 | N32: 0 | O32: 0 | P32: 0 | Q32: 0 | R32: 615.745 | S32: 1072.59 | T32: 2371.31 | U32: 151.515 | V32: 6568.59 | W32: 221.846 | X32: 0 | Y32: 0 | Z32: 0 | AA32: 112.172 | AB32: 0 | AC32: 45.121 | AD32: 0 | AE32: 0 | AF32: 379.139 | AG32: 0 | AH32: 0 | AI32: 0 | AJ32: 0 | AK32: 0 | AL32: 0 | AM32: 0 | AN32: 0 | AO32: 0 | AP32: 0 | AQ32: 16.84 | AR32: 39.49 | AS32: 1.15 | AT32: 0 | AU32: 6.98 | AV32: 0 | AW32: 0 | AX32: 5.21 | AY32: 11.84 | AZ32: 19.59 | BA32: 1.19 | BB32: 102.29 | BC32: 64.46 | BD32: 0 | BE32: 2.57429 | BF32: 0.0161297 | BG32: 0 | BH32: 0 | BI32: 0 | BJ32: 0 | BK32: 0.0912442 | BL32: 0.152898 | BM32: 0.302188 | BN32: 0.0133383 | BO32: 3.15009 | BP32: 2.59042 | BQ32: 195.371 | BR32: 2020.81 | BS32: 141.255 | BT32: 0 | BU32: 0 | BV32: 615.745 | BW32: 1072.59 | BX32: 2371.31 | BY32: 151.515 | BZ32: 6568.59 | CA32: 221.846 | CB32: 0 | CC32: 0 | CD32: 0 | CE32: 112.172 | CF32: 0 | CG32: 45.121 | CH32: 0 | CI32: 0 | CJ32: 379.139 | CK32: 0 | CL32: 0 | CM32: 0 | CN32: 0 | CO32: 0 | CP32: 0 | CQ32: 0 | CR32: 0 | CS32: 0 | CT32: 0 | CU32: 16.84 | CV32: 39.49 | CW32: 1.15 | CX32: 0 | CY32: 6.98 | CZ32: 5.21 | DA32: 11.84 | DB32: 19.59 | DC32: 1.19 | DD32: 102.29 | DE32: 64.46 | DF32: 0 | DG32: 2.57429 | DH32: 0.0161297 | DI32: 0 | DJ32: 0 | DK32: 0.0912442 | DL32: 0.152898 | DM32: 0.302188 | DN32: 0.0133383 | DO32: 3.15009 | DP32: 2.59042 | DQ32: BEMCmpMgr 2016.3.0 (901) | DR32: CSE 0.836 EXE | DS32: MPCBECC | DT32: 0 | DU32: 0 | DV32: 0 | DW32: 0 | EN32: 195.371 | EO32: 2020.81 | EP32: 141.255 | EQ32: 0 | ER32: 0 | ES32: 0 | ET32: 0 | EU32: 615.745 | EV32: 1072.59 | EW32: 2371.31 | EX32: 151.515 | EY32: 6568.59 | EZ32: 221.846 | FA32: 0 | FB32: 0 | FC32: 0 | FD32: 112.172 | FE32: 0 | FF32: 45.121 | FG32: 0 | FH32: 0 | FI32: 379.139 | FJ32: 0 | FK32: 0 | FL32: 0 | FM32: 0 | FN32: 0 | FO32: 0 | FP32: 0 | FQ32: 0 | FR32: 0 | FS32: 0 | FT32: 16.84 | FU32: 39.49 | FV32: 1.15 | FW32: 0 | FX32: 6.98 | FY32: 0 | FZ32: 0 | GA32: 5.21 | GB32: 11.84 | GC32: 19.59 | GD32: 1.19 | GE32: 102.29 | GF32: 0 | GG32: 2.57429 | GH32: 0.0161297 | GI32: 0 | GJ32: 0 | GK32: 0 | GL32: 0 | GM32: 0.0912442 | GN32: 0.152898 | GO32: 0.302188 | GP32: 0.0133383 | GQ32: 3.15009 | GR32: 516.217 | GS32: 4730.25 | GT32: 141.255 | GU32: 0 | GV32: 0 | GW32: 2615 | GX32: 989.001 | GY32: 3267.2 | GZ32: 327.5 | HA32: 12586.4 | HB32: 429.659 | HC32: 0 | HD32: 0 | HE32: 0 | HF32: 166.831 | HG32: 0 | HH32: 73.4 | HI32: 0 | HJ32: 0 | HK32: 669.89 | HL32: 0 | HM32: 0 | HN32: 0 | HO32: 0 | HP32: 0 | HQ32: 0 | HR32: 0 | HS32: 0 | HT32: 0 | HU32: 0 | HV32: 33.47 | HW32: 81.69 | HX32: 1.15 | HY32: 0 | HZ32: 10.38 | IA32: 22.48 | IB32: 12.58 | IC32: 27.23 | ID32: 2.41 | IE32: 191.39 | IF32: 0 | IG32: 4.74786 | IH32: 0.0161297 | II32: 0 | IJ32: 0 | IK32: 0.411296 | IL32: 0.118258 | IM32: 0.43522 | IN32: 0.00456421 | IO32: 5.73333 | IP32: 50 | IQ32: 0 | IR32: 50 | IS32: 0 | IT32: 0 | IU32: 42.03 | IV32: 22.43 | IW32: 42.03 | IX32: 22.43 | IY32: 42.03 | IZ32: 22.43 | JA32: 86.44 | JB32: 40.25
A33: 2017-07-21T08:58:50 | B33: U02R14 | C33: v29 14 S27 G20 M01 | D33: 14 | E33: 1 | F33: 2700 | G33: Proposed and Standard | H33: PASS | I33: 0 | J33: 49.2 | K33: 209.888 | L33: 1788.22 | M33: 141.255 | N33: 0 | O33: 0 | P33: 0 | Q33: 0 | R33: 615.745 | S33: 1059.71 | T33: 2371.31 | U33: 151.515 | V33: 6337.64 | W33: 238.585 | X33: 0 | Y33: 0 | Z33: 0 | AA33: 115.72 | AB33: 0 | AC33: 45.121 | AD33: 0 | AE33: 0 | AF33: 399.426 | AG33: 0 | AH33: 0 | AI33: 0 | AJ33: 0 | AK33: 0 | AL33: 0 | AM33: 0 | AN33: 0 | AO33: 0 | AP33: 0 | AQ33: 18.07 | AR33: 34.13 | AS33: 1.1 | AT33: 0 | AU33: 7.25 | AV33: 0 | AW33: 0 | AX33: 4.98 | AY33: 11.39 | AZ33: 18.75 | BA33: 1.13 | BB33: 96.8 | BC33: 60.55 | BD33: 0 | BE33: 2.38019 | BF33: 0.0161297 | BG33: 0 | BH33: 0 | BI33: 0 | BJ33: 0 | BK33: 0.0912442 | BL33: 0.152859 | BM33: 0.302188 | BN33: 0.0133383 | BO33: 2.95595 | BP33: 2.39632 | BQ33: 209.888 | BR33: 1788.22 | BS33: 141.255 | BT33: 0 | BU33: 0 | BV33: 615.745 | BW33: 1059.71 | BX33: 2371.31 | BY33: 151.515 | BZ33: 6337.64 | CA33: 238.585 | CB33: 0 | CC33: 0 | CD33: 0 | CE33: 115.72 | CF33: 0 | CG33: 45.121 | CH33: 0 | CI33: 0 | CJ33: 399.426 | CK33: 0 | CL33: 0 | CM33: 0 | CN33: 0 | CO33: 0 | CP33: 0 | CQ33: 0 | CR33: 0 | CS33: 0 | CT33: 0 | CU33: 18.07 | CV33: 34.13 | CW33: 1.1 | CX33: 0 | CY33: 7.25 | CZ33: 4.98 | DA33: 11.39 | DB33: 18.75 | DC33: 1.13 | DD33: 96.8 | DE33: 60.55 | DF33: 0 | DG33: 2.38019 | DH33: 0.0161297 | DI33: 0 | DJ33: 0 | DK33: 0.0912442 | DL33: 0.152859 | DM33: 0.302188 | DN33: 0.0133383 | DO33: 2.95595 | DP33: 2.39632 | DQ33: BEMCmpMgr 2016.3.0 (901) | DR33: CSE 0.836 EXE | DS33: MPCBECC | DT33: 0 | DU33: 0 | DV33: 0 | DW33: 0 | EN33: 209.888 | EO33: 1788.22 | EP33: 141.255 | EQ33: 0 | ER33: 0 | ES33: 0 | ET33: 0 | EU33: 615.745 | EV33: 1059.71 | EW33: 2371.31 | EX33: 151.515 | EY33: 6337.64 | EZ33: 238.585 | FA33: 0 | FB33: 0 | FC33: 0 | FD33: 115.72 | FE33: 0 | FF33: 45.121 | FG33: 0 | FH33: 0 | FI33: 399.426 | FJ33: 0 | FK33: 0 | FL33: 0 | FM33: 0 | FN33: 0 | FO33: 0 | FP33: 0 | FQ33: 0 | FR33: 0 | FS33: 0 | FT33: 18.07 | FU33: 34.13 | FV33: 1.1 | FW33: 0 | FX33: 7.25 | FY33: 0 | FZ33: 0 | GA33: 4.98 | GB33: 11.39 | GC33: 18.75 | GD33: 1.13 | GE33: 96.8 | GF33: 0 | GG33: 2.38019 | GH33: 0.0161297 | GI33: 0 | GJ33: 0 | GK33: 0 | GL33: 0 | GM33: 0.0912442 | GN33: 0.152859 | GO33: 0.302188 | GP33: 0.0133383 | GQ33: 2.95595 | GR33: 570.406 | GS33: 4180.35 | GT33: 141.255 | GU33: 0 | GV33: 0 | GW33: 2615 | GX33: 989.001 | GY33: 3267.2 | GZ33: 327.5 | HA33: 12090.7 | HB33: 475.275 | HC33: 0 | HD33: 0 | HE33: 0 | HF33: 170.198 | HG33: 0 | HH33: 73.4 | HI33: 0 | HJ33: 0 | HK33: 718.872 | HL33: 0 | HM33: 0 | HN33: 0 | HO33: 0 | HP33: 0 | HQ33: 0 | HR33: 0 | HS33: 0 | HT33: 0 | HU33: 0 | HV33: 36.87 | HW33: 72.93 | HX33: 1.1 | HY33: 0 | HZ33: 10.66 | IA33: 21.53 | IB33: 12.25 | IC33: 26.08 | ID33: 2.33 | IE33: 183.75 | IF33: 0 | IG33: 4.41872 | IH33: 0.0161297 | II33: 0 | IJ33: 0 | IK33: 0.411296 | IL33: 0.118258 | IM33: 0.43522 | IN33: 0.00456421 | IO33: 5.40419 | IP33: 49.2 | IQ33: 0 | IR33: 49.2 | IS33: 0 | IT33: 0 | IU33: 36.63 | IV33: 23.92 | IW33: 36.63 | IX33: 23.92 | IY33: 36.63 | IZ33: 23.92 | JA33: 77.74 | JB33: 43.82
A34: 2017-07-21T08:58:47 | B34: U02R15 | C34: v29 15 S27 G20 M01 | D34: 15 | E34: 1 | F34: 2700 | G34: Proposed and Standard | H34: PASS | I34: 0 | J34: 53.4 | K34: 17.3216 | L34: 5915.7 | M34: 141.255 | N34: 0 | O34: 0 | P34: 0 | Q34: 0 | R34: 615.745 | S34: 1151.32 | T34: 2371.31 | U34: 151.515 | V34: 10364.2 | W34: 19.6702 | X34: 0 | Y34: 0 | Z34: 0 | AA34: 83.5898 | AB34: 0 | AC34: 45.121 | AD34: 0 | AE34: 0 | AF34: 148.381 | AG34: 0 | AH34: 0 | AI34: 0 | AJ34: 0 | AK34: 0 | AL34: 0 | AM34: 0 | AN34: 0 | AO34: 0 | AP34: 0 | AQ34: 1.52 | AR34: 82.68 | AS34: 1.1 | AT34: 0 | AU34: 5.27 | AV34: 0 | AW34: 0 | AX34: 5.01 | AY34: 12.08 | AZ34: 18.79 | BA34: 1.14 | BB34: 127.59 | BC34: 90.57 | BD34: 0 | BE34: 4.4561 | BF34: 0.0161297 | BG34: 0 | BH34: 0 | BI34: 0 | BJ34: 0 | BK34: 0.0912442 | BL34: 0.158313 | BM34: 0.302188 | BN34: 0.0133383 | BO34: 5.03731 | BP34: 4.47223 | BQ34: 17.3217 | BR34: 5915.7 | BS34: 141.255 | BT34: 0 | BU34: 0 | BV34: 615.745 | BW34: 1151.32 | BX34: 2371.31 | BY34: 151.515 | BZ34: 10364.2 | CA34: 19.6703 | CB34: 0 | CC34: 0 | CD34: 0 | CE34: 83.5898 | CF34: 0 | CG34: 45.121 | CH34: 0 | CI34: 0 | CJ34: 148.381 | CK34: 0 | CL34: 0 | CM34: 0 | CN34: 0 | CO34: 0 | CP34: 0 | CQ34: 0 | CR34: 0 | CS34: 0 | CT34: 0 | CU34: 1.52 | CV34: 82.68 | CW34: 1.1 | CX34: 0 | CY34: 5.27 | CZ34: 5.01 | DA34: 12.08 | DB34: 18.79 | DC34: 1.14 | DD34: 127.59 | DE34: 90.57 | DF34: 0 | DG34: 4.4561 | DH34: 0.0161297 | DI34: 0 | DJ34: 0 | DK34: 0.0912442 | DL34: 0.158313 | DM34: 0.302188 | DN34: 0.0133383 | DO34: 5.03731 | DP34: 4.47223 | DQ34: BEMCmpMgr 2016.3.0 (901) | DR34: CSE 0.836 EXE | DS34: MPCBECC | DT34: -2.8401e-09 | DU34: -2.8401e-09 | DV34: 0 | DW34: 0 | EN34: 17.3216 | EO34: 5915.7 | EP34: 141.255 | EQ34: 0 | ER34: 0 | ES34: 0 | ET34: 0 | EU34: 615.745 | EV34: 1151.32 | EW34: 2371.31 | EX34: 151.515 | EY34: 10364.2 | EZ34: 19.6702 | FA34: 0 | FB34: 0 | FC34: 0 | FD34: 83.5898 | FE34: 0 | FF34: 45.121 | FG34: 0 | FH34: 0 | FI34: 148.381 | FJ34: 0 | FK34: 0 | FL34: 0 | FM34: 0 | FN34: 0 | FO34: 0 | FP34: 0 | FQ34: 0 | FR34: 0 | FS34: 0 | FT34: 1.52 | FU34: 82.68 | FV34: 1.1 | FW34: 0 | FX34: 5.27 | FY34: 0 | FZ34: 0 | GA34: 5.01 | GB34: 12.08 | GC34: 18.79 | GD34: 1.14 | GE34: 127.59 | GF34: 0 | GG34: 4.4561 | GH34: 0.0161297 | GI34: 0 | GJ34: 0 | GK34: 0 | GL34: 0 | GM34: 0.0912442 | GN34: 0.158313 | GO34: 0.302188 | GP34: 0.0133383 | GQ34: 5.03731 | GR34: 76.3889 | GS34: 12431.4 | GT34: 141.255 | GU34: 0 | GV34: 0 | GW34: 2615 | GX34: 989.001 | GY34: 3267.2 | GZ34: 327.5 | HA34: 19847.7 | HB34: 63.5845 | HC34: 0 | HD34: 0 | HE34: 0 | HF34: 138.687 | HG34: 0 | HH34: 73.4 | HI34: 0 | HJ34: 0 | HK34: 275.672 | HL34: 0 | HM34: 0 | HN34: 0 | HO34: 0 | HP34: 0 | HQ34: 0 | HR34: 0 | HS34: 0 | HT34: 0 | HU34: 0 | HV34: 5 | HW34: 153.13 | HX34: 1.1 | HY34: 0 | HZ34: 8.75 | IA34: 21.65 | IB34: 12.26 | IC34: 26.12 | ID34: 2.36 | IE34: 230.37 | IF34: 0 | IG34: 6.78192 | IH34: 0.0161297 | II34: 0 | IJ34: 0 | IK34: 0.411296 | IL34: 0.118258 | IM34: 0.43522 | IN34: 0.00456421 | IO34: 7.76739 | IP34: 53.4 | IQ34: 0 | IR34: 53.4 | IS34: 0 | IT34: 0 | IU34: 83.9 | IV34: 6.67 | IW34: 83.9 | IX34: 6.67 | IY34: 83.9 | IZ34: 6.67 | JA34: 154.72 | JB34: 13.26
A35: 2017-07-21T08:58:45 | B35: U02R16 | C35: v29 16 S27 G20 M01 | D35: 16 | E35: 1 | F35: 2700 | G35: Proposed and Standard | H35: PASS | I35: 0 | J35: 58.5 | K35: 485.312 | L35: 140.55 | M35: 141.255 | N35: 0 | O35: 0 | P35: 0 | Q35: 0 | R35: 615.745 | S35: 991.945 | T35: 2371.31 | U35: 151.515 | V35: 4897.63 | W35: 552.491 | X35: 0 | Y35: 0 | Z35: 0 | AA35: 143.185 | AB35: 0 | AC35: 45.121 | AD35: 0 | AE35: 0 | AF35: 740.798 | AG35: 0 | AH35: 0 | AI35: 0 | AJ35: 0 | AK35: 0 | AL35: 0 | AM35: 0 | AN35: 0 | AO35: 0 | AP35: 0 | AQ35: 40.51 | AR35: 3.98 | AS35: 1.09 | AT35: 0 | AU35: 8.9 | AV35: 0 | AW35: 0 | AX35: 4.94 | AY35: 10.81 | AZ35: 18.69 | BA35: 1.13 | BB35: 90.05 | BC35: 54.48 | BD35: 0 | BE35: 0.249532 | BF35: 0.0161297 | BG35: 0 | BH35: 0 | BI35: 0 | BJ35: 0 | BK35: 0.0912442 | BL35: 0.14356 | BM35: 0.302188 | BN35: 0.0133383 | BO35: 0.815992 | BP35: 0.265662 | BQ35: 485.312 | BR35: 140.55 | BS35: 141.255 | BT35: 0 | BU35: 0 | BV35: 615.745 | BW35: 991.945 | BX35: 2371.31 | BY35: 151.515 | BZ35: 4897.63 | CA35: 552.491 | CB35: 0 | CC35: 0 | CD35: 0 | CE35: 143.185 | CF35: 0 | CG35: 45.121 | CH35: 0 | CI35: 0 | CJ35: 740.797 | CK35: 0 | CL35: 0 | CM35: 0 | CN35: 0 | CO35: 0 | CP35: 0 | CQ35: 0 | CR35: 0 | CS35: 0 | CT35: 0 | CU35: 40.51 | CV35: 3.98 | CW35: 1.09 | CX35: 0 | CY35: 8.9 | CZ35: 4.94 | DA35: 10.81 | DB35: 18.69 | DC35: 1.13 | DD35: 90.05 | DE35: 54.48 | DF35: 0 | DG35: 0.249533 | DH35: 0.0161297 | DI35: 0 | DJ35: 0 | DK35: 0.0912442 | DL35: 0.14356 | DM35: 0.302188 | DN35: 0.0133383 | DO35: 0.815993 | DP35: 0.265663 | DQ35: BEMCmpMgr 2016.3.0 (901) | DR35: CSE 0.836 EXE | DS35: MPCBECC | DT35: 1.05512e-06 | DU35: 1.04237e-06 | DV35: 0 | DW35: 0 | EN35: 485.312 | EO35: 140.55 | EP35: 141.255 | EQ35: 0 | ER35: 0 | ES35: 0 | ET35: 0 | EU35: 615.745 | EV35: 991.945 | EW35: 2371.31 | EX35: 151.515 | EY35: 4897.63 | EZ35: 552.491 | FA35: 0 | FB35: 0 | FC35: 0 | FD35: 143.185 | FE35: 0 | FF35: 45.121 | FG35: 0 | FH35: 0 | FI35: 740.798 | FJ35: 0 | FK35: 0 | FL35: 0 | FM35: 0 | FN35: 0 | FO35: 0 | FP35: 0 | FQ35: 0 | FR35: 0 | FS35: 0 | FT35: 40.51 | FU35: 3.98 | FV35: 1.09 | FW35: 0 | FX35: 8.9 | FY35: 0 | FZ35: 0 | GA35: 4.94 | GB35: 10.81 | GC35: 18.69 | GD35: 1.13 | GE35: 90.05 | GF35: 0 | GG35: 0.249532 | GH35: 0.0161297 | GI35: 0 | GJ35: 0 | GK35: 0 | GL35: 0 | GM35: 0.0912442 | GN35: 0.14356 | GO35: 0.302188 | GP35: 0.0133383 | GQ35: 0.815992 | GR35: 705.419 | GS35: 563.794 | GT35: 141.255 | GU35: 0 | GV35: 0 | GW35: 2615 | GX35: 989.001 | GY35: 3267.2 | GZ35: 327.5 | HA35: 8609.17 | HB35: 588.663 | HC35: 0 | HD35: 0 | HE35: 0 | HF35: 196.175 | HG35: 0 | HH35: 73.4 | HI35: 0 | HJ35: 0 | HK35: 858.238 | HL35: 0 | HM35: 0 | HN35: 0 | HO35: 0 | HP35: 0 | HQ35: 0 | HR35: 0 | HS35: 0 | HT35: 0 | HU35: 0 | HV35: 44.47 | HW35: 16.08 | HX35: 1.09 | HY35: 0 | HZ35: 12.2 | IA35: 21.32 | IB35: 12.23 | IC35: 25.97 | ID35: 2.31 | IE35: 135.67 | IF35: 0 | IG35: 1.11441 | IH35: 0.0161297 | II35: 0 | IJ35: 0 | IK35: 0.411296 | IL35: 0.118258 | IM35: 0.43522 | IN35: 0.00456421 | IO35: 2.09988 | IP35: 58.5 | IQ35: 0 | IR35: 58.5 | IS35: 0 | IT35: 0 | IU35: 8.28 | IV35: 46.2 | IW35: 8.28 | IX35: 46.2 | IY35: 8.28 | IZ35: 46.2 | JA35: 21.74 | JB35: 52.1
A36: 2017-07-21T08:59:18 | B36: U03R01 | C36: v29 01 S69 G15 M01 | D36: 1 | E36: 8 | F36: 6960 | G36: Proposed and Standard | H36: PASS | I36: 0 | J36: 62.1 | K36: 427.977 | L36: 9.49399 | M36: 785.772 | N36: 0 | O36: 0 | P36: 0 | Q36: 0 | R36: 2033.7 | S36: 5319.46 | T36: 12062 | U36: 433.914 | V36: 21072.3 | W36: 485.944 | X36: 0 | Y36: 0 | Z36: 0 | AA36: 771.148 | AB36: 0 | AC36: 287.954 | AD36: 0 | AE36: 0 | AF36: 1545.05 | AG36: 0 | AH36: 0 | AI36: 0 | AJ36: 0 | AK36: 0 | AL36: 0 | AM36: 0 | AN36: 0 | AO36: 0 | AP36: 0 | AQ36: 13.83 | AR36: 0.1 | AS36: 2.47 | AT36: 0 | AU36: 18.33 | AV36: 0 | AW36: 0 | AX36: 6.6 | AY36: 23.95 | AZ36: 38.54 | BA36: 1.31 | BB36: 105.13 | BC36: 34.73 | BD36: 0 | BE36: 0.00340564 | BF36: 0.0897263 | BG36: 0 | BH36: 0 | BI36: 0 | BJ36: 0 | BK36: 0.301364 | BL36: 0.704759 | BM36: 1.54311 | BN36: 0.0381986 | BO36: 2.68056 | BP36: 0.0931319 | BQ36: 427.977 | BR36: 9.49399 | BS36: 785.772 | BT36: 0 | BU36: 0 | BV36: 2033.7 | BW36: 5319.46 | BX36: 12062 | BY36: 433.914 | BZ36: 21072.3 | CA36: 485.944 | CB36: 0 | CC36: 0 | CD36: 0 | CE36: 771.148 | CF36: 0 | CG36: 287.954 | CH36: 0 | CI36: 0 | CJ36: 1545.05 | CK36: 0 | CL36: 0 | CM36: 0 | CN36: 0 | CO36: 0 | CP36: 0 | CQ36: 0 | CR36: 0 | CS36: 0 | CT36: 0 | CU36: 13.83 | CV36: 0.1 | CW36: 2.47 | CX36: 0 | CY36: 18.33 | CZ36: 6.6 | DA36: 23.95 | DB36: 38.54 | DC36: 1.31 | DD36: 105.13 | DE36: 34.73 | DF36: 0 | DG36: 0.00340564 | DH36: 0.0897263 | DI36: 0 | DJ36: 0 | DK36: 0.301364 | DL36: 0.704759 | DM36: 1.54311 | DN36: 0.0381986 | DO36: 2.68056 | DP36: 0.0931319 | DQ36: BEMCmpMgr 2016.3.0 (901) | DR36: CSE 0.836 EXE | DS36: MPCBECC | DT36: 0 | DU36: 0 | DV36: 0 | DW36: 0 | EN36: 427.977 | EO36: 9.49399 | EP36: 785.772 | EQ36: 0 | ER36: 0 | ES36: 0 | ET36: 0 | EU36: 2033.7 | EV36: 5319.46 | EW36: 12062 | EX36: 433.914 | EY36: 21072.3 | EZ36: 485.944 | FA36: 0 | FB36: 0 | FC36: 0 | FD36: 771.148 | FE36: 0 | FF36: 287.954 | FG36: 0 | FH36: 0 | FI36: 1545.05 | FJ36: 0 | FK36: 0 | FL36: 0 | FM36: 0 | FN36: 0 | FO36: 0 | FP36: 0 | FQ36: 0 | FR36: 0 | FS36: 0 | FT36: 13.83 | FU36: 0.1 | FV36: 2.47 | FW36: 0 | FX36: 18.33 | FY36: 0 | FZ36: 0 | GA36: 6.6 | GB36: 23.95 | GC36: 38.54 | GD36: 1.31 | GE36: 105.13 | GF36: 0 | GG36: 0.00340564 | GH36: 0.0897263 | GI36: 0 | GJ36: 0 | GK36: 0 | GL36: 0 | GM36: 0.301364 | GN36: 0.704759 | GO36: 1.54311 | GP36: 0.0381986 | GQ36: 2.68056 | GR36: 802.349 | GS36: 0.853248 | GT36: 785.772 | GU36: 0 | GV36: 0 | GW36: 5894.96 | GX36: 6547.68 | GY36: 10697.7 | GZ36: 540.499 | HA36: 25269.9 | HB36: 667.772 | HC36: 0 | HD36: 0 | HE36: 0 | HF36: 1216.1 | HG36: 0 | HH36: 291.124 | HI36: 0 | HJ36: 0 | HK36: 2175 | HL36: 0 | HM36: 0 | HN36: 0 | HO36: 0 | HP36: 0 | HQ36: 0 | HR36: 0 | HS36: 0 | HT36: 0 | HU36: 0 | HV36: 19.55 | HW36: 0.01 | HX36: 2.47 | HY36: 0 | HZ36: 28.91 | IA36: 19.34 | IB36: 27.59 | IC36: 34.31 | ID36: 1.54 | IE36: 133.72 | IF36: 0 | IG36: 0 | IH36: 0.0897263 | II36: 0 | IJ36: 0 | IK36: 0.92718 | IL36: 0.771174 | IM36: 1.42503 | IN36: 0.00753268 | IO36: 3.22065 | IP36: 62.1 | IQ36: 0 | IR36: 62.1 | IS36: 0 | IT36: 0 | IU36: 3.74 | IV36: 30.99 | IW36: 3.74 | IX36: 30.99 | IY36: 3.74 | IZ36: 30.99 | JA36: 4.62 | JB36: 46.32
A37: 2017-07-21T08:58:57 | B37: U03R02 | C37: v29 02 S69 G15 M01 | D37: 2 | E37: 8 | F37: 6960 | G37: Proposed and Standard | H37: PASS | I37: 0 | J37: 58.4 | K37: 306.712 | L37: 567.562 | M37: 785.772 | N37: 0 | O37: 0 | P37: 0 | Q37: 0 | R37: 2033.7 | S37: 5410.85 | T37: 12062 | U37: 433.914 | V37: 21600.5 | W37: 348.242 | X37: 0 | Y37: 0 | Z37: 0 | AA37: 692.323 | AB37: 0 | AC37: 287.954 | AD37: 0 | AE37: 0 | AF37: 1328.52 | AG37: 0 | AH37: 0 | AI37: 0 | AJ37: 0 | AK37: 0 | AL37: 0 | AM37: 0 | AN37: 0 | AO37: 0 | AP37: 0 | AQ37: 10.19 | AR37: 7.07 | AS37: 2.47 | AT37: 0 | AU37: 16.54 | AV37: 0 | AW37: 0 | AX37: 6.61 | AY37: 24.34 | AZ37: 38.58 | BA37: 1.31 | BB37: 107.11 | BC37: 36.27 | BD37: 0 | BE37: 1.11416 | BF37: 0.0897263 | BG37: 0 | BH37: 0 | BI37: 0 | BJ37: 0 | BK37: 0.301364 | BL37: 0.727954 | BM37: 1.54311 | BN37: 0.0381986 | BO37: 3.81452 | BP37: 1.20389 | BQ37: 306.712 | BR37: 567.562 | BS37: 785.772 | BT37: 0 | BU37: 0 | BV37: 2033.7 | BW37: 5410.85 | BX37: 12062 | BY37: 433.914 | BZ37: 21600.5 | CA37: 348.242 | CB37: 0 | CC37: 0 | CD37: 0 | CE37: 692.323 | CF37: 0 | CG37: 287.954 | CH37: 0 | CI37: 0 | CJ37: 1328.52 | CK37: 0 | CL37: 0 | CM37: 0 | CN37: 0 | CO37: 0 | CP37: 0 | CQ37: 0 | CR37: 0 | CS37: 0 | CT37: 0 | CU37: 10.19 | CV37: 7.07 | CW37: 2.47 | CX37: 0 | CY37: 16.54 | CZ37: 6.61 | DA37: 24.34 | DB37: 38.58 | DC37: 1.31 | DD37: 107.11 | DE37: 36.27 | DF37: 0 | DG37: 1.11416 | DH37: 0.0897263 | DI37: 0 | DJ37: 0 | DK37: 0.301364 | DL37: 0.727954 | DM37: 1.54311 | DN37: 0.0381986 | DO37: 3.81452 | DP37: 1.20389 | DQ37: BEMCmpMgr 2016.3.0 (901) | DR37: CSE 0.836 EXE | DS37: MPCBECC | DT37: 0 | DU37: 0 | DV37: 0 | DW37: 0 | EN37: 306.712 | EO37: 567.562 | EP37: 785.772 | EQ37: 0 | ER37: 0 | ES37: 0 | ET37: 0 | EU37: 2033.7 | EV37: 5410.85 | EW37: 12062 | EX37: 433.914 | EY37: 21600.5 | EZ37: 348.242 | FA37: 0 | FB37: 0 | FC37: 0 | FD37: 692.323 | FE37: 0 | FF37: 287.954 | FG37: 0 | FH37: 0 | FI37: 1328.52 | FJ37: 0 | FK37: 0 | FL37: 0 | FM37: 0 | FN37: 0 | FO37: 0 | FP37: 0 | FQ37: 0 | FR37: 0 | FS37: 0 | FT37: 10.19 | FU37: 7.07 | FV37: 2.47 | FW37: 0 | FX37: 16.54 | FY37: 0 | FZ37: 0 | GA37: 6.61 | GB37: 24.34 | GC37: 38.58 | GD37: 1.31 | GE37: 107.11 | GF37: 0 | GG37: 1.11416 | GH37: 0.0897263 | GI37: 0 | GJ37: 0 | GK37: 0 | GL37: 0 | GM37: 0.301364 | GN37: 0.727954 | GO37: 1.54311 | GP37: 0.0381986 | GQ37: 3.81452 | GR37: 1004.1 | GS37: 1131.06 | GT37: 785.772 | GU37: 0 | GV37: 0 | GW37: 5894.96 | GX37: 6547.68 | GY37: 10697.7 | GZ37: 540.499 | HA37: 26601.8 | HB37: 835.649 | HC37: 0 | HD37: 0 | HE37: 0 | HF37: 1137.18 | HG37: 0 | HH37: 291.124 | HI37: 0 | HJ37: 0 | HK37: 2263.95 | HL37: 0 | HM37: 0 | HN37: 0 | HO37: 0 | HP37: 0 | HQ37: 0 | HR37: 0 | HS37: 0 | HT37: 0 | HU37: 0 | HV37: 25 | HW37: 14.78 | HX37: 2.47 | HY37: 0 | HZ37: 27.17 | IA37: 19.4 | IB37: 27.6 | IC37: 34.42 | ID37: 1.54 | IE37: 152.38 | IF37: 0 | IG37: 2.2518 | IH37: 0.0897263 | II37: 0 | IJ37: 0 | IK37: 0.92718 | IL37: 0.771174 | IM37: 1.42503 | IN37: 0.00753268 | IO37: 5.47245 | IP37: 58.4 | IQ37: 0 | IR37: 58.4 | IS37: 0 | IT37: 0 | IU37: 10.38 | IV37: 25.89 | IW37: 10.38 | IX37: 25.89 | IY37: 10.38 | IZ37: 25.89 | JA37: 19.94 | JB37: 49.48
A38: 2017-07-21T08:58:57 | B38: U03R03 | C38: v29 03 S69 G15 M01 | D38: 3 | E38: 8 | F38: 6960 | G38: Proposed and Standard | H38: PASS | I38: 0 | J38: 58.7 | K38: 129.672 | L38: 156.076 | M38: 785.772 | N38: 0 | O38: 0 | P38: 0 | Q38: 0 | R38: 2033.7 | S38: 5402.65 | T38: 12062 | U38: 433.914 | V38: 21003.7 | W38: 147.222 | X38: 0 | Y38: 0 | Z38: 0 | AA38: 695.494 | AB38: 0 | AC38: 287.954 | AD38: 0 | AE38: 0 | AF38: 1130.67 | AG38: 0 | AH38: 0 | AI38: 0 | AJ38: 0 | AK38: 0 | AL38: 0 | AM38: 0 | AN38: 0 | AO38: 0 | AP38: 0 | AQ38: 4.36 | AR38: 1.74 | AS38: 2.47 | AT38: 0 | AU38: 16.57 | AV38: 0 | AW38: 0 | AX38: 6.57 | AY38: 24.16 | AZ38: 38.51 | BA38: 1.3 | BB38: 95.68 | BC38: 25.14 | BD38: 0 | BE38: 0.308128 | BF38: 0.0897263 | BG38: 0 | BH38: 0 | BI38: 0 | BJ38: 0 | BK38: 0.301364 | BL38: 0.715485 | BM38: 1.54311 | BN38: 0.0381986 | BO38: 2.99601 | BP38: 0.397855 | BQ38: 129.672 | BR38: 156.076 | BS38: 785.772 | BT38: 0 | BU38: 0 | BV38: 2033.7 | BW38: 5402.65 | BX38: 12062 | BY38: 433.914 | BZ38: 21003.7 | CA38: 147.222 | CB38: 0 | CC38: 0 | CD38: 0 | CE38: 695.494 | CF38: 0 | CG38: 287.954 | CH38: 0 | CI38: 0 | CJ38: 1130.67 | CK38: 0 | CL38: 0 | CM38: 0 | CN38: 0 | CO38: 0 | CP38: 0 | CQ38: 0 | CR38: 0 | CS38: 0 | CT38: 0 | CU38: 4.36 | CV38: 1.74 | CW38: 2.47 | CX38: 0 | CY38: 16.57 | CZ38: 6.57 | DA38: 24.16 | DB38: 38.51 | DC38: 1.3 | DD38: 95.68 | DE38: 25.14 | DF38: 0 | DG38: 0.308128 | DH38: 0.0897263 | DI38: 0 | DJ38: 0 | DK38: 0.301364 | DL38: 0.715485 | DM38: 1.54311 | DN38: 0.0381986 | DO38: 2.99601 | DP38: 0.397855 | DQ38: BEMCmpMgr 2016.3.0 (901) | DR38: CSE 0.836 EXE | DS38: MPCBECC | DT38: 0 | DU38: 0 | DV38: 0 | DW38: 0 | EN38: 129.672 | EO38: 156.076 | EP38: 785.772 | EQ38: 0 | ER38: 0 | ES38: 0 | ET38: 0 | EU38: 2033.7 | EV38: 5402.65 | EW38: 12062 | EX38: 433.914 | EY38: 21003.7 | EZ38: 147.222 | FA38: 0 | FB38: 0 | FC38: 0 | FD38: 695.494 | FE38: 0 | FF38: 287.954 | FG38: 0 | FH38: 0 | FI38: 1130.67 | FJ38: 0 | FK38: 0 | FL38: 0 | FM38: 0 | FN38: 0 | FO38: 0 | FP38: 0 | FQ38: 0 | FR38: 0 | FS38: 0 | FT38: 4.36 | FU38: 1.74 | FV38: 2.47 | FW38: 0 | FX38: 16.57 | FY38: 0 | FZ38: 0 | GA38: 6.57 | GB38: 24.16 | GC38: 38.51 | GD38: 1.3 | GE38: 95.68 | GF38: 0 | GG38: 0.308128 | GH38: 0.0897263 | GI38: 0 | GJ38: 0 | GK38: 0 | GL38: 0 | GM38: 0.301364 | GN38: 0.715485 | GO38: 1.54311 | GP38: 0.0381986 | GQ38: 2.99601 | GR38: 784.833 | GS38: 73.4939 | GT38: 785.772 | GU38: 0 | GV38: 0 | GW38: 5894.96 | GX38: 6547.68 | GY38: 10697.7 | GZ38: 540.499 | HA38: 25325 | HB38: 653.134 | HC38: 0 | HD38: 0 | HE38: 0 | HF38: 1141.11 | HG38: 0 | HH38: 291.124 | HI38: 0 | HJ38: 0 | HK38: 2085.36 | HL38: 0 | HM38: 0 | HN38: 0 | HO38: 0 | HP38: 0 | HQ38: 0 | HR38: 0 | HS38: 0 | HT38: 0 | HU38: 0 | HV38: 19.55 | HW38: 1.21 | HX38: 2.47 | HY38: 0 | HZ38: 27.19 | IA38: 19.24 | IB38: 27.59 | IC38: 34.29 | ID38: 1.53 | IE38: 133.07 | IF38: 0 | IG38: 0.235244 | IH38: 0.0897263 | II38: 0 | IJ38: 0 | IK38: 0.92718 | IL38: 0.771174 | IM38: 1.42503 | IN38: 0.00753268 | IO38: 3.45589 | IP38: 58.7 | IQ38: 0 | IR38: 58.7 | IS38: 0 | IT38: 0 | IU38: 4.57 | IV38: 20.57 | IW38: 4.57 | IX38: 20.57 | IY38: 4.57 | IZ38: 20.57 | JA38: 5.78 | JB38: 44.64
A39: 2017-07-21T08:58:58 | B39: U03R04 | C39: v29 04 S69 G15 M01 | D39: 4 | E39: 8 | F39: 6960 | G39: Proposed and Standard | H39: PASS | I39: 0 | J39: 57.7 | K39: 194.219 | L39: 782.045 | M39: 785.772 | N39: 0 | O39: 0 | P39: 0 | Q39: 0 | R39: 2033.7 | S39: 5455.39 | T39: 12062 | U39: 433.914 | V39: 21747 | W39: 220.518 | X39: 0 | Y39: 0 | Z39: 0 | AA39: 662.435 | AB39: 0 | AC39: 287.954 | AD39: 0 | AE39: 0 | AF39: 1170.91 | AG39: 0 | AH39: 0 | AI39: 0 | AJ39: 0 | AK39: 0 | AL39: 0 | AM39: 0 | AN39: 0 | AO39: 0 | AP39: 0 | AQ39: 6.46 | AR39: 8.75 | AS39: 2.47 | AT39: 0 | AU39: 15.84 | AV39: 0 | AW39: 0 | AX39: 6.62 | AY39: 24.45 | AZ39: 38.6 | BA39: 1.31 | BB39: 104.5 | BC39: 33.52 | BD39: 0 | BE39: 2.15249 | BF39: 0.0897263 | BG39: 0 | BH39: 0 | BI39: 0 | BJ39: 0 | BK39: 0.301364 | BL39: 0.742856 | BM39: 1.54311 | BN39: 0.0381986 | BO39: 4.86774 | BP39: 2.24221 | BQ39: 194.219 | BR39: 782.045 | BS39: 785.772 | BT39: 0 | BU39: 0 | BV39: 2033.7 | BW39: 5455.39 | BX39: 12062 | BY39: 433.914 | BZ39: 21747 | CA39: 220.518 | CB39: 0 | CC39: 0 | CD39: 0 | CE39: 662.435 | CF39: 0 | CG39: 287.954 | CH39: 0 | CI39: 0 | CJ39: 1170.91 | CK39: 0 | CL39: 0 | CM39: 0 | CN39: 0 | CO39: 0 | CP39: 0 | CQ39: 0 | CR39: 0 | CS39: 0 | CT39: 0 | CU39: 6.46 | CV39: 8.75 | CW39: 2.47 | CX39: 0 | CY39: 15.84 | CZ39: 6.62 | DA39: 24.45 | DB39: 38.6 | DC39: 1.31 | DD39: 104.5 | DE39: 33.52 | DF39: 0 | DG39: 2.15249 | DH39: 0.0897263 | DI39: 0 | DJ39: 0 | DK39: 0.301364 | DL39: 0.742856 | DM39: 1.54311 | DN39: 0.0381986 | DO39: 4.86774 | DP39: 2.24221 | DQ39: BEMCmpMgr 2016.3.0 (901) | DR39: CSE 0.836 EXE | DS39: MPCBECC | DT39: 0 | DU39: 0 | DV39: 0 | DW39: 0 | EN39: 194.219 | EO39: 782.045 | EP39: 785.772 | EQ39: 0 | ER39: 0 | ES39: 0 | ET39: 0 | EU39: 2033.7 | EV39: 5455.39 | EW39: 12062 | EX39: 433.914 | EY39: 21747 | EZ39: 220.518 | FA39: 0 | FB39: 0 | FC39: 0 | FD39: 662.435 | FE39: 0 | FF39: 287.954 | FG39: 0 | FH39: 0 | FI39: 1170.91 | FJ39: 0 | FK39: 0 | FL39: 0 | FM39: 0 | FN39: 0 | FO39: 0 | FP39: 0 | FQ39: 0 | FR39: 0 | FS39: 0 | FT39: 6.46 | FU39: 8.75 | FV39: 2.47 | FW39: 0 | FX39: 15.84 | FY39: 0 | FZ39: 0 | GA39: 6.62 | GB39: 24.45 | GC39: 38.6 | GD39: 1.31 | GE39: 104.5 | GF39: 0 | GG39: 2.15249 | GH39: 0.0897263 | GI39: 0 | GJ39: 0 | GK39: 0 | GL39: 0 | GM39: 0.301364 | GN39: 0.742856 | GO39: 1.54311 | GP39: 0.0381986 | GQ39: 4.86774 | GR39: 751.528 | GS39: 1780.16 | GT39: 785.772 | GU39: 0 | GV39: 0 | GW39: 5894.96 | GX39: 6547.68 | GY39: 10697.7 | GZ39: 540.499 | HA39: 26998.3 | HB39: 625.455 | HC39: 0 | HD39: 0 | HE39: 0 | HF39: 1107.13 | HG39: 0 | HH39: 291.124 | HI39: 0 | HJ39: 0 | HK39: 2023.71 | HL39: 0 | HM39: 0 | HN39: 0 | HO39: 0 | HP39: 0 | HQ39: 0 | HR39: 0 | HS39: 0 | HT39: 0 | HU39: 0 | HV39: 18.79 | HW39: 21.18 | HX39: 2.47 | HY39: 0 | HZ39: 26.47 | IA39: 19.44 | IB39: 27.6 | IC39: 34.45 | ID39: 1.53 | IE39: 151.93 | IF39: 0 | IG39: 4.81748 | IH39: 0.0897263 | II39: 0 | IJ39: 0 | IK39: 0.92718 | IL39: 0.771174 | IM39: 1.42503 | IN39: 0.00753268 | IO39: 8.03812 | IP39: 57.7 | IQ39: 0 | IR39: 57.7 | IS39: 0 | IT39: 0 | IU39: 11.75 | IV39: 21.77 | IW39: 11.75 | IX39: 21.77 | IY39: 11.75 | IZ39: 21.77 | JA39: 25.66 | JB39: 43.25
A40: 2017-07-21T08:59:24 | B40: U03R05 | C40: v29 05 S69 G15 M01 | D40: 5 | E40: 8 | F40: 6960 | G40: Proposed and Standard | H40: PASS | I40: 0 | J40: 58.3 | K40: 92.1352 | L40: 143.65 | M40: 785.772 | N40: 0 | O40: 0 | P40: 0 | Q40: 0 | R40: 2033.7 | S40: 5443.11 | T40: 12062 | U40: 433.914 | V40: 20994.2 | W40: 104.617 | X40: 0 | Y40: 0 | Z40: 0 | AA40: 712.006 | AB40: 0 | AC40: 287.954 | AD40: 0 | AE40: 0 | AF40: 1104.58 | AG40: 0 | AH40: 0 | AI40: 0 | AJ40: 0 | AK40: 0 | AL40: 0 | AM40: 0 | AN40: 0 | AO40: 0 | AP40: 0 | AQ40: 3.04 | AR40: 1.68 | AS40: 2.47 | AT40: 0 | AU40: 16.94 | AV40: 0 | AW40: 0 | AX40: 6.51 | AY40: 24.23 | AZ40: 38.39 | BA40: 1.3 | BB40: 94.56 | BC40: 24.13 | BD40: 0 | BE40: 0.359473 | BF40: 0.0897263 | BG40: 0 | BH40: 0 | BI40: 0 | BJ40: 0 | BK40: 0.301364 | BL40: 0.722182 | BM40: 1.54311 | BN40: 0.0381986 | BO40: 3.05406 | BP40: 0.449199 | BQ40: 92.1352 | BR40: 143.65 | BS40: 785.772 | BT40: 0 | BU40: 0 | BV40: 2033.7 | BW40: 5443.11 | BX40: 12062 | BY40: 433.914 | BZ40: 20994.2 | CA40: 104.617 | CB40: 0 | CC40: 0 | CD40: 0 | CE40: 712.006 | CF40: 0 | CG40: 287.954 | CH40: 0 | CI40: 0 | CJ40: 1104.58 | CK40: 0 | CL40: 0 | CM40: 0 | CN40: 0 | CO40: 0 | CP40: 0 | CQ40: 0 | CR40: 0 | CS40: 0 | CT40: 0 | CU40: 3.04 | CV40: 1.68 | CW40: 2.47 | CX40: 0 | CY40: 16.94 | CZ40: 6.51 | DA40: 24.23 | DB40: 38.39 | DC40: 1.3 | DD40: 94.56 | DE40: 24.13 | DF40: 0 | DG40: 0.359473 | DH40: 0.0897263 | DI40: 0 | DJ40: 0 | DK40: 0.301364 | DL40: 0.722182 | DM40: 1.54311 | DN40: 0.0381986 | DO40: 3.05406 | DP40: 0.449199 | DQ40: BEMCmpMgr 2016.3.0 (901) | DR40: CSE 0.836 EXE | DS40: MPCBECC | DT40: 0 | DU40: 0 | DV40: 0 | DW40: 0 | EN40: 92.1352 | EO40: 143.65 | EP40: 785.772 | EQ40: 0 | ER40: 0 | ES40: 0 | ET40: 0 | EU40: 2033.7 | EV40: 5443.11 | EW40: 12062 | EX40: 433.914 | EY40: 20994.2 | EZ40: 104.617 | FA40: 0 | FB40: 0 | FC40: 0 | FD40: 712.006 | FE40: 0 | FF40: 287.954 | FG40: 0 | FH40: 0 | FI40: 1104.58 | FJ40: 0 | FK40: 0 | FL40: 0 | FM40: 0 | FN40: 0 | FO40: 0 | FP40: 0 | FQ40: 0 | FR40: 0 | FS40: 0 | FT40: 3.04 | FU40: 1.68 | FV40: 2.47 | FW40: 0 | FX40: 16.94 | FY40: 0 | FZ40: 0 | GA40: 6.51 | GB40: 24.23 | GC40: 38.39 | GD40: 1.3 | GE40: 94.56 | GF40: 0 | GG40: 0.359473 | GH40: 0.0897263 | GI40: 0 | GJ40: 0 | GK40: 0 | GL40: 0 | GM40: 0.301364 | GN40: 0.722182 | GO40: 1.54311 | GP40: 0.0381986 | GQ40: 3.05406 | GR40: 778.148 | GS40: 7.01103 | GT40: 785.772 | GU40: 0 | GV40: 0 | GW40: 5894.96 | GX40: 6547.68 | GY40: 10697.7 | GZ40: 540.499 | HA40: 25251.8 | HB40: 647.645 | HC40: 0 | HD40: 0 | HE40: 0 | HF40: 1157.68 | HG40: 0 | HH40: 291.124 | HI40: 0 | HJ40: 0 | HK40: 2096.44 | HL40: 0 | HM40: 0 | HN40: 0 | HO40: 0 | HP40: 0 | HQ40: 0 | HR40: 0 | HS40: 0 | HT40: 0 | HU40: 0 | HV40: 19.07 | HW40: 0.05 | HX40: 2.47 | HY40: 0 | HZ40: 27.55 | IA40: 19.03 | IB40: 27.56 | IC40: 34.09 | ID40: 1.52 | IE40: 131.34 | IF40: 0 | IG40: 0.00331191 | IH40: 0.0897263 | II40: 0 | IJ40: 0 | IK40: 0.92718 | IL40: 0.771174 | IM40: 1.42503 | IN40: 0.00753268 | IO40: 3.22396 | IP40: 58.3 | IQ40: 0 | IR40: 58.3 | IS40: 0 | IT40: 0 | IU40: 4.4 | IV40: 19.73 | IW40: 4.4 | IX40: 19.73 | IY40: 4.4 | IZ40: 19.73 | JA40: 4.59 | JB40: 44.55
A41: 2017-07-21T08:58:57 | B41: U03R06 | C41: v29 06 S69 G15 M01 | D41: 6 | E41: 8 | F41: 6960 | G41: Proposed and Standard | H41: PASS | I41: 0 | J41: 62 | K41: 42.7748 | L41: 711.245 | M41: 785.772 | N41: 0 | O41: 0 | P41: 0 | Q41: 0 | R41: 2033.7 | S41: 5526.83 | T41: 12062 | U41: 433.914 | V41: 21596.2 | W41: 48.5658 | X41: 0 | Y41: 0 | Z41: 0 | AA41: 632.835 | AB41: 0 | AC41: 287.954 | AD41: 0 | AE41: 0 | AF41: 969.355 | AG41: 0 | AH41: 0 | AI41: 0 | AJ41: 0 | AK41: 0 | AL41: 0 | AM41: 0 | AN41: 0 | AO41: 0 | AP41: 0 | AQ41: 1.44 | AR41: 7.13 | AS41: 2.39 | AT41: 0 | AU41: 15.19 | AV41: 0 | AW41: 0 | AX41: 6.39 | AY41: 24 | AZ41: 37.35 | BA41: 1.26 | BB41: 95.15 | BC41: 26.15 | BD41: 0 | BE41: 1.55769 | BF41: 0.0897263 | BG41: 0 | BH41: 0 | BI41: 0 | BJ41: 0 | BK41: 0.301364 | BL41: 0.73854 | BM41: 1.54311 | BN41: 0.0381986 | BO41: 4.26863 | BP41: 1.64742 | BQ41: 42.7748 | BR41: 711.245 | BS41: 785.772 | BT41: 0 | BU41: 0 | BV41: 2033.7 | BW41: 5526.83 | BX41: 12062 | BY41: 433.914 | BZ41: 21596.2 | CA41: 48.5658 | CB41: 0 | CC41: 0 | CD41: 0 | CE41: 632.835 | CF41: 0 | CG41: 287.954 | CH41: 0 | CI41: 0 | CJ41: 969.355 | CK41: 0 | CL41: 0 | CM41: 0 | CN41: 0 | CO41: 0 | CP41: 0 | CQ41: 0 | CR41: 0 | CS41: 0 | CT41: 0 | CU41: 1.44 | CV41: 7.13 | CW41: 2.39 | CX41: 0 | CY41: 15.19 | CZ41: 6.39 | DA41: 24 | DB41: 37.35 | DC41: 1.26 | DD41: 95.15 | DE41: 26.15 | DF41: 0 | DG41: 1.55769 | DH41: 0.0897263 | DI41: 0 | DJ41: 0 | DK41: 0.301364 | DL41: 0.73854 | DM41: 1.54311 | DN41: 0.0381986 | DO41: 4.26863 | DP41: 1.64742 | DQ41: BEMCmpMgr 2016.3.0 (901) | DR41: CSE 0.836 EXE | DS41: MPCBECC | DT41: 0 | DU41: 0 | DV41: 0 | DW41: 0 | EN41: 42.7748 | EO41: 711.245 | EP41: 785.772 | EQ41: 0 | ER41: 0 | ES41: 0 | ET41: 0 | EU41: 2033.7 | EV41: 5526.83 | EW41: 12062 | EX41: 433.914 | EY41: 21596.2 | EZ41: 48.5658 | FA41: 0 | FB41: 0 | FC41: 0 | FD41: 632.835 | FE41: 0 | FF41: 287.954 | FG41: 0 | FH41: 0 | FI41: 969.355 | FJ41: 0 | FK41: 0 | FL41: 0 | FM41: 0 | FN41: 0 | FO41: 0 | FP41: 0 | FQ41: 0 | FR41: 0 | FS41: 0 | FT41: 1.44 | FU41: 7.13 | FV41: 2.39 | FW41: 0 | FX41: 15.19 | FY41: 0 | FZ41: 0 | GA41: 6.39 | GB41: 24 | GC41: 37.35 | GD41: 1.26 | GE41: 95.15 | GF41: 0 | GG41: 1.55769 | GH41: 0.0897263 | GI41: 0 | GJ41: 0 | GK41: 0 | GL41: 0 | GM41: 0.301364 | GN41: 0.73854 | GO41: 1.54311 | GP41: 0.0381986 | GQ41: 4.26863 | GR41: 248.939 | GS41: 1264.45 | GT41: 785.772 | GU41: 0 | GV41: 0 | GW41: 5894.96 | GX41: 6547.68 | GY41: 10697.7 | GZ41: 540.499 | HA41: 25980 | HB41: 207.174 | HC41: 0 | HD41: 0 | HE41: 0 | HF41: 1078.18 | HG41: 0 | HH41: 291.124 | HI41: 0 | HJ41: 0 | HK41: 1576.48 | HL41: 0 | HM41: 0 | HN41: 0 | HO41: 0 | HP41: 0 | HQ41: 0 | HR41: 0 | HS41: 0 | HT41: 0 | HU41: 0 | HV41: 6.28 | HW41: 13.98 | HX41: 2.39 | HY41: 0 | HZ41: 25.87 | IA41: 18.68 | IB41: 26.93 | IC41: 33.13 | ID41: 1.5 | IE41: 128.76 | IF41: 0 | IG41: 2.381 | IH41: 0.0897263 | II41: 0 | IJ41: 0 | IK41: 0.92718 | IL41: 0.771174 | IM41: 1.42503 | IN41: 0.00753268 | IO41: 5.60164 | IP41: 62 | IQ41: 0 | IR41: 62 | IS41: 0 | IT41: 0 | IU41: 9.63 | IV41: 16.52 | IW41: 9.63 | IX41: 16.52 | IY41: 9.63 | IZ41: 16.52 | JA41: 17 | JB41: 31.52
A42: 2017-07-21T08:58:56 | B42: U03R07 | C42: v29 07 S69 G15 M01 | D42: 7 | E42: 8 | F42: 6960 | G42: Proposed and Standard | H42: PASS | I42: 0 | J42: 62.2 | K42: 2.44625 | L42: 414.434 | M42: 785.772 | N42: 0 | O42: 0 | P42: 0 | Q42: 0 | R42: 2033.7 | S42: 5538.57 | T42: 12062 | U42: 433.914 | V42: 21270.8 | W42: 2.77734 | X42: 0 | Y42: 0 | Z42: 0 | AA42: 622.879 | AB42: 0 | AC42: 287.954 | AD42: 0 | AE42: 0 | AF42: 913.61 | AG42: 0 | AH42: 0 | AI42: 0 | AJ42: 0 | AK42: 0 | AL42: 0 | AM42: 0 | AN42: 0 | AO42: 0 | AP42: 0 | AQ42: 0.08 | AR42: 6.14 | AS42: 2.48 | AT42: 0 | AU42: 14.67 | AV42: 0 | AW42: 0 | AX42: 6.72 | AY42: 24.7 | AZ42: 38.92 | BA42: 1.33 | BB42: 95.04 | BC42: 23.37 | BD42: 0 | BE42: 1.37173 | BF42: 0.0897263 | BG42: 0 | BH42: 0 | BI42: 0 | BJ42: 0 | BK42: 0.301364 | BL42: 0.73723 | BM42: 1.54311 | BN42: 0.0381986 | BO42: 4.08136 | BP42: 1.46146 | BQ42: 2.44625 | BR42: 414.434 | BS42: 785.772 | BT42: 0 | BU42: 0 | BV42: 2033.7 | BW42: 5538.57 | BX42: 12062 | BY42: 433.914 | BZ42: 21270.8 | CA42: 2.77734 | CB42: 0 | CC42: 0 | CD42: 0 | CE42: 622.879 | CF42: 0 | CG42: 287.954 | CH42: 0 | CI42: 0 | CJ42: 913.61 | CK42: 0 | CL42: 0 | CM42: 0 | CN42: 0 | CO42: 0 | CP42: 0 | CQ42: 0 | CR42: 0 | CS42: 0 | CT42: 0 | CU42: 0.08 | CV42: 6.14 | CW42: 2.48 | CX42: 0 | CY42: 14.67 | CZ42: 6.72 | DA42: 24.7 | DB42: 38.92 | DC42: 1.33 | DD42: 95.04 | DE42: 23.37 | DF42: 0 | DG42: 1.37173 | DH42: 0.0897263 | DI42: 0 | DJ42: 0 | DK42: 0.301364 | DL42: 0.73723 | DM42: 1.54311 | DN42: 0.0381986 | DO42: 4.08136 | DP42: 1.46146 | DQ42: BEMCmpMgr 2016.3.0 (901) | DR42: CSE 0.836 EXE | DS42: MPCBECC | DT42: 0 | DU42: 0 | DV42: 0 | DW42: 0 | EN42: 2.44625 | EO42: 414.434 | EP42: 785.772 | EQ42: 0 | ER42: 0 | ES42: 0 | ET42: 0 | EU42: 2033.7 | EV42: 5538.57 | EW42: 12062 | EX42: 433.914 | EY42: 21270.8 | EZ42: 2.77734 | FA42: 0 | FB42: 0 | FC42: 0 | FD42: 622.879 | FE42: 0 | FF42: 287.954 | FG42: 0 | FH42: 0 | FI42: 913.61 | FJ42: 0 | FK42: 0 | FL42: 0 | FM42: 0 | FN42: 0 | FO42: 0 | FP42: 0 | FQ42: 0 | FR42: 0 | FS42: 0 | FT42: 0.08 | FU42: 6.14 | FV42: 2.48 | FW42: 0 | FX42: 14.67 | FY42: 0 | FZ42: 0 | GA42: 6.72 | GB42: 24.7 | GC42: 38.92 | GD42: 1.33 | GE42: 95.04 | GF42: 0 | GG42: 1.37173 | GH42: 0.0897263 | GI42: 0 | GJ42: 0 | GK42: 0 | GL42: 0 | GM42: 0.301364 | GN42: 0.73723 | GO42: 1.54311 | GP42: 0.0381986 | GQ42: 4.08136 | GR42: 62.1199 | GS42: 766.874 | GT42: 785.772 | GU42: 0 | GV42: 0 | GW42: 5894.96 | GX42: 6547.68 | GY42: 10697.7 | GZ42: 540.499 | HA42: 25295.6 | HB42: 51.6961 | HC42: 0 | HD42: 0 | HE42: 0 | HF42: 1068.97 | HG42: 0 | HH42: 291.124 | HI42: 0 | HJ42: 0 | HK42: 1411.79 | HL42: 0 | HM42: 0 | HN42: 0 | HO42: 0 | HP42: 0 | HQ42: 0 | HR42: 0 | HS42: 0 | HT42: 0 | HU42: 0 | HV42: 1.52 | HW42: 12.02 | HX42: 2.48 | HY42: 0 | HZ42: 25.17 | IA42: 19.65 | IB42: 27.62 | IC42: 34.58 | ID42: 1.61 | IE42: 124.65 | IF42: 0 | IG42: 2.48576 | IH42: 0.0897263 | II42: 0 | IJ42: 0 | IK42: 0.92718 | IL42: 0.771174 | IM42: 1.42503 | IN42: 0.00753268 | IO42: 5.70641 | IP42: 62.2 | IQ42: 0 | IR42: 62.2 | IS42: 0 | IT42: 0 | IU42: 8.63 | IV42: 14.74 | IW42: 8.63 | IX42: 14.74 | IY42: 8.63 | IZ42: 14.74 | JA42: 14.66 | JB42: 26.53
A43: 2017-07-21T08:58:41 | B43: U03R08 | C43: v29 08 S69 G15 M01 | D43: 8 | E43: 8 | F43: 6960 | G43: Proposed and Standard | H43: PASS | I43: 0 | J43: 60.8 | K43: 18.9479 | L43: 2161.7 | M43: 785.772 | N43: 0 | O43: 0 | P43: 0 | Q43: 0 | R43: 2033.7 | S43: 5610.56 | T43: 12062 | U43: 433.914 | V43: 23106.6 | W43: 21.5132 | X43: 0 | Y43: 0 | Z43: 0 | AA43: 606.601 | AB43: 0 | AC43: 287.954 | AD43: 0 | AE43: 0 | AF43: 916.069 | AG43: 0 | AH43: 0 | AI43: 0 | AJ43: 0 | AK43: 0 | AL43: 0 | AM43: 0 | AN43: 0 | AO43: 0 | AP43: 0 | AQ43: 0.64 | AR43: 16.7 | AS43: 2.4 | AT43: 0 | AU43: 14.57 | AV43: 0 | AW43: 0 | AX43: 6.45 | AY43: 24.38 | AZ43: 37.51 | BA43: 1.28 | BB43: 103.93 | BC43: 34.31 | BD43: 0 | BE43: 3.54744 | BF43: 0.0897263 | BG43: 0 | BH43: 0 | BI43: 0 | BJ43: 0 | BK43: 0.301364 | BL43: 0.751272 | BM43: 1.54311 | BN43: 0.0381986 | BO43: 6.27111 | BP43: 3.63717 | BQ43: 18.9479 | BR43: 2161.7 | BS43: 785.772 | BT43: 0 | BU43: 0 | BV43: 2033.7 | BW43: 5610.56 | BX43: 12062 | BY43: 433.914 | BZ43: 23106.6 | CA43: 21.5132 | CB43: 0 | CC43: 0 | CD43: 0 | CE43: 606.601 | CF43: 0 | CG43: 287.954 | CH43: 0 | CI43: 0 | CJ43: 916.069 | CK43: 0 | CL43: 0 | CM43: 0 | CN43: 0 | CO43: 0 | CP43: 0 | CQ43: 0 | CR43: 0 | CS43: 0 | CT43: 0 | CU43: 0.64 | CV43: 16.7 | CW43: 2.4 | CX43: 0 | CY43: 14.57 | CZ43: 6.45 | DA43: 24.38 | DB43: 37.51 | DC43: 1.28 | DD43: 103.93 | DE43: 34.31 | DF43: 0 | DG43: 3.54744 | DH43: 0.0897263 | DI43: 0 | DJ43: 0 | DK43: 0.301364 | DL43: 0.751272 | DM43: 1.54311 | DN43: 0.0381986 | DO43: 6.27111 | DP43: 3.63717 | DQ43: BEMCmpMgr 2016.3.0 (901) | DR43: CSE 0.836 EXE | DS43: MPCBECC | DT43: 0 | DU43: 0 | DV43: 0 | DW43: 0 | EN43: 18.9479 | EO43: 2161.7 | EP43: 785.772 | EQ43: 0 | ER43: 0 | ES43: 0 | ET43: 0 | EU43: 2033.7 | EV43: 5610.56 | EW43: 12062 | EX43: 433.914 | EY43: 23106.6 | EZ43: 21.5132 | FA43: 0 | FB43: 0 | FC43: 0 | FD43: 606.601 | FE43: 0 | FF43: 287.954 | FG43: 0 | FH43: 0 | FI43: 916.069 | FJ43: 0 | FK43: 0 | FL43: 0 | FM43: 0 | FN43: 0 | FO43: 0 | FP43: 0 | FQ43: 0 | FR43: 0 | FS43: 0 | FT43: 0.64 | FU43: 16.7 | FV43: 2.4 | FW43: 0 | FX43: 14.57 | FY43: 0 | FZ43: 0 | GA43: 6.45 | GB43: 24.38 | GC43: 37.51 | GD43: 1.28 | GE43: 103.93 | GF43: 0 | GG43: 3.54744 | GH43: 0.0897263 | GI43: 0 | GJ43: 0 | GK43: 0 | GL43: 0 | GM43: 0.301364 | GN43: 0.751272 | GO43: 1.54311 | GP43: 0.0381986 | GQ43: 6.27111 | GR43: 178.518 | GS43: 4214.33 | GT43: 785.772 | GU43: 0 | GV43: 0 | GW43: 5894.96 | GX43: 6547.68 | GY43: 10697.7 | GZ43: 540.499 | HA43: 28859.5 | HB43: 148.568 | HC43: 0 | HD43: 0 | HE43: 0 | HF43: 1051.57 | HG43: 0 | HH43: 291.124 | HI43: 0 | HJ43: 0 | HK43: 1491.26 | HL43: 0 | HM43: 0 | HN43: 0 | HO43: 0 | HP43: 0 | HQ43: 0 | HR43: 0 | HS43: 0 | HT43: 0 | HU43: 0 | HV43: 4.51 | HW43: 34.03 | HX43: 2.4 | HY43: 0 | HZ43: 25.26 | IA43: 18.86 | IB43: 26.98 | IC43: 33.32 | ID43: 1.53 | IE43: 146.89 | IF43: 0 | IG43: 6.3528 | IH43: 0.0897263 | II43: 0 | IJ43: 0 | IK43: 0.92718 | IL43: 0.771174 | IM43: 1.42503 | IN43: 0.00753268 | IO43: 9.57345 | IP43: 60.8 | IQ43: 0 | IR43: 60.8 | IS43: 0 | IT43: 0 | IU43: 19.15 | IV43: 15.16 | IW43: 19.15 | IX43: 15.16 | IY43: 19.15 | IZ43: 15.16 | JA43: 36.88 | JB43: 29.32
